Workbook

Sheet Introduction
C2: General Discussion | V2: FALSE
D3: This file illustrates how to compute the timing and the cash flow split in a partnership structure
D4: The yield tracking account can also be used for splitting equity kickers in LBO analysis
D5: Cash Flow are distributed to two or more partners, one of which is senior
D6: The senior partner receives cash flows at different percentages depending if an IRR is reached
D7: The first sheet works through the problem with an annual model. The second sheet works through a basic periodic model and the third works through more advanced
C10: Inputs
D11: For the calculations to be clear, the inputs must be defined in a clear manner
D12: The cash flow distributions are different before and after the flip
D13: The total cash flow distributions should add up to 1.0
C15: Annual Analysis
D16: The trick is to develop an account that keeps track of the value earned by investors including a yield
D17: This account is like an equity account with dividends remomved, but it includes the value of money
D18: When the account becomes zero, the dividends have offset the value of the investment including the opportunity cost
D19: The yield traking account is used for the cash flow waterfall, as other accounts are used to evaluate whether the reservior is full or empty
D21: A cash flow waterfall should be developed where the first tranche is the partner who earns the yield
C24: The value tracking involves
D25: Begin with the amount invested by a partner == as this is an outflow, express this as a negative value
D26: Add the opportunity cost of funding as a negative value to the account and is computed as the opening balance multiplied by the yield
D27: Subtract the dividends received by the investor
D28: Compute the remaining amount
D30: The key is that dividends are not taken out of if the account is less than zero
D31: To limit the amount of funds taken out, the MIN function can be used
C33: Cash flow waterfall after the initial flip
D34: After the flip period, the remaining cash flow is split in different ratios
D35: Compute the cash flow after the initial yield, by calculating the percentage of the operating cash flow that is allocated to first tranche and second next tranche
D36: The cash flow after the first tranche is used to compute the amount of cash flow to the senior after the flip
D37: To compute this one must know when the remaining cash flows begin and compute the percent of cash flows before the flip in the flip period
C40: Periodic Analysis
D41: First, must compute dates using EDATE or EOMONTH
D43: If using the XIRR to test, use the actual days in the month rather than DAYS360
D44: Compute effective periodic rate for the yield tracking using the actual number of days
D45: Compute the yield tracking account on a periodic basis using the periodic rate and derive the dividends using the MIN account
D46: Check the IRR using the IRR formula
D48: Compute the percentage of the cash flow that is for the pre-flip and the post flip period by comparing the dividneds without the cap to the dividends with the cap
D49: Once the cash flow available for the second tranche is computed, evaluate the cash flow to senior after the yield constraint
C52: Periodic Analysis with Specific Dates
D53: In the previous two analysis, in the period of the flip, it is assumed that the cash flow is distributed in proportions in the peiod of the flip
D54: In fact, cash flow is distributed to the senior at the pre-flip percentage before the the cash flow is distributed later
D55: To be more accurate, the date before the flip can be determined and then the pre-flip cash flow can be aligned with the date

Sheet Annual Analysis
A2: Inputs
D3: Percent of | E3: Cash Flow Share
D4: Investment | E4: Pre-Flip | F4: Post-Flip | H4: IRR
C5: Partner 1 | D5: =J5/100 -> 0.8 | E5: =K5/100 -> 0.85 | F5: =L5/100 -> 0.11 | H5: =D56 -> 0.1164403767 | J5: 80 | K5: 85 | L5: 11
C6: Partner 2 | D6: =1-D5 -> 0.2 | E6: =1-E5 -> 0.15 | F6: =1-F5 -> 0.89 | H6: =D57 -> 0.2548482196
C8: Yield for Determing Flip | D8: 0.1
C11: Investment | D11: 1000
C12: Initital Cash Flow | D12: 200
C13: Growth Rate | D13: 0
C14: Life | D14: 12
A16: Working
C17: Period Counter | D17: 0 | E17: =D17+1 -> 1 | F17: =E17+1 -> 2 | G17: 3 | H17: 4 | I17: 5 | J17: 6 | K17: 7 | L17: 8 | M17: 9 | N17: 10 | O17: 11 | P17: 12 | Q17: 13 | R17: 14 | S17: 15 | T17: 16 | U17: 17 | V17: 18 | W17: 19 | X17: 20 | Y17: 21 | Z17: 22
C18: Operating Switch | E18: =E17<=$D$14 -> TRUE | F18: =F17<=$D$14 -> TRUE | G18: TRUE | H18: TRUE | I18: TRUE | J18: TRUE | K18: TRUE | L18: TRUE | M18: TRUE | N18: TRUE | O18: TRUE | P18: TRUE | Q18: FALSE | R18: FALSE | S18: FALSE | T18: FALSE | U18: FALSE | V18: FALSE | W18: FALSE | X18: FALSE | Y18: FALSE | Z18: FALSE
C20: Uses of Funds - Investment | D20: =D11 -> 1000
C21: Sources of Funds - Partner 1 | D21: =D20*D5 -> 800
C22: Sources of Funds - Partner 2 | D22: =D20-D21 -> 200
C24: Cash Flow without Constraint | D24: =D12 -> 200 | E24: =D24*(1+$D$13) -> 200 | F24: =E24*(1+$D$13) -> 200 | G24: 200 | H24: 200 | I24: 200 | J24: 200 | K24: 200 | L24: 200 | M24: 200 | N24: 200 | O24: 200 | P24: 200 | Q24: 200 | R24: 200 | S24: 200 | T24: 200 | U24: 200 | V24: 200 | W24: 200 | X24: 200 | Y24: 200 | Z24: 200
C25: Total Cash Flow | D25: =-D20 -> -1000 | E25: =E24*E18 -> 200 | F25: =F24*F18 -> 200 | G25: 200 | H25: 200 | I25: 200 | J25: 200 | K25: 200 | L25: 200 | M25: 200 | N25: 200 | O25: 200 | P25: 200 | Q25: 0 | R25: 0 | S25: 0 | T25: 0 | U25: 0 | V25: 0 | W25: 0 | X25: 0 | Y25: 0 | Z25: 0
A27: Cash Flow to Senior Partner with First Call on Cash Flow
B28: Step 1: Compute Cash Flows to Senior Partner Assuming no Flip
C29: Partner 1 - Pre Flip Percentage | E29: =$E$5 -> 0.85 | F29: =$E$5 -> 0.85 | G29: 0.85 | H29: 0.85 | I29: 0.85 | J29: 0.85 | K29: 0.85 | L29: 0.85 | M29: 0.85 | N29: 0.85 | O29: 0.85 | P29: 0.85 | Q29: 0.85 | R29: 0.85 | S29: 0.85 | T29: 0.85 | U29: 0.85 | V29: 0.85 | W29: 0.85 | X29: 0.85 | Y29: 0.85 | Z29: 0.85
C30: Subtotal 1: Partner 1 Cash Flow without Cap | E30: =E29*E25*E18 -> 170 | F30: =F29*F25*F18 -> 170 | G30: 170 | H30: 170 | I30: 170 | J30: 170 | K30: 170 | L30: 170 | M30: 170 | N30: 170 | O30: 170 | P30: 170 | Q30: 0 | R30: 0 | S30: 0 | T30: 0 | U30: 0 | V30: 0 | W30: 0 | X30: 0 | Y30: 0 | Z30: 0
B32: Step 2: Compute a Tracking Account the Tabulates Value Until Value Becomes Zero
B33: Yield Tracking Account
C34: Opening Balance | E34: =D39 -> -800 | F34: =E39 -> -710 | G34: =F39 -> -611 | H34: -502.1 | I34: -382.31 | J34: -250.541 | K34: -105.5951 | L34: 0 | M34: 0 | N34: 0 | O34: 0 | P34: 0 | Q34: 0 | R34: 0 | S34: 0 | T34: 0 | U34: 0 | V34: 0 | W34: 0 | X34: 0 | Y34: 0 | Z34: 0
C35: Hurdle Rate | D35: =D8 -> 0.1 | E35: =D35 -> 0.1 | F35: =E35 -> 0.1 | G35: 0.1 | H35: 0.1 | I35: 0.1 | J35: 0.1 | K35: 0.1 | L35: 0.1 | M35: 0.1 | N35: 0.1 | O35: 0.1 | P35: 0.1 | Q35: 0.1 | R35: 0.1 | S35: 0.1 | T35: 0.1 | U35: 0.1 | V35: 0.1 | W35: 0.1 | X35: 0.1 | Y35: 0.1 | Z35: 0.1
C36: Less: Value of Money Lost | E36: =E34*E35 -> -80 | F36: =F34*F35 -> -71 | G36: -61.1 | H36: -50.21 | I36: -38.231 | J36: -25.0541 | K36: -10.55951 | L36: 0 | M36: 0 | N36: 0 | O36: 0 | P36: 0 | Q36: 0 | R36: 0 | S36: 0 | T36: 0 | U36: 0 | V36: 0 | W36: 0 | X36: 0 | Y36: 0 | Z36: 0
C37: Balance After Cost of Money | E37: =E34+E36 -> -880 | F37: =F34+F36 -> -781 | G37: -672.1 | H37: -552.31 | I37: -420.541 | J37: -275.5951 | K37: -116.15461 | L37: 0 | M37: 0 | N37: 0 | O37: 0 | P37: 0 | Q37: 0 | R37: 0 | S37: 0 | T37: 0 | U37: 0 | V37: 0 | W37: 0 | X37: 0 | Y37: 0 | Z37: 0
C38: Add: Cash Flow Received | E38: =MIN(-E37,E30) -> 170 | F38: =MIN(-F37,F30) -> 170 | G38: 170 | H38: 170 | I38: 170 | J38: 170 | K38: 116.15461 | L38: 0 | M38: 0 | N38: 0 | O38: 0 | P38: 0 | Q38: 0 | R38: 0 | S38: 0 | T38: 0 | U38: 0 | V38: 0 | W38: 0 | X38: 0 | Y38: 0 | Z38: 0
C39: Closing Balance Net Value of Investment | D39: =-D21 -> -800 | E39: =E34+E36+E38 -> -710 | F39: =F34+F36+F38 -> -611 | G39: -502.1 | H39: -382.31 | I39: -250.541 | J39: -105.5951 | K39: 0 | L39: 0 | M39: 0 | N39: 0 | O39: 0 | P39: 0 | Q39: 0 | R39: 0 | S39: 0 | T39: 0 | U39: 0 | V39: 0 | W39: 0 | X39: 0 | Y39: 0 | Z39: 0
C41: Partner 1 - Pre Flip Cash Flow | D41: =-D21 -> -800 | E41: =E38 -> 170 | F41: =F38 -> 170 | G41: 170 | H41: =H38 -> 170 | I41: 170 | J41: 170 | K41: 116.15461 | L41: 0 | M41: 0 | N41: 0 | O41: 0 | P41: 0 | Q41: 0 | R41: 0 | S41: 0 | T41: 0 | U41: 0 | V41: 0 | W41: 0 | X41: 0 | Y41: 0 | Z41: 0
C42: IRR - Check | D42: =IRR(D41:Z41,-10%) -> 0.1
C44: Percent of Pre-Flip Cash Flows | E44: =IF(E30,E41/E30) -> 1 | F44: =IF(F30,F41/F30) -> 1 | G44: 1 | H44: 1 | I44: 1 | J44: 1 | K44: 0.6832624118 | L44: 0 | M44: 0 | N44: 0 | O44: 0 | P44: 0 | Q44: FALSE | R44: FALSE | S44: FALSE | T44: FALSE | U44: FALSE | V44: FALSE | W44: FALSE | X44: FALSE | Y44: FALSE | Z44: FALSE
A46: Cash Flow to Senior Partner after First Tranche
C47: Subtotal 2: Cash Flow After Partner 1 First Tranche | E47: =(1-E44)*E25 -> 0 | F47: 0 | G47: 0 | H47: 0 | I47: 0 | J47: 0 | K47: 63.34751765 | L47: 200 | M47: 200 | N47: 200 | O47: 200 | P47: 200 | Q47: 0 | R47: 0 | S47: 0 | T47: 0 | U47: 0 | V47: 0 | W47: 0 | X47: 0 | Y47: 0 | Z47: 0
C48: Partner 1 - Post Flip Percent | E48: =$F$5 -> 0.11 | F48: =$F$5 -> 0.11 | G48: 0.11 | H48: 0.11 | I48: 0.11 | J48: 0.11 | K48: 0.11 | L48: 0.11 | M48: 0.11 | N48: 0.11 | O48: 0.11 | P48: 0.11 | Q48: 0.11 | R48: 0.11 | S48: 0.11 | T48: 0.11 | U48: 0.11 | V48: 0.11 | W48: 0.11 | X48: 0.11 | Y48: 0.11 | Z48: 0.11
C49: Partner 1 - Post Flip Amount | E49: =E47*E48 -> 0 | F49: =F47*F48 -> 0 | G49: 0 | H49: 0 | I49: 0 | J49: 0 | K49: 6.968226941 | L49: 22 | M49: 22 | N49: 22 | O49: 22 | P49: 22 | Q49: 0 | R49: 0 | S49: 0 | T49: 0 | U49: 0 | V49: 0 | W49: 0 | X49: 0 | Y49: 0 | Z49: 0
C51: Total Partner 1 Cash Flow | D51: =D39 -> -800 | E51: =E49+E41 -> 170 | F51: 170 | G51: 170 | H51: 170 | I51: 170 | J51: 170 | K51: 123.1228369 | L51: 22 | M51: 22 | N51: 22 | O51: 22 | P51: 22 | Q51: 0 | R51: 0 | S51: 0 | T51: 0 | U51: 0 | V51: 0 | W51: 0 | X51: 0 | Y51: 0 | Z51: 0
C52: Total Partner 2 Cash Flow | D52: =-D22 -> -200 | E52: =E25-E51 -> 30 | F52: 30 | G52: 30 | H52: 30 | I52: 30 | J52: 30 | K52: 76.87716306 | L52: 178 | M52: 178 | N52: 178 | O52: 178 | P52: 178 | Q52: 0 | R52: 0 | S52: 0 | T52: 0 | U52: 0 | V52: 0 | W52: 0 | X52: 0 | Y52: 0 | Z52: 0
C53: Total | D53: =SUM(D51:D52) -> -1000 | E53: =SUM(E51:E52) -> 200 | F53: 200 | G53: 200 | H53: 200 | I53: 200 | J53: 200 | K53: 200 | L53: 200 | M53: 200 | N53: 200 | O53: 200 | P53: 200 | Q53: 0 | R53: 0 | S53: 0 | T53: 0 | U53: 0 | V53: 0 | W53: 0 | X53: 0 | Y53: 0 | Z53: 0
C55: Total IRR | D55: =IRR(D53:Z53) -> 0.1694255086
C56: IRR - Partner 1 | D56: =IRR(D51:Z51) -> 0.1164403767
C57: IRR - Partner 2 | D57: =IRR(D52:Z52) -> 0.2548482196

Sheet Periodic Analysis 1
A2: Assumptions
B3: Dates and Structure
D4: Start Date | E4: 2012-01-01
D5: Periods per Year | E5: 12
D6: Months per Period | E6: 1
D8: Lifetime | E8: ='Annual Analysis'!D14 -> 12
D9: Retirement Date | E9: =EDATE(E4,E8*12)-1 -> 2023-12-31
E11: Percent of | F11: Cash Flow Share
E12: Investment | F12: Pre-Flip | G12: Post-Flip | I12: IRR
D13: Partner 1 | E13: ='Annual Analysis'!D5 -> 0.8 | F13: ='Annual Analysis'!E5 -> 0.85 | G13: ='Annual Analysis'!F5 -> 0.11 | I13: =E73 -> 0.1223422348
D14: Partner 2 | E14: ='Annual Analysis'!D6 -> 0.2 | F14: ='Annual Analysis'!E6 -> 0.15 | G14: ='Annual Analysis'!F6 -> 0.89 | I14: =E74 -> 0.2900797904
D16: Yield for Determing Flip | E16: ='Annual Analysis'!D8 -> 0.1
B18: Operating Assumptions
D19: Investment | E19: ='Annual Analysis'!D11 -> 1000
D20: Annual Cash Flow | E20: ='Annual Analysis'!D12 -> 200
D21: Growth Rate | E21: ='Annual Analysis'!D13 -> 0
D22: Monthly Cash | E22: =E20/E5 -> 16.66666667
D23: Monthly Growth | E23: =(1+E21)^(1/12)-1 -> 0
A26: Dates
D27: Period | E27: 0 | F27: =E27+1 -> 1 | G27: =F27+1 -> 2 | H27: 3 | I27: 4 | J27: 5 | K27: 6 | L27: 7 | M27: 8 | N27: 9 | O27: 10 | P27: 11 | Q27: 12 | R27: 13 | S27: 14 | T27: 15 | U27: 16 | V27: 17 | W27: 18 | X27: 19 | Y27: 20 | Z27: 21 | AA27: 22 | AB27: 23 | AC27: 24 | AD27: 25 | AE27: 26 | AF27: 27 | AG27: 28 | AH27: 29 | AI27: 30 | AJ27: 31 | AK27: 32 | AL27: 33 | AM27: 34 | AN27: 35 | AO27: 36 | AP27: 37 | AQ27: 38 | AR27: 39 | AS27: 40 | AT27: 41 | AU27: 42 | AV27: 43 | AW27: 44 | AX27: 45 | AY27: 46 | AZ27: 47 | BA27: 48 | BB27: 49 | BC27: 50 | BD27: 51 | BE27: 52 | BF27: 53 | BG27: 54 | BH27: 55 | BI27: 56 | BJ27: 57 | BK27: 58 | BL27: 59 | BM27: 60 | BN27: 61 | BO27: 62 | BP27: 63 | BQ27: 64 | BR27: 65 | BS27: =BR27+1 -> 66 | BT27: 67 | BU27: 68 | BV27: 69 | BW27: 70 | BX27: 71 | BY27: 72 | BZ27: 73 | CA27: 74 | CB27: 75 | CC27: 76 | CD27: 77 | CE27: 78 | CF27: 79 | CG27: 80 | CH27: 81 | CI27: 82 | CJ27: 83 | CK27: 84 | CL27: 85 | CM27: 86 | CN27: 87 | CO27: 88 | CP27: 89 | CQ27: 90 | CR27: 91 | CS27: 92 | CT27: 93 | CU27: 94 | CV27: 95 | CW27: 96 | CX27: 97 | CY27: 98 | CZ27: 99 | DA27: 100 | DB27: 101 | DC27: 102 | DD27: 103 | DE27: 104 | DF27: 105 | DG27: 106 | DH27: 107 | DI27: 108 | DJ27: 109 | DK27: 110 | DL27: 111 | DM27: 112 | DN27: 113 | DO27: 114 | DP27: 115 | DQ27: 116 | DR27: 117 | DS27: 118 | DT27: 119 | DU27: 120 | DV27: 121 | DW27: 122 | DX27: 123 | DY27: 124 | DZ27: 125 | EA27: 126 | EB27: 127 | EC27: 128 | ED27: 129 | EE27: =ED27+1 -> 130 | EF27: 131 | EG27: 132 | EH27: 133 | EI27: 134 | EJ27: 135 | EK27: 136 | EL27: 137 | EM27: 138 | EN27: 139 | EO27: 140 | EP27: 141 | EQ27: 142 | ER27: 143 | ES27: 144 | ET27: 145 | EU27: 146 | EV27: 147 | EW27: 148 | EX27: 149 | EY27: 150 | EZ27: 151 | FA27: 152 | FB27: 153 | FC27: 154 | FD27: 155 | FE27: 156 | FF27: 157 | FG27: 158 | FH27: 159 | FI27: 160 | FJ27: 161 | FK27: 162 | FL27: 163 | FM27: 164 | FN27: 165 | FO27: 166 | FP27: 167 | FQ27: 168 | FR27: 169 | FS27: 170 | FT27: 171 | FU27: 172 | FV27: 173 | FW27: 174 | FX27: 175 | FY27: 176 | FZ27: 177 | GA27: 178 | GB27: 179 | GC27: 180 | GD27: 181 | GE27: 182 | GF27: 183 | GG27: 184 | GH27: 185 | GI27: 186 | GJ27: 187 | GK27: 188 | GL27: 189 | GM27: 190 | GN27: 191 | GO27: 192 | GP27: 193 | GQ27: =GP27+1 -> 194 | GR27: 195 | GS27: 196 | GT27: 197 | GU27: 198 | GV27: 199 | GW27: 200 | GX27: 201 | GY27: 202 | GZ27: 203 | HA27: 204 | HB27: 205 | HC27: 206 | HD27: 207 | HE27: 208 | HF27: 209 | HG27: 210 | HH27: 211 | HI27: 212 | HJ27: 213 | HK27: 214 | HL27: 215 | HM27: 216 | HN27: 217 | HO27: 218 | HP27: 219 | HQ27: 220 | HR27: 221 | HS27: 222 | HT27: 223 | HU27: 224 | HV27: 225 | HW27: 226 | HX27: 227 | HY27: 228 | HZ27: 229 | IA27: 230 | IB27: 231 | IC27: 232 | ID27: 233 | IE27: 234 | IF27: 235 | IG27: 236 | IH27: 237 | II27: 238 | IJ27: 239 | IK27: 240 | IL27: 241 | IM27: 242 | IN27: 243 | IO27: 244 | IP27: 245 | IQ27: 246 | IR27: 247 | IS27: 248 | IT27: 249 | IU27: 250 | IV27: 251
D28: Month per Period | E28: =E6 -> 1 | F28: =E28 -> 1 | G28: =F28 -> 1 | H28: 1 | I28: 1 | J28: 1 | K28: 1 | L28: 1 | M28: 1 | N28: 1 | O28: 1 | P28: 1 | Q28: 1 | R28: 1 | S28: 1 | T28: 1 | U28: 1 | V28: 1 | W28: 1 | X28: 1 | Y28: 1 | Z28: 1 | AA28: 1 | AB28: 1 | AC28: 1 | AD28: 1 | AE28: 1 | AF28: 1 | AG28: 1 | AH28: 1 | AI28: 1 | AJ28: 1 | AK28: 1 | AL28: 1 | AM28: 1 | AN28: 1 | AO28: 1 | AP28: 1 | AQ28: 1 | AR28: 1 | AS28: 1 | AT28: 1 | AU28: 1 | AV28: 1 | AW28: 1 | AX28: 1 | AY28: 1 | AZ28: 1 | BA28: 1 | BB28: 1 | BC28: 1 | BD28: 1 | BE28: 1 | BF28: 1 | BG28: 1 | BH28: 1 | BI28: 1 | BJ28: 1 | BK28: 1 | BL28: 1 | BM28: 1 | BN28: 1 | BO28: 1 | BP28: 1 | BQ28: 1 | BR28: 1 | BS28: =BR28 -> 1 | BT28: 1 | BU28: 1 | BV28: 1 | BW28: 1 | BX28: 1 | BY28: 1 | BZ28: 1 | CA28: 1 | CB28: 1 | CC28: 1 | CD28: 1 | CE28: 1 | CF28: 1 | CG28: 1 | CH28: 1 | CI28: 1 | CJ28: 1 | CK28: 1 | CL28: 1 | CM28: 1 | CN28: 1 | CO28: 1 | CP28: 1 | CQ28: 1 | CR28: 1 | CS28: 1 | CT28: 1 | CU28: 1 | CV28: 1 | CW28: 1 | CX28: 1 | CY28: 1 | CZ28: 1 | DA28: 1 | DB28: 1 | DC28: 1 | DD28: 1 | DE28: 1 | DF28: 1 | DG28: 1 | DH28: 1 | DI28: 1 | DJ28: 1 | DK28: 1 | DL28: 1 | DM28: 1 | DN28: 1 | DO28: 1 | DP28: 1 | DQ28: 1 | DR28: 1 | DS28: 1 | DT28: 1 | DU28: 1 | DV28: 1 | DW28: 1 | DX28: 1 | DY28: 1 | DZ28: 1 | EA28: 1 | EB28: 1 | EC28: 1 | ED28: 1 | EE28: =ED28 -> 1 | EF28: 1 | EG28: 1 | EH28: 1 | EI28: 1 | EJ28: 1 | EK28: 1 | EL28: 1 | EM28: 1 | EN28: 1 | EO28: 1 | EP28: 1 | EQ28: 1 | ER28: 1 | ES28: 1 | ET28: 1 | EU28: 1 | EV28: 1 | EW28: 1 | EX28: 1 | EY28: 1 | EZ28: 1 | FA28: 1 | FB28: 1 | FC28: 1 | FD28: 1 | FE28: 1 | FF28: 1 | FG28: 1 | FH28: 1 | FI28: 1 | FJ28: 1 | FK28: 1 | FL28: 1 | FM28: 1 | FN28: 1 | FO28: 1 | FP28: 1 | FQ28: 1 | FR28: 1 | FS28: 1 | FT28: 1 | FU28: 1 | FV28: 1 | FW28: 1 | FX28: 1 | FY28: 1 | FZ28: 1 | GA28: 1 | GB28: 1 | GC28: 1 | GD28: 1 | GE28: 1 | GF28: 1 | GG28: 1 | GH28: 1 | GI28: 1 | GJ28: 1 | GK28: 1 | GL28: 1 | GM28: 1 | GN28: 1 | GO28: 1 | GP28: 1 | GQ28: =GP28 -> 1 | GR28: 1 | GS28: 1 | GT28: 1 | GU28: 1 | GV28: 1 | GW28: 1 | GX28: 1 | GY28: 1 | GZ28: 1 | HA28: 1 | HB28: 1 | HC28: 1 | HD28: 1 | HE28: 1 | HF28: 1 | HG28: 1 | HH28: 1 | HI28: 1 | HJ28: 1 | HK28: 1 | HL28: 1 | HM28: 1 | HN28: 1 | HO28: 1 | HP28: 1 | HQ28: 1 | HR28: 1 | HS28: 1 | HT28: 1 | HU28: 1 | HV28: 1 | HW28: 1 | HX28: 1 | HY28: 1 | HZ28: 1 | IA28: 1 | IB28: 1 | IC28: 1 | ID28: 1 | IE28: 1 | IF28: 1 | IG28: 1 | IH28: 1 | II28: 1 | IJ28: 1 | IK28: 1 | IL28: 1 | IM28: 1 | IN28: 1 | IO28: 1 | IP28: 1 | IQ28: 1 | IR28: 1 | IS28: 1 | IT28: 1 | IU28: 1 | IV28: 1
D30: Start Period | F30: =E31+1 -> 2012-01-01 | G30: =F31+1 -> 2012-02-01 | H30: 2012-03-01 | I30: 2012-04-01 | J30: 2012-05-01 | K30: 2012-06-01 | L30: 2012-07-01 | M30: 2012-08-01 | N30: 2012-09-01 | O30: 2012-10-01 | P30: 2012-11-01 | Q30: 2012-12-01 | R30: 2013-01-01 | S30: 2013-02-01 | T30: 2013-03-01 | U30: 2013-04-01 | V30: 2013-05-01 | W30: 2013-06-01 | X30: 2013-07-01 | Y30: 2013-08-01 | Z30: 2013-09-01 | AA30: 2013-10-01 | AB30: 2013-11-01 | AC30: 2013-12-01 | AD30: 2014-01-01 | AE30: 2014-02-01 | AF30: 2014-03-01 | AG30: 2014-04-01 | AH30: 2014-05-01 | AI30: 2014-06-01 | AJ30: 2014-07-01 | AK30: 2014-08-01 | AL30: 2014-09-01 | AM30: 2014-10-01 | AN30: 2014-11-01 | AO30: 2014-12-01 | AP30: 2015-01-01 | AQ30: 2015-02-01 | AR30: 2015-03-01 | AS30: 2015-04-01 | AT30: 2015-05-01 | AU30: 2015-06-01 | AV30: 2015-07-01 | AW30: 2015-08-01 | AX30: 2015-09-01 | AY30: 2015-10-01 | AZ30: 2015-11-01 | BA30: 2015-12-01 | BB30: 2016-01-01 | BC30: 2016-02-01 | BD30: 2016-03-01 | BE30: 2016-04-01 | BF30: 2016-05-01 | BG30: 2016-06-01 | BH30: 2016-07-01 | BI30: 2016-08-01 | BJ30: 2016-09-01 | BK30: 2016-10-01 | BL30: 2016-11-01 | BM30: 2016-12-01 | BN30: 2017-01-01 | BO30: 2017-02-01 | BP30: 2017-03-01 | BQ30: 2017-04-01 | BR30: 2017-05-01 | BS30: =BR31+1 -> 2017-06-01 | BT30: 2017-07-01 | BU30: 2017-08-01 | BV30: 2017-09-01 | BW30: 2017-10-01 | BX30: 2017-11-01 | BY30: 2017-12-01 | BZ30: 2018-01-01 | CA30: 2018-02-01 | CB30: 2018-03-01 | CC30: 2018-04-01 | CD30: 2018-05-01 | CE30: 2018-06-01 | CF30: 2018-07-01 | CG30: 2018-08-01 | CH30: 2018-09-01 | CI30: 2018-10-01 | CJ30: 2018-11-01 | CK30: 2018-12-01 | CL30: 2019-01-01 | CM30: 2019-02-01 | CN30: 2019-03-01 | CO30: 2019-04-01 | CP30: 2019-05-01 | CQ30: 2019-06-01 | CR30: 2019-07-01 | CS30: 2019-08-01 | CT30: 2019-09-01 | CU30: 2019-10-01 | CV30: 2019-11-01 | CW30: 2019-12-01 | CX30: 2020-01-01 | CY30: 2020-02-01 | CZ30: 2020-03-01 | DA30: 2020-04-01 | DB30: 2020-05-01 | DC30: 2020-06-01 | DD30: 2020-07-01 | DE30: 2020-08-01 | DF30: 2020-09-01 | DG30: 2020-10-01 | DH30: 2020-11-01 | DI30: 2020-12-01 | DJ30: 2021-01-01 | DK30: 2021-02-01 | DL30: 2021-03-01 | DM30: 2021-04-01 | DN30: 2021-05-01 | DO30: 2021-06-01 | DP30: 2021-07-01 | DQ30: 2021-08-01 | DR30: 2021-09-01 | DS30: 2021-10-01 | DT30: 2021-11-01 | DU30: 2021-12-01 | DV30: 2022-01-01 | DW30: 2022-02-01 | DX30: 2022-03-01 | DY30: 2022-04-01 | DZ30: 2022-05-01 | EA30: 2022-06-01 | EB30: 2022-07-01 | EC30: 2022-08-01 | ED30: 2022-09-01 | EE30: =ED31+1 -> 2022-10-01 | EF30: 2022-11-01 | EG30: 2022-12-01 | EH30: 2023-01-01 | EI30: 2023-02-01 | EJ30: 2023-03-01 | EK30: 2023-04-01 | EL30: 2023-05-01 | EM30: 2023-06-01 | EN30: 2023-07-01 | EO30: 2023-08-01 | EP30: 2023-09-01 | EQ30: 2023-10-01 | ER30: 2023-11-01 | ES30: 2023-12-01 | ET30: 2024-01-01 | EU30: 2024-01-01 | EV30: 2024-01-01 | EW30: 2024-01-01 | EX30: 2024-01-01 | EY30: 2024-01-01 | EZ30: 2024-01-01 | FA30: 2024-01-01 | FB30: 2024-01-01 | FC30: 2024-01-01 | FD30: 2024-01-01 | FE30: 2024-01-01 | FF30: 2024-01-01 | FG30: 2024-01-01 | FH30: 2024-01-01 | FI30: 2024-01-01 | FJ30: 2024-01-01 | FK30: 2024-01-01 | FL30: 2024-01-01 | FM30: 2024-01-01 | FN30: 2024-01-01 | FO30: 2024-01-01 | FP30: 2024-01-01 | FQ30: 2024-01-01 | FR30: 2024-01-01 | FS30: 2024-01-01 | FT30: 2024-01-01 | FU30: 2024-01-01 | FV30: 2024-01-01 | FW30: 2024-01-01 | FX30: 2024-01-01 | FY30: 2024-01-01 | FZ30: 2024-01-01 | GA30: 2024-01-01 | GB30: 2024-01-01 | GC30: 2024-01-01 | GD30: 2024-01-01 | GE30: 2024-01-01 | GF30: 2024-01-01 | GG30: 2024-01-01 | GH30: 2024-01-01 | GI30: 2024-01-01 | GJ30: 2024-01-01 | GK30: 2024-01-01 | GL30: 2024-01-01 | GM30: 2024-01-01 | GN30: 2024-01-01 | GO30: 2024-01-01 | GP30: 2024-01-01 | GQ30: =GP31+1 -> 2024-01-01 | GR30: 2024-01-01 | GS30: 2024-01-01 | GT30: 2024-01-01 | GU30: 2024-01-01 | GV30: 2024-01-01 | GW30: 2024-01-01 | GX30: 2024-01-01 | GY30: 2024-01-01 | GZ30: 2024-01-01 | HA30: 2024-01-01 | HB30: 2024-01-01 | HC30: 2024-01-01 | HD30: 2024-01-01 | HE30: 2024-01-01 | HF30: 2024-01-01 | HG30: 2024-01-01 | HH30: 2024-01-01 | HI30: 2024-01-01 | HJ30: 2024-01-01 | HK30: 2024-01-01 | HL30: 2024-01-01 | HM30: 2024-01-01 | HN30: 2024-01-01 | HO30: 2024-01-01 | HP30: 2024-01-01 | HQ30: 2024-01-01 | HR30: 2024-01-01 | HS30: 2024-01-01 | HT30: 2024-01-01 | HU30: 2024-01-01 | HV30: 2024-01-01 | HW30: 2024-01-01 | HX30: 2024-01-01 | HY30: 2024-01-01 | HZ30: 2024-01-01 | IA30: 2024-01-01 | IB30: 2024-01-01 | IC30: 2024-01-01 | ID30: 2024-01-01 | IE30: 2024-01-01 | IF30: 2024-01-01 | IG30: 2024-01-01 | IH30: 2024-01-01 | II30: 2024-01-01 | IJ30: 2024-01-01 | IK30: 2024-01-01 | IL30: 2024-01-01 | IM30: 2024-01-01 | IN30: 2024-01-01 | IO30: 2024-01-01 | IP30: 2024-01-01 | IQ30: 2024-01-01 | IR30: 2024-01-01 | IS30: 2024-01-01 | IT30: 2024-01-01 | IU30: 2024-01-01 | IV30: 2024-01-01
D31: End Period | E31: =E4-1 -> 2011-12-31 | F31: =MIN(EDATE(F30,F28)-1,$E$9) -> 2012-01-31 | G31: 2012-02-29 | H31: 2012-03-31 | I31: 2012-04-30 | J31: 2012-05-31 | K31: 2012-06-30 | L31: 2012-07-31 | M31: 2012-08-31 | N31: 2012-09-30 | O31: 2012-10-31 | P31: 2012-11-30 | Q31: 2012-12-31 | R31: 2013-01-31 | S31: 2013-02-28 | T31: 2013-03-31 | U31: 2013-04-30 | V31: 2013-05-31 | W31: 2013-06-30 | X31: 2013-07-31 | Y31: 2013-08-31 | Z31: 2013-09-30 | AA31: 2013-10-31 | AB31: 2013-11-30 | AC31: 2013-12-31 | AD31: 2014-01-31 | AE31: 2014-02-28 | AF31: 2014-03-31 | AG31: 2014-04-30 | AH31: 2014-05-31 | AI31: 2014-06-30 | AJ31: 2014-07-31 | AK31: 2014-08-31 | AL31: 2014-09-30 | AM31: 2014-10-31 | AN31: 2014-11-30 | AO31: 2014-12-31 | AP31: 2015-01-31 | AQ31: 2015-02-28 | AR31: 2015-03-31 | AS31: 2015-04-30 | AT31: 2015-05-31 | AU31: 2015-06-30 | AV31: 2015-07-31 | AW31: 2015-08-31 | AX31: 2015-09-30 | AY31: 2015-10-31 | AZ31: 2015-11-30 | BA31: 2015-12-31 | BB31: 2016-01-31 | BC31: 2016-02-29 | BD31: 2016-03-31 | BE31: 2016-04-30 | BF31: 2016-05-31 | BG31: 2016-06-30 | BH31: 2016-07-31 | BI31: 2016-08-31 | BJ31: 2016-09-30 | BK31: 2016-10-31 | BL31: 2016-11-30 | BM31: 2016-12-31 | BN31: 2017-01-31 | BO31: 2017-02-28 | BP31: 2017-03-31 | BQ31: 2017-04-30 | BR31: =MIN(EDATE(BR30,BR28)-1,$E$9) -> 2017-05-31 | BS31: 2017-06-30 | BT31: 2017-07-31 | BU31: 2017-08-31 | BV31: 2017-09-30 | BW31: 2017-10-31 | BX31: 2017-11-30 | BY31: 2017-12-31 | BZ31: 2018-01-31 | CA31: 2018-02-28 | CB31: 2018-03-31 | CC31: 2018-04-30 | CD31: 2018-05-31 | CE31: 2018-06-30 | CF31: 2018-07-31 | CG31: 2018-08-31 | CH31: 2018-09-30 | CI31: 2018-10-31 | CJ31: 2018-11-30 | CK31: 2018-12-31 | CL31: 2019-01-31 | CM31: 2019-02-28 | CN31: 2019-03-31 | CO31: 2019-04-30 | CP31: 2019-05-31 | CQ31: 2019-06-30 | CR31: 2019-07-31 | CS31: 2019-08-31 | CT31: 2019-09-30 | CU31: 2019-10-31 | CV31: 2019-11-30 | CW31: 2019-12-31 | CX31: 2020-01-31 | CY31: 2020-02-29 | CZ31: 2020-03-31 | DA31: 2020-04-30 | DB31: 2020-05-31 | DC31: 2020-06-30 | DD31: 2020-07-31 | DE31: 2020-08-31 | DF31: 2020-09-30 | DG31: 2020-10-31 | DH31: 2020-11-30 | DI31: 2020-12-31 | DJ31: 2021-01-31 | DK31: 2021-02-28 | DL31: 2021-03-31 | DM31: 2021-04-30 | DN31: 2021-05-31 | DO31: 2021-06-30 | DP31: 2021-07-31 | DQ31: 2021-08-31 | DR31: 2021-09-30 | DS31: 2021-10-31 | DT31: 2021-11-30 | DU31: 2021-12-31 | DV31: 2022-01-31 | DW31: 2022-02-28 | DX31: 2022-03-31 | DY31: 2022-04-30 | DZ31: 2022-05-31 | EA31: 2022-06-30 | EB31: 2022-07-31 | EC31: 2022-08-31 | ED31: =MIN(EDATE(ED30,ED28)-1,$E$9) -> 2022-09-30 | EE31: 2022-10-31 | EF31: 2022-11-30 | EG31: 2022-12-31 | EH31: 2023-01-31 | EI31: 2023-02-28 | EJ31: 2023-03-31 | EK31: 2023-04-30 | EL31: 2023-05-31 | EM31: 2023-06-30 | EN31: 2023-07-31 | EO31: 2023-08-31 | EP31: 2023-09-30 | EQ31: 2023-10-31 | ER31: 2023-11-30 | ES31: 2023-12-31 | ET31: 2023-12-31 | EU31: 2023-12-31 | EV31: 2023-12-31 | EW31: 2023-12-31 | EX31: 2023-12-31 | EY31: 2023-12-31 | EZ31: 2023-12-31 | FA31: 2023-12-31 | FB31: 2023-12-31 | FC31: 2023-12-31 | FD31: 2023-12-31 | FE31: 2023-12-31 | FF31: 2023-12-31 | FG31: 2023-12-31 | FH31: 2023-12-31 | FI31: 2023-12-31 | FJ31: 2023-12-31 | FK31: 2023-12-31 | FL31: 2023-12-31 | FM31: 2023-12-31 | FN31: 2023-12-31 | FO31: 2023-12-31 | FP31: 2023-12-31 | FQ31: 2023-12-31 | FR31: 2023-12-31 | FS31: 2023-12-31 | FT31: 2023-12-31 | FU31: 2023-12-31 | FV31: 2023-12-31 | FW31: 2023-12-31 | FX31: 2023-12-31 | FY31: 2023-12-31 | FZ31: 2023-12-31 | GA31: 2023-12-31 | GB31: 2023-12-31 | GC31: 2023-12-31 | GD31: 2023-12-31 | GE31: 2023-12-31 | GF31: 2023-12-31 | GG31: 2023-12-31 | GH31: 2023-12-31 | GI31: 2023-12-31 | GJ31: 2023-12-31 | GK31: 2023-12-31 | GL31: 2023-12-31 | GM31: 2023-12-31 | GN31: 2023-12-31 | GO31: 2023-12-31 | GP31: =MIN(EDATE(GP30,GP28)-1,$E$9) -> 2023-12-31 | GQ31: 2023-12-31 | GR31: 2023-12-31 | GS31: 2023-12-31 | GT31: 2023-12-31 | GU31: 2023-12-31 | GV31: 2023-12-31 | GW31: 2023-12-31 | GX31: 2023-12-31 | GY31: 2023-12-31 | GZ31: 2023-12-31 | HA31: 2023-12-31 | HB31: 2023-12-31 | HC31: 2023-12-31 | HD31: 2023-12-31 | HE31: 2023-12-31 | HF31: 2023-12-31 | HG31: 2023-12-31 | HH31: 2023-12-31 | HI31: 2023-12-31 | HJ31: 2023-12-31 | HK31: 2023-12-31 | HL31: 2023-12-31 | HM31: 2023-12-31 | HN31: 2023-12-31 | HO31: 2023-12-31 | HP31: 2023-12-31 | HQ31: 2023-12-31 | HR31: 2023-12-31 | HS31: 2023-12-31 | HT31: 2023-12-31 | HU31: 2023-12-31 | HV31: 2023-12-31 | HW31: 2023-12-31 | HX31: 2023-12-31 | HY31: 2023-12-31 | HZ31: 2023-12-31 | IA31: 2023-12-31 | IB31: 2023-12-31 | IC31: 2023-12-31 | ID31: 2023-12-31 | IE31: 2023-12-31 | IF31: 2023-12-31 | IG31: 2023-12-31 | IH31: 2023-12-31 | II31: 2023-12-31 | IJ31: 2023-12-31 | IK31: 2023-12-31 | IL31: 2023-12-31 | IM31: 2023-12-31 | IN31: 2023-12-31 | IO31: 2023-12-31 | IP31: 2023-12-31 | IQ31: 2023-12-31 | IR31: 2023-12-31 | IS31: 2023-12-31 | IT31: 2023-12-31 | IU31: 2023-12-31 | IV31: 2023-12-31
D33: Year | E33: =YEAR(E31) -> 2011 | F33: =YEAR(F31) -> 2012 | G33: 2012 | H33: 2012 | I33: 2012 | J33: 2012 | K33: 2012 | L33: 2012 | M33: 2012 | N33: 2012 | O33: 2012 | P33: 2012 | Q33: 2012 | R33: 2013 | S33: 2013 | T33: 2013 | U33: 2013 | V33: 2013 | W33: 2013 | X33: 2013 | Y33: 2013 | Z33: 2013 | AA33: 2013 | AB33: 2013 | AC33: 2013 | AD33: 2014 | AE33: 2014 | AF33: 2014 | AG33: 2014 | AH33: 2014 | AI33: 2014 | AJ33: 2014 | AK33: 2014 | AL33: 2014 | AM33: 2014 | AN33: 2014 | AO33: 2014 | AP33: 2015 | AQ33: 2015 | AR33: 2015 | AS33: 2015 | AT33: 2015 | AU33: 2015 | AV33: 2015 | AW33: 2015 | AX33: 2015 | AY33: 2015 | AZ33: 2015 | BA33: 2015 | BB33: 2016 | BC33: 2016 | BD33: 2016 | BE33: 2016 | BF33: 2016 | BG33: 2016 | BH33: 2016 | BI33: 2016 | BJ33: 2016 | BK33: 2016 | BL33: 2016 | BM33: 2016 | BN33: 2017 | BO33: 2017 | BP33: 2017 | BQ33: 2017 | BR33: =YEAR(BR31) -> 2017 | BS33: 2017 | BT33: 2017 | BU33: 2017 | BV33: 2017 | BW33: 2017 | BX33: 2017 | BY33: 2017 | BZ33: 2018 | CA33: 2018 | CB33: 2018 | CC33: 2018 | CD33: 2018 | CE33: 2018 | CF33: 2018 | CG33: 2018 | CH33: 2018 | CI33: 2018 | CJ33: 2018 | CK33: 2018 | CL33: 2019 | CM33: 2019 | CN33: 2019 | CO33: 2019 | CP33: 2019 | CQ33: 2019 | CR33: 2019 | CS33: 2019 | CT33: 2019 | CU33: 2019 | CV33: 2019 | CW33: 2019 | CX33: 2020 | CY33: 2020 | CZ33: 2020 | DA33: 2020 | DB33: 2020 | DC33: 2020 | DD33: 2020 | DE33: 2020 | DF33: 2020 | DG33: 2020 | DH33: 2020 | DI33: 2020 | DJ33: 2021 | DK33: 2021 | DL33: 2021 | DM33: 2021 | DN33: 2021 | DO33: 2021 | DP33: 2021 | DQ33: 2021 | DR33: 2021 | DS33: 2021 | DT33: 2021 | DU33: 2021 | DV33: 2022 | DW33: 2022 | DX33: 2022 | DY33: 2022 | DZ33: 2022 | EA33: 2022 | EB33: 2022 | EC33: 2022 | ED33: =YEAR(ED31) -> 2022 | EE33: 2022 | EF33: 2022 | EG33: 2022 | EH33: 2023 | EI33: 2023 | EJ33: 2023 | EK33: 2023 | EL33: 2023 | EM33: 2023 | EN33: 2023 | EO33: 2023 | EP33: 2023 | EQ33: 2023 | ER33: 2023 | ES33: 2023 | ET33: 2023 | EU33: 2023 | EV33: 2023 | EW33: 2023 | EX33: 2023 | EY33: 2023 | EZ33: 2023 | FA33: 2023 | FB33: 2023 | FC33: 2023 | FD33: 2023 | FE33: 2023 | FF33: 2023 | FG33: 2023 | FH33: 2023 | FI33: 2023 | FJ33: 2023 | FK33: 2023 | FL33: 2023 | FM33: 2023 | FN33: 2023 | FO33: 2023 | FP33: 2023 | FQ33: 2023 | FR33: 2023 | FS33: 2023 | FT33: 2023 | FU33: 2023 | FV33: 2023 | FW33: 2023 | FX33: 2023 | FY33: 2023 | FZ33: 2023 | GA33: 2023 | GB33: 2023 | GC33: 2023 | GD33: 2023 | GE33: 2023 | GF33: 2023 | GG33: 2023 | GH33: 2023 | GI33: 2023 | GJ33: 2023 | GK33: 2023 | GL33: 2023 | GM33: 2023 | GN33: 2023 | GO33: 2023 | GP33: =YEAR(GP31) -> 2023 | GQ33: 2023 | GR33: 2023 | GS33: 2023 | GT33: 2023 | GU33: 2023 | GV33: 2023 | GW33: 2023 | GX33: 2023 | GY33: 2023 | GZ33: 2023 | HA33: 2023 | HB33: 2023 | HC33: 2023 | HD33: 2023 | HE33: 2023 | HF33: 2023 | HG33: 2023 | HH33: 2023 | HI33: 2023 | HJ33: 2023 | HK33: 2023 | HL33: 2023 | HM33: 2023 | HN33: 2023 | HO33: 2023 | HP33: 2023 | HQ33: 2023 | HR33: 2023 | HS33: 2023 | HT33: 2023 | HU33: 2023 | HV33: 2023 | HW33: 2023 | HX33: 2023 | HY33: 2023 | HZ33: 2023 | IA33: 2023 | IB33: 2023 | IC33: 2023 | ID33: 2023 | IE33: 2023 | IF33: 2023 | IG33: 2023 | IH33: 2023 | II33: 2023 | IJ33: 2023 | IK33: 2023 | IL33: 2023 | IM33: 2023 | IN33: 2023 | IO33: 2023 | IP33: 2023 | IQ33: 2023 | IR33: 2023 | IS33: 2023 | IT33: 2023 | IU33: 2023 | IV33: 2023
D34: Days | F34: =F31-F30+1 -> 31 | G34: =G31-G30+1 -> 29 | H34: 31 | I34: 30 | J34: 31 | K34: 30 | L34: 31 | M34: 31 | N34: 30 | O34: 31 | P34: 30 | Q34: 31 | R34: 31 | S34: 28 | T34: 31 | U34: 30 | V34: 31 | W34: 30 | X34: 31 | Y34: 31 | Z34: 30 | AA34: 31 | AB34: 30 | AC34: 31 | AD34: 31 | AE34: 28 | AF34: 31 | AG34: 30 | AH34: 31 | AI34: 30 | AJ34: 31 | AK34: 31 | AL34: 30 | AM34: 31 | AN34: 30 | AO34: 31 | AP34: 31 | AQ34: 28 | AR34: 31 | AS34: 30 | AT34: 31 | AU34: 30 | AV34: 31 | AW34: 31 | AX34: 30 | AY34: 31 | AZ34: 30 | BA34: 31 | BB34: 31 | BC34: 29 | BD34: 31 | BE34: 30 | BF34: 31 | BG34: 30 | BH34: 31 | BI34: 31 | BJ34: 30 | BK34: 31 | BL34: 30 | BM34: 31 | BN34: 31 | BO34: 28 | BP34: 31 | BQ34: 30 | BR34: 31 | BS34: =BS31-BS30+1 -> 30 | BT34: 31 | BU34: 31 | BV34: 30 | BW34: 31 | BX34: 30 | BY34: 31 | BZ34: 31 | CA34: 28 | CB34: 31 | CC34: 30 | CD34: 31 | CE34: 30 | CF34: 31 | CG34: 31 | CH34: 30 | CI34: 31 | CJ34: 30 | CK34: 31 | CL34: 31 | CM34: 28 | CN34: 31 | CO34: 30 | CP34: 31 | CQ34: 30 | CR34: 31 | CS34: 31 | CT34: 30 | CU34: 31 | CV34: 30 | CW34: 31 | CX34: 31 | CY34: 29 | CZ34: 31 | DA34: 30 | DB34: 31 | DC34: 30 | DD34: 31 | DE34: 31 | DF34: 30 | DG34: 31 | DH34: 30 | DI34: 31 | DJ34: 31 | DK34: 28 | DL34: 31 | DM34: 30 | DN34: 31 | DO34: 30 | DP34: 31 | DQ34: 31 | DR34: 30 | DS34: 31 | DT34: 30 | DU34: 31 | DV34: 31 | DW34: 28 | DX34: 31 | DY34: 30 | DZ34: 31 | EA34: 30 | EB34: 31 | EC34: 31 | ED34: 30 | EE34: =EE31-EE30+1 -> 31 | EF34: 30 | EG34: 31 | EH34: 31 | EI34: 28 | EJ34: 31 | EK34: 30 | EL34: 31 | EM34: 30 | EN34: 31 | EO34: 31 | EP34: 30 | EQ34: 31 | ER34: 30 | ES34: 31 | ET34: 0 | EU34: 0 | EV34: 0 | EW34: 0 | EX34: 0 | EY34: 0 | EZ34: 0 | FA34: 0 | FB34: 0 | FC34: 0 | FD34: 0 | FE34: 0 | FF34: 0 | FG34: 0 | FH34: 0 | FI34: 0 | FJ34: 0 | FK34: 0 | FL34: 0 | FM34: 0 | FN34: 0 | FO34: 0 | FP34: 0 | FQ34: 0 | FR34: 0 | FS34: 0 | FT34: 0 | FU34: 0 | FV34: 0 | FW34: 0 | FX34: 0 | FY34: 0 | FZ34: 0 | GA34: 0 | GB34: 0 | GC34: 0 | GD34: 0 | GE34: 0 | GF34: 0 | GG34: 0 | GH34: 0 | GI34: 0 | GJ34: 0 | GK34: 0 | GL34: 0 | GM34: 0 | GN34: 0 | GO34: 0 | GP34: 0 | GQ34: =GQ31-GQ30+1 -> 0 | GR34: 0 | GS34: 0 | GT34: 0 | GU34: 0 | GV34: 0 | GW34: 0 | GX34: 0 | GY34: 0 | GZ34: 0 | HA34: 0 | HB34: 0 | HC34: 0 | HD34: 0 | HE34: 0 | HF34: 0 | HG34: 0 | HH34: 0 | HI34: 0 | HJ34: 0 | HK34: 0 | HL34: 0 | HM34: 0 | HN34: 0 | HO34: 0 | HP34: 0 | HQ34: 0 | HR34: 0 | HS34: 0 | HT34: 0 | HU34: 0 | HV34: 0 | HW34: 0 | HX34: 0 | HY34: 0 | HZ34: 0 | IA34: 0 | IB34: 0 | IC34: 0 | ID34: 0 | IE34: 0 | IF34: 0 | IG34: 0 | IH34: 0 | II34: 0 | IJ34: 0 | IK34: 0 | IL34: 0 | IM34: 0 | IN34: 0 | IO34: 0 | IP34: 0 | IQ34: 0 | IR34: 0 | IS34: 0 | IT34: 0 | IU34: 0 | IV34: 0
D35: Days 360 | F35: =DAYS360(F30,F31+1) -> 30 | G35: =DAYS360(G30,G31+1) -> 30 | H35: 30 | I35: 30 | J35: 30 | K35: 30 | L35: 30 | M35: 30 | N35: 30 | O35: 30 | P35: 30 | Q35: 30 | R35: 30 | S35: 30 | T35: 30 | U35: 30 | V35: 30 | W35: 30 | X35: 30 | Y35: 30 | Z35: 30 | AA35: 30 | AB35: 30 | AC35: 30 | AD35: 30 | AE35: 30 | AF35: 30 | AG35: 30 | AH35: 30 | AI35: 30 | AJ35: 30 | AK35: 30 | AL35: 30 | AM35: 30 | AN35: 30 | AO35: 30 | AP35: 30 | AQ35: 30 | AR35: 30 | AS35: 30 | AT35: 30 | AU35: 30 | AV35: 30 | AW35: 30 | AX35: 30 | AY35: 30 | AZ35: 30 | BA35: 30 | BB35: 30 | BC35: 30 | BD35: 30 | BE35: 30 | BF35: 30 | BG35: 30 | BH35: 30 | BI35: 30 | BJ35: 30 | BK35: 30 | BL35: 30 | BM35: 30 | BN35: 30 | BO35: 30 | BP35: 30 | BQ35: 30 | BR35: 30 | BS35: =DAYS360(BS30,BS31+1) -> 30 | BT35: 30 | BU35: 30 | BV35: 30 | BW35: 30 | BX35: 30 | BY35: 30 | BZ35: 30 | CA35: 30 | CB35: 30 | CC35: 30 | CD35: 30 | CE35: 30 | CF35: 30 | CG35: 30 | CH35: 30 | CI35: 30 | CJ35: 30 | CK35: 30 | CL35: 30 | CM35: 30 | CN35: 30 | CO35: 30 | CP35: 30 | CQ35: 30 | CR35: 30 | CS35: 30 | CT35: 30 | CU35: 30 | CV35: 30 | CW35: 30 | CX35: 30 | CY35: 30 | CZ35: 30 | DA35: 30 | DB35: 30 | DC35: 30 | DD35: 30 | DE35: 30 | DF35: 30 | DG35: 30 | DH35: 30 | DI35: 30 | DJ35: 30 | DK35: 30 | DL35: 30 | DM35: 30 | DN35: 30 | DO35: 30 | DP35: 30 | DQ35: 30 | DR35: 30 | DS35: 30 | DT35: 30 | DU35: 30 | DV35: 30 | DW35: 30 | DX35: 30 | DY35: 30 | DZ35: 30 | EA35: 30 | EB35: 30 | EC35: 30 | ED35: 30 | EE35: =DAYS360(EE30,EE31+1) -> 30 | EF35: 30 | EG35: 30 | EH35: 30 | EI35: 30 | EJ35: 30 | EK35: 30 | EL35: 30 | EM35: 30 | EN35: 30 | EO35: 30 | EP35: 30 | EQ35: 30 | ER35: 30 | ES35: 30 | ET35: 0 | EU35: 0 | EV35: 0 | EW35: 0 | EX35: 0 | EY35: 0 | EZ35: 0 | FA35: 0 | FB35: 0 | FC35: 0 | FD35: 0 | FE35: 0 | FF35: 0 | FG35: 0 | FH35: 0 | FI35: 0 | FJ35: 0 | FK35: 0 | FL35: 0 | FM35: 0 | FN35: 0 | FO35: 0 | FP35: 0 | FQ35: 0 | FR35: 0 | FS35: 0 | FT35: 0 | FU35: 0 | FV35: 0 | FW35: 0 | FX35: 0 | FY35: 0 | FZ35: 0 | GA35: 0 | GB35: 0 | GC35: 0 | GD35: 0 | GE35: 0 | GF35: 0 | GG35: 0 | GH35: 0 | GI35: 0 | GJ35: 0 | GK35: 0 | GL35: 0 | GM35: 0 | GN35: 0 | GO35: 0 | GP35: 0 | GQ35: =DAYS360(GQ30,GQ31+1) -> 0 | GR35: 0 | GS35: 0 | GT35: 0 | GU35: 0 | GV35: 0 | GW35: 0 | GX35: 0 | GY35: 0 | GZ35: 0 | HA35: 0 | HB35: 0 | HC35: 0 | HD35: 0 | HE35: 0 | HF35: 0 | HG35: 0 | HH35: 0 | HI35: 0 | HJ35: 0 | HK35: 0 | HL35: 0 | HM35: 0 | HN35: 0 | HO35: 0 | HP35: 0 | HQ35: 0 | HR35: 0 | HS35: 0 | HT35: 0 | HU35: 0 | HV35: 0 | HW35: 0 | HX35: 0 | HY35: 0 | HZ35: 0 | IA35: 0 | IB35: 0 | IC35: 0 | ID35: 0 | IE35: 0 | IF35: 0 | IG35: 0 | IH35: 0 | II35: 0 | IJ35: 0 | IK35: 0 | IL35: 0 | IM35: 0 | IN35: 0 | IO35: 0 | IP35: 0 | IQ35: 0 | IR35: 0 | IS35: 0 | IT35: 0 | IU35: 0 | IV35: 0
A37: Operating
D38: Operating | F38: =F30<=$E$9 -> TRUE | G38: TRUE | H38: TRUE | I38: TRUE | J38: TRUE | K38: TRUE | L38: TRUE | M38: TRUE | N38: TRUE | O38: TRUE | P38: TRUE | Q38: TRUE | R38: TRUE | S38: TRUE | T38: TRUE | U38: TRUE | V38: TRUE | W38: TRUE | X38: TRUE | Y38: TRUE | Z38: TRUE | AA38: TRUE | AB38: TRUE | AC38: TRUE | AD38: TRUE | AE38: TRUE | AF38: TRUE | AG38: TRUE | AH38: TRUE | AI38: TRUE | AJ38: TRUE | AK38: TRUE | AL38: TRUE | AM38: TRUE | AN38: TRUE | AO38: TRUE | AP38: TRUE | AQ38: TRUE | AR38: TRUE | AS38: TRUE | AT38: TRUE | AU38: TRUE | AV38: TRUE | AW38: TRUE | AX38: TRUE | AY38: TRUE | AZ38: TRUE | BA38: TRUE | BB38: TRUE | BC38: TRUE | BD38: TRUE | BE38: TRUE | BF38: TRUE | BG38: TRUE | BH38: TRUE | BI38: TRUE | BJ38: TRUE | BK38: TRUE | BL38: TRUE | BM38: TRUE | BN38: TRUE | BO38: TRUE | BP38: TRUE | BQ38: TRUE | BR38: =BR30<=$E$9 -> TRUE | BS38: TRUE | BT38: TRUE | BU38: TRUE | BV38: TRUE | BW38: TRUE | BX38: TRUE | BY38: TRUE | BZ38: TRUE | CA38: TRUE | CB38: TRUE | CC38: TRUE | CD38: TRUE | CE38: TRUE | CF38: TRUE | CG38: TRUE | CH38: TRUE | CI38: TRUE | CJ38: TRUE | CK38: TRUE | CL38: TRUE | CM38: TRUE | CN38: TRUE | CO38: TRUE | CP38: TRUE | CQ38: TRUE | CR38: TRUE | CS38: TRUE | CT38: TRUE | CU38: TRUE | CV38: TRUE | CW38: TRUE | CX38: TRUE | CY38: TRUE | CZ38: TRUE | DA38: TRUE | DB38: TRUE | DC38: TRUE | DD38: TRUE | DE38: TRUE | DF38: TRUE | DG38: TRUE | DH38: TRUE | DI38: TRUE | DJ38: TRUE | DK38: TRUE | DL38: TRUE | DM38: TRUE | DN38: TRUE | DO38: TRUE | DP38: TRUE | DQ38: TRUE | DR38: TRUE | DS38: TRUE | DT38: TRUE | DU38: TRUE | DV38: TRUE | DW38: TRUE | DX38: TRUE | DY38: TRUE | DZ38: TRUE | EA38: TRUE | EB38: TRUE | EC38: TRUE | ED38: =ED30<=$E$9 -> TRUE | EE38: TRUE | EF38: TRUE | EG38: TRUE | EH38: TRUE | EI38: TRUE | EJ38: TRUE | EK38: TRUE | EL38: TRUE | EM38: TRUE | EN38: TRUE | EO38: TRUE | EP38: TRUE | EQ38: TRUE | ER38: TRUE | ES38: TRUE | ET38: FALSE | EU38: FALSE | EV38: FALSE | EW38: FALSE | EX38: FALSE | EY38: FALSE | EZ38: FALSE | FA38: FALSE | FB38: FALSE | FC38: FALSE | FD38: FALSE | FE38: FALSE | FF38: FALSE | FG38: FALSE | FH38: FALSE | FI38: FALSE | FJ38: FALSE | FK38: FALSE | FL38: FALSE | FM38: FALSE | FN38: FALSE | FO38: FALSE | FP38: FALSE | FQ38: FALSE | FR38: FALSE | FS38: FALSE | FT38: FALSE | FU38: FALSE | FV38: FALSE | FW38: FALSE | FX38: FALSE | FY38: FALSE | FZ38: FALSE | GA38: FALSE | GB38: FALSE | GC38: FALSE | GD38: FALSE | GE38: FALSE | GF38: FALSE | GG38: FALSE | GH38: FALSE | GI38: FALSE | GJ38: FALSE | GK38: FALSE | GL38: FALSE | GM38: FALSE | GN38: FALSE | GO38: FALSE | GP38: =GP30<=$E$9 -> FALSE | GQ38: FALSE | GR38: FALSE | GS38: FALSE | GT38: FALSE | GU38: FALSE | GV38: FALSE | GW38: FALSE | GX38: FALSE | GY38: FALSE | GZ38: FALSE | HA38: FALSE | HB38: FALSE | HC38: FALSE | HD38: FALSE | HE38: FALSE | HF38: FALSE | HG38: FALSE | HH38: FALSE | HI38: FALSE | HJ38: FALSE | HK38: FALSE | HL38: FALSE | HM38: FALSE | HN38: FALSE | HO38: FALSE | HP38: FALSE | HQ38: FALSE | HR38: FALSE | HS38: FALSE | HT38: FALSE | HU38: FALSE | HV38: FALSE | HW38: FALSE | HX38: FALSE | HY38: FALSE | HZ38: FALSE | IA38: FALSE | IB38: FALSE | IC38: FALSE | ID38: FALSE | IE38: FALSE | IF38: FALSE | IG38: FALSE | IH38: FALSE | II38: FALSE | IJ38: FALSE | IK38: FALSE | IL38: FALSE | IM38: FALSE | IN38: FALSE | IO38: FALSE | IP38: FALSE | IQ38: FALSE | IR38: FALSE | IS38: FALSE | IT38: FALSE | IU38: FALSE | IV38: FALSE
D40: Cash Flow for Full Period | E40: =E22 -> 16.66666667 | F40: =E40*(1+$E$23)*F38 -> 16.66666667 | G40: =F40*(1+$E$23)*G38 -> 16.66666667 | H40: 16.66666667 | I40: 16.66666667 | J40: 16.66666667 | K40: 16.66666667 | L40: 16.66666667 | M40: 16.66666667 | N40: 16.66666667 | O40: 16.66666667 | P40: 16.66666667 | Q40: 16.66666667 | R40: 16.66666667 | S40: 16.66666667 | T40: 16.66666667 | U40: 16.66666667 | V40: 16.66666667 | W40: 16.66666667 | X40: 16.66666667 | Y40: 16.66666667 | Z40: 16.66666667 | AA40: 16.66666667 | AB40: 16.66666667 | AC40: 16.66666667 | AD40: 16.66666667 | AE40: 16.66666667 | AF40: 16.66666667 | AG40: 16.66666667 | AH40: 16.66666667 | AI40: 16.66666667 | AJ40: 16.66666667 | AK40: 16.66666667 | AL40: 16.66666667 | AM40: 16.66666667 | AN40: 16.66666667 | AO40: 16.66666667 | AP40: 16.66666667 | AQ40: 16.66666667 | AR40: 16.66666667 | AS40: 16.66666667 | AT40: 16.66666667 | AU40: 16.66666667 | AV40: 16.66666667 | AW40: 16.66666667 | AX40: 16.66666667 | AY40: 16.66666667 | AZ40: 16.66666667 | BA40: 16.66666667 | BB40: 16.66666667 | BC40: 16.66666667 | BD40: 16.66666667 | BE40: 16.66666667 | BF40: 16.66666667 | BG40: 16.66666667 | BH40: 16.66666667 | BI40: 16.66666667 | BJ40: 16.66666667 | BK40: 16.66666667 | BL40: 16.66666667 | BM40: 16.66666667 | BN40: 16.66666667 | BO40: 16.66666667 | BP40: 16.66666667 | BQ40: 16.66666667 | BR40: 16.66666667 | BS40: =BR40*(1+$E$23)*BS38 -> 16.66666667 | BT40: 16.66666667 | BU40: 16.66666667 | BV40: 16.66666667 | BW40: 16.66666667 | BX40: 16.66666667 | BY40: 16.66666667 | BZ40: 16.66666667 | CA40: 16.66666667 | CB40: 16.66666667 | CC40: 16.66666667 | CD40: 16.66666667 | CE40: 16.66666667 | CF40: 16.66666667 | CG40: 16.66666667 | CH40: 16.66666667 | CI40: 16.66666667 | CJ40: 16.66666667 | CK40: 16.66666667 | CL40: 16.66666667 | CM40: 16.66666667 | CN40: 16.66666667 | CO40: 16.66666667 | CP40: 16.66666667 | CQ40: 16.66666667 | CR40: 16.66666667 | CS40: 16.66666667 | CT40: 16.66666667 | CU40: 16.66666667 | CV40: 16.66666667 | CW40: 16.66666667 | CX40: 16.66666667 | CY40: 16.66666667 | CZ40: 16.66666667 | DA40: 16.66666667 | DB40: 16.66666667 | DC40: 16.66666667 | DD40: 16.66666667 | DE40: 16.66666667 | DF40: 16.66666667 | DG40: 16.66666667 | DH40: 16.66666667 | DI40: 16.66666667 | DJ40: 16.66666667 | DK40: 16.66666667 | DL40: 16.66666667 | DM40: 16.66666667 | DN40: 16.66666667 | DO40: 16.66666667 | DP40: 16.66666667 | DQ40: 16.66666667 | DR40: 16.66666667 | DS40: 16.66666667 | DT40: 16.66666667 | DU40: 16.66666667 | DV40: 16.66666667 | DW40: 16.66666667 | DX40: 16.66666667 | DY40: 16.66666667 | DZ40: 16.66666667 | EA40: 16.66666667 | EB40: 16.66666667 | EC40: 16.66666667 | ED40: 16.66666667 | EE40: =ED40*(1+$E$23)*EE38 -> 16.66666667 | EF40: 16.66666667 | EG40: 16.66666667 | EH40: 16.66666667 | EI40: 16.66666667 | EJ40: 16.66666667 | EK40: 16.66666667 | EL40: 16.66666667 | EM40: 16.66666667 | EN40: 16.66666667 | EO40: 16.66666667 | EP40: 16.66666667 | EQ40: 16.66666667 | ER40: 16.66666667 | ES40: 16.66666667 | ET40: 0 | EU40: 0 | EV40: 0 | EW40: 0 | EX40: 0 | EY40: 0 | EZ40: 0 | FA40: 0 | FB40: 0 | FC40: 0 | FD40: 0 | FE40: 0 | FF40: 0 | FG40: 0 | FH40: 0 | FI40: 0 | FJ40: 0 | FK40: 0 | FL40: 0 | FM40: 0 | FN40: 0 | FO40: 0 | FP40: 0 | FQ40: 0 | FR40: 0 | FS40: 0 | FT40: 0 | FU40: 0 | FV40: 0 | FW40: 0 | FX40: 0 | FY40: 0 | FZ40: 0 | GA40: 0 | GB40: 0 | GC40: 0 | GD40: 0 | GE40: 0 | GF40: 0 | GG40: 0 | GH40: 0 | GI40: 0 | GJ40: 0 | GK40: 0 | GL40: 0 | GM40: 0 | GN40: 0 | GO40: 0 | GP40: 0 | GQ40: =GP40*(1+$E$23)*GQ38 -> 0 | GR40: 0 | GS40: 0 | GT40: 0 | GU40: 0 | GV40: 0 | GW40: 0 | GX40: 0 | GY40: 0 | GZ40: 0 | HA40: 0 | HB40: 0 | HC40: 0 | HD40: 0 | HE40: 0 | HF40: 0 | HG40: 0 | HH40: 0 | HI40: 0 | HJ40: 0 | HK40: 0 | HL40: 0 | HM40: 0 | HN40: 0 | HO40: 0 | HP40: 0 | HQ40: 0 | HR40: 0 | HS40: 0 | HT40: 0 | HU40: 0 | HV40: 0 | HW40: 0 | HX40: 0 | HY40: 0 | HZ40: 0 | IA40: 0 | IB40: 0 | IC40: 0 | ID40: 0 | IE40: 0 | IF40: 0 | IG40: 0 | IH40: 0 | II40: 0 | IJ40: 0 | IK40: 0 | IL40: 0 | IM40: 0 | IN40: 0 | IO40: 0 | IP40: 0 | IQ40: 0 | IR40: 0 | IS40: 0 | IT40: 0 | IU40: 0 | IV40: 0
D42: Partner 1 - Pre-Flip Percent | F42: =$F$13 -> 0.85 | G42: =$F$13 -> 0.85 | H42: 0.85 | I42: 0.85 | J42: 0.85 | K42: 0.85 | L42: 0.85 | M42: 0.85 | N42: 0.85 | O42: 0.85 | P42: 0.85 | Q42: 0.85 | R42: 0.85 | S42: 0.85 | T42: 0.85 | U42: 0.85 | V42: 0.85 | W42: 0.85 | X42: 0.85 | Y42: 0.85 | Z42: 0.85 | AA42: 0.85 | AB42: 0.85 | AC42: 0.85 | AD42: 0.85 | AE42: 0.85 | AF42: 0.85 | AG42: 0.85 | AH42: 0.85 | AI42: 0.85 | AJ42: 0.85 | AK42: 0.85 | AL42: 0.85 | AM42: 0.85 | AN42: 0.85 | AO42: 0.85 | AP42: 0.85 | AQ42: 0.85 | AR42: 0.85 | AS42: 0.85 | AT42: 0.85 | AU42: 0.85 | AV42: 0.85 | AW42: 0.85 | AX42: 0.85 | AY42: 0.85 | AZ42: 0.85 | BA42: 0.85 | BB42: 0.85 | BC42: 0.85 | BD42: 0.85 | BE42: 0.85 | BF42: 0.85 | BG42: 0.85 | BH42: 0.85 | BI42: 0.85 | BJ42: 0.85 | BK42: 0.85 | BL42: 0.85 | BM42: 0.85 | BN42: 0.85 | BO42: 0.85 | BP42: 0.85 | BQ42: 0.85 | BR42: 0.85 | BS42: =$F$13 -> 0.85 | BT42: 0.85 | BU42: 0.85 | BV42: 0.85 | BW42: 0.85 | BX42: 0.85 | BY42: 0.85 | BZ42: 0.85 | CA42: 0.85 | CB42: 0.85 | CC42: 0.85 | CD42: 0.85 | CE42: 0.85 | CF42: 0.85 | CG42: 0.85 | CH42: 0.85 | CI42: 0.85 | CJ42: 0.85 | CK42: 0.85 | CL42: 0.85 | CM42: 0.85 | CN42: 0.85 | CO42: 0.85 | CP42: 0.85 | CQ42: 0.85 | CR42: 0.85 | CS42: 0.85 | CT42: 0.85 | CU42: 0.85 | CV42: 0.85 | CW42: 0.85 | CX42: 0.85 | CY42: 0.85 | CZ42: 0.85 | DA42: 0.85 | DB42: 0.85 | DC42: 0.85 | DD42: 0.85 | DE42: 0.85 | DF42: 0.85 | DG42: 0.85 | DH42: 0.85 | DI42: 0.85 | DJ42: 0.85 | DK42: 0.85 | DL42: 0.85 | DM42: 0.85 | DN42: 0.85 | DO42: 0.85 | DP42: 0.85 | DQ42: 0.85 | DR42: 0.85 | DS42: 0.85 | DT42: 0.85 | DU42: 0.85 | DV42: 0.85 | DW42: 0.85 | DX42: 0.85 | DY42: 0.85 | DZ42: 0.85 | EA42: 0.85 | EB42: 0.85 | EC42: 0.85 | ED42: 0.85 | EE42: =$F$13 -> 0.85 | EF42: 0.85 | EG42: 0.85 | EH42: 0.85 | EI42: 0.85 | EJ42: 0.85 | EK42: 0.85 | EL42: 0.85 | EM42: 0.85 | EN42: 0.85 | EO42: 0.85 | EP42: 0.85 | EQ42: 0.85 | ER42: 0.85 | ES42: 0.85 | ET42: 0.85 | EU42: 0.85 | EV42: 0.85 | EW42: 0.85 | EX42: 0.85 | EY42: 0.85 | EZ42: 0.85 | FA42: 0.85 | FB42: 0.85 | FC42: 0.85 | FD42: 0.85 | FE42: 0.85 | FF42: 0.85 | FG42: 0.85 | FH42: 0.85 | FI42: 0.85 | FJ42: 0.85 | FK42: 0.85 | FL42: 0.85 | FM42: 0.85 | FN42: 0.85 | FO42: 0.85 | FP42: 0.85 | FQ42: 0.85 | FR42: 0.85 | FS42: 0.85 | FT42: 0.85 | FU42: 0.85 | FV42: 0.85 | FW42: 0.85 | FX42: 0.85 | FY42: 0.85 | FZ42: 0.85 | GA42: 0.85 | GB42: 0.85 | GC42: 0.85 | GD42: 0.85 | GE42: 0.85 | GF42: 0.85 | GG42: 0.85 | GH42: 0.85 | GI42: 0.85 | GJ42: 0.85 | GK42: 0.85 | GL42: 0.85 | GM42: 0.85 | GN42: 0.85 | GO42: 0.85 | GP42: 0.85 | GQ42: =$F$13 -> 0.85 | GR42: 0.85 | GS42: 0.85 | GT42: 0.85 | GU42: 0.85 | GV42: 0.85 | GW42: 0.85 | GX42: 0.85 | GY42: 0.85 | GZ42: 0.85 | HA42: 0.85 | HB42: 0.85 | HC42: 0.85 | HD42: 0.85 | HE42: 0.85 | HF42: 0.85 | HG42: 0.85 | HH42: 0.85 | HI42: 0.85 | HJ42: 0.85 | HK42: 0.85 | HL42: 0.85 | HM42: 0.85 | HN42: 0.85 | HO42: 0.85 | HP42: 0.85 | HQ42: 0.85 | HR42: 0.85 | HS42: 0.85 | HT42: 0.85 | HU42: 0.85 | HV42: 0.85 | HW42: 0.85 | HX42: 0.85 | HY42: 0.85 | HZ42: 0.85 | IA42: 0.85 | IB42: 0.85 | IC42: 0.85 | ID42: 0.85 | IE42: 0.85 | IF42: 0.85 | IG42: 0.85 | IH42: 0.85 | II42: 0.85 | IJ42: 0.85 | IK42: 0.85 | IL42: 0.85 | IM42: 0.85 | IN42: 0.85 | IO42: 0.85 | IP42: 0.85 | IQ42: 0.85 | IR42: 0.85 | IS42: 0.85 | IT42: 0.85 | IU42: 0.85 | IV42: 0.85
D43: Partner 1 - Pre-Flip Cash without Flip | F43: =F42*F40 -> 14.16666667 | G43: 14.16666667 | H43: 14.16666667 | I43: 14.16666667 | J43: 14.16666667 | K43: 14.16666667 | L43: 14.16666667 | M43: 14.16666667 | N43: 14.16666667 | O43: 14.16666667 | P43: 14.16666667 | Q43: 14.16666667 | R43: 14.16666667 | S43: 14.16666667 | T43: 14.16666667 | U43: 14.16666667 | V43: 14.16666667 | W43: 14.16666667 | X43: 14.16666667 | Y43: 14.16666667 | Z43: 14.16666667 | AA43: 14.16666667 | AB43: 14.16666667 | AC43: 14.16666667 | AD43: 14.16666667 | AE43: 14.16666667 | AF43: 14.16666667 | AG43: 14.16666667 | AH43: 14.16666667 | AI43: 14.16666667 | AJ43: 14.16666667 | AK43: 14.16666667 | AL43: 14.16666667 | AM43: 14.16666667 | AN43: 14.16666667 | AO43: 14.16666667 | AP43: 14.16666667 | AQ43: 14.16666667 | AR43: 14.16666667 | AS43: 14.16666667 | AT43: 14.16666667 | AU43: 14.16666667 | AV43: 14.16666667 | AW43: 14.16666667 | AX43: 14.16666667 | AY43: 14.16666667 | AZ43: 14.16666667 | BA43: 14.16666667 | BB43: 14.16666667 | BC43: 14.16666667 | BD43: 14.16666667 | BE43: 14.16666667 | BF43: 14.16666667 | BG43: 14.16666667 | BH43: 14.16666667 | BI43: 14.16666667 | BJ43: 14.16666667 | BK43: 14.16666667 | BL43: 14.16666667 | BM43: 14.16666667 | BN43: 14.16666667 | BO43: 14.16666667 | BP43: 14.16666667 | BQ43: 14.16666667 | BR43: =BR42*BR40 -> 14.16666667 | BS43: 14.16666667 | BT43: 14.16666667 | BU43: 14.16666667 | BV43: 14.16666667 | BW43: 14.16666667 | BX43: 14.16666667 | BY43: 14.16666667 | BZ43: 14.16666667 | CA43: 14.16666667 | CB43: 14.16666667 | CC43: 14.16666667 | CD43: 14.16666667 | CE43: 14.16666667 | CF43: 14.16666667 | CG43: 14.16666667 | CH43: 14.16666667 | CI43: 14.16666667 | CJ43: 14.16666667 | CK43: 14.16666667 | CL43: 14.16666667 | CM43: 14.16666667 | CN43: 14.16666667 | CO43: 14.16666667 | CP43: 14.16666667 | CQ43: 14.16666667 | CR43: 14.16666667 | CS43: 14.16666667 | CT43: 14.16666667 | CU43: 14.16666667 | CV43: 14.16666667 | CW43: 14.16666667 | CX43: 14.16666667 | CY43: 14.16666667 | CZ43: 14.16666667 | DA43: 14.16666667 | DB43: 14.16666667 | DC43: 14.16666667 | DD43: 14.16666667 | DE43: 14.16666667 | DF43: 14.16666667 | DG43: 14.16666667 | DH43: 14.16666667 | DI43: 14.16666667 | DJ43: 14.16666667 | DK43: 14.16666667 | DL43: 14.16666667 | DM43: 14.16666667 | DN43: 14.16666667 | DO43: 14.16666667 | DP43: 14.16666667 | DQ43: 14.16666667 | DR43: 14.16666667 | DS43: 14.16666667 | DT43: 14.16666667 | DU43: 14.16666667 | DV43: 14.16666667 | DW43: 14.16666667 | DX43: 14.16666667 | DY43: 14.16666667 | DZ43: 14.16666667 | EA43: 14.16666667 | EB43: 14.16666667 | EC43: 14.16666667 | ED43: =ED42*ED40 -> 14.16666667 | EE43: 14.16666667 | EF43: 14.16666667 | EG43: 14.16666667 | EH43: 14.16666667 | EI43: 14.16666667 | EJ43: 14.16666667 | EK43: 14.16666667 | EL43: 14.16666667 | EM43: 14.16666667 | EN43: 14.16666667 | EO43: 14.16666667 | EP43: 14.16666667 | EQ43: 14.16666667 | ER43: 14.16666667 | ES43: 14.16666667 | ET43: 0 | EU43: 0 | EV43: 0 | EW43: 0 | EX43: 0 | EY43: 0 | EZ43: 0 | FA43: 0 | FB43: 0 | FC43: 0 | FD43: 0 | FE43: 0 | FF43: 0 | FG43: 0 | FH43: 0 | FI43: 0 | FJ43: 0 | FK43: 0 | FL43: 0 | FM43: 0 | FN43: 0 | FO43: 0 | FP43: 0 | FQ43: 0 | FR43: 0 | FS43: 0 | FT43: 0 | FU43: 0 | FV43: 0 | FW43: 0 | FX43: 0 | FY43: 0 | FZ43: 0 | GA43: 0 | GB43: 0 | GC43: 0 | GD43: 0 | GE43: 0 | GF43: 0 | GG43: 0 | GH43: 0 | GI43: 0 | GJ43: 0 | GK43: 0 | GL43: 0 | GM43: 0 | GN43: 0 | GO43: 0 | GP43: =GP42*GP40 -> 0 | GQ43: 0 | GR43: 0 | GS43: 0 | GT43: 0 | GU43: 0 | GV43: 0 | GW43: 0 | GX43: 0 | GY43: 0 | GZ43: 0 | HA43: 0 | HB43: 0 | HC43: 0 | HD43: 0 | HE43: 0 | HF43: 0 | HG43: 0 | HH43: 0 | HI43: 0 | HJ43: 0 | HK43: 0 | HL43: 0 | HM43: 0 | HN43: 0 | HO43: 0 | HP43: 0 | HQ43: 0 | HR43: 0 | HS43: 0 | HT43: 0 | HU43: 0 | HV43: 0 | HW43: 0 | HX43: 0 | HY43: 0 | HZ43: 0 | IA43: 0 | IB43: 0 | IC43: 0 | ID43: 0 | IE43: 0 | IF43: 0 | IG43: 0 | IH43: 0 | II43: 0 | IJ43: 0 | IK43: 0 | IL43: 0 | IM43: 0 | IN43: 0 | IO43: 0 | IP43: 0 | IQ43: 0 | IR43: 0 | IS43: 0 | IT43: 0 | IU43: 0 | IV43: 0
D45: Days | F45: =F31-F30+1 -> 31 | G45: 29 | H45: 31 | I45: 30 | J45: 31 | K45: 30 | L45: 31 | M45: 31 | N45: 30 | O45: 31 | P45: 30 | Q45: 31 | R45: 31 | S45: 28 | T45: 31 | U45: 30 | V45: 31 | W45: 30 | X45: 31 | Y45: 31 | Z45: 30 | AA45: 31 | AB45: 30 | AC45: 31 | AD45: 31 | AE45: 28 | AF45: 31 | AG45: 30 | AH45: 31 | AI45: 30 | AJ45: 31 | AK45: 31 | AL45: 30 | AM45: 31 | AN45: 30 | AO45: 31 | AP45: 31 | AQ45: 28 | AR45: 31 | AS45: 30 | AT45: 31 | AU45: 30 | AV45: 31 | AW45: 31 | AX45: 30 | AY45: 31 | AZ45: 30 | BA45: 31 | BB45: 31 | BC45: 29 | BD45: 31 | BE45: 30 | BF45: 31 | BG45: 30 | BH45: 31 | BI45: 31 | BJ45: 30 | BK45: 31 | BL45: 30 | BM45: 31 | BN45: 31 | BO45: 28 | BP45: 31 | BQ45: 30 | BR45: =BR31-BR30+1 -> 31 | BS45: 30 | BT45: 31 | BU45: 31 | BV45: 30 | BW45: 31 | BX45: 30 | BY45: 31 | BZ45: 31 | CA45: 28 | CB45: 31 | CC45: 30 | CD45: 31 | CE45: 30 | CF45: 31 | CG45: 31 | CH45: 30 | CI45: 31 | CJ45: 30 | CK45: 31 | CL45: 31 | CM45: 28 | CN45: 31 | CO45: 30 | CP45: 31 | CQ45: 30 | CR45: 31 | CS45: 31 | CT45: 30 | CU45: 31 | CV45: 30 | CW45: 31 | CX45: 31 | CY45: 29 | CZ45: 31 | DA45: 30 | DB45: 31 | DC45: 30 | DD45: 31 | DE45: 31 | DF45: 30 | DG45: 31 | DH45: 30 | DI45: 31 | DJ45: 31 | DK45: 28 | DL45: 31 | DM45: 30 | DN45: 31 | DO45: 30 | DP45: 31 | DQ45: 31 | DR45: 30 | DS45: 31 | DT45: 30 | DU45: 31 | DV45: 31 | DW45: 28 | DX45: 31 | DY45: 30 | DZ45: 31 | EA45: 30 | EB45: 31 | EC45: 31 | ED45: =ED31-ED30+1 -> 30 | EE45: 31 | EF45: 30 | EG45: 31 | EH45: 31 | EI45: 28 | EJ45: 31 | EK45: 30 | EL45: 31 | EM45: 30 | EN45: 31 | EO45: 31 | EP45: 30 | EQ45: 31 | ER45: 30 | ES45: 31 | ET45: 0 | EU45: 0 | EV45: 0 | EW45: 0 | EX45: 0 | EY45: 0 | EZ45: 0 | FA45: 0 | FB45: 0 | FC45: 0 | FD45: 0 | FE45: 0 | FF45: 0 | FG45: 0 | FH45: 0 | FI45: 0 | FJ45: 0 | FK45: 0 | FL45: 0 | FM45: 0 | FN45: 0 | FO45: 0 | FP45: 0 | FQ45: 0 | FR45: 0 | FS45: 0 | FT45: 0 | FU45: 0 | FV45: 0 | FW45: 0 | FX45: 0 | FY45: 0 | FZ45: 0 | GA45: 0 | GB45: 0 | GC45: 0 | GD45: 0 | GE45: 0 | GF45: 0 | GG45: 0 | GH45: 0 | GI45: 0 | GJ45: 0 | GK45: 0 | GL45: 0 | GM45: 0 | GN45: 0 | GO45: 0 | GP45: =GP31-GP30+1 -> 0 | GQ45: 0 | GR45: 0 | GS45: 0 | GT45: 0 | GU45: 0 | GV45: 0 | GW45: 0 | GX45: 0 | GY45: 0 | GZ45: 0 | HA45: 0 | HB45: 0 | HC45: 0 | HD45: 0 | HE45: 0 | HF45: 0 | HG45: 0 | HH45: 0 | HI45: 0 | HJ45: 0 | HK45: 0 | HL45: 0 | HM45: 0 | HN45: 0 | HO45: 0 | HP45: 0 | HQ45: 0 | HR45: 0 | HS45: 0 | HT45: 0 | HU45: 0 | HV45: 0 | HW45: 0 | HX45: 0 | HY45: 0 | HZ45: 0 | IA45: 0 | IB45: 0 | IC45: 0 | ID45: 0 | IE45: 0 | IF45: 0 | IG45: 0 | IH45: 0 | II45: 0 | IJ45: 0 | IK45: 0 | IL45: 0 | IM45: 0 | IN45: 0 | IO45: 0 | IP45: 0 | IQ45: 0 | IR45: 0 | IS45: 0 | IT45: 0 | IU45: 0 | IV45: 0
D46: Annual Rate | E46: =E16 -> 0.1 | F46: =E46 -> 0.1 | G46: =F46 -> 0.1 | H46: 0.1 | I46: 0.1 | J46: 0.1 | K46: 0.1 | L46: 0.1 | M46: 0.1 | N46: 0.1 | O46: 0.1 | P46: 0.1 | Q46: 0.1 | R46: 0.1 | S46: 0.1 | T46: 0.1 | U46: 0.1 | V46: 0.1 | W46: 0.1 | X46: 0.1 | Y46: 0.1 | Z46: 0.1 | AA46: 0.1 | AB46: 0.1 | AC46: 0.1 | AD46: 0.1 | AE46: 0.1 | AF46: 0.1 | AG46: 0.1 | AH46: 0.1 | AI46: 0.1 | AJ46: 0.1 | AK46: 0.1 | AL46: 0.1 | AM46: 0.1 | AN46: 0.1 | AO46: 0.1 | AP46: 0.1 | AQ46: 0.1 | AR46: 0.1 | AS46: 0.1 | AT46: 0.1 | AU46: 0.1 | AV46: 0.1 | AW46: 0.1 | AX46: 0.1 | AY46: 0.1 | AZ46: 0.1 | BA46: 0.1 | BB46: 0.1 | BC46: 0.1 | BD46: 0.1 | BE46: 0.1 | BF46: 0.1 | BG46: 0.1 | BH46: 0.1 | BI46: 0.1 | BJ46: 0.1 | BK46: 0.1 | BL46: 0.1 | BM46: 0.1 | BN46: 0.1 | BO46: 0.1 | BP46: 0.1 | BQ46: 0.1 | BR46: 0.1 | BS46: =BR46 -> 0.1 | BT46: 0.1 | BU46: 0.1 | BV46: 0.1 | BW46: 0.1 | BX46: 0.1 | BY46: 0.1 | BZ46: 0.1 | CA46: 0.1 | CB46: 0.1 | CC46: 0.1 | CD46: 0.1 | CE46: 0.1 | CF46: 0.1 | CG46: 0.1 | CH46: 0.1 | CI46: 0.1 | CJ46: 0.1 | CK46: 0.1 | CL46: 0.1 | CM46: 0.1 | CN46: 0.1 | CO46: 0.1 | CP46: 0.1 | CQ46: 0.1 | CR46: 0.1 | CS46: 0.1 | CT46: 0.1 | CU46: 0.1 | CV46: 0.1 | CW46: 0.1 | CX46: 0.1 | CY46: 0.1 | CZ46: 0.1 | DA46: 0.1 | DB46: 0.1 | DC46: 0.1 | DD46: 0.1 | DE46: 0.1 | DF46: 0.1 | DG46: 0.1 | DH46: 0.1 | DI46: 0.1 | DJ46: 0.1 | DK46: 0.1 | DL46: 0.1 | DM46: 0.1 | DN46: 0.1 | DO46: 0.1 | DP46: 0.1 | DQ46: 0.1 | DR46: 0.1 | DS46: 0.1 | DT46: 0.1 | DU46: 0.1 | DV46: 0.1 | DW46: 0.1 | DX46: 0.1 | DY46: 0.1 | DZ46: 0.1 | EA46: 0.1 | EB46: 0.1 | EC46: 0.1 | ED46: 0.1 | EE46: =ED46 -> 0.1 | EF46: 0.1 | EG46: 0.1 | EH46: 0.1 | EI46: 0.1 | EJ46: 0.1 | EK46: 0.1 | EL46: 0.1 | EM46: 0.1 | EN46: 0.1 | EO46: 0.1 | EP46: 0.1 | EQ46: 0.1 | ER46: 0.1 | ES46: 0.1 | ET46: 0.1 | EU46: 0.1 | EV46: 0.1 | EW46: 0.1 | EX46: 0.1 | EY46: 0.1 | EZ46: 0.1 | FA46: 0.1 | FB46: 0.1 | FC46: 0.1 | FD46: 0.1 | FE46: 0.1 | FF46: 0.1 | FG46: 0.1 | FH46: 0.1 | FI46: 0.1 | FJ46: 0.1 | FK46: 0.1 | FL46: 0.1 | FM46: 0.1 | FN46: 0.1 | FO46: 0.1 | FP46: 0.1 | FQ46: 0.1 | FR46: 0.1 | FS46: 0.1 | FT46: 0.1 | FU46: 0.1 | FV46: 0.1 | FW46: 0.1 | FX46: 0.1 | FY46: 0.1 | FZ46: 0.1 | GA46: 0.1 | GB46: 0.1 | GC46: 0.1 | GD46: 0.1 | GE46: 0.1 | GF46: 0.1 | GG46: 0.1 | GH46: 0.1 | GI46: 0.1 | GJ46: 0.1 | GK46: 0.1 | GL46: 0.1 | GM46: 0.1 | GN46: 0.1 | GO46: 0.1 | GP46: 0.1 | GQ46: =GP46 -> 0.1 | GR46: 0.1 | GS46: 0.1 | GT46: 0.1 | GU46: 0.1 | GV46: 0.1 | GW46: 0.1 | GX46: 0.1 | GY46: 0.1 | GZ46: 0.1 | HA46: 0.1 | HB46: 0.1 | HC46: 0.1 | HD46: 0.1 | HE46: 0.1 | HF46: 0.1 | HG46: 0.1 | HH46: 0.1 | HI46: 0.1 | HJ46: 0.1 | HK46: 0.1 | HL46: 0.1 | HM46: 0.1 | HN46: 0.1 | HO46: 0.1 | HP46: 0.1 | HQ46: 0.1 | HR46: 0.1 | HS46: 0.1 | HT46: 0.1 | HU46: 0.1 | HV46: 0.1 | HW46: 0.1 | HX46: 0.1 | HY46: 0.1 | HZ46: 0.1 | IA46: 0.1 | IB46: 0.1 | IC46: 0.1 | ID46: 0.1 | IE46: 0.1 | IF46: 0.1 | IG46: 0.1 | IH46: 0.1 | II46: 0.1 | IJ46: 0.1 | IK46: 0.1 | IL46: 0.1 | IM46: 0.1 | IN46: 0.1 | IO46: 0.1 | IP46: 0.1 | IQ46: 0.1 | IR46: 0.1 | IS46: 0.1 | IT46: 0.1 | IU46: 0.1 | IV46: 0.1
D47: Interest Rate for Flip | E47: =(1+$E$16)^(1/12)-1 -> 0.007974140429 | F47: =(1+F46)^(F45/365)-1 -> 0.008127688967 | G47: =(1+G46)^(G45/365)-1 -> 0.007601334196 | H47: 0.008127688967 | I47: 0.007864477221 | J47: 0.008127688967 | K47: 0.007864477221 | L47: 0.008127688967 | M47: 0.008127688967 | N47: 0.007864477221 | O47: 0.008127688967 | P47: 0.007864477221 | Q47: 0.008127688967 | R47: 0.008127688967 | S47: 0.007338259876 | T47: 0.008127688967 | U47: 0.007864477221 | V47: 0.008127688967 | W47: 0.007864477221 | X47: 0.008127688967 | Y47: 0.008127688967 | Z47: 0.007864477221 | AA47: 0.008127688967 | AB47: 0.007864477221 | AC47: 0.008127688967 | AD47: 0.008127688967 | AE47: 0.007338259876 | AF47: 0.008127688967 | AG47: 0.007864477221 | AH47: 0.008127688967 | AI47: 0.007864477221 | AJ47: 0.008127688967 | AK47: 0.008127688967 | AL47: 0.007864477221 | AM47: 0.008127688967 | AN47: 0.007864477221 | AO47: 0.008127688967 | AP47: 0.008127688967 | AQ47: 0.007338259876 | AR47: 0.008127688967 | AS47: 0.007864477221 | AT47: 0.008127688967 | AU47: 0.007864477221 | AV47: 0.008127688967 | AW47: 0.008127688967 | AX47: 0.007864477221 | AY47: 0.008127688967 | AZ47: 0.007864477221 | BA47: 0.008127688967 | BB47: 0.008127688967 | BC47: 0.007601334196 | BD47: 0.008127688967 | BE47: 0.007864477221 | BF47: 0.008127688967 | BG47: 0.007864477221 | BH47: 0.008127688967 | BI47: 0.008127688967 | BJ47: 0.007864477221 | BK47: 0.008127688967 | BL47: 0.007864477221 | BM47: 0.008127688967 | BN47: 0.008127688967 | BO47: 0.007338259876 | BP47: 0.008127688967 | BQ47: 0.007864477221 | BR47: 0.008127688967 | BS47: =(1+BS46)^(BS45/365)-1 -> 0.007864477221 | BT47: 0.008127688967 | BU47: 0.008127688967 | BV47: 0.007864477221 | BW47: 0.008127688967 | BX47: 0.007864477221 | BY47: 0.008127688967 | BZ47: 0.008127688967 | CA47: 0.007338259876 | CB47: 0.008127688967 | CC47: 0.007864477221 | CD47: 0.008127688967 | CE47: 0.007864477221 | CF47: 0.008127688967 | CG47: 0.008127688967 | CH47: 0.007864477221 | CI47: 0.008127688967 | CJ47: 0.007864477221 | CK47: 0.008127688967 | CL47: 0.008127688967 | CM47: 0.007338259876 | CN47: 0.008127688967 | CO47: 0.007864477221 | CP47: 0.008127688967 | CQ47: 0.007864477221 | CR47: 0.008127688967 | CS47: 0.008127688967 | CT47: 0.007864477221 | CU47: 0.008127688967 | CV47: 0.007864477221 | CW47: 0.008127688967 | CX47: 0.008127688967 | CY47: 0.007601334196 | CZ47: 0.008127688967 | DA47: 0.007864477221 | DB47: 0.008127688967 | DC47: 0.007864477221 | DD47: 0.008127688967 | DE47: 0.008127688967 | DF47: 0.007864477221 | DG47: 0.008127688967 | DH47: 0.007864477221 | DI47: 0.008127688967 | DJ47: 0.008127688967 | DK47: 0.007338259876 | DL47: 0.008127688967 | DM47: 0.007864477221 | DN47: 0.008127688967 | DO47: 0.007864477221 | DP47: 0.008127688967 | DQ47: 0.008127688967 | DR47: 0.007864477221 | DS47: 0.008127688967 | DT47: 0.007864477221 | DU47: 0.008127688967 | DV47: 0.008127688967 | DW47: 0.007338259876 | DX47: 0.008127688967 | DY47: 0.007864477221 | DZ47: 0.008127688967 | EA47: 0.007864477221 | EB47: 0.008127688967 | EC47: 0.008127688967 | ED47: 0.007864477221 | EE47: =(1+EE46)^(EE45/365)-1 -> 0.008127688967 | EF47: 0.007864477221 | EG47: 0.008127688967 | EH47: 0.008127688967 | EI47: 0.007338259876 | EJ47: 0.008127688967 | EK47: 0.007864477221 | EL47: 0.008127688967 | EM47: 0.007864477221 | EN47: 0.008127688967 | EO47: 0.008127688967 | EP47: 0.007864477221 | EQ47: 0.008127688967 | ER47: 0.007864477221 | ES47: 0.008127688967 | ET47: 0 | EU47: 0 | EV47: 0 | EW47: 0 | EX47: 0 | EY47: 0 | EZ47: 0 | FA47: 0 | FB47: 0 | FC47: 0 | FD47: 0 | FE47: 0 | FF47: 0 | FG47: 0 | FH47: 0 | FI47: 0 | FJ47: 0 | FK47: 0 | FL47: 0 | FM47: 0 | FN47: 0 | FO47: 0 | FP47: 0 | FQ47: 0 | FR47: 0 | FS47: 0 | FT47: 0 | FU47: 0 | FV47: 0 | FW47: 0 | FX47: 0 | FY47: 0 | FZ47: 0 | GA47: 0 | GB47: 0 | GC47: 0 | GD47: 0 | GE47: 0 | GF47: 0 | GG47: 0 | GH47: 0 | GI47: 0 | GJ47: 0 | GK47: 0 | GL47: 0 | GM47: 0 | GN47: 0 | GO47: 0 | GP47: 0 | GQ47: =(1+GQ46)^(GQ45/365)-1 -> 0 | GR47: 0 | GS47: 0 | GT47: 0 | GU47: 0 | GV47: 0 | GW47: 0 | GX47: 0 | GY47: 0 | GZ47: 0 | HA47: 0 | HB47: 0 | HC47: 0 | HD47: 0 | HE47: 0 | HF47: 0 | HG47: 0 | HH47: 0 | HI47: 0 | HJ47: 0 | HK47: 0 | HL47: 0 | HM47: 0 | HN47: 0 | HO47: 0 | HP47: 0 | HQ47: 0 | HR47: 0 | HS47: 0 | HT47: 0 | HU47: 0 | HV47: 0 | HW47: 0 | HX47: 0 | HY47: 0 | HZ47: 0 | IA47: 0 | IB47: 0 | IC47: 0 | ID47: 0 | IE47: 0 | IF47: 0 | IG47: 0 | IH47: 0 | II47: 0 | IJ47: 0 | IK47: 0 | IL47: 0 | IM47: 0 | IN47: 0 | IO47: 0 | IP47: 0 | IQ47: 0 | IR47: 0 | IS47: 0 | IT47: 0 | IU47: 0 | IV47: 0
A49: Senior - Pre-flip
C50: Yield tracking Account
D51: Opening Balance | F51: =E55 -> -800 | G51: =F55 -> -792.3354845 | H51: -784.1916247 | I51: -776.3986236 | J51: -768.3379262 | K51: -760.4160712 | L51: -752.2296794 | M51: -744.1769016 | N51: -736.0586734 | O51: -727.6807234 | P51: -719.4284193 | Q51: -710.919681 | R51: -702.5311484 | S51: -694.0744364 | T51: -685.0010683 | U51: -676.4018773 | V51: -667.5547578 | W51: -658.8137686 | X51: -649.8283278 | Y51: -640.9432636 | Z51: -631.9859845 | AA51: -622.7895572 | AB51: -613.6847303 | AC51: -604.3443732 | AD51: -595.0896297 | AE51: -585.7596664 | AF51: -575.8914564 | AG51: -566.4054564 | AH51: -556.6932725 | AI51: -547.0512356 | AJ51: -537.1868409 | AK51: -527.3862618 | AL51: -517.5060267 | AM51: -507.4092744 | AN51: -497.3666724 | AO51: -487.1115346 | AP51: -476.903959 | AQ51: -466.6134194 | AR51: -455.8708833 | AS51: -445.4093934 | AT51: -434.7456387 | AU51: -424.1124494 | AV51: -413.2812054 | AW51: -402.4735598 | AX51: -391.5780731 | AY51: -380.4909633 | AZ51: -369.4168088 | BA51: -358.1554122 | BB51: -346.8997213 | BC51: -335.5525477 | BD51: -323.9365281 | BE51: -312.4027168 | BF51: -300.6929341 | BG51: -288.9702061 | BH51: -277.0761391 | BI51: -265.1614611 | BJ51: -253.1499443 | BK51: -240.9741696 | BL51: -228.766066 | BM51: -216.3985249 | BN51: -203.9906781 | BO51: -191.4819842 | BP51: -178.7204621 | BQ51: -166.0063798 | BR51: -153.1452665 | BS51: =BR55 -> -140.2233169 | BT51: -127.1594334 | BU51: -114.026279 | BV51: -100.7863825 | BW51: -87.41234801 | BX51: -73.95614172 | BY51: -60.37110145 | BZ51: -46.69511232 | CA51: -32.907969 | CB51: -18.98278956 | CC51: -4.970409103 | CD51: 0 | CE51: 0 | CF51: 0 | CG51: 0 | CH51: 0 | CI51: 0 | CJ51: 0 | CK51: 0 | CL51: 0 | CM51: 0 | CN51: 0 | CO51: 0 | CP51: 0 | CQ51: 0 | CR51: 0 | CS51: 0 | CT51: 0 | CU51: 0 | CV51: 0 | CW51: 0 | CX51: 0 | CY51: 0 | CZ51: 0 | DA51: 0 | DB51: 0 | DC51: 0 | DD51: 0 | DE51: 0 | DF51: 0 | DG51: 0 | DH51: 0 | DI51: 0 | DJ51: 0 | DK51: 0 | DL51: 0 | DM51: 0 | DN51: 0 | DO51: 0 | DP51: 0 | DQ51: 0 | DR51: 0 | DS51: 0 | DT51: 0 | DU51: 0 | DV51: 0 | DW51: 0 | DX51: 0 | DY51: 0 | DZ51: 0 | EA51: 0 | EB51: 0 | EC51: 0 | ED51: 0 | EE51: =ED55 -> 0 | EF51: 0 | EG51: 0 | EH51: 0 | EI51: 0 | EJ51: 0 | EK51: 0 | EL51: 0 | EM51: 0 | EN51: 0 | EO51: 0 | EP51: 0 | EQ51: 0 | ER51: 0 | ES51: 0 | ET51: 0 | EU51: 0 | EV51: 0 | EW51: 0 | EX51: 0 | EY51: 0 | EZ51: 0 | FA51: 0 | FB51: 0 | FC51: 0 | FD51: 0 | FE51: 0 | FF51: 0 | FG51: 0 | FH51: 0 | FI51: 0 | FJ51: 0 | FK51: 0 | FL51: 0 | FM51: 0 | FN51: 0 | FO51: 0 | FP51: 0 | FQ51: 0 | FR51: 0 | FS51: 0 | FT51: 0 | FU51: 0 | FV51: 0 | FW51: 0 | FX51: 0 | FY51: 0 | FZ51: 0 | GA51: 0 | GB51: 0 | GC51: 0 | GD51: 0 | GE51: 0 | GF51: 0 | GG51: 0 | GH51: 0 | GI51: 0 | GJ51: 0 | GK51: 0 | GL51: 0 | GM51: 0 | GN51: 0 | GO51: 0 | GP51: 0 | GQ51: =GP55 -> 0 | GR51: 0 | GS51: 0 | GT51: 0 | GU51: 0 | GV51: 0 | GW51: 0 | GX51: 0 | GY51: 0 | GZ51: 0 | HA51: 0 | HB51: 0 | HC51: 0 | HD51: 0 | HE51: 0 | HF51: 0 | HG51: 0 | HH51: 0 | HI51: 0 | HJ51: 0 | HK51: 0 | HL51: 0 | HM51: 0 | HN51: 0 | HO51: 0 | HP51: 0 | HQ51: 0 | HR51: 0 | HS51: 0 | HT51: 0 | HU51: 0 | HV51: 0 | HW51: 0 | HX51: 0 | HY51: 0 | HZ51: 0 | IA51: 0 | IB51: 0 | IC51: 0 | ID51: 0 | IE51: 0 | IF51: 0 | IG51: 0 | IH51: 0 | II51: 0 | IJ51: 0 | IK51: 0 | IL51: 0 | IM51: 0 | IN51: 0 | IO51: 0 | IP51: 0 | IQ51: 0 | IR51: 0 | IS51: 0 | IT51: 0 | IU51: 0 | IV51: 0
D52: Add: Cost of Funds | F52: =F51*F47 -> -6.502151173 | G52: =G51*G47 -> -6.022806813 | H52: -6.373665616 | I52: -6.105969289 | J52: -6.244811686 | K52: -5.98027487 | L52: -6.113888866 | M52: -6.048438393 | N52: -5.78871667 | O52: -5.914362587 | P52: -5.657928415 | Q52: -5.778134048 | R52: -5.709954664 | S52: -5.093298588 | T52: -5.567475625 | U52: -5.319547156 | V52: -5.42567744 | W52: -5.181225876 | X52: -5.28160253 | Y52: -5.209387492 | Z52: -4.970239379 | AA52: -5.061839813 | AB52: -4.826309582 | AC52: -4.911923095 | AD52: -4.836703417 | AE52: -4.298456657 | AF52: -4.680666636 | AG52: -4.454482809 | AH52: -4.524629769 | AI52: -4.302271981 | AJ52: -4.36608756 | AK52: -4.286431502 | AL52: -4.069914358 | AM52: -4.124064761 | AN52: -3.911528866 | AO52: -3.959091046 | AP52: -3.876127046 | AQ52: -3.424130533 | AR52: -3.705176748 | AS52: -3.502912028 | AT52: -3.533477331 | AU52: -3.335422697 | AV52: -3.359021093 | AW52: -3.271179912 | AX52: -3.079556836 | AY52: -3.092512204 | AZ52: -2.905270078 | BA52: -2.910975792 | BB52: -2.819493038 | BC52: -2.550647055 | BD52: -2.632855345 | BE52: -2.45688405 | BF52: -2.443938643 | BG52: -2.272599604 | BH52: -2.251988678 | BI52: -2.155149882 | BJ52: -1.99089197 | BK52: -1.958563099 | BL52: -1.799125515 | BM52: -1.758819903 | BN52: -1.657972784 | BO52: -1.405144562 | BP52: -1.452584328 | BQ52: -1.305553392 | BR52: -1.244717093 | BS52: =BS51*BS47 -> -1.102783082 | BT52: -1.033512323 | BU52: -0.9267701298 | BV52: -0.7926322091 | BW52: -0.7104603765 | BX52: -0.5816263919 | BY52: -0.4906775352 | BZ52: -0.3795233492 | CA52: -0.2414872285 | CB52: -0.1542862093 | CC52: -0.03908966917 | CD52: 0 | CE52: 0 | CF52: 0 | CG52: 0 | CH52: 0 | CI52: 0 | CJ52: 0 | CK52: 0 | CL52: 0 | CM52: 0 | CN52: 0 | CO52: 0 | CP52: 0 | CQ52: 0 | CR52: 0 | CS52: 0 | CT52: 0 | CU52: 0 | CV52: 0 | CW52: 0 | CX52: 0 | CY52: 0 | CZ52: 0 | DA52: 0 | DB52: 0 | DC52: 0 | DD52: 0 | DE52: 0 | DF52: 0 | DG52: 0 | DH52: 0 | DI52: 0 | DJ52: 0 | DK52: 0 | DL52: 0 | DM52: 0 | DN52: 0 | DO52: 0 | DP52: 0 | DQ52: 0 | DR52: 0 | DS52: 0 | DT52: 0 | DU52: 0 | DV52: 0 | DW52: 0 | DX52: 0 | DY52: 0 | DZ52: 0 | EA52: 0 | EB52: 0 | EC52: 0 | ED52: 0 | EE52: =EE51*EE47 -> 0 | EF52: 0 | EG52: 0 | EH52: 0 | EI52: 0 | EJ52: 0 | EK52: 0 | EL52: 0 | EM52: 0 | EN52: 0 | EO52: 0 | EP52: 0 | EQ52: 0 | ER52: 0 | ES52: 0 | ET52: 0 | EU52: 0 | EV52: 0 | EW52: 0 | EX52: 0 | EY52: 0 | EZ52: 0 | FA52: 0 | FB52: 0 | FC52: 0 | FD52: 0 | FE52: 0 | FF52: 0 | FG52: 0 | FH52: 0 | FI52: 0 | FJ52: 0 | FK52: 0 | FL52: 0 | FM52: 0 | FN52: 0 | FO52: 0 | FP52: 0 | FQ52: 0 | FR52: 0 | FS52: 0 | FT52: 0 | FU52: 0 | FV52: 0 | FW52: 0 | FX52: 0 | FY52: 0 | FZ52: 0 | GA52: 0 | GB52: 0 | GC52: 0 | GD52: 0 | GE52: 0 | GF52: 0 | GG52: 0 | GH52: 0 | GI52: 0 | GJ52: 0 | GK52: 0 | GL52: 0 | GM52: 0 | GN52: 0 | GO52: 0 | GP52: 0 | GQ52: =GQ51*GQ47 -> 0 | GR52: 0 | GS52: 0 | GT52: 0 | GU52: 0 | GV52: 0 | GW52: 0 | GX52: 0 | GY52: 0 | GZ52: 0 | HA52: 0 | HB52: 0 | HC52: 0 | HD52: 0 | HE52: 0 | HF52: 0 | HG52: 0 | HH52: 0 | HI52: 0 | HJ52: 0 | HK52: 0 | HL52: 0 | HM52: 0 | HN52: 0 | HO52: 0 | HP52: 0 | HQ52: 0 | HR52: 0 | HS52: 0 | HT52: 0 | HU52: 0 | HV52: 0 | HW52: 0 | HX52: 0 | HY52: 0 | HZ52: 0 | IA52: 0 | IB52: 0 | IC52: 0 | ID52: 0 | IE52: 0 | IF52: 0 | IG52: 0 | IH52: 0 | II52: 0 | IJ52: 0 | IK52: 0 | IL52: 0 | IM52: 0 | IN52: 0 | IO52: 0 | IP52: 0 | IQ52: 0 | IR52: 0 | IS52: 0 | IT52: 0 | IU52: 0 | IV52: 0
D53: Sub-total | F53: =SUM(F51:F52) -> -806.5021512 | G53: =SUM(G51:G52) -> -798.3582913 | H53: -790.5652903 | I53: -782.5045929 | J53: -774.5827379 | K53: -766.3963461 | L53: -758.3435683 | M53: -750.22534 | N53: -741.84739 | O53: -733.595086 | P53: -725.0863477 | Q53: -716.6978151 | R53: -708.2411031 | S53: -699.167735 | T53: -690.568544 | U53: -681.7214245 | V53: -672.9804352 | W53: -663.9949944 | X53: -655.1099303 | Y53: -646.1526511 | Z53: -636.9562238 | AA53: -627.851397 | AB53: -618.5110399 | AC53: -609.2562963 | AD53: -599.9263331 | AE53: -590.0581231 | AF53: -580.572123 | AG53: -570.8599392 | AH53: -561.2179023 | AI53: -551.3535076 | AJ53: -541.5529285 | AK53: -531.6726933 | AL53: -521.575941 | AM53: -511.5333391 | AN53: -501.2782013 | AO53: -491.0706257 | AP53: -480.7800861 | AQ53: -470.0375499 | AR53: -459.57606 | AS53: -448.9123054 | AT53: -438.279116 | AU53: -427.4478721 | AV53: -416.6402265 | AW53: -405.7447398 | AX53: -394.6576299 | AY53: -383.5834755 | AZ53: -372.3220789 | BA53: -361.066388 | BB53: -349.7192144 | BC53: -338.1031948 | BD53: -326.5693834 | BE53: -314.8596008 | BF53: -303.1368728 | BG53: -291.2428057 | BH53: -279.3281277 | BI53: -267.316611 | BJ53: -255.1408363 | BK53: -242.9327327 | BL53: -230.5651915 | BM53: -218.1573448 | BN53: -205.6486509 | BO53: -192.8871288 | BP53: -180.1730464 | BQ53: -167.3119332 | BR53: -154.3899836 | BS53: =SUM(BS51:BS52) -> -141.3261 | BT53: -128.1929457 | BU53: -114.9530491 | BV53: -101.5790147 | BW53: -88.12280839 | BX53: -74.53776811 | BY53: -60.86177898 | BZ53: -47.07463567 | CA53: -33.14945623 | CB53: -19.13707577 | CC53: -5.009498772 | CD53: 0 | CE53: 0 | CF53: 0 | CG53: 0 | CH53: 0 | CI53: 0 | CJ53: 0 | CK53: 0 | CL53: 0 | CM53: 0 | CN53: 0 | CO53: 0 | CP53: 0 | CQ53: 0 | CR53: 0 | CS53: 0 | CT53: 0 | CU53: 0 | CV53: 0 | CW53: 0 | CX53: 0 | CY53: 0 | CZ53: 0 | DA53: 0 | DB53: 0 | DC53: 0 | DD53: 0 | DE53: 0 | DF53: 0 | DG53: 0 | DH53: 0 | DI53: 0 | DJ53: 0 | DK53: 0 | DL53: 0 | DM53: 0 | DN53: 0 | DO53: 0 | DP53: 0 | DQ53: 0 | DR53: 0 | DS53: 0 | DT53: 0 | DU53: 0 | DV53: 0 | DW53: 0 | DX53: 0 | DY53: 0 | DZ53: 0 | EA53: 0 | EB53: 0 | EC53: 0 | ED53: 0 | EE53: =SUM(EE51:EE52) -> 0 | EF53: 0 | EG53: 0 | EH53: 0 | EI53: 0 | EJ53: 0 | EK53: 0 | EL53: 0 | EM53: 0 | EN53: 0 | EO53: 0 | EP53: 0 | EQ53: 0 | ER53: 0 | ES53: 0 | ET53: 0 | EU53: 0 | EV53: 0 | EW53: 0 | EX53: 0 | EY53: 0 | EZ53: 0 | FA53: 0 | FB53: 0 | FC53: 0 | FD53: 0 | FE53: 0 | FF53: 0 | FG53: 0 | FH53: 0 | FI53: 0 | FJ53: 0 | FK53: 0 | FL53: 0 | FM53: 0 | FN53: 0 | FO53: 0 | FP53: 0 | FQ53: 0 | FR53: 0 | FS53: 0 | FT53: 0 | FU53: 0 | FV53: 0 | FW53: 0 | FX53: 0 | FY53: 0 | FZ53: 0 | GA53: 0 | GB53: 0 | GC53: 0 | GD53: 0 | GE53: 0 | GF53: 0 | GG53: 0 | GH53: 0 | GI53: 0 | GJ53: 0 | GK53: 0 | GL53: 0 | GM53: 0 | GN53: 0 | GO53: 0 | GP53: 0 | GQ53: =SUM(GQ51:GQ52) -> 0 | GR53: 0 | GS53: 0 | GT53: 0 | GU53: 0 | GV53: 0 | GW53: 0 | GX53: 0 | GY53: 0 | GZ53: 0 | HA53: 0 | HB53: 0 | HC53: 0 | HD53: 0 | HE53: 0 | HF53: 0 | HG53: 0 | HH53: 0 | HI53: 0 | HJ53: 0 | HK53: 0 | HL53: 0 | HM53: 0 | HN53: 0 | HO53: 0 | HP53: 0 | HQ53: 0 | HR53: 0 | HS53: 0 | HT53: 0 | HU53: 0 | HV53: 0 | HW53: 0 | HX53: 0 | HY53: 0 | HZ53: 0 | IA53: 0 | IB53: 0 | IC53: 0 | ID53: 0 | IE53: 0 | IF53: 0 | IG53: 0 | IH53: 0 | II53: 0 | IJ53: 0 | IK53: 0 | IL53: 0 | IM53: 0 | IN53: 0 | IO53: 0 | IP53: 0 | IQ53: 0 | IR53: 0 | IS53: 0 | IT53: 0 | IU53: 0 | IV53: 0
D54: Less: Dividends Received | F54: =MIN(-F53,F43) -> 14.16666667 | G54: =MIN(-G53,G43) -> 14.16666667 | H54: 14.16666667 | I54: 14.16666667 | J54: 14.16666667 | K54: 14.16666667 | L54: 14.16666667 | M54: 14.16666667 | N54: 14.16666667 | O54: 14.16666667 | P54: 14.16666667 | Q54: 14.16666667 | R54: 14.16666667 | S54: 14.16666667 | T54: 14.16666667 | U54: 14.16666667 | V54: 14.16666667 | W54: 14.16666667 | X54: 14.16666667 | Y54: 14.16666667 | Z54: 14.16666667 | AA54: 14.16666667 | AB54: 14.16666667 | AC54: 14.16666667 | AD54: 14.16666667 | AE54: 14.16666667 | AF54: 14.16666667 | AG54: 14.16666667 | AH54: 14.16666667 | AI54: 14.16666667 | AJ54: 14.16666667 | AK54: 14.16666667 | AL54: 14.16666667 | AM54: 14.16666667 | AN54: 14.16666667 | AO54: 14.16666667 | AP54: 14.16666667 | AQ54: 14.16666667 | AR54: 14.16666667 | AS54: 14.16666667 | AT54: 14.16666667 | AU54: 14.16666667 | AV54: 14.16666667 | AW54: 14.16666667 | AX54: 14.16666667 | AY54: 14.16666667 | AZ54: 14.16666667 | BA54: 14.16666667 | BB54: 14.16666667 | BC54: 14.16666667 | BD54: 14.16666667 | BE54: 14.16666667 | BF54: 14.16666667 | BG54: 14.16666667 | BH54: 14.16666667 | BI54: 14.16666667 | BJ54: 14.16666667 | BK54: 14.16666667 | BL54: 14.16666667 | BM54: 14.16666667 | BN54: 14.16666667 | BO54: 14.16666667 | BP54: 14.16666667 | BQ54: 14.16666667 | BR54: 14.16666667 | BS54: =MIN(-BS53,BS43) -> 14.16666667 | BT54: 14.16666667 | BU54: 14.16666667 | BV54: 14.16666667 | BW54: 14.16666667 | BX54: 14.16666667 | BY54: 14.16666667 | BZ54: 14.16666667 | CA54: 14.16666667 | CB54: 14.16666667 | CC54: 5.009498772 | CD54: 0 | CE54: 0 | CF54: 0 | CG54: 0 | CH54: 0 | CI54: 0 | CJ54: 0 | CK54: 0 | CL54: 0 | CM54: 0 | CN54: 0 | CO54: 0 | CP54: 0 | CQ54: 0 | CR54: 0 | CS54: 0 | CT54: 0 | CU54: 0 | CV54: 0 | CW54: 0 | CX54: 0 | CY54: 0 | CZ54: 0 | DA54: 0 | DB54: 0 | DC54: 0 | DD54: 0 | DE54: 0 | DF54: 0 | DG54: 0 | DH54: 0 | DI54: 0 | DJ54: 0 | DK54: 0 | DL54: 0 | DM54: 0 | DN54: 0 | DO54: 0 | DP54: 0 | DQ54: 0 | DR54: 0 | DS54: 0 | DT54: 0 | DU54: 0 | DV54: 0 | DW54: 0 | DX54: 0 | DY54: 0 | DZ54: 0 | EA54: 0 | EB54: 0 | EC54: 0 | ED54: 0 | EE54: =MIN(-EE53,EE43) -> 0 | EF54: 0 | EG54: 0 | EH54: 0 | EI54: 0 | EJ54: 0 | EK54: 0 | EL54: 0 | EM54: 0 | EN54: 0 | EO54: 0 | EP54: 0 | EQ54: 0 | ER54: 0 | ES54: 0 | ET54: 0 | EU54: 0 | EV54: 0 | EW54: 0 | EX54: 0 | EY54: 0 | EZ54: 0 | FA54: 0 | FB54: 0 | FC54: 0 | FD54: 0 | FE54: 0 | FF54: 0 | FG54: 0 | FH54: 0 | FI54: 0 | FJ54: 0 | FK54: 0 | FL54: 0 | FM54: 0 | FN54: 0 | FO54: 0 | FP54: 0 | FQ54: 0 | FR54: 0 | FS54: 0 | FT54: 0 | FU54: 0 | FV54: 0 | FW54: 0 | FX54: 0 | FY54: 0 | FZ54: 0 | GA54: 0 | GB54: 0 | GC54: 0 | GD54: 0 | GE54: 0 | GF54: 0 | GG54: 0 | GH54: 0 | GI54: 0 | GJ54: 0 | GK54: 0 | GL54: 0 | GM54: 0 | GN54: 0 | GO54: 0 | GP54: 0 | GQ54: =MIN(-GQ53,GQ43) -> 0 | GR54: 0 | GS54: 0 | GT54: 0 | GU54: 0 | GV54: 0 | GW54: 0 | GX54: 0 | GY54: 0 | GZ54: 0 | HA54: 0 | HB54: 0 | HC54: 0 | HD54: 0 | HE54: 0 | HF54: 0 | HG54: 0 | HH54: 0 | HI54: 0 | HJ54: 0 | HK54: 0 | HL54: 0 | HM54: 0 | HN54: 0 | HO54: 0 | HP54: 0 | HQ54: 0 | HR54: 0 | HS54: 0 | HT54: 0 | HU54: 0 | HV54: 0 | HW54: 0 | HX54: 0 | HY54: 0 | HZ54: 0 | IA54: 0 | IB54: 0 | IC54: 0 | ID54: 0 | IE54: 0 | IF54: 0 | IG54: 0 | IH54: 0 | II54: 0 | IJ54: 0 | IK54: 0 | IL54: 0 | IM54: 0 | IN54: 0 | IO54: 0 | IP54: 0 | IQ54: 0 | IR54: 0 | IS54: 0 | IT54: 0 | IU54: 0 | IV54: 0
D55: Closing Balance of Investment Value | E55: =-E19*E13 -> -800 | F55: =F53+F54 -> -792.3354845 | G55: =G53+G54 -> -784.1916247 | H55: -776.3986236 | I55: -768.3379262 | J55: -760.4160712 | K55: -752.2296794 | L55: -744.1769016 | M55: -736.0586734 | N55: -727.6807234 | O55: -719.4284193 | P55: -710.919681 | Q55: -702.5311484 | R55: -694.0744364 | S55: -685.0010683 | T55: -676.4018773 | U55: -667.5547578 | V55: -658.8137686 | W55: -649.8283278 | X55: -640.9432636 | Y55: -631.9859845 | Z55: -622.7895572 | AA55: -613.6847303 | AB55: -604.3443732 | AC55: -595.0896297 | AD55: -585.7596664 | AE55: -575.8914564 | AF55: -566.4054564 | AG55: -556.6932725 | AH55: -547.0512356 | AI55: -537.1868409 | AJ55: -527.3862618 | AK55: -517.5060267 | AL55: -507.4092744 | AM55: -497.3666724 | AN55: -487.1115346 | AO55: -476.903959 | AP55: -466.6134194 | AQ55: -455.8708833 | AR55: -445.4093934 | AS55: -434.7456387 | AT55: -424.1124494 | AU55: -413.2812054 | AV55: -402.4735598 | AW55: -391.5780731 | AX55: -380.4909633 | AY55: -369.4168088 | AZ55: -358.1554122 | BA55: -346.8997213 | BB55: -335.5525477 | BC55: -323.9365281 | BD55: -312.4027168 | BE55: -300.6929341 | BF55: -288.9702061 | BG55: -277.0761391 | BH55: -265.1614611 | BI55: -253.1499443 | BJ55: -240.9741696 | BK55: -228.766066 | BL55: -216.3985249 | BM55: -203.9906781 | BN55: -191.4819842 | BO55: -178.7204621 | BP55: -166.0063798 | BQ55: -153.1452665 | BR55: -140.2233169 | BS55: =BS53+BS54 -> -127.1594334 | BT55: -114.026279 | BU55: -100.7863825 | BV55: -87.41234801 | BW55: -73.95614172 | BX55: -60.37110145 | BY55: -46.69511232 | BZ55: -32.907969 | CA55: -18.98278956 | CB55: -4.970409103 | CC55: 0 | CD55: 0 | CE55: 0 | CF55: 0 | CG55: 0 | CH55: 0 | CI55: 0 | CJ55: 0 | CK55: 0 | CL55: 0 | CM55: 0 | CN55: 0 | CO55: 0 | CP55: 0 | CQ55: 0 | CR55: 0 | CS55: 0 | CT55: 0 | CU55: 0 | CV55: 0 | CW55: 0 | CX55: 0 | CY55: 0 | CZ55: 0 | DA55: 0 | DB55: 0 | DC55: 0 | DD55: 0 | DE55: 0 | DF55: 0 | DG55: 0 | DH55: 0 | DI55: 0 | DJ55: 0 | DK55: 0 | DL55: 0 | DM55: 0 | DN55: 0 | DO55: 0 | DP55: 0 | DQ55: 0 | DR55: 0 | DS55: 0 | DT55: 0 | DU55: 0 | DV55: 0 | DW55: 0 | DX55: 0 | DY55: 0 | DZ55: 0 | EA55: 0 | EB55: 0 | EC55: 0 | ED55: 0 | EE55: =EE53+EE54 -> 0 | EF55: 0 | EG55: 0 | EH55: 0 | EI55: 0 | EJ55: 0 | EK55: 0 | EL55: 0 | EM55: 0 | EN55: 0 | EO55: 0 | EP55: 0 | EQ55: 0 | ER55: 0 | ES55: 0 | ET55: 0 | EU55: 0 | EV55: 0 | EW55: 0 | EX55: 0 | EY55: 0 | EZ55: 0 | FA55: 0 | FB55: 0 | FC55: 0 | FD55: 0 | FE55: 0 | FF55: 0 | FG55: 0 | FH55: 0 | FI55: 0 | FJ55: 0 | FK55: 0 | FL55: 0 | FM55: 0 | FN55: 0 | FO55: 0 | FP55: 0 | FQ55: 0 | FR55: 0 | FS55: 0 | FT55: 0 | FU55: 0 | FV55: 0 | FW55: 0 | FX55: 0 | FY55: 0 | FZ55: 0 | GA55: 0 | GB55: 0 | GC55: 0 | GD55: 0 | GE55: 0 | GF55: 0 | GG55: 0 | GH55: 0 | GI55: 0 | GJ55: 0 | GK55: 0 | GL55: 0 | GM55: 0 | GN55: 0 | GO55: 0 | GP55: 0 | GQ55: =GQ53+GQ54 -> 0 | GR55: 0 | GS55: 0 | GT55: 0 | GU55: 0 | GV55: 0 | GW55: 0 | GX55: 0 | GY55: 0 | GZ55: 0 | HA55: 0 | HB55: 0 | HC55: 0 | HD55: 0 | HE55: 0 | HF55: 0 | HG55: 0 | HH55: 0 | HI55: 0 | HJ55: 0 | HK55: 0 | HL55: 0 | HM55: 0 | HN55: 0 | HO55: 0 | HP55: 0 | HQ55: 0 | HR55: 0 | HS55: 0 | HT55: 0 | HU55: 0 | HV55: 0 | HW55: 0 | HX55: 0 | HY55: 0 | HZ55: 0 | IA55: 0 | IB55: 0 | IC55: 0 | ID55: 0 | IE55: 0 | IF55: 0 | IG55: 0 | IH55: 0 | II55: 0 | IJ55: 0 | IK55: 0 | IL55: 0 | IM55: 0 | IN55: 0 | IO55: 0 | IP55: 0 | IQ55: 0 | IR55: 0 | IS55: 0 | IT55: 0 | IU55: 0 | IV55: 0
D57: Percent of Pre-flip Period | F57: =IF(F43,F54/F43) -> 1 | G57: =IF(G43,G54/G43) -> 1 | H57: 1 | I57: 1 | J57: 1 | K57: 1 | L57: 1 | M57: 1 | N57: 1 | O57: 1 | P57: 1 | Q57: 1 | R57: 1 | S57: 1 | T57: 1 | U57: 1 | V57: 1 | W57: 1 | X57: 1 | Y57: 1 | Z57: 1 | AA57: 1 | AB57: 1 | AC57: 1 | AD57: 1 | AE57: 1 | AF57: 1 | AG57: 1 | AH57: 1 | AI57: 1 | AJ57: 1 | AK57: 1 | AL57: 1 | AM57: 1 | AN57: 1 | AO57: 1 | AP57: 1 | AQ57: 1 | AR57: 1 | AS57: 1 | AT57: 1 | AU57: 1 | AV57: 1 | AW57: 1 | AX57: 1 | AY57: 1 | AZ57: 1 | BA57: 1 | BB57: 1 | BC57: 1 | BD57: 1 | BE57: 1 | BF57: 1 | BG57: 1 | BH57: 1 | BI57: 1 | BJ57: 1 | BK57: 1 | BL57: 1 | BM57: 1 | BN57: 1 | BO57: 1 | BP57: 1 | BQ57: 1 | BR57: 1 | BS57: =IF(BS43,BS54/BS43) -> 1 | BT57: 1 | BU57: 1 | BV57: 1 | BW57: 1 | BX57: 1 | BY57: 1 | BZ57: 1 | CA57: 1 | CB57: 1 | CC57: 0.353611678 | CD57: 0 | CE57: 0 | CF57: 0 | CG57: 0 | CH57: 0 | CI57: 0 | CJ57: 0 | CK57: 0 | CL57: 0 | CM57: 0 | CN57: 0 | CO57: 0 | CP57: 0 | CQ57: 0 | CR57: 0 | CS57: 0 | CT57: 0 | CU57: 0 | CV57: 0 | CW57: 0 | CX57: 0 | CY57: 0 | CZ57: 0 | DA57: 0 | DB57: 0 | DC57: 0 | DD57: 0 | DE57: 0 | DF57: 0 | DG57: 0 | DH57: 0 | DI57: 0 | DJ57: 0 | DK57: 0 | DL57: 0 | DM57: 0 | DN57: 0 | DO57: 0 | DP57: 0 | DQ57: 0 | DR57: 0 | DS57: 0 | DT57: 0 | DU57: 0 | DV57: 0 | DW57: 0 | DX57: 0 | DY57: 0 | DZ57: 0 | EA57: 0 | EB57: 0 | EC57: 0 | ED57: 0 | EE57: =IF(EE43,EE54/EE43) -> 0 | EF57: 0 | EG57: 0 | EH57: 0 | EI57: 0 | EJ57: 0 | EK57: 0 | EL57: 0 | EM57: 0 | EN57: 0 | EO57: 0 | EP57: 0 | EQ57: 0 | ER57: 0 | ES57: 0 | ET57: FALSE | EU57: FALSE | EV57: FALSE | EW57: FALSE | EX57: FALSE | EY57: FALSE | EZ57: FALSE | FA57: FALSE | FB57: FALSE | FC57: FALSE | FD57: FALSE | FE57: FALSE | FF57: FALSE | FG57: FALSE | FH57: FALSE | FI57: FALSE | FJ57: FALSE | FK57: FALSE | FL57: FALSE | FM57: FALSE | FN57: FALSE | FO57: FALSE | FP57: FALSE | FQ57: FALSE | FR57: FALSE | FS57: FALSE | FT57: FALSE | FU57: FALSE | FV57: FALSE | FW57: FALSE | FX57: FALSE | FY57: FALSE | FZ57: FALSE | GA57: FALSE | GB57: FALSE | GC57: FALSE | GD57: FALSE | GE57: FALSE | GF57: FALSE | GG57: FALSE | GH57: FALSE | GI57: FALSE | GJ57: FALSE | GK57: FALSE | GL57: FALSE | GM57: FALSE | GN57: FALSE | GO57: FALSE | GP57: FALSE | GQ57: =IF(GQ43,GQ54/GQ43) -> FALSE | GR57: FALSE | GS57: FALSE | GT57: FALSE | GU57: FALSE | GV57: FALSE | GW57: FALSE | GX57: FALSE | GY57: FALSE | GZ57: FALSE | HA57: FALSE | HB57: FALSE | HC57: FALSE | HD57: FALSE | HE57: FALSE | HF57: FALSE | HG57: FALSE | HH57: FALSE | HI57: FALSE | HJ57: FALSE | HK57: FALSE | HL57: FALSE | HM57: FALSE | HN57: FALSE | HO57: FALSE | HP57: FALSE | HQ57: FALSE | HR57: FALSE | HS57: FALSE | HT57: FALSE | HU57: FALSE | HV57: FALSE | HW57: FALSE | HX57: FALSE | HY57: FALSE | HZ57: FALSE | IA57: FALSE | IB57: FALSE | IC57: FALSE | ID57: FALSE | IE57: FALSE | IF57: FALSE | IG57: FALSE | IH57: FALSE | II57: FALSE | IJ57: FALSE | IK57: FALSE | IL57: FALSE | IM57: FALSE | IN57: FALSE | IO57: FALSE | IP57: FALSE | IQ57: FALSE | IR57: FALSE | IS57: FALSE | IT57: FALSE | IU57: FALSE | IV57: FALSE
D59: Pre-flip Cash Flow | E59: =E55 -> -800 | F59: =F54 -> 14.16666667 | G59: =G54 -> 14.16666667 | H59: 14.16666667 | I59: 14.16666667 | J59: 14.16666667 | K59: 14.16666667 | L59: 14.16666667 | M59: 14.16666667 | N59: 14.16666667 | O59: 14.16666667 | P59: 14.16666667 | Q59: 14.16666667 | R59: 14.16666667 | S59: 14.16666667 | T59: 14.16666667 | U59: 14.16666667 | V59: 14.16666667 | W59: 14.16666667 | X59: 14.16666667 | Y59: 14.16666667 | Z59: 14.16666667 | AA59: 14.16666667 | AB59: 14.16666667 | AC59: 14.16666667 | AD59: 14.16666667 | AE59: 14.16666667 | AF59: 14.16666667 | AG59: 14.16666667 | AH59: 14.16666667 | AI59: 14.16666667 | AJ59: 14.16666667 | AK59: 14.16666667 | AL59: 14.16666667 | AM59: 14.16666667 | AN59: 14.16666667 | AO59: 14.16666667 | AP59: 14.16666667 | AQ59: 14.16666667 | AR59: 14.16666667 | AS59: 14.16666667 | AT59: 14.16666667 | AU59: 14.16666667 | AV59: 14.16666667 | AW59: 14.16666667 | AX59: 14.16666667 | AY59: 14.16666667 | AZ59: 14.16666667 | BA59: 14.16666667 | BB59: 14.16666667 | BC59: 14.16666667 | BD59: 14.16666667 | BE59: 14.16666667 | BF59: 14.16666667 | BG59: 14.16666667 | BH59: 14.16666667 | BI59: 14.16666667 | BJ59: 14.16666667 | BK59: 14.16666667 | BL59: 14.16666667 | BM59: 14.16666667 | BN59: 14.16666667 | BO59: 14.16666667 | BP59: 14.16666667 | BQ59: 14.16666667 | BR59: 14.16666667 | BS59: =BS54 -> 14.16666667 | BT59: 14.16666667 | BU59: 14.16666667 | BV59: 14.16666667 | BW59: 14.16666667 | BX59: 14.16666667 | BY59: 14.16666667 | BZ59: 14.16666667 | CA59: 14.16666667 | CB59: 14.16666667 | CC59: 5.009498772 | CD59: 0 | CE59: 0 | CF59: 0 | CG59: 0 | CH59: 0 | CI59: 0 | CJ59: 0 | CK59: 0 | CL59: 0 | CM59: 0 | CN59: 0 | CO59: 0 | CP59: 0 | CQ59: 0 | CR59: 0 | CS59: 0 | CT59: 0 | CU59: 0 | CV59: 0 | CW59: 0 | CX59: 0 | CY59: 0 | CZ59: 0 | DA59: 0 | DB59: 0 | DC59: 0 | DD59: 0 | DE59: 0 | DF59: 0 | DG59: 0 | DH59: 0 | DI59: 0 | DJ59: 0 | DK59: 0 | DL59: 0 | DM59: 0 | DN59: 0 | DO59: 0 | DP59: 0 | DQ59: 0 | DR59: 0 | DS59: 0 | DT59: 0 | DU59: 0 | DV59: 0 | DW59: 0 | DX59: 0 | DY59: 0 | DZ59: 0 | EA59: 0 | EB59: 0 | EC59: 0 | ED59: 0 | EE59: =EE54 -> 0 | EF59: 0 | EG59: 0 | EH59: 0 | EI59: 0 | EJ59: 0 | EK59: 0 | EL59: 0 | EM59: 0 | EN59: 0 | EO59: 0 | EP59: 0 | EQ59: 0 | ER59: 0 | ES59: 0 | ET59: 0 | EU59: 0 | EV59: 0 | EW59: 0 | EX59: 0 | EY59: 0 | EZ59: 0 | FA59: 0 | FB59: 0 | FC59: 0 | FD59: 0 | FE59: 0 | FF59: 0 | FG59: 0 | FH59: 0 | FI59: 0 | FJ59: 0 | FK59: 0 | FL59: 0 | FM59: 0 | FN59: 0 | FO59: 0 | FP59: 0 | FQ59: 0 | FR59: 0 | FS59: 0 | FT59: 0 | FU59: 0 | FV59: 0 | FW59: 0 | FX59: 0 | FY59: 0 | FZ59: 0 | GA59: 0 | GB59: 0 | GC59: 0 | GD59: 0 | GE59: 0 | GF59: 0 | GG59: 0 | GH59: 0 | GI59: 0 | GJ59: 0 | GK59: 0 | GL59: 0 | GM59: 0 | GN59: 0 | GO59: 0 | GP59: 0 | GQ59: =GQ54 -> 0 | GR59: 0 | GS59: 0 | GT59: 0 | GU59: 0 | GV59: 0 | GW59: 0 | GX59: 0 | GY59: 0 | GZ59: 0 | HA59: 0 | HB59: 0 | HC59: 0 | HD59: 0 | HE59: 0 | HF59: 0 | HG59: 0 | HH59: 0 | HI59: 0 | HJ59: 0 | HK59: 0 | HL59: 0 | HM59: 0 | HN59: 0 | HO59: 0 | HP59: 0 | HQ59: 0 | HR59: 0 | HS59: 0 | HT59: 0 | HU59: 0 | HV59: 0 | HW59: 0 | HX59: 0 | HY59: 0 | HZ59: 0 | IA59: 0 | IB59: 0 | IC59: 0 | ID59: 0 | IE59: 0 | IF59: 0 | IG59: 0 | IH59: 0 | II59: 0 | IJ59: 0 | IK59: 0 | IL59: 0 | IM59: 0 | IN59: 0 | IO59: 0 | IP59: 0 | IQ59: 0 | IR59: 0 | IS59: 0 | IT59: 0 | IU59: 0 | IV59: 0
D60: Pre-flip IRR Check | E60: =XIRR(E59:IV59,E31:IV31) -> 0.100000006
A62: Senior - Post Flip
D63: Total Cash Flow Post Flip | F63: =F40*(1-F57) -> 0 | G63: =G40*(1-G57) -> 0 | H63: 0 | I63: 0 | J63: 0 | K63: 0 | L63: 0 | M63: 0 | N63: 0 | O63: 0 | P63: 0 | Q63: 0 | R63: 0 | S63: 0 | T63: 0 | U63: 0 | V63: 0 | W63: 0 | X63: 0 | Y63: 0 | Z63: 0 | AA63: 0 | AB63: 0 | AC63: 0 | AD63: 0 | AE63: 0 | AF63: 0 | AG63: 0 | AH63: 0 | AI63: 0 | AJ63: 0 | AK63: 0 | AL63: 0 | AM63: 0 | AN63: 0 | AO63: 0 | AP63: 0 | AQ63: 0 | AR63: 0 | AS63: 0 | AT63: 0 | AU63: 0 | AV63: 0 | AW63: 0 | AX63: 0 | AY63: 0 | AZ63: 0 | BA63: 0 | BB63: 0 | BC63: 0 | BD63: 0 | BE63: 0 | BF63: 0 | BG63: 0 | BH63: 0 | BI63: 0 | BJ63: 0 | BK63: 0 | BL63: 0 | BM63: 0 | BN63: 0 | BO63: 0 | BP63: 0 | BQ63: 0 | BR63: 0 | BS63: =BS40*(1-BS57) -> 0 | BT63: 0 | BU63: 0 | BV63: 0 | BW63: 0 | BX63: 0 | BY63: 0 | BZ63: 0 | CA63: 0 | CB63: 0 | CC63: 10.7731387 | CD63: 16.66666667 | CE63: 16.66666667 | CF63: 16.66666667 | CG63: 16.66666667 | CH63: 16.66666667 | CI63: 16.66666667 | CJ63: 16.66666667 | CK63: 16.66666667 | CL63: 16.66666667 | CM63: 16.66666667 | CN63: 16.66666667 | CO63: 16.66666667 | CP63: 16.66666667 | CQ63: 16.66666667 | CR63: 16.66666667 | CS63: 16.66666667 | CT63: 16.66666667 | CU63: 16.66666667 | CV63: 16.66666667 | CW63: 16.66666667 | CX63: 16.66666667 | CY63: 16.66666667 | CZ63: 16.66666667 | DA63: 16.66666667 | DB63: 16.66666667 | DC63: 16.66666667 | DD63: 16.66666667 | DE63: 16.66666667 | DF63: 16.66666667 | DG63: 16.66666667 | DH63: 16.66666667 | DI63: 16.66666667 | DJ63: 16.66666667 | DK63: 16.66666667 | DL63: 16.66666667 | DM63: 16.66666667 | DN63: 16.66666667 | DO63: 16.66666667 | DP63: 16.66666667 | DQ63: 16.66666667 | DR63: 16.66666667 | DS63: 16.66666667 | DT63: 16.66666667 | DU63: 16.66666667 | DV63: 16.66666667 | DW63: 16.66666667 | DX63: 16.66666667 | DY63: 16.66666667 | DZ63: 16.66666667 | EA63: 16.66666667 | EB63: 16.66666667 | EC63: 16.66666667 | ED63: 16.66666667 | EE63: =EE40*(1-EE57) -> 16.66666667 | EF63: 16.66666667 | EG63: 16.66666667 | EH63: 16.66666667 | EI63: 16.66666667 | EJ63: 16.66666667 | EK63: 16.66666667 | EL63: 16.66666667 | EM63: 16.66666667 | EN63: 16.66666667 | EO63: 16.66666667 | EP63: 16.66666667 | EQ63: 16.66666667 | ER63: 16.66666667 | ES63: 16.66666667 | ET63: 0 | EU63: 0 | EV63: 0 | EW63: 0 | EX63: 0 | EY63: 0 | EZ63: 0 | FA63: 0 | FB63: 0 | FC63: 0 | FD63: 0 | FE63: 0 | FF63: 0 | FG63: 0 | FH63: 0 | FI63: 0 | FJ63: 0 | FK63: 0 | FL63: 0 | FM63: 0 | FN63: 0 | FO63: 0 | FP63: 0 | FQ63: 0 | FR63: 0 | FS63: 0 | FT63: 0 | FU63: 0 | FV63: 0 | FW63: 0 | FX63: 0 | FY63: 0 | FZ63: 0 | GA63: 0 | GB63: 0 | GC63: 0 | GD63: 0 | GE63: 0 | GF63: 0 | GG63: 0 | GH63: 0 | GI63: 0 | GJ63: 0 | GK63: 0 | GL63: 0 | GM63: 0 | GN63: 0 | GO63: 0 | GP63: 0 | GQ63: =GQ40*(1-GQ57) -> 0 | GR63: 0 | GS63: 0 | GT63: 0 | GU63: 0 | GV63: 0 | GW63: 0 | GX63: 0 | GY63: 0 | GZ63: 0 | HA63: 0 | HB63: 0 | HC63: 0 | HD63: 0 | HE63: 0 | HF63: 0 | HG63: 0 | HH63: 0 | HI63: 0 | HJ63: 0 | HK63: 0 | HL63: 0 | HM63: 0 | HN63: 0 | HO63: 0 | HP63: 0 | HQ63: 0 | HR63: 0 | HS63: 0 | HT63: 0 | HU63: 0 | HV63: 0 | HW63: 0 | HX63: 0 | HY63: 0 | HZ63: 0 | IA63: 0 | IB63: 0 | IC63: 0 | ID63: 0 | IE63: 0 | IF63: 0 | IG63: 0 | IH63: 0 | II63: 0 | IJ63: 0 | IK63: 0 | IL63: 0 | IM63: 0 | IN63: 0 | IO63: 0 | IP63: 0 | IQ63: 0 | IR63: 0 | IS63: 0 | IT63: 0 | IU63: 0 | IV63: 0
D64: Post-flip Percentage | E64: =$G$13 -> 0.11 | F64: =E64 -> 0.11 | G64: =F64 -> 0.11 | H64: 0.11 | I64: 0.11 | J64: 0.11 | K64: 0.11 | L64: 0.11 | M64: 0.11 | N64: 0.11 | O64: 0.11 | P64: 0.11 | Q64: 0.11 | R64: 0.11 | S64: 0.11 | T64: 0.11 | U64: 0.11 | V64: 0.11 | W64: 0.11 | X64: 0.11 | Y64: 0.11 | Z64: 0.11 | AA64: 0.11 | AB64: 0.11 | AC64: 0.11 | AD64: 0.11 | AE64: 0.11 | AF64: 0.11 | AG64: 0.11 | AH64: 0.11 | AI64: 0.11 | AJ64: 0.11 | AK64: 0.11 | AL64: 0.11 | AM64: 0.11 | AN64: 0.11 | AO64: 0.11 | AP64: 0.11 | AQ64: 0.11 | AR64: 0.11 | AS64: 0.11 | AT64: 0.11 | AU64: 0.11 | AV64: 0.11 | AW64: 0.11 | AX64: 0.11 | AY64: 0.11 | AZ64: 0.11 | BA64: 0.11 | BB64: 0.11 | BC64: 0.11 | BD64: 0.11 | BE64: 0.11 | BF64: 0.11 | BG64: 0.11 | BH64: 0.11 | BI64: 0.11 | BJ64: 0.11 | BK64: 0.11 | BL64: 0.11 | BM64: 0.11 | BN64: 0.11 | BO64: 0.11 | BP64: 0.11 | BQ64: 0.11 | BR64: 0.11 | BS64: =BR64 -> 0.11 | BT64: 0.11 | BU64: 0.11 | BV64: 0.11 | BW64: 0.11 | BX64: 0.11 | BY64: 0.11 | BZ64: 0.11 | CA64: 0.11 | CB64: 0.11 | CC64: 0.11 | CD64: 0.11 | CE64: 0.11 | CF64: 0.11 | CG64: 0.11 | CH64: 0.11 | CI64: 0.11 | CJ64: 0.11 | CK64: 0.11 | CL64: 0.11 | CM64: 0.11 | CN64: 0.11 | CO64: 0.11 | CP64: 0.11 | CQ64: 0.11 | CR64: 0.11 | CS64: 0.11 | CT64: 0.11 | CU64: 0.11 | CV64: 0.11 | CW64: 0.11 | CX64: 0.11 | CY64: 0.11 | CZ64: 0.11 | DA64: 0.11 | DB64: 0.11 | DC64: 0.11 | DD64: 0.11 | DE64: 0.11 | DF64: 0.11 | DG64: 0.11 | DH64: 0.11 | DI64: 0.11 | DJ64: 0.11 | DK64: 0.11 | DL64: 0.11 | DM64: 0.11 | DN64: 0.11 | DO64: 0.11 | DP64: 0.11 | DQ64: 0.11 | DR64: 0.11 | DS64: 0.11 | DT64: 0.11 | DU64: 0.11 | DV64: 0.11 | DW64: 0.11 | DX64: 0.11 | DY64: 0.11 | DZ64: 0.11 | EA64: 0.11 | EB64: 0.11 | EC64: 0.11 | ED64: 0.11 | EE64: =ED64 -> 0.11 | EF64: 0.11 | EG64: 0.11 | EH64: 0.11 | EI64: 0.11 | EJ64: 0.11 | EK64: 0.11 | EL64: 0.11 | EM64: 0.11 | EN64: 0.11 | EO64: 0.11 | EP64: 0.11 | EQ64: 0.11 | ER64: 0.11 | ES64: 0.11 | ET64: 0.11 | EU64: 0.11 | EV64: 0.11 | EW64: 0.11 | EX64: 0.11 | EY64: 0.11 | EZ64: 0.11 | FA64: 0.11 | FB64: 0.11 | FC64: 0.11 | FD64: 0.11 | FE64: 0.11 | FF64: 0.11 | FG64: 0.11 | FH64: 0.11 | FI64: 0.11 | FJ64: 0.11 | FK64: 0.11 | FL64: 0.11 | FM64: 0.11 | FN64: 0.11 | FO64: 0.11 | FP64: 0.11 | FQ64: 0.11 | FR64: 0.11 | FS64: 0.11 | FT64: 0.11 | FU64: 0.11 | FV64: 0.11 | FW64: 0.11 | FX64: 0.11 | FY64: 0.11 | FZ64: 0.11 | GA64: 0.11 | GB64: 0.11 | GC64: 0.11 | GD64: 0.11 | GE64: 0.11 | GF64: 0.11 | GG64: 0.11 | GH64: 0.11 | GI64: 0.11 | GJ64: 0.11 | GK64: 0.11 | GL64: 0.11 | GM64: 0.11 | GN64: 0.11 | GO64: 0.11 | GP64: 0.11 | GQ64: =GP64 -> 0.11 | GR64: 0.11 | GS64: 0.11 | GT64: 0.11 | GU64: 0.11 | GV64: 0.11 | GW64: 0.11 | GX64: 0.11 | GY64: 0.11 | GZ64: 0.11 | HA64: 0.11 | HB64: 0.11 | HC64: 0.11 | HD64: 0.11 | HE64: 0.11 | HF64: 0.11 | HG64: 0.11 | HH64: 0.11 | HI64: 0.11 | HJ64: 0.11 | HK64: 0.11 | HL64: 0.11 | HM64: 0.11 | HN64: 0.11 | HO64: 0.11 | HP64: 0.11 | HQ64: 0.11 | HR64: 0.11 | HS64: 0.11 | HT64: 0.11 | HU64: 0.11 | HV64: 0.11 | HW64: 0.11 | HX64: 0.11 | HY64: 0.11 | HZ64: 0.11 | IA64: 0.11 | IB64: 0.11 | IC64: 0.11 | ID64: 0.11 | IE64: 0.11 | IF64: 0.11 | IG64: 0.11 | IH64: 0.11 | II64: 0.11 | IJ64: 0.11 | IK64: 0.11 | IL64: 0.11 | IM64: 0.11 | IN64: 0.11 | IO64: 0.11 | IP64: 0.11 | IQ64: 0.11 | IR64: 0.11 | IS64: 0.11 | IT64: 0.11 | IU64: 0.11 | IV64: 0.11
D65: Post-flip Cash Flow | F65: =F63*F64 -> 0 | G65: =G63*G64 -> 0 | H65: 0 | I65: 0 | J65: 0 | K65: 0 | L65: 0 | M65: 0 | N65: 0 | O65: 0 | P65: 0 | Q65: 0 | R65: 0 | S65: 0 | T65: 0 | U65: 0 | V65: 0 | W65: 0 | X65: 0 | Y65: 0 | Z65: 0 | AA65: 0 | AB65: 0 | AC65: 0 | AD65: 0 | AE65: 0 | AF65: 0 | AG65: 0 | AH65: 0 | AI65: 0 | AJ65: 0 | AK65: 0 | AL65: 0 | AM65: 0 | AN65: 0 | AO65: 0 | AP65: 0 | AQ65: 0 | AR65: 0 | AS65: 0 | AT65: 0 | AU65: 0 | AV65: 0 | AW65: 0 | AX65: 0 | AY65: 0 | AZ65: 0 | BA65: 0 | BB65: 0 | BC65: 0 | BD65: 0 | BE65: 0 | BF65: 0 | BG65: 0 | BH65: 0 | BI65: 0 | BJ65: 0 | BK65: 0 | BL65: 0 | BM65: 0 | BN65: 0 | BO65: 0 | BP65: 0 | BQ65: 0 | BR65: 0 | BS65: =BS63*BS64 -> 0 | BT65: 0 | BU65: 0 | BV65: 0 | BW65: 0 | BX65: 0 | BY65: 0 | BZ65: 0 | CA65: 0 | CB65: 0 | CC65: 1.185045257 | CD65: 1.833333333 | CE65: 1.833333333 | CF65: 1.833333333 | CG65: 1.833333333 | CH65: 1.833333333 | CI65: 1.833333333 | CJ65: 1.833333333 | CK65: 1.833333333 | CL65: 1.833333333 | CM65: 1.833333333 | CN65: 1.833333333 | CO65: 1.833333333 | CP65: 1.833333333 | CQ65: 1.833333333 | CR65: 1.833333333 | CS65: 1.833333333 | CT65: 1.833333333 | CU65: 1.833333333 | CV65: 1.833333333 | CW65: 1.833333333 | CX65: 1.833333333 | CY65: 1.833333333 | CZ65: 1.833333333 | DA65: 1.833333333 | DB65: 1.833333333 | DC65: 1.833333333 | DD65: 1.833333333 | DE65: 1.833333333 | DF65: 1.833333333 | DG65: 1.833333333 | DH65: 1.833333333 | DI65: 1.833333333 | DJ65: 1.833333333 | DK65: 1.833333333 | DL65: 1.833333333 | DM65: 1.833333333 | DN65: 1.833333333 | DO65: 1.833333333 | DP65: 1.833333333 | DQ65: 1.833333333 | DR65: 1.833333333 | DS65: 1.833333333 | DT65: 1.833333333 | DU65: 1.833333333 | DV65: 1.833333333 | DW65: 1.833333333 | DX65: 1.833333333 | DY65: 1.833333333 | DZ65: 1.833333333 | EA65: 1.833333333 | EB65: 1.833333333 | EC65: 1.833333333 | ED65: 1.833333333 | EE65: =EE63*EE64 -> 1.833333333 | EF65: 1.833333333 | EG65: 1.833333333 | EH65: 1.833333333 | EI65: 1.833333333 | EJ65: 1.833333333 | EK65: 1.833333333 | EL65: 1.833333333 | EM65: 1.833333333 | EN65: 1.833333333 | EO65: 1.833333333 | EP65: 1.833333333 | EQ65: 1.833333333 | ER65: 1.833333333 | ES65: 1.833333333 | ET65: 0 | EU65: 0 | EV65: 0 | EW65: 0 | EX65: 0 | EY65: 0 | EZ65: 0 | FA65: 0 | FB65: 0 | FC65: 0 | FD65: 0 | FE65: 0 | FF65: 0 | FG65: 0 | FH65: 0 | FI65: 0 | FJ65: 0 | FK65: 0 | FL65: 0 | FM65: 0 | FN65: 0 | FO65: 0 | FP65: 0 | FQ65: 0 | FR65: 0 | FS65: 0 | FT65: 0 | FU65: 0 | FV65: 0 | FW65: 0 | FX65: 0 | FY65: 0 | FZ65: 0 | GA65: 0 | GB65: 0 | GC65: 0 | GD65: 0 | GE65: 0 | GF65: 0 | GG65: 0 | GH65: 0 | GI65: 0 | GJ65: 0 | GK65: 0 | GL65: 0 | GM65: 0 | GN65: 0 | GO65: 0 | GP65: 0 | GQ65: =GQ63*GQ64 -> 0 | GR65: 0 | GS65: 0 | GT65: 0 | GU65: 0 | GV65: 0 | GW65: 0 | GX65: 0 | GY65: 0 | GZ65: 0 | HA65: 0 | HB65: 0 | HC65: 0 | HD65: 0 | HE65: 0 | HF65: 0 | HG65: 0 | HH65: 0 | HI65: 0 | HJ65: 0 | HK65: 0 | HL65: 0 | HM65: 0 | HN65: 0 | HO65: 0 | HP65: 0 | HQ65: 0 | HR65: 0 | HS65: 0 | HT65: 0 | HU65: 0 | HV65: 0 | HW65: 0 | HX65: 0 | HY65: 0 | HZ65: 0 | IA65: 0 | IB65: 0 | IC65: 0 | ID65: 0 | IE65: 0 | IF65: 0 | IG65: 0 | IH65: 0 | II65: 0 | IJ65: 0 | IK65: 0 | IL65: 0 | IM65: 0 | IN65: 0 | IO65: 0 | IP65: 0 | IQ65: 0 | IR65: 0 | IS65: 0 | IT65: 0 | IU65: 0 | IV65: 0
D67: Total Partner 1 Cash Flow | E67: =E59 -> -800 | F67: =F65+F59 -> 14.16666667 | G67: 14.16666667 | H67: 14.16666667 | I67: 14.16666667 | J67: 14.16666667 | K67: 14.16666667 | L67: 14.16666667 | M67: 14.16666667 | N67: 14.16666667 | O67: 14.16666667 | P67: 14.16666667 | Q67: 14.16666667 | R67: 14.16666667 | S67: 14.16666667 | T67: 14.16666667 | U67: 14.16666667 | V67: 14.16666667 | W67: 14.16666667 | X67: 14.16666667 | Y67: 14.16666667 | Z67: 14.16666667 | AA67: 14.16666667 | AB67: 14.16666667 | AC67: 14.16666667 | AD67: 14.16666667 | AE67: 14.16666667 | AF67: 14.16666667 | AG67: 14.16666667 | AH67: 14.16666667 | AI67: 14.16666667 | AJ67: 14.16666667 | AK67: 14.16666667 | AL67: 14.16666667 | AM67: 14.16666667 | AN67: 14.16666667 | AO67: 14.16666667 | AP67: 14.16666667 | AQ67: 14.16666667 | AR67: 14.16666667 | AS67: 14.16666667 | AT67: 14.16666667 | AU67: 14.16666667 | AV67: 14.16666667 | AW67: 14.16666667 | AX67: 14.16666667 | AY67: 14.16666667 | AZ67: 14.16666667 | BA67: 14.16666667 | BB67: 14.16666667 | BC67: 14.16666667 | BD67: 14.16666667 | BE67: 14.16666667 | BF67: 14.16666667 | BG67: 14.16666667 | BH67: 14.16666667 | BI67: 14.16666667 | BJ67: 14.16666667 | BK67: 14.16666667 | BL67: 14.16666667 | BM67: 14.16666667 | BN67: 14.16666667 | BO67: 14.16666667 | BP67: 14.16666667 | BQ67: 14.16666667 | BR67: =BR65+BR59 -> 14.16666667 | BS67: 14.16666667 | BT67: 14.16666667 | BU67: 14.16666667 | BV67: 14.16666667 | BW67: 14.16666667 | BX67: 14.16666667 | BY67: 14.16666667 | BZ67: 14.16666667 | CA67: 14.16666667 | CB67: 14.16666667 | CC67: 6.194544029 | CD67: 1.833333333 | CE67: 1.833333333 | CF67: 1.833333333 | CG67: 1.833333333 | CH67: 1.833333333 | CI67: 1.833333333 | CJ67: 1.833333333 | CK67: 1.833333333 | CL67: 1.833333333 | CM67: 1.833333333 | CN67: 1.833333333 | CO67: 1.833333333 | CP67: 1.833333333 | CQ67: 1.833333333 | CR67: 1.833333333 | CS67: 1.833333333 | CT67: 1.833333333 | CU67: 1.833333333 | CV67: 1.833333333 | CW67: 1.833333333 | CX67: 1.833333333 | CY67: 1.833333333 | CZ67: 1.833333333 | DA67: 1.833333333 | DB67: 1.833333333 | DC67: 1.833333333 | DD67: 1.833333333 | DE67: 1.833333333 | DF67: 1.833333333 | DG67: 1.833333333 | DH67: 1.833333333 | DI67: 1.833333333 | DJ67: 1.833333333 | DK67: 1.833333333 | DL67: 1.833333333 | DM67: 1.833333333 | DN67: 1.833333333 | DO67: 1.833333333 | DP67: 1.833333333 | DQ67: 1.833333333 | DR67: 1.833333333 | DS67: 1.833333333 | DT67: 1.833333333 | DU67: 1.833333333 | DV67: 1.833333333 | DW67: 1.833333333 | DX67: 1.833333333 | DY67: 1.833333333 | DZ67: 1.833333333 | EA67: 1.833333333 | EB67: 1.833333333 | EC67: 1.833333333 | ED67: =ED65+ED59 -> 1.833333333 | EE67: 1.833333333 | EF67: 1.833333333 | EG67: 1.833333333 | EH67: 1.833333333 | EI67: 1.833333333 | EJ67: 1.833333333 | EK67: 1.833333333 | EL67: 1.833333333 | EM67: 1.833333333 | EN67: 1.833333333 | EO67: 1.833333333 | EP67: 1.833333333 | EQ67: 1.833333333 | ER67: 1.833333333 | ES67: 1.833333333 | ET67: 0 | EU67: 0 | EV67: 0 | EW67: 0 | EX67: 0 | EY67: 0 | EZ67: 0 | FA67: 0 | FB67: 0 | FC67: 0 | FD67: 0 | FE67: 0 | FF67: 0 | FG67: 0 | FH67: 0 | FI67: 0 | FJ67: 0 | FK67: 0 | FL67: 0 | FM67: 0 | FN67: 0 | FO67: 0 | FP67: 0 | FQ67: 0 | FR67: 0 | FS67: 0 | FT67: 0 | FU67: 0 | FV67: 0 | FW67: 0 | FX67: 0 | FY67: 0 | FZ67: 0 | GA67: 0 | GB67: 0 | GC67: 0 | GD67: 0 | GE67: 0 | GF67: 0 | GG67: 0 | GH67: 0 | GI67: 0 | GJ67: 0 | GK67: 0 | GL67: 0 | GM67: 0 | GN67: 0 | GO67: 0 | GP67: =GP65+GP59 -> 0 | GQ67: 0 | GR67: 0 | GS67: 0 | GT67: 0 | GU67: 0 | GV67: 0 | GW67: 0 | GX67: 0 | GY67: 0 | GZ67: 0 | HA67: 0 | HB67: 0 | HC67: 0 | HD67: 0 | HE67: 0 | HF67: 0 | HG67: 0 | HH67: 0 | HI67: 0 | HJ67: 0 | HK67: 0 | HL67: 0 | HM67: 0 | HN67: 0 | HO67: 0 | HP67: 0 | HQ67: 0 | HR67: 0 | HS67: 0 | HT67: 0 | HU67: 0 | HV67: 0 | HW67: 0 | HX67: 0 | HY67: 0 | HZ67: 0 | IA67: 0 | IB67: 0 | IC67: 0 | ID67: 0 | IE67: 0 | IF67: 0 | IG67: 0 | IH67: 0 | II67: 0 | IJ67: 0 | IK67: 0 | IL67: 0 | IM67: 0 | IN67: 0 | IO67: 0 | IP67: 0 | IQ67: 0 | IR67: 0 | IS67: 0 | IT67: 0 | IU67: 0 | IV67: 0
D68: Total Partner 2 Cash Flow | E68: =-E19-E67 -> -200 | F68: =F40-F67 -> 2.5 | G68: =G40-G67 -> 2.5 | H68: 2.5 | I68: 2.5 | J68: 2.5 | K68: 2.5 | L68: 2.5 | M68: 2.5 | N68: 2.5 | O68: 2.5 | P68: 2.5 | Q68: 2.5 | R68: 2.5 | S68: 2.5 | T68: 2.5 | U68: 2.5 | V68: 2.5 | W68: 2.5 | X68: 2.5 | Y68: 2.5 | Z68: 2.5 | AA68: 2.5 | AB68: 2.5 | AC68: 2.5 | AD68: 2.5 | AE68: 2.5 | AF68: 2.5 | AG68: 2.5 | AH68: 2.5 | AI68: 2.5 | AJ68: 2.5 | AK68: 2.5 | AL68: 2.5 | AM68: 2.5 | AN68: 2.5 | AO68: 2.5 | AP68: 2.5 | AQ68: 2.5 | AR68: 2.5 | AS68: 2.5 | AT68: 2.5 | AU68: 2.5 | AV68: 2.5 | AW68: 2.5 | AX68: 2.5 | AY68: 2.5 | AZ68: 2.5 | BA68: 2.5 | BB68: 2.5 | BC68: 2.5 | BD68: 2.5 | BE68: 2.5 | BF68: 2.5 | BG68: 2.5 | BH68: 2.5 | BI68: 2.5 | BJ68: 2.5 | BK68: 2.5 | BL68: 2.5 | BM68: 2.5 | BN68: 2.5 | BO68: 2.5 | BP68: 2.5 | BQ68: 2.5 | BR68: 2.5 | BS68: =BS40-BS67 -> 2.5 | BT68: 2.5 | BU68: 2.5 | BV68: 2.5 | BW68: 2.5 | BX68: 2.5 | BY68: 2.5 | BZ68: 2.5 | CA68: 2.5 | CB68: 2.5 | CC68: 10.47212264 | CD68: 14.83333333 | CE68: 14.83333333 | CF68: 14.83333333 | CG68: 14.83333333 | CH68: 14.83333333 | CI68: 14.83333333 | CJ68: 14.83333333 | CK68: 14.83333333 | CL68: 14.83333333 | CM68: 14.83333333 | CN68: 14.83333333 | CO68: 14.83333333 | CP68: 14.83333333 | CQ68: 14.83333333 | CR68: 14.83333333 | CS68: 14.83333333 | CT68: 14.83333333 | CU68: 14.83333333 | CV68: 14.83333333 | CW68: 14.83333333 | CX68: 14.83333333 | CY68: 14.83333333 | CZ68: 14.83333333 | DA68: 14.83333333 | DB68: 14.83333333 | DC68: 14.83333333 | DD68: 14.83333333 | DE68: 14.83333333 | DF68: 14.83333333 | DG68: 14.83333333 | DH68: 14.83333333 | DI68: 14.83333333 | DJ68: 14.83333333 | DK68: 14.83333333 | DL68: 14.83333333 | DM68: 14.83333333 | DN68: 14.83333333 | DO68: 14.83333333 | DP68: 14.83333333 | DQ68: 14.83333333 | DR68: 14.83333333 | DS68: 14.83333333 | DT68: 14.83333333 | DU68: 14.83333333 | DV68: 14.83333333 | DW68: 14.83333333 | DX68: 14.83333333 | DY68: 14.83333333 | DZ68: 14.83333333 | EA68: 14.83333333 | EB68: 14.83333333 | EC68: 14.83333333 | ED68: 14.83333333 | EE68: =EE40-EE67 -> 14.83333333 | EF68: 14.83333333 | EG68: 14.83333333 | EH68: 14.83333333 | EI68: 14.83333333 | EJ68: 14.83333333 | EK68: 14.83333333 | EL68: 14.83333333 | EM68: 14.83333333 | EN68: 14.83333333 | EO68: 14.83333333 | EP68: 14.83333333 | EQ68: 14.83333333 | ER68: 14.83333333 | ES68: 14.83333333 | ET68: 0 | EU68: 0 | EV68: 0 | EW68: 0 | EX68: 0 | EY68: 0 | EZ68: 0 | FA68: 0 | FB68: 0 | FC68: 0 | FD68: 0 | FE68: 0 | FF68: 0 | FG68: 0 | FH68: 0 | FI68: 0 | FJ68: 0 | FK68: 0 | FL68: 0 | FM68: 0 | FN68: 0 | FO68: 0 | FP68: 0 | FQ68: 0 | FR68: 0 | FS68: 0 | FT68: 0 | FU68: 0 | FV68: 0 | FW68: 0 | FX68: 0 | FY68: 0 | FZ68: 0 | GA68: 0 | GB68: 0 | GC68: 0 | GD68: 0 | GE68: 0 | GF68: 0 | GG68: 0 | GH68: 0 | GI68: 0 | GJ68: 0 | GK68: 0 | GL68: 0 | GM68: 0 | GN68: 0 | GO68: 0 | GP68: 0 | GQ68: =GQ40-GQ67 -> 0 | GR68: 0 | GS68: 0 | GT68: 0 | GU68: 0 | GV68: 0 | GW68: 0 | GX68: 0 | GY68: 0 | GZ68: 0 | HA68: 0 | HB68: 0 | HC68: 0 | HD68: 0 | HE68: 0 | HF68: 0 | HG68: 0 | HH68: 0 | HI68: 0 | HJ68: 0 | HK68: 0 | HL68: 0 | HM68: 0 | HN68: 0 | HO68: 0 | HP68: 0 | HQ68: 0 | HR68: 0 | HS68: 0 | HT68: 0 | HU68: 0 | HV68: 0 | HW68: 0 | HX68: 0 | HY68: 0 | HZ68: 0 | IA68: 0 | IB68: 0 | IC68: 0 | ID68: 0 | IE68: 0 | IF68: 0 | IG68: 0 | IH68: 0 | II68: 0 | IJ68: 0 | IK68: 0 | IL68: 0 | IM68: 0 | IN68: 0 | IO68: 0 | IP68: 0 | IQ68: 0 | IR68: 0 | IS68: 0 | IT68: 0 | IU68: 0 | IV68: 0
D69: Total Cash Flow | E69: =SUM(E67:E68) -> -1000 | F69: =SUM(F67:F68) -> 16.66666667 | G69: 16.66666667 | H69: 16.66666667 | I69: 16.66666667 | J69: 16.66666667 | K69: 16.66666667 | L69: 16.66666667 | M69: 16.66666667 | N69: 16.66666667 | O69: 16.66666667 | P69: 16.66666667 | Q69: 16.66666667 | R69: 16.66666667 | S69: 16.66666667 | T69: 16.66666667 | U69: 16.66666667 | V69: 16.66666667 | W69: 16.66666667 | X69: 16.66666667 | Y69: 16.66666667 | Z69: 16.66666667 | AA69: 16.66666667 | AB69: 16.66666667 | AC69: 16.66666667 | AD69: 16.66666667 | AE69: 16.66666667 | AF69: 16.66666667 | AG69: 16.66666667 | AH69: 16.66666667 | AI69: 16.66666667 | AJ69: 16.66666667 | AK69: 16.66666667 | AL69: 16.66666667 | AM69: 16.66666667 | AN69: 16.66666667 | AO69: 16.66666667 | AP69: 16.66666667 | AQ69: 16.66666667 | AR69: 16.66666667 | AS69: 16.66666667 | AT69: 16.66666667 | AU69: 16.66666667 | AV69: 16.66666667 | AW69: 16.66666667 | AX69: 16.66666667 | AY69: 16.66666667 | AZ69: 16.66666667 | BA69: 16.66666667 | BB69: 16.66666667 | BC69: 16.66666667 | BD69: 16.66666667 | BE69: 16.66666667 | BF69: 16.66666667 | BG69: 16.66666667 | BH69: 16.66666667 | BI69: 16.66666667 | BJ69: 16.66666667 | BK69: 16.66666667 | BL69: 16.66666667 | BM69: 16.66666667 | BN69: 16.66666667 | BO69: 16.66666667 | BP69: 16.66666667 | BQ69: 16.66666667 | BR69: =SUM(BR67:BR68) -> 16.66666667 | BS69: 16.66666667 | BT69: 16.66666667 | BU69: 16.66666667 | BV69: 16.66666667 | BW69: 16.66666667 | BX69: 16.66666667 | BY69: 16.66666667 | BZ69: 16.66666667 | CA69: 16.66666667 | CB69: 16.66666667 | CC69: 16.66666667 | CD69: 16.66666667 | CE69: 16.66666667 | CF69: 16.66666667 | CG69: 16.66666667 | CH69: 16.66666667 | CI69: 16.66666667 | CJ69: 16.66666667 | CK69: 16.66666667 | CL69: 16.66666667 | CM69: 16.66666667 | CN69: 16.66666667 | CO69: 16.66666667 | CP69: 16.66666667 | CQ69: 16.66666667 | CR69: 16.66666667 | CS69: 16.66666667 | CT69: 16.66666667 | CU69: 16.66666667 | CV69: 16.66666667 | CW69: 16.66666667 | CX69: 16.66666667 | CY69: 16.66666667 | CZ69: 16.66666667 | DA69: 16.66666667 | DB69: 16.66666667 | DC69: 16.66666667 | DD69: 16.66666667 | DE69: 16.66666667 | DF69: 16.66666667 | DG69: 16.66666667 | DH69: 16.66666667 | DI69: 16.66666667 | DJ69: 16.66666667 | DK69: 16.66666667 | DL69: 16.66666667 | DM69: 16.66666667 | DN69: 16.66666667 | DO69: 16.66666667 | DP69: 16.66666667 | DQ69: 16.66666667 | DR69: 16.66666667 | DS69: 16.66666667 | DT69: 16.66666667 | DU69: 16.66666667 | DV69: 16.66666667 | DW69: 16.66666667 | DX69: 16.66666667 | DY69: 16.66666667 | DZ69: 16.66666667 | EA69: 16.66666667 | EB69: 16.66666667 | EC69: 16.66666667 | ED69: =SUM(ED67:ED68) -> 16.66666667 | EE69: 16.66666667 | EF69: 16.66666667 | EG69: 16.66666667 | EH69: 16.66666667 | EI69: 16.66666667 | EJ69: 16.66666667 | EK69: 16.66666667 | EL69: 16.66666667 | EM69: 16.66666667 | EN69: 16.66666667 | EO69: 16.66666667 | EP69: 16.66666667 | EQ69: 16.66666667 | ER69: 16.66666667 | ES69: 16.66666667 | ET69: 0 | EU69: 0 | EV69: 0 | EW69: 0 | EX69: 0 | EY69: 0 | EZ69: 0 | FA69: 0 | FB69: 0 | FC69: 0 | FD69: 0 | FE69: 0 | FF69: 0 | FG69: 0 | FH69: 0 | FI69: 0 | FJ69: 0 | FK69: 0 | FL69: 0 | FM69: 0 | FN69: 0 | FO69: 0 | FP69: 0 | FQ69: 0 | FR69: 0 | FS69: 0 | FT69: 0 | FU69: 0 | FV69: 0 | FW69: 0 | FX69: 0 | FY69: 0 | FZ69: 0 | GA69: 0 | GB69: 0 | GC69: 0 | GD69: 0 | GE69: 0 | GF69: 0 | GG69: 0 | GH69: 0 | GI69: 0 | GJ69: 0 | GK69: 0 | GL69: 0 | GM69: 0 | GN69: 0 | GO69: 0 | GP69: =SUM(GP67:GP68) -> 0 | GQ69: 0 | GR69: 0 | GS69: 0 | GT69: 0 | GU69: 0 | GV69: 0 | GW69: 0 | GX69: 0 | GY69: 0 | GZ69: 0 | HA69: 0 | HB69: 0 | HC69: 0 | HD69: 0 | HE69: 0 | HF69: 0 | HG69: 0 | HH69: 0 | HI69: 0 | HJ69: 0 | HK69: 0 | HL69: 0 | HM69: 0 | HN69: 0 | HO69: 0 | HP69: 0 | HQ69: 0 | HR69: 0 | HS69: 0 | HT69: 0 | HU69: 0 | HV69: 0 | HW69: 0 | HX69: 0 | HY69: 0 | HZ69: 0 | IA69: 0 | IB69: 0 | IC69: 0 | ID69: 0 | IE69: 0 | IF69: 0 | IG69: 0 | IH69: 0 | II69: 0 | IJ69: 0 | IK69: 0 | IL69: 0 | IM69: 0 | IN69: 0 | IO69: 0 | IP69: 0 | IQ69: 0 | IR69: 0 | IS69: 0 | IT69: 0 | IU69: 0 | IV69: 0
E71: Periodic | F71: Annual
D72: Overall IRR | E72: =XIRR(E69:IV69,E31:IV31) -> 0.1898627818 | F72: ='Annual Analysis'!D55 -> 0.1694255086
D73: Partner 1 IRR | E73: =XIRR(E67:IV67,E31:IV31) -> 0.1223422348 | F73: ='Annual Analysis'!H5 -> 0.1164403767
D74: Partner 2 IRR | E74: =XIRR(E68:IV68,E31:IV31) -> 0.2900797904 | F74: ='Annual Analysis'!H6 -> 0.2548482196

Sheet Periodic Analysis 2
A2: Assumptions
B3: Dates and Structure
D4: Start Date | E4: 2012-01-01
D5: Periods per Year | E5: 12
D6: Months per Period | E6: 1
D8: Lifetime | E8: ='Annual Analysis'!D14 -> 12
D9: Retirement Date | E9: =EDATE(E4,E8*12) -> 2024-01-01
E11: Percent of | F11: Cash Flow Share
E12: Investment | F12: Pre-Flip | G12: Post-Flip | I12: IRR
D13: Partner 1 | E13: ='Annual Analysis'!D5 -> 0.8 | F13: ='Annual Analysis'!E5 -> 0.85 | G13: ='Annual Analysis'!F5 -> 0.11 | I13: =E87 -> 0.1223570526
D14: Partner 2 | E14: ='Annual Analysis'!D6 -> 0.2 | F14: ='Annual Analysis'!E6 -> 0.15 | G14: ='Annual Analysis'!F6 -> 0.89 | I14: =E88 -> 0.2900730908
D16: Yield for Determing Flip | E16: ='Annual Analysis'!D8 -> 0.1
B18: Operating Assumptions
D19: Investment | E19: ='Annual Analysis'!D11 -> 1000
D20: Annual Cash Flow | E20: ='Annual Analysis'!D12 -> 200
D21: Growth Rate | E21: ='Annual Analysis'!D13 -> 0
D22: Monthly Cash | E22: =E20/E5 -> 16.66666667
D23: Monthly Growth | E23: =(1+E21)^(1/12)-1 -> 0
A26: Dates
D27: Date of Flip | E27: =E75 -> 2018-04-11T06:06:49.420
D29: Period | E29: 0 | F29: =E29+1 -> 1 | G29: =F29+1 -> 2 | H29: 3 | I29: 4 | J29: 5 | K29: 6 | L29: 7 | M29: 8 | N29: 9 | O29: 10 | P29: 11 | Q29: 12 | R29: 13 | S29: 14 | T29: 15 | U29: 16 | V29: 17 | W29: 18 | X29: 19 | Y29: 20 | Z29: 21 | AA29: 22 | AB29: 23 | AC29: 24 | AD29: 25 | AE29: 26 | AF29: 27 | AG29: 28 | AH29: 29 | AI29: 30 | AJ29: 31 | AK29: 32 | AL29: 33 | AM29: 34 | AN29: 35 | AO29: 36 | AP29: 37 | AQ29: 38 | AR29: 39 | AS29: 40 | AT29: 41 | AU29: 42 | AV29: 43 | AW29: 44 | AX29: 45 | AY29: 46 | AZ29: 47 | BA29: 48 | BB29: 49 | BC29: 50 | BD29: 51 | BE29: 52 | BF29: 53 | BG29: 54 | BH29: 55 | BI29: 56 | BJ29: 57 | BK29: 58 | BL29: 59 | BM29: 60 | BN29: 61 | BO29: 62 | BP29: 63 | BQ29: 64 | BR29: 65 | BS29: =BR29+1 -> 66 | BT29: 67 | BU29: 68 | BV29: 69 | BW29: 70 | BX29: 71 | BY29: 72 | BZ29: 73 | CA29: 74 | CB29: 75 | CC29: 76 | CD29: 77 | CE29: 78 | CF29: 79 | CG29: 80 | CH29: 81 | CI29: 82 | CJ29: 83 | CK29: 84 | CL29: 85 | CM29: 86 | CN29: 87 | CO29: 88 | CP29: 89 | CQ29: 90 | CR29: 91 | CS29: 92 | CT29: 93 | CU29: 94 | CV29: 95 | CW29: 96 | CX29: 97 | CY29: 98 | CZ29: 99 | DA29: 100 | DB29: 101 | DC29: 102 | DD29: 103 | DE29: 104 | DF29: 105 | DG29: 106 | DH29: 107 | DI29: 108 | DJ29: 109 | DK29: 110 | DL29: 111 | DM29: 112 | DN29: 113 | DO29: 114 | DP29: 115 | DQ29: 116 | DR29: 117 | DS29: 118 | DT29: 119 | DU29: 120 | DV29: 121 | DW29: 122 | DX29: 123 | DY29: 124 | DZ29: 125 | EA29: 126 | EB29: 127 | EC29: 128 | ED29: 129 | EE29: =ED29+1 -> 130 | EF29: 131 | EG29: 132 | EH29: 133 | EI29: 134 | EJ29: 135 | EK29: 136 | EL29: 137 | EM29: 138 | EN29: 139 | EO29: 140 | EP29: 141 | EQ29: 142 | ER29: 143 | ES29: 144 | ET29: 145 | EU29: 146 | EV29: 147 | EW29: 148 | EX29: 149 | EY29: 150 | EZ29: 151 | FA29: 152 | FB29: 153 | FC29: 154 | FD29: 155 | FE29: 156 | FF29: 157 | FG29: 158 | FH29: 159 | FI29: 160 | FJ29: 161 | FK29: 162 | FL29: 163 | FM29: 164 | FN29: 165 | FO29: 166 | FP29: 167 | FQ29: 168 | FR29: 169 | FS29: 170 | FT29: 171 | FU29: 172 | FV29: 173 | FW29: 174 | FX29: 175 | FY29: 176 | FZ29: 177 | GA29: 178 | GB29: 179 | GC29: 180 | GD29: 181 | GE29: 182 | GF29: 183 | GG29: 184 | GH29: 185 | GI29: 186 | GJ29: 187 | GK29: 188 | GL29: 189 | GM29: 190 | GN29: 191 | GO29: 192 | GP29: 193 | GQ29: =GP29+1 -> 194 | GR29: 195 | GS29: 196 | GT29: 197 | GU29: 198 | GV29: 199 | GW29: 200 | GX29: 201 | GY29: 202 | GZ29: 203 | HA29: 204 | HB29: 205 | HC29: 206 | HD29: 207 | HE29: 208 | HF29: 209 | HG29: 210 | HH29: 211 | HI29: 212 | HJ29: 213 | HK29: 214 | HL29: 215 | HM29: 216 | HN29: 217 | HO29: 218 | HP29: 219 | HQ29: 220 | HR29: 221 | HS29: 222 | HT29: 223 | HU29: 224 | HV29: 225 | HW29: 226 | HX29: 227 | HY29: 228 | HZ29: 229 | IA29: 230 | IB29: 231 | IC29: 232 | ID29: 233 | IE29: 234 | IF29: 235 | IG29: 236 | IH29: 237 | II29: 238 | IJ29: 239 | IK29: 240 | IL29: 241 | IM29: 242 | IN29: 243 | IO29: 244 | IP29: 245 | IQ29: 246 | IR29: 247 | IS29: 248 | IT29: 249 | IU29: 250 | IV29: 251
D30: Month per Period | E30: =E6 -> 1 | F30: =E30 -> 1 | G30: =F30 -> 1 | H30: 1 | I30: 1 | J30: 1 | K30: 1 | L30: 1 | M30: 1 | N30: 1 | O30: 1 | P30: 1 | Q30: 1 | R30: 1 | S30: 1 | T30: 1 | U30: 1 | V30: 1 | W30: 1 | X30: 1 | Y30: 1 | Z30: 1 | AA30: 1 | AB30: 1 | AC30: 1 | AD30: 1 | AE30: 1 | AF30: 1 | AG30: 1 | AH30: 1 | AI30: 1 | AJ30: 1 | AK30: 1 | AL30: 1 | AM30: 1 | AN30: 1 | AO30: 1 | AP30: 1 | AQ30: 1 | AR30: 1 | AS30: 1 | AT30: 1 | AU30: 1 | AV30: 1 | AW30: 1 | AX30: 1 | AY30: 1 | AZ30: 1 | BA30: 1 | BB30: 1 | BC30: 1 | BD30: 1 | BE30: 1 | BF30: 1 | BG30: 1 | BH30: 1 | BI30: 1 | BJ30: 1 | BK30: 1 | BL30: 1 | BM30: 1 | BN30: 1 | BO30: 1 | BP30: 1 | BQ30: 1 | BR30: 1 | BS30: =BR30 -> 1 | BT30: 1 | BU30: 1 | BV30: 1 | BW30: 1 | BX30: 1 | BY30: 1 | BZ30: 1 | CA30: 1 | CB30: 1 | CC30: 1 | CD30: 1 | CE30: 1 | CF30: 1 | CG30: 1 | CH30: 1 | CI30: 1 | CJ30: 1 | CK30: 1 | CL30: 1 | CM30: 1 | CN30: 1 | CO30: 1 | CP30: 1 | CQ30: 1 | CR30: 1 | CS30: 1 | CT30: 1 | CU30: 1 | CV30: 1 | CW30: 1 | CX30: 1 | CY30: 1 | CZ30: 1 | DA30: 1 | DB30: 1 | DC30: 1 | DD30: 1 | DE30: 1 | DF30: 1 | DG30: 1 | DH30: 1 | DI30: 1 | DJ30: 1 | DK30: 1 | DL30: 1 | DM30: 1 | DN30: 1 | DO30: 1 | DP30: 1 | DQ30: 1 | DR30: 1 | DS30: 1 | DT30: 1 | DU30: 1 | DV30: 1 | DW30: 1 | DX30: 1 | DY30: 1 | DZ30: 1 | EA30: 1 | EB30: 1 | EC30: 1 | ED30: 1 | EE30: =ED30 -> 1 | EF30: 1 | EG30: 1 | EH30: 1 | EI30: 1 | EJ30: 1 | EK30: 1 | EL30: 1 | EM30: 1 | EN30: 1 | EO30: 1 | EP30: 1 | EQ30: 1 | ER30: 1 | ES30: 1 | ET30: 1 | EU30: 1 | EV30: 1 | EW30: 1 | EX30: 1 | EY30: 1 | EZ30: 1 | FA30: 1 | FB30: 1 | FC30: 1 | FD30: 1 | FE30: 1 | FF30: 1 | FG30: 1 | FH30: 1 | FI30: 1 | FJ30: 1 | FK30: 1 | FL30: 1 | FM30: 1 | FN30: 1 | FO30: 1 | FP30: 1 | FQ30: 1 | FR30: 1 | FS30: 1 | FT30: 1 | FU30: 1 | FV30: 1 | FW30: 1 | FX30: 1 | FY30: 1 | FZ30: 1 | GA30: 1 | GB30: 1 | GC30: 1 | GD30: 1 | GE30: 1 | GF30: 1 | GG30: 1 | GH30: 1 | GI30: 1 | GJ30: 1 | GK30: 1 | GL30: 1 | GM30: 1 | GN30: 1 | GO30: 1 | GP30: 1 | GQ30: =GP30 -> 1 | GR30: 1 | GS30: 1 | GT30: 1 | GU30: 1 | GV30: 1 | GW30: 1 | GX30: 1 | GY30: 1 | GZ30: 1 | HA30: 1 | HB30: 1 | HC30: 1 | HD30: 1 | HE30: 1 | HF30: 1 | HG30: 1 | HH30: 1 | HI30: 1 | HJ30: 1 | HK30: 1 | HL30: 1 | HM30: 1 | HN30: 1 | HO30: 1 | HP30: 1 | HQ30: 1 | HR30: 1 | HS30: 1 | HT30: 1 | HU30: 1 | HV30: 1 | HW30: 1 | HX30: 1 | HY30: 1 | HZ30: 1 | IA30: 1 | IB30: 1 | IC30: 1 | ID30: 1 | IE30: 1 | IF30: 1 | IG30: 1 | IH30: 1 | II30: 1 | IJ30: 1 | IK30: 1 | IL30: 1 | IM30: 1 | IN30: 1 | IO30: 1 | IP30: 1 | IQ30: 1 | IR30: 1 | IS30: 1 | IT30: 1 | IU30: 1 | IV30: 1
B32: Unadjusted
D33: Start Period | F33: =E34+1 -> 2012-01-01 | G33: =F34+1 -> 2012-02-01 | H33: 2012-03-01 | I33: 2012-04-01 | J33: 2012-05-01 | K33: 2012-06-01 | L33: 2012-07-01 | M33: 2012-08-01 | N33: 2012-09-01 | O33: 2012-10-01 | P33: 2012-11-01 | Q33: 2012-12-01 | R33: 2013-01-01 | S33: 2013-02-01 | T33: 2013-03-01 | U33: 2013-04-01 | V33: 2013-05-01 | W33: 2013-06-01 | X33: 2013-07-01 | Y33: 2013-08-01 | Z33: 2013-09-01 | AA33: 2013-10-01 | AB33: 2013-11-01 | AC33: 2013-12-01 | AD33: 2014-01-01 | AE33: 2014-02-01 | AF33: 2014-03-01 | AG33: 2014-04-01 | AH33: 2014-05-01 | AI33: 2014-06-01 | AJ33: 2014-07-01 | AK33: 2014-08-01 | AL33: 2014-09-01 | AM33: 2014-10-01 | AN33: 2014-11-01 | AO33: 2014-12-01 | AP33: 2015-01-01 | AQ33: 2015-02-01 | AR33: 2015-03-01 | AS33: 2015-04-01 | AT33: 2015-05-01 | AU33: 2015-06-01 | AV33: 2015-07-01 | AW33: 2015-08-01 | AX33: 2015-09-01 | AY33: 2015-10-01 | AZ33: 2015-11-01 | BA33: 2015-12-01 | BB33: 2016-01-01 | BC33: 2016-02-01 | BD33: 2016-03-01 | BE33: 2016-04-01 | BF33: 2016-05-01 | BG33: 2016-06-01 | BH33: 2016-07-01 | BI33: 2016-08-01 | BJ33: 2016-09-01 | BK33: 2016-10-01 | BL33: 2016-11-01 | BM33: 2016-12-01 | BN33: 2017-01-01 | BO33: 2017-02-01 | BP33: 2017-03-01 | BQ33: 2017-04-01 | BR33: 2017-05-01 | BS33: =BR34+1 -> 2017-06-01 | BT33: 2017-07-01 | BU33: 2017-08-01 | BV33: 2017-09-01 | BW33: 2017-10-01 | BX33: 2017-11-01 | BY33: 2017-12-01 | BZ33: 2018-01-01 | CA33: 2018-02-01 | CB33: 2018-03-01 | CC33: 2018-04-01 | CD33: 2018-05-01 | CE33: 2018-06-01 | CF33: 2018-07-01 | CG33: 2018-08-01 | CH33: 2018-09-01 | CI33: 2018-10-01 | CJ33: 2018-11-01 | CK33: 2018-12-01 | CL33: 2019-01-01 | CM33: 2019-02-01 | CN33: 2019-03-01 | CO33: 2019-04-01 | CP33: 2019-05-01 | CQ33: 2019-06-01 | CR33: 2019-07-01 | CS33: 2019-08-01 | CT33: 2019-09-01 | CU33: 2019-10-01 | CV33: 2019-11-01 | CW33: 2019-12-01 | CX33: 2020-01-01 | CY33: 2020-02-01 | CZ33: 2020-03-01 | DA33: 2020-04-01 | DB33: 2020-05-01 | DC33: 2020-06-01 | DD33: 2020-07-01 | DE33: 2020-08-01 | DF33: 2020-09-01 | DG33: 2020-10-01 | DH33: 2020-11-01 | DI33: 2020-12-01 | DJ33: 2021-01-01 | DK33: 2021-02-01 | DL33: 2021-03-01 | DM33: 2021-04-01 | DN33: 2021-05-01 | DO33: 2021-06-01 | DP33: 2021-07-01 | DQ33: 2021-08-01 | DR33: 2021-09-01 | DS33: 2021-10-01 | DT33: 2021-11-01 | DU33: 2021-12-01 | DV33: 2022-01-01 | DW33: 2022-02-01 | DX33: 2022-03-01 | DY33: 2022-04-01 | DZ33: 2022-05-01 | EA33: 2022-06-01 | EB33: 2022-07-01 | EC33: 2022-08-01 | ED33: 2022-09-01 | EE33: =ED34+1 -> 2022-10-01 | EF33: 2022-11-01 | EG33: 2022-12-01 | EH33: 2023-01-01 | EI33: 2023-02-01 | EJ33: 2023-03-01 | EK33: 2023-04-01 | EL33: 2023-05-01 | EM33: 2023-06-01 | EN33: 2023-07-01 | EO33: 2023-08-01 | EP33: 2023-09-01 | EQ33: 2023-10-01 | ER33: 2023-11-01 | ES33: 2023-12-01 | ET33: 2024-01-01 | EU33: 2024-01-02 | EV33: 2024-01-02 | EW33: 2024-01-02 | EX33: 2024-01-02 | EY33: 2024-01-02 | EZ33: 2024-01-02 | FA33: 2024-01-02 | FB33: 2024-01-02 | FC33: 2024-01-02 | FD33: 2024-01-02 | FE33: 2024-01-02 | FF33: 2024-01-02 | FG33: 2024-01-02 | FH33: 2024-01-02 | FI33: 2024-01-02 | FJ33: 2024-01-02 | FK33: 2024-01-02 | FL33: 2024-01-02 | FM33: 2024-01-02 | FN33: 2024-01-02 | FO33: 2024-01-02 | FP33: 2024-01-02 | FQ33: 2024-01-02 | FR33: 2024-01-02 | FS33: 2024-01-02 | FT33: 2024-01-02 | FU33: 2024-01-02 | FV33: 2024-01-02 | FW33: 2024-01-02 | FX33: 2024-01-02 | FY33: 2024-01-02 | FZ33: 2024-01-02 | GA33: 2024-01-02 | GB33: 2024-01-02 | GC33: 2024-01-02 | GD33: 2024-01-02 | GE33: 2024-01-02 | GF33: 2024-01-02 | GG33: 2024-01-02 | GH33: 2024-01-02 | GI33: 2024-01-02 | GJ33: 2024-01-02 | GK33: 2024-01-02 | GL33: 2024-01-02 | GM33: 2024-01-02 | GN33: 2024-01-02 | GO33: 2024-01-02 | GP33: 2024-01-02 | GQ33: =GP34+1 -> 2024-01-02 | GR33: 2024-01-02 | GS33: 2024-01-02 | GT33: 2024-01-02 | GU33: 2024-01-02 | GV33: 2024-01-02 | GW33: 2024-01-02 | GX33: 2024-01-02 | GY33: 2024-01-02 | GZ33: 2024-01-02 | HA33: 2024-01-02 | HB33: 2024-01-02 | HC33: 2024-01-02 | HD33: 2024-01-02 | HE33: 2024-01-02 | HF33: 2024-01-02 | HG33: 2024-01-02 | HH33: 2024-01-02 | HI33: 2024-01-02 | HJ33: 2024-01-02 | HK33: 2024-01-02 | HL33: 2024-01-02 | HM33: 2024-01-02 | HN33: 2024-01-02 | HO33: 2024-01-02 | HP33: 2024-01-02 | HQ33: 2024-01-02 | HR33: 2024-01-02 | HS33: 2024-01-02 | HT33: 2024-01-02 | HU33: 2024-01-02 | HV33: 2024-01-02 | HW33: 2024-01-02 | HX33: 2024-01-02 | HY33: 2024-01-02 | HZ33: 2024-01-02 | IA33: 2024-01-02 | IB33: 2024-01-02 | IC33: 2024-01-02 | ID33: 2024-01-02 | IE33: 2024-01-02 | IF33: 2024-01-02 | IG33: 2024-01-02 | IH33: 2024-01-02 | II33: 2024-01-02 | IJ33: 2024-01-02 | IK33: 2024-01-02 | IL33: 2024-01-02 | IM33: 2024-01-02 | IN33: 2024-01-02 | IO33: 2024-01-02 | IP33: 2024-01-02 | IQ33: 2024-01-02 | IR33: 2024-01-02 | IS33: 2024-01-02 | IT33: 2024-01-02 | IU33: 2024-01-02 | IV33: 2024-01-02
D34: End Period | E34: =E4-1 -> 2011-12-31 | F34: =MIN(EDATE(F33,F30)-1,$E$9) -> 2012-01-31 | G34: 2012-02-29 | H34: 2012-03-31 | I34: 2012-04-30 | J34: 2012-05-31 | K34: 2012-06-30 | L34: 2012-07-31 | M34: 2012-08-31 | N34: 2012-09-30 | O34: 2012-10-31 | P34: 2012-11-30 | Q34: 2012-12-31 | R34: 2013-01-31 | S34: 2013-02-28 | T34: 2013-03-31 | U34: 2013-04-30 | V34: 2013-05-31 | W34: 2013-06-30 | X34: 2013-07-31 | Y34: 2013-08-31 | Z34: 2013-09-30 | AA34: 2013-10-31 | AB34: 2013-11-30 | AC34: 2013-12-31 | AD34: 2014-01-31 | AE34: 2014-02-28 | AF34: 2014-03-31 | AG34: 2014-04-30 | AH34: 2014-05-31 | AI34: 2014-06-30 | AJ34: 2014-07-31 | AK34: 2014-08-31 | AL34: 2014-09-30 | AM34: 2014-10-31 | AN34: 2014-11-30 | AO34: 2014-12-31 | AP34: 2015-01-31 | AQ34: 2015-02-28 | AR34: 2015-03-31 | AS34: 2015-04-30 | AT34: 2015-05-31 | AU34: 2015-06-30 | AV34: 2015-07-31 | AW34: 2015-08-31 | AX34: 2015-09-30 | AY34: 2015-10-31 | AZ34: 2015-11-30 | BA34: 2015-12-31 | BB34: 2016-01-31 | BC34: 2016-02-29 | BD34: 2016-03-31 | BE34: 2016-04-30 | BF34: 2016-05-31 | BG34: 2016-06-30 | BH34: 2016-07-31 | BI34: 2016-08-31 | BJ34: 2016-09-30 | BK34: 2016-10-31 | BL34: 2016-11-30 | BM34: 2016-12-31 | BN34: 2017-01-31 | BO34: 2017-02-28 | BP34: 2017-03-31 | BQ34: 2017-04-30 | BR34: =MIN(EDATE(BR33,BR30)-1,$E$9) -> 2017-05-31 | BS34: 2017-06-30 | BT34: 2017-07-31 | BU34: 2017-08-31 | BV34: 2017-09-30 | BW34: 2017-10-31 | BX34: 2017-11-30 | BY34: 2017-12-31 | BZ34: 2018-01-31 | CA34: 2018-02-28 | CB34: 2018-03-31 | CC34: 2018-04-30 | CD34: 2018-05-31 | CE34: 2018-06-30 | CF34: 2018-07-31 | CG34: 2018-08-31 | CH34: 2018-09-30 | CI34: 2018-10-31 | CJ34: 2018-11-30 | CK34: 2018-12-31 | CL34: 2019-01-31 | CM34: 2019-02-28 | CN34: 2019-03-31 | CO34: 2019-04-30 | CP34: 2019-05-31 | CQ34: 2019-06-30 | CR34: 2019-07-31 | CS34: 2019-08-31 | CT34: 2019-09-30 | CU34: 2019-10-31 | CV34: 2019-11-30 | CW34: 2019-12-31 | CX34: 2020-01-31 | CY34: 2020-02-29 | CZ34: 2020-03-31 | DA34: 2020-04-30 | DB34: 2020-05-31 | DC34: 2020-06-30 | DD34: 2020-07-31 | DE34: 2020-08-31 | DF34: 2020-09-30 | DG34: 2020-10-31 | DH34: 2020-11-30 | DI34: 2020-12-31 | DJ34: 2021-01-31 | DK34: 2021-02-28 | DL34: 2021-03-31 | DM34: 2021-04-30 | DN34: 2021-05-31 | DO34: 2021-06-30 | DP34: 2021-07-31 | DQ34: 2021-08-31 | DR34: 2021-09-30 | DS34: 2021-10-31 | DT34: 2021-11-30 | DU34: 2021-12-31 | DV34: 2022-01-31 | DW34: 2022-02-28 | DX34: 2022-03-31 | DY34: 2022-04-30 | DZ34: 2022-05-31 | EA34: 2022-06-30 | EB34: 2022-07-31 | EC34: 2022-08-31 | ED34: =MIN(EDATE(ED33,ED30)-1,$E$9) -> 2022-09-30 | EE34: 2022-10-31 | EF34: 2022-11-30 | EG34: 2022-12-31 | EH34: 2023-01-31 | EI34: 2023-02-28 | EJ34: 2023-03-31 | EK34: 2023-04-30 | EL34: 2023-05-31 | EM34: 2023-06-30 | EN34: 2023-07-31 | EO34: 2023-08-31 | EP34: 2023-09-30 | EQ34: 2023-10-31 | ER34: 2023-11-30 | ES34: 2023-12-31 | ET34: 2024-01-01 | EU34: 2024-01-01 | EV34: 2024-01-01 | EW34: 2024-01-01 | EX34: 2024-01-01 | EY34: 2024-01-01 | EZ34: 2024-01-01 | FA34: 2024-01-01 | FB34: 2024-01-01 | FC34: 2024-01-01 | FD34: 2024-01-01 | FE34: 2024-01-01 | FF34: 2024-01-01 | FG34: 2024-01-01 | FH34: 2024-01-01 | FI34: 2024-01-01 | FJ34: 2024-01-01 | FK34: 2024-01-01 | FL34: 2024-01-01 | FM34: 2024-01-01 | FN34: 2024-01-01 | FO34: 2024-01-01 | FP34: 2024-01-01 | FQ34: 2024-01-01 | FR34: 2024-01-01 | FS34: 2024-01-01 | FT34: 2024-01-01 | FU34: 2024-01-01 | FV34: 2024-01-01 | FW34: 2024-01-01 | FX34: 2024-01-01 | FY34: 2024-01-01 | FZ34: 2024-01-01 | GA34: 2024-01-01 | GB34: 2024-01-01 | GC34: 2024-01-01 | GD34: 2024-01-01 | GE34: 2024-01-01 | GF34: 2024-01-01 | GG34: 2024-01-01 | GH34: 2024-01-01 | GI34: 2024-01-01 | GJ34: 2024-01-01 | GK34: 2024-01-01 | GL34: 2024-01-01 | GM34: 2024-01-01 | GN34: 2024-01-01 | GO34: 2024-01-01 | GP34: =MIN(EDATE(GP33,GP30)-1,$E$9) -> 2024-01-01 | GQ34: 2024-01-01 | GR34: 2024-01-01 | GS34: 2024-01-01 | GT34: 2024-01-01 | GU34: 2024-01-01 | GV34: 2024-01-01 | GW34: 2024-01-01 | GX34: 2024-01-01 | GY34: 2024-01-01 | GZ34: 2024-01-01 | HA34: 2024-01-01 | HB34: 2024-01-01 | HC34: 2024-01-01 | HD34: 2024-01-01 | HE34: 2024-01-01 | HF34: 2024-01-01 | HG34: 2024-01-01 | HH34: 2024-01-01 | HI34: 2024-01-01 | HJ34: 2024-01-01 | HK34: 2024-01-01 | HL34: 2024-01-01 | HM34: 2024-01-01 | HN34: 2024-01-01 | HO34: 2024-01-01 | HP34: 2024-01-01 | HQ34: 2024-01-01 | HR34: 2024-01-01 | HS34: 2024-01-01 | HT34: 2024-01-01 | HU34: 2024-01-01 | HV34: 2024-01-01 | HW34: 2024-01-01 | HX34: 2024-01-01 | HY34: 2024-01-01 | HZ34: 2024-01-01 | IA34: 2024-01-01 | IB34: 2024-01-01 | IC34: 2024-01-01 | ID34: 2024-01-01 | IE34: 2024-01-01 | IF34: 2024-01-01 | IG34: 2024-01-01 | IH34: 2024-01-01 | II34: 2024-01-01 | IJ34: 2024-01-01 | IK34: 2024-01-01 | IL34: 2024-01-01 | IM34: 2024-01-01 | IN34: 2024-01-01 | IO34: 2024-01-01 | IP34: 2024-01-01 | IQ34: 2024-01-01 | IR34: 2024-01-01 | IS34: 2024-01-01 | IT34: 2024-01-01 | IU34: 2024-01-01 | IV34: 2024-01-01
D36: Flip Period | F36: =AND($E$27>F33,$E$27<=F34) -> FALSE | G36: =AND($E$27>G33,$E$27<=G34) -> FALSE | H36: FALSE | I36: FALSE | J36: FALSE | K36: FALSE | L36: FALSE | M36: FALSE | N36: FALSE | O36: FALSE | P36: FALSE | Q36: FALSE | R36: FALSE | S36: FALSE | T36: FALSE | U36: FALSE | V36: FALSE | W36: FALSE | X36: FALSE | Y36: FALSE | Z36: FALSE | AA36: FALSE | AB36: FALSE | AC36: FALSE | AD36: FALSE | AE36: FALSE | AF36: FALSE | AG36: FALSE | AH36: FALSE | AI36: FALSE | AJ36: FALSE | AK36: FALSE | AL36: FALSE | AM36: FALSE | AN36: FALSE | AO36: FALSE | AP36: FALSE | AQ36: FALSE | AR36: FALSE | AS36: FALSE | AT36: FALSE | AU36: FALSE | AV36: FALSE | AW36: FALSE | AX36: FALSE | AY36: FALSE | AZ36: FALSE | BA36: FALSE | BB36: FALSE | BC36: FALSE | BD36: FALSE | BE36: FALSE | BF36: FALSE | BG36: FALSE | BH36: FALSE | BI36: FALSE | BJ36: FALSE | BK36: FALSE | BL36: FALSE | BM36: FALSE | BN36: FALSE | BO36: FALSE | BP36: FALSE | BQ36: FALSE | BR36: FALSE | BS36: =AND($E$27>BS33,$E$27<=BS34) -> FALSE | BT36: FALSE | BU36: FALSE | BV36: FALSE | BW36: FALSE | BX36: FALSE | BY36: FALSE | BZ36: FALSE | CA36: FALSE | CB36: FALSE | CC36: TRUE | CD36: FALSE | CE36: FALSE | CF36: FALSE | CG36: FALSE | CH36: FALSE | CI36: FALSE | CJ36: FALSE | CK36: FALSE | CL36: FALSE | CM36: FALSE | CN36: FALSE | CO36: FALSE | CP36: FALSE | CQ36: FALSE | CR36: FALSE | CS36: FALSE | CT36: FALSE | CU36: FALSE | CV36: FALSE | CW36: FALSE | CX36: FALSE | CY36: FALSE | CZ36: FALSE | DA36: FALSE | DB36: FALSE | DC36: FALSE | DD36: FALSE | DE36: FALSE | DF36: FALSE | DG36: FALSE | DH36: FALSE | DI36: FALSE | DJ36: FALSE | DK36: FALSE | DL36: FALSE | DM36: FALSE | DN36: FALSE | DO36: FALSE | DP36: FALSE | DQ36: FALSE | DR36: FALSE | DS36: FALSE | DT36: FALSE | DU36: FALSE | DV36: FALSE | DW36: FALSE | DX36: FALSE | DY36: FALSE | DZ36: FALSE | EA36: FALSE | EB36: FALSE | EC36: FALSE | ED36: FALSE | EE36: =AND($E$27>EE33,$E$27<=EE34) -> FALSE | EF36: FALSE | EG36: FALSE | EH36: FALSE | EI36: FALSE | EJ36: FALSE | EK36: FALSE | EL36: FALSE | EM36: FALSE | EN36: FALSE | EO36: FALSE | EP36: FALSE | EQ36: FALSE | ER36: FALSE | ES36: FALSE | ET36: FALSE | EU36: FALSE | EV36: FALSE | EW36: FALSE | EX36: FALSE | EY36: FALSE | EZ36: FALSE | FA36: FALSE | FB36: FALSE | FC36: FALSE | FD36: FALSE | FE36: FALSE | FF36: FALSE | FG36: FALSE | FH36: FALSE | FI36: FALSE | FJ36: FALSE | FK36: FALSE | FL36: FALSE | FM36: FALSE | FN36: FALSE | FO36: FALSE | FP36: FALSE | FQ36: FALSE | FR36: FALSE | FS36: FALSE | FT36: FALSE | FU36: FALSE | FV36: FALSE | FW36: FALSE | FX36: FALSE | FY36: FALSE | FZ36: FALSE | GA36: FALSE | GB36: FALSE | GC36: FALSE | GD36: FALSE | GE36: FALSE | GF36: FALSE | GG36: FALSE | GH36: FALSE | GI36: FALSE | GJ36: FALSE | GK36: FALSE | GL36: FALSE | GM36: FALSE | GN36: FALSE | GO36: FALSE | GP36: FALSE | GQ36: =AND($E$27>GQ33,$E$27<=GQ34) -> FALSE | GR36: FALSE | GS36: FALSE | GT36: FALSE | GU36: FALSE | GV36: FALSE | GW36: FALSE | GX36: FALSE | GY36: FALSE | GZ36: FALSE | HA36: FALSE | HB36: FALSE | HC36: FALSE | HD36: FALSE | HE36: FALSE | HF36: FALSE | HG36: FALSE | HH36: FALSE | HI36: FALSE | HJ36: FALSE | HK36: FALSE | HL36: FALSE | HM36: FALSE | HN36: FALSE | HO36: FALSE | HP36: FALSE | HQ36: FALSE | HR36: FALSE | HS36: FALSE | HT36: FALSE | HU36: FALSE | HV36: FALSE | HW36: FALSE | HX36: FALSE | HY36: FALSE | HZ36: FALSE | IA36: FALSE | IB36: FALSE | IC36: FALSE | ID36: FALSE | IE36: FALSE | IF36: FALSE | IG36: FALSE | IH36: FALSE | II36: FALSE | IJ36: FALSE | IK36: FALSE | IL36: FALSE | IM36: FALSE | IN36: FALSE | IO36: FALSE | IP36: FALSE | IQ36: FALSE | IR36: FALSE | IS36: FALSE | IT36: FALSE | IU36: FALSE | IV36: FALSE
D37: Post-flip Period | F37: =F40>=$E$27 -> FALSE | G37: =G40>=$E$27 -> FALSE | H37: FALSE | I37: FALSE | J37: FALSE | K37: FALSE | L37: FALSE | M37: FALSE | N37: FALSE | O37: FALSE | P37: FALSE | Q37: FALSE | R37: FALSE | S37: FALSE | T37: FALSE | U37: FALSE | V37: FALSE | W37: FALSE | X37: FALSE | Y37: FALSE | Z37: FALSE | AA37: FALSE | AB37: FALSE | AC37: FALSE | AD37: FALSE | AE37: FALSE | AF37: FALSE | AG37: FALSE | AH37: FALSE | AI37: FALSE | AJ37: FALSE | AK37: FALSE | AL37: FALSE | AM37: FALSE | AN37: FALSE | AO37: FALSE | AP37: FALSE | AQ37: FALSE | AR37: FALSE | AS37: FALSE | AT37: FALSE | AU37: FALSE | AV37: FALSE | AW37: FALSE | AX37: FALSE | AY37: FALSE | AZ37: FALSE | BA37: FALSE | BB37: FALSE | BC37: FALSE | BD37: FALSE | BE37: FALSE | BF37: FALSE | BG37: FALSE | BH37: FALSE | BI37: FALSE | BJ37: FALSE | BK37: FALSE | BL37: FALSE | BM37: FALSE | BN37: FALSE | BO37: FALSE | BP37: FALSE | BQ37: FALSE | BR37: FALSE | BS37: =BS40>=$E$27 -> FALSE | BT37: FALSE | BU37: FALSE | BV37: FALSE | BW37: FALSE | BX37: FALSE | BY37: FALSE | BZ37: FALSE | CA37: FALSE | CB37: FALSE | CC37: FALSE | CD37: TRUE | CE37: TRUE | CF37: TRUE | CG37: TRUE | CH37: TRUE | CI37: TRUE | CJ37: TRUE | CK37: TRUE | CL37: TRUE | CM37: TRUE | CN37: TRUE | CO37: TRUE | CP37: TRUE | CQ37: TRUE | CR37: TRUE | CS37: TRUE | CT37: TRUE | CU37: TRUE | CV37: TRUE | CW37: TRUE | CX37: TRUE | CY37: TRUE | CZ37: TRUE | DA37: TRUE | DB37: TRUE | DC37: TRUE | DD37: TRUE | DE37: TRUE | DF37: TRUE | DG37: TRUE | DH37: TRUE | DI37: TRUE | DJ37: TRUE | DK37: TRUE | DL37: TRUE | DM37: TRUE | DN37: TRUE | DO37: TRUE | DP37: TRUE | DQ37: TRUE | DR37: TRUE | DS37: TRUE | DT37: TRUE | DU37: TRUE | DV37: TRUE | DW37: TRUE | DX37: TRUE | DY37: TRUE | DZ37: TRUE | EA37: TRUE | EB37: TRUE | EC37: TRUE | ED37: TRUE | EE37: =EE40>=$E$27 -> TRUE | EF37: TRUE | EG37: TRUE | EH37: TRUE | EI37: TRUE | EJ37: TRUE | EK37: TRUE | EL37: TRUE | EM37: TRUE | EN37: TRUE | EO37: TRUE | EP37: TRUE | EQ37: TRUE | ER37: TRUE | ES37: TRUE | ET37: TRUE | EU37: TRUE | EV37: TRUE | EW37: TRUE | EX37: TRUE | EY37: TRUE | EZ37: TRUE | FA37: TRUE | FB37: TRUE | FC37: TRUE | FD37: TRUE | FE37: TRUE | FF37: TRUE | FG37: TRUE | FH37: TRUE | FI37: TRUE | FJ37: TRUE | FK37: TRUE | FL37: TRUE | FM37: TRUE | FN37: TRUE | FO37: TRUE | FP37: TRUE | FQ37: TRUE | FR37: TRUE | FS37: TRUE | FT37: TRUE | FU37: TRUE | FV37: TRUE | FW37: TRUE | FX37: TRUE | FY37: TRUE | FZ37: TRUE | GA37: TRUE | GB37: TRUE | GC37: TRUE | GD37: TRUE | GE37: TRUE | GF37: TRUE | GG37: TRUE | GH37: TRUE | GI37: TRUE | GJ37: TRUE | GK37: TRUE | GL37: TRUE | GM37: TRUE | GN37: TRUE | GO37: TRUE | GP37: TRUE | GQ37: =GQ40>=$E$27 -> TRUE | GR37: TRUE | GS37: TRUE | GT37: TRUE | GU37: TRUE | GV37: TRUE | GW37: TRUE | GX37: TRUE | GY37: TRUE | GZ37: TRUE | HA37: TRUE | HB37: TRUE | HC37: TRUE | HD37: TRUE | HE37: TRUE | HF37: TRUE | HG37: TRUE | HH37: TRUE | HI37: TRUE | HJ37: TRUE | HK37: TRUE | HL37: TRUE | HM37: TRUE | HN37: TRUE | HO37: TRUE | HP37: TRUE | HQ37: TRUE | HR37: TRUE | HS37: TRUE | HT37: TRUE | HU37: TRUE | HV37: TRUE | HW37: TRUE | HX37: TRUE | HY37: TRUE | HZ37: TRUE | IA37: TRUE | IB37: TRUE | IC37: TRUE | ID37: TRUE | IE37: TRUE | IF37: TRUE | IG37: TRUE | IH37: TRUE | II37: TRUE | IJ37: TRUE | IK37: TRUE | IL37: TRUE | IM37: TRUE | IN37: TRUE | IO37: TRUE | IP37: TRUE | IQ37: TRUE | IR37: TRUE | IS37: TRUE | IT37: TRUE | IU37: TRUE | IV37: TRUE
B39: Adjusted
D40: Start Period | F40: =E41+1 -> 2012-01-01 | G40: =F41+1 -> 2012-02-01 | H40: 2012-03-01 | I40: 2012-04-01 | J40: 2012-05-01 | K40: 2012-06-01 | L40: 2012-07-01 | M40: 2012-08-01 | N40: 2012-09-01 | O40: 2012-10-01 | P40: 2012-11-01 | Q40: 2012-12-01 | R40: 2013-01-01 | S40: 2013-02-01 | T40: 2013-03-01 | U40: 2013-04-01 | V40: 2013-05-01 | W40: 2013-06-01 | X40: 2013-07-01 | Y40: 2013-08-01 | Z40: 2013-09-01 | AA40: 2013-10-01 | AB40: 2013-11-01 | AC40: 2013-12-01 | AD40: 2014-01-01 | AE40: 2014-02-01 | AF40: 2014-03-01 | AG40: 2014-04-01 | AH40: 2014-05-01 | AI40: 2014-06-01 | AJ40: 2014-07-01 | AK40: 2014-08-01 | AL40: 2014-09-01 | AM40: 2014-10-01 | AN40: 2014-11-01 | AO40: 2014-12-01 | AP40: 2015-01-01 | AQ40: 2015-02-01 | AR40: 2015-03-01 | AS40: 2015-04-01 | AT40: 2015-05-01 | AU40: 2015-06-01 | AV40: 2015-07-01 | AW40: 2015-08-01 | AX40: 2015-09-01 | AY40: 2015-10-01 | AZ40: 2015-11-01 | BA40: 2015-12-01 | BB40: 2016-01-01 | BC40: 2016-02-01 | BD40: 2016-03-01 | BE40: 2016-04-01 | BF40: 2016-05-01 | BG40: 2016-06-01 | BH40: 2016-07-01 | BI40: 2016-08-01 | BJ40: 2016-09-01 | BK40: 2016-10-01 | BL40: 2016-11-01 | BM40: 2016-12-01 | BN40: 2017-01-01 | BO40: 2017-02-01 | BP40: 2017-03-01 | BQ40: 2017-04-01 | BR40: 2017-05-01 | BS40: =BR41+1 -> 2017-06-01 | BT40: 2017-07-01 | BU40: 2017-08-01 | BV40: 2017-09-01 | BW40: 2017-10-01 | BX40: 2017-11-01 | BY40: 2017-12-01 | BZ40: 2018-01-01 | CA40: 2018-02-01 | CB40: 2018-03-01 | CC40: 2018-04-01 | CD40: 2018-04-11T06:06:49.420 | CE40: 2018-05-01 | CF40: 2018-06-01 | CG40: 2018-07-01 | CH40: 2018-08-01 | CI40: 2018-09-01 | CJ40: 2018-10-01 | CK40: 2018-11-01 | CL40: 2018-12-01 | CM40: 2019-01-01 | CN40: 2019-02-01 | CO40: 2019-03-01 | CP40: 2019-04-01 | CQ40: 2019-05-01 | CR40: 2019-06-01 | CS40: 2019-07-01 | CT40: 2019-08-01 | CU40: 2019-09-01 | CV40: 2019-10-01 | CW40: 2019-11-01 | CX40: 2019-12-01 | CY40: 2020-01-01 | CZ40: 2020-02-01 | DA40: 2020-03-01 | DB40: 2020-04-01 | DC40: 2020-05-01 | DD40: 2020-06-01 | DE40: 2020-07-01 | DF40: 2020-08-01 | DG40: 2020-09-01 | DH40: 2020-10-01 | DI40: 2020-11-01 | DJ40: 2020-12-01 | DK40: 2021-01-01 | DL40: 2021-02-01 | DM40: 2021-03-01 | DN40: 2021-04-01 | DO40: 2021-05-01 | DP40: 2021-06-01 | DQ40: 2021-07-01 | DR40: 2021-08-01 | DS40: 2021-09-01 | DT40: 2021-10-01 | DU40: 2021-11-01 | DV40: 2021-12-01 | DW40: 2022-01-01 | DX40: 2022-02-01 | DY40: 2022-03-01 | DZ40: 2022-04-01 | EA40: 2022-05-01 | EB40: 2022-06-01 | EC40: 2022-07-01 | ED40: 2022-08-01 | EE40: =ED41+1 -> 2022-09-01 | EF40: 2022-10-01 | EG40: 2022-11-01 | EH40: 2022-12-01 | EI40: 2023-01-01 | EJ40: 2023-02-01 | EK40: 2023-03-01 | EL40: 2023-04-01 | EM40: 2023-05-01 | EN40: 2023-06-01 | EO40: 2023-07-01 | EP40: 2023-08-01 | EQ40: 2023-09-01 | ER40: 2023-10-01 | ES40: 2023-11-01 | ET40: 2023-12-01 | EU40: 2024-01-01 | EV40: 2024-02-01 | EW40: 2024-03-01 | EX40: 2024-04-01 | EY40: 2024-05-01 | EZ40: 2024-06-01 | FA40: 2024-07-01 | FB40: 2024-08-01 | FC40: 2024-09-01 | FD40: 2024-10-01 | FE40: 2024-11-01 | FF40: 2024-12-01 | FG40: 2025-01-01 | FH40: 2025-02-01 | FI40: 2025-03-01 | FJ40: 2025-04-01 | FK40: 2025-05-01 | FL40: 2025-06-01 | FM40: 2025-07-01 | FN40: 2025-08-01 | FO40: 2025-09-01 | FP40: 2025-10-01 | FQ40: 2025-11-01 | FR40: 2025-12-01 | FS40: 2026-01-01 | FT40: 2026-02-01 | FU40: 2026-03-01 | FV40: 2026-04-01 | FW40: 2026-05-01 | FX40: 2026-06-01 | FY40: 2026-07-01 | FZ40: 2026-08-01 | GA40: 2026-09-01 | GB40: 2026-10-01 | GC40: 2026-11-01 | GD40: 2026-12-01 | GE40: 2027-01-01 | GF40: 2027-02-01 | GG40: 2027-03-01 | GH40: 2027-04-01 | GI40: 2027-05-01 | GJ40: 2027-06-01 | GK40: 2027-07-01 | GL40: 2027-08-01 | GM40: 2027-09-01 | GN40: 2027-10-01 | GO40: 2027-11-01 | GP40: 2027-12-01 | GQ40: =GP41+1 -> 2028-01-01 | GR40: 2028-02-01 | GS40: 2028-03-01 | GT40: 2028-04-01 | GU40: 2028-05-01 | GV40: 2028-06-01 | GW40: 2028-07-01 | GX40: 2028-08-01 | GY40: 2028-09-01 | GZ40: 2028-10-01 | HA40: 2028-11-01 | HB40: 2028-12-01 | HC40: 2029-01-01 | HD40: 2029-02-01 | HE40: 2029-03-01 | HF40: 2029-04-01 | HG40: 2029-05-01 | HH40: 2029-06-01 | HI40: 2029-07-01 | HJ40: 2029-08-01 | HK40: 2029-09-01 | HL40: 2029-10-01 | HM40: 2029-11-01 | HN40: 2029-12-01 | HO40: 2030-01-01 | HP40: 2030-02-01 | HQ40: 2030-03-01 | HR40: 2030-04-01 | HS40: 2030-05-01 | HT40: 2030-06-01 | HU40: 2030-07-01 | HV40: 2030-08-01 | HW40: 2030-09-01 | HX40: 2030-10-01 | HY40: 2030-11-01 | HZ40: 2030-12-01 | IA40: 2031-01-01 | IB40: 2031-02-01 | IC40: 2031-03-01 | ID40: 2031-04-01 | IE40: 2031-05-01 | IF40: 2031-06-01 | IG40: 2031-07-01 | IH40: 2031-08-01 | II40: 2031-09-01 | IJ40: 2031-10-01 | IK40: 2031-11-01 | IL40: 2031-12-01 | IM40: 2032-01-01 | IN40: 2032-02-01 | IO40: 2032-03-01 | IP40: 2032-04-01 | IQ40: 2032-05-01 | IR40: 2032-06-01 | IS40: 2032-07-01 | IT40: 2032-08-01 | IU40: 2032-09-01 | IV40: 2032-10-01
D41: End Period | E41: =E34 -> 2011-12-31 | F41: =IF(F36,$E$27-1,EOMONTH(F40,F30-1)) -> 2012-01-31 | G41: 2012-02-29 | H41: 2012-03-31 | I41: 2012-04-30 | J41: 2012-05-31 | K41: 2012-06-30 | L41: 2012-07-31 | M41: 2012-08-31 | N41: 2012-09-30 | O41: 2012-10-31 | P41: 2012-11-30 | Q41: 2012-12-31 | R41: 2013-01-31 | S41: 2013-02-28 | T41: 2013-03-31 | U41: 2013-04-30 | V41: 2013-05-31 | W41: 2013-06-30 | X41: 2013-07-31 | Y41: 2013-08-31 | Z41: 2013-09-30 | AA41: 2013-10-31 | AB41: 2013-11-30 | AC41: 2013-12-31 | AD41: 2014-01-31 | AE41: 2014-02-28 | AF41: 2014-03-31 | AG41: 2014-04-30 | AH41: 2014-05-31 | AI41: 2014-06-30 | AJ41: 2014-07-31 | AK41: 2014-08-31 | AL41: 2014-09-30 | AM41: 2014-10-31 | AN41: 2014-11-30 | AO41: 2014-12-31 | AP41: 2015-01-31 | AQ41: 2015-02-28 | AR41: 2015-03-31 | AS41: 2015-04-30 | AT41: 2015-05-31 | AU41: 2015-06-30 | AV41: 2015-07-31 | AW41: 2015-08-31 | AX41: 2015-09-30 | AY41: 2015-10-31 | AZ41: 2015-11-30 | BA41: 2015-12-31 | BB41: 2016-01-31 | BC41: 2016-02-29 | BD41: 2016-03-31 | BE41: 2016-04-30 | BF41: 2016-05-31 | BG41: 2016-06-30 | BH41: 2016-07-31 | BI41: 2016-08-31 | BJ41: 2016-09-30 | BK41: 2016-10-31 | BL41: 2016-11-30 | BM41: 2016-12-31 | BN41: 2017-01-31 | BO41: 2017-02-28 | BP41: 2017-03-31 | BQ41: 2017-04-30 | BR41: =IF(BR36,$E$27-1,EOMONTH(BR40,BR30-1)) -> 2017-05-31 | BS41: 2017-06-30 | BT41: 2017-07-31 | BU41: 2017-08-31 | BV41: 2017-09-30 | BW41: 2017-10-31 | BX41: 2017-11-30 | BY41: 2017-12-31 | BZ41: 2018-01-31 | CA41: 2018-02-28 | CB41: 2018-03-31 | CC41: 2018-04-10T06:06:49.420 | CD41: 2018-04-30 | CE41: 2018-05-31 | CF41: 2018-06-30 | CG41: 2018-07-31 | CH41: 2018-08-31 | CI41: 2018-09-30 | CJ41: 2018-10-31 | CK41: 2018-11-30 | CL41: 2018-12-31 | CM41: 2019-01-31 | CN41: 2019-02-28 | CO41: 2019-03-31 | CP41: 2019-04-30 | CQ41: 2019-05-31 | CR41: 2019-06-30 | CS41: 2019-07-31 | CT41: 2019-08-31 | CU41: 2019-09-30 | CV41: 2019-10-31 | CW41: 2019-11-30 | CX41: 2019-12-31 | CY41: 2020-01-31 | CZ41: 2020-02-29 | DA41: 2020-03-31 | DB41: 2020-04-30 | DC41: 2020-05-31 | DD41: 2020-06-30 | DE41: 2020-07-31 | DF41: 2020-08-31 | DG41: 2020-09-30 | DH41: 2020-10-31 | DI41: 2020-11-30 | DJ41: 2020-12-31 | DK41: 2021-01-31 | DL41: 2021-02-28 | DM41: 2021-03-31 | DN41: 2021-04-30 | DO41: 2021-05-31 | DP41: 2021-06-30 | DQ41: 2021-07-31 | DR41: 2021-08-31 | DS41: 2021-09-30 | DT41: 2021-10-31 | DU41: 2021-11-30 | DV41: 2021-12-31 | DW41: 2022-01-31 | DX41: 2022-02-28 | DY41: 2022-03-31 | DZ41: 2022-04-30 | EA41: 2022-05-31 | EB41: 2022-06-30 | EC41: 2022-07-31 | ED41: =IF(ED36,$E$27-1,EOMONTH(ED40,ED30-1)) -> 2022-08-31 | EE41: 2022-09-30 | EF41: 2022-10-31 | EG41: 2022-11-30 | EH41: 2022-12-31 | EI41: 2023-01-31 | EJ41: 2023-02-28 | EK41: 2023-03-31 | EL41: 2023-04-30 | EM41: 2023-05-31 | EN41: 2023-06-30 | EO41: 2023-07-31 | EP41: 2023-08-31 | EQ41: 2023-09-30 | ER41: 2023-10-31 | ES41: 2023-11-30 | ET41: 2023-12-31 | EU41: 2024-01-31 | EV41: 2024-02-29 | EW41: 2024-03-31 | EX41: 2024-04-30 | EY41: 2024-05-31 | EZ41: 2024-06-30 | FA41: 2024-07-31 | FB41: 2024-08-31 | FC41: 2024-09-30 | FD41: 2024-10-31 | FE41: 2024-11-30 | FF41: 2024-12-31 | FG41: 2025-01-31 | FH41: 2025-02-28 | FI41: 2025-03-31 | FJ41: 2025-04-30 | FK41: 2025-05-31 | FL41: 2025-06-30 | FM41: 2025-07-31 | FN41: 2025-08-31 | FO41: 2025-09-30 | FP41: 2025-10-31 | FQ41: 2025-11-30 | FR41: 2025-12-31 | FS41: 2026-01-31 | FT41: 2026-02-28 | FU41: 2026-03-31 | FV41: 2026-04-30 | FW41: 2026-05-31 | FX41: 2026-06-30 | FY41: 2026-07-31 | FZ41: 2026-08-31 | GA41: 2026-09-30 | GB41: 2026-10-31 | GC41: 2026-11-30 | GD41: 2026-12-31 | GE41: 2027-01-31 | GF41: 2027-02-28 | GG41: 2027-03-31 | GH41: 2027-04-30 | GI41: 2027-05-31 | GJ41: 2027-06-30 | GK41: 2027-07-31 | GL41: 2027-08-31 | GM41: 2027-09-30 | GN41: 2027-10-31 | GO41: 2027-11-30 | GP41: =IF(GP36,$E$27-1,EOMONTH(GP40,GP30-1)) -> 2027-12-31 | GQ41: 2028-01-31 | GR41: 2028-02-29 | GS41: 2028-03-31 | GT41: 2028-04-30 | GU41: 2028-05-31 | GV41: 2028-06-30 | GW41: 2028-07-31 | GX41: 2028-08-31 | GY41: 2028-09-30 | GZ41: 2028-10-31 | HA41: 2028-11-30 | HB41: 2028-12-31 | HC41: 2029-01-31 | HD41: 2029-02-28 | HE41: 2029-03-31 | HF41: 2029-04-30 | HG41: 2029-05-31 | HH41: 2029-06-30 | HI41: 2029-07-31 | HJ41: 2029-08-31 | HK41: 2029-09-30 | HL41: 2029-10-31 | HM41: 2029-11-30 | HN41: 2029-12-31 | HO41: 2030-01-31 | HP41: 2030-02-28 | HQ41: 2030-03-31 | HR41: 2030-04-30 | HS41: 2030-05-31 | HT41: 2030-06-30 | HU41: 2030-07-31 | HV41: 2030-08-31 | HW41: 2030-09-30 | HX41: 2030-10-31 | HY41: 2030-11-30 | HZ41: 2030-12-31 | IA41: 2031-01-31 | IB41: 2031-02-28 | IC41: 2031-03-31 | ID41: 2031-04-30 | IE41: 2031-05-31 | IF41: 2031-06-30 | IG41: 2031-07-31 | IH41: 2031-08-31 | II41: 2031-09-30 | IJ41: 2031-10-31 | IK41: 2031-11-30 | IL41: 2031-12-31 | IM41: 2032-01-31 | IN41: 2032-02-29 | IO41: 2032-03-31 | IP41: 2032-04-30 | IQ41: 2032-05-31 | IR41: 2032-06-30 | IS41: 2032-07-31 | IT41: 2032-08-31 | IU41: 2032-09-30 | IV41: 2032-10-31
D42: Year | E42: =YEAR(E41) -> 2011 | F42: =YEAR(F41) -> 2012 | G42: 2012 | H42: 2012 | I42: 2012 | J42: 2012 | K42: 2012 | L42: 2012 | M42: 2012 | N42: 2012 | O42: 2012 | P42: 2012 | Q42: 2012 | R42: 2013 | S42: 2013 | T42: 2013 | U42: 2013 | V42: 2013 | W42: 2013 | X42: 2013 | Y42: 2013 | Z42: 2013 | AA42: 2013 | AB42: 2013 | AC42: 2013 | AD42: 2014 | AE42: 2014 | AF42: 2014 | AG42: 2014 | AH42: 2014 | AI42: 2014 | AJ42: 2014 | AK42: 2014 | AL42: 2014 | AM42: 2014 | AN42: 2014 | AO42: 2014 | AP42: 2015 | AQ42: 2015 | AR42: 2015 | AS42: 2015 | AT42: 2015 | AU42: 2015 | AV42: 2015 | AW42: 2015 | AX42: 2015 | AY42: 2015 | AZ42: 2015 | BA42: 2015 | BB42: 2016 | BC42: 2016 | BD42: 2016 | BE42: 2016 | BF42: 2016 | BG42: 2016 | BH42: 2016 | BI42: 2016 | BJ42: 2016 | BK42: 2016 | BL42: 2016 | BM42: 2016 | BN42: 2017 | BO42: 2017 | BP42: 2017 | BQ42: 2017 | BR42: =YEAR(BR41) -> 2017 | BS42: 2017 | BT42: 2017 | BU42: 2017 | BV42: 2017 | BW42: 2017 | BX42: 2017 | BY42: 2017 | BZ42: 2018 | CA42: 2018 | CB42: 2018 | CC42: 2018 | CD42: 2018 | CE42: 2018 | CF42: 2018 | CG42: 2018 | CH42: 2018 | CI42: 2018 | CJ42: 2018 | CK42: 2018 | CL42: 2018 | CM42: 2019 | CN42: 2019 | CO42: 2019 | CP42: 2019 | CQ42: 2019 | CR42: 2019 | CS42: 2019 | CT42: 2019 | CU42: 2019 | CV42: 2019 | CW42: 2019 | CX42: 2019 | CY42: 2020 | CZ42: 2020 | DA42: 2020 | DB42: 2020 | DC42: 2020 | DD42: 2020 | DE42: 2020 | DF42: 2020 | DG42: 2020 | DH42: 2020 | DI42: 2020 | DJ42: 2020 | DK42: 2021 | DL42: 2021 | DM42: 2021 | DN42: 2021 | DO42: 2021 | DP42: 2021 | DQ42: 2021 | DR42: 2021 | DS42: 2021 | DT42: 2021 | DU42: 2021 | DV42: 2021 | DW42: 2022 | DX42: 2022 | DY42: 2022 | DZ42: 2022 | EA42: 2022 | EB42: 2022 | EC42: 2022 | ED42: =YEAR(ED41) -> 2022 | EE42: 2022 | EF42: 2022 | EG42: 2022 | EH42: 2022 | EI42: 2023 | EJ42: 2023 | EK42: 2023 | EL42: 2023 | EM42: 2023 | EN42: 2023 | EO42: 2023 | EP42: 2023 | EQ42: 2023 | ER42: 2023 | ES42: 2023 | ET42: 2023 | EU42: 2024 | EV42: 2024 | EW42: 2024 | EX42: 2024 | EY42: 2024 | EZ42: 2024 | FA42: 2024 | FB42: 2024 | FC42: 2024 | FD42: 2024 | FE42: 2024 | FF42: 2024 | FG42: 2025 | FH42: 2025 | FI42: 2025 | FJ42: 2025 | FK42: 2025 | FL42: 2025 | FM42: 2025 | FN42: 2025 | FO42: 2025 | FP42: 2025 | FQ42: 2025 | FR42: 2025 | FS42: 2026 | FT42: 2026 | FU42: 2026 | FV42: 2026 | FW42: 2026 | FX42: 2026 | FY42: 2026 | FZ42: 2026 | GA42: 2026 | GB42: 2026 | GC42: 2026 | GD42: 2026 | GE42: 2027 | GF42: 2027 | GG42: 2027 | GH42: 2027 | GI42: 2027 | GJ42: 2027 | GK42: 2027 | GL42: 2027 | GM42: 2027 | GN42: 2027 | GO42: 2027 | GP42: =YEAR(GP41) -> 2027 | GQ42: 2028 | GR42: 2028 | GS42: 2028 | GT42: 2028 | GU42: 2028 | GV42: 2028 | GW42: 2028 | GX42: 2028 | GY42: 2028 | GZ42: 2028 | HA42: 2028 | HB42: 2028 | HC42: 2029 | HD42: 2029 | HE42: 2029 | HF42: 2029 | HG42: 2029 | HH42: 2029 | HI42: 2029 | HJ42: 2029 | HK42: 2029 | HL42: 2029 | HM42: 2029 | HN42: 2029 | HO42: 2030 | HP42: 2030 | HQ42: 2030 | HR42: 2030 | HS42: 2030 | HT42: 2030 | HU42: 2030 | HV42: 2030 | HW42: 2030 | HX42: 2030 | HY42: 2030 | HZ42: 2030 | IA42: 2031 | IB42: 2031 | IC42: 2031 | ID42: 2031 | IE42: 2031 | IF42: 2031 | IG42: 2031 | IH42: 2031 | II42: 2031 | IJ42: 2031 | IK42: 2031 | IL42: 2031 | IM42: 2032 | IN42: 2032 | IO42: 2032 | IP42: 2032 | IQ42: 2032 | IR42: 2032 | IS42: 2032 | IT42: 2032 | IU42: 2032 | IV42: 2032
D43: Days | F43: =F41-F40+1 -> 31 | G43: =G41-G40+1 -> 29 | H43: 31 | I43: 30 | J43: 31 | K43: 30 | L43: 31 | M43: 31 | N43: 30 | O43: 31 | P43: 30 | Q43: 31 | R43: 31 | S43: 28 | T43: 31 | U43: 30 | V43: 31 | W43: 30 | X43: 31 | Y43: 31 | Z43: 30 | AA43: 31 | AB43: 30 | AC43: 31 | AD43: 31 | AE43: 28 | AF43: 31 | AG43: 30 | AH43: 31 | AI43: 30 | AJ43: 31 | AK43: 31 | AL43: 30 | AM43: 31 | AN43: 30 | AO43: 31 | AP43: 31 | AQ43: 28 | AR43: 31 | AS43: 30 | AT43: 31 | AU43: 30 | AV43: 31 | AW43: 31 | AX43: 30 | AY43: 31 | AZ43: 30 | BA43: 31 | BB43: 31 | BC43: 29 | BD43: 31 | BE43: 30 | BF43: 31 | BG43: 30 | BH43: 31 | BI43: 31 | BJ43: 30 | BK43: 31 | BL43: 30 | BM43: 31 | BN43: 31 | BO43: 28 | BP43: 31 | BQ43: 30 | BR43: 31 | BS43: =BS41-BS40+1 -> 30 | BT43: 31 | BU43: 31 | BV43: 30 | BW43: 31 | BX43: 30 | BY43: 31 | BZ43: 31 | CA43: 28 | CB43: 31 | CC43: 10.25473866 | CD43: 19.74526134 | CE43: 31 | CF43: 30 | CG43: 31 | CH43: 31 | CI43: 30 | CJ43: 31 | CK43: 30 | CL43: 31 | CM43: 31 | CN43: 28 | CO43: 31 | CP43: 30 | CQ43: 31 | CR43: 30 | CS43: 31 | CT43: 31 | CU43: 30 | CV43: 31 | CW43: 30 | CX43: 31 | CY43: 31 | CZ43: 29 | DA43: 31 | DB43: 30 | DC43: 31 | DD43: 30 | DE43: 31 | DF43: 31 | DG43: 30 | DH43: 31 | DI43: 30 | DJ43: 31 | DK43: 31 | DL43: 28 | DM43: 31 | DN43: 30 | DO43: 31 | DP43: 30 | DQ43: 31 | DR43: 31 | DS43: 30 | DT43: 31 | DU43: 30 | DV43: 31 | DW43: 31 | DX43: 28 | DY43: 31 | DZ43: 30 | EA43: 31 | EB43: 30 | EC43: 31 | ED43: 31 | EE43: =EE41-EE40+1 -> 30 | EF43: 31 | EG43: 30 | EH43: 31 | EI43: 31 | EJ43: 28 | EK43: 31 | EL43: 30 | EM43: 31 | EN43: 30 | EO43: 31 | EP43: 31 | EQ43: 30 | ER43: 31 | ES43: 30 | ET43: 31 | EU43: 31 | EV43: 29 | EW43: 31 | EX43: 30 | EY43: 31 | EZ43: 30 | FA43: 31 | FB43: 31 | FC43: 30 | FD43: 31 | FE43: 30 | FF43: 31 | FG43: 31 | FH43: 28 | FI43: 31 | FJ43: 30 | FK43: 31 | FL43: 30 | FM43: 31 | FN43: 31 | FO43: 30 | FP43: 31 | FQ43: 30 | FR43: 31 | FS43: 31 | FT43: 28 | FU43: 31 | FV43: 30 | FW43: 31 | FX43: 30 | FY43: 31 | FZ43: 31 | GA43: 30 | GB43: 31 | GC43: 30 | GD43: 31 | GE43: 31 | GF43: 28 | GG43: 31 | GH43: 30 | GI43: 31 | GJ43: 30 | GK43: 31 | GL43: 31 | GM43: 30 | GN43: 31 | GO43: 30 | GP43: 31 | GQ43: =GQ41-GQ40+1 -> 31 | GR43: 29 | GS43: 31 | GT43: 30 | GU43: 31 | GV43: 30 | GW43: 31 | GX43: 31 | GY43: 30 | GZ43: 31 | HA43: 30 | HB43: 31 | HC43: 31 | HD43: 28 | HE43: 31 | HF43: 30 | HG43: 31 | HH43: 30 | HI43: 31 | HJ43: 31 | HK43: 30 | HL43: 31 | HM43: 30 | HN43: 31 | HO43: 31 | HP43: 28 | HQ43: 31 | HR43: 30 | HS43: 31 | HT43: 30 | HU43: 31 | HV43: 31 | HW43: 30 | HX43: 31 | HY43: 30 | HZ43: 31 | IA43: 31 | IB43: 28 | IC43: 31 | ID43: 30 | IE43: 31 | IF43: 30 | IG43: 31 | IH43: 31 | II43: 30 | IJ43: 31 | IK43: 30 | IL43: 31 | IM43: 31 | IN43: 29 | IO43: 31 | IP43: 30 | IQ43: 31 | IR43: 30 | IS43: 31 | IT43: 31 | IU43: 30 | IV43: 31
D44: Days 360 | F44: =DAYS360(F40,F41+1) -> 30 | G44: =DAYS360(G40,G41+1) -> 30 | H44: 30 | I44: 30 | J44: 30 | K44: 30 | L44: 30 | M44: 30 | N44: 30 | O44: 30 | P44: 30 | Q44: 30 | R44: 30 | S44: 30 | T44: 30 | U44: 30 | V44: 30 | W44: 30 | X44: 30 | Y44: 30 | Z44: 30 | AA44: 30 | AB44: 30 | AC44: 30 | AD44: 30 | AE44: 30 | AF44: 30 | AG44: 30 | AH44: 30 | AI44: 30 | AJ44: 30 | AK44: 30 | AL44: 30 | AM44: 30 | AN44: 30 | AO44: 30 | AP44: 30 | AQ44: 30 | AR44: 30 | AS44: 30 | AT44: 30 | AU44: 30 | AV44: 30 | AW44: 30 | AX44: 30 | AY44: 30 | AZ44: 30 | BA44: 30 | BB44: 30 | BC44: 30 | BD44: 30 | BE44: 30 | BF44: 30 | BG44: 30 | BH44: 30 | BI44: 30 | BJ44: 30 | BK44: 30 | BL44: 30 | BM44: 30 | BN44: 30 | BO44: 30 | BP44: 30 | BQ44: 30 | BR44: 30 | BS44: =DAYS360(BS40,BS41+1) -> 30 | BT44: 30 | BU44: 30 | BV44: 30 | BW44: 30 | BX44: 30 | BY44: 30 | BZ44: 30 | CA44: 30 | CB44: 30 | CC44: 10 | CD44: 20 | CE44: 30 | CF44: 30 | CG44: 30 | CH44: 30 | CI44: 30 | CJ44: 30 | CK44: 30 | CL44: 30 | CM44: 30 | CN44: 30 | CO44: 30 | CP44: 30 | CQ44: 30 | CR44: 30 | CS44: 30 | CT44: 30 | CU44: 30 | CV44: 30 | CW44: 30 | CX44: 30 | CY44: 30 | CZ44: 30 | DA44: 30 | DB44: 30 | DC44: 30 | DD44: 30 | DE44: 30 | DF44: 30 | DG44: 30 | DH44: 30 | DI44: 30 | DJ44: 30 | DK44: 30 | DL44: 30 | DM44: 30 | DN44: 30 | DO44: 30 | DP44: 30 | DQ44: 30 | DR44: 30 | DS44: 30 | DT44: 30 | DU44: 30 | DV44: 30 | DW44: 30 | DX44: 30 | DY44: 30 | DZ44: 30 | EA44: 30 | EB44: 30 | EC44: 30 | ED44: 30 | EE44: =DAYS360(EE40,EE41+1) -> 30 | EF44: 30 | EG44: 30 | EH44: 30 | EI44: 30 | EJ44: 30 | EK44: 30 | EL44: 30 | EM44: 30 | EN44: 30 | EO44: 30 | EP44: 30 | EQ44: 30 | ER44: 30 | ES44: 30 | ET44: 30 | EU44: 30 | EV44: 30 | EW44: 30 | EX44: 30 | EY44: 30 | EZ44: 30 | FA44: 30 | FB44: 30 | FC44: 30 | FD44: 30 | FE44: 30 | FF44: 30 | FG44: 30 | FH44: 30 | FI44: 30 | FJ44: 30 | FK44: 30 | FL44: 30 | FM44: 30 | FN44: 30 | FO44: 30 | FP44: 30 | FQ44: 30 | FR44: 30 | FS44: 30 | FT44: 30 | FU44: 30 | FV44: 30 | FW44: 30 | FX44: 30 | FY44: 30 | FZ44: 30 | GA44: 30 | GB44: 30 | GC44: 30 | GD44: 30 | GE44: 30 | GF44: 30 | GG44: 30 | GH44: 30 | GI44: 30 | GJ44: 30 | GK44: 30 | GL44: 30 | GM44: 30 | GN44: 30 | GO44: 30 | GP44: 30 | GQ44: =DAYS360(GQ40,GQ41+1) -> 30 | GR44: 30 | GS44: 30 | GT44: 30 | GU44: 30 | GV44: 30 | GW44: 30 | GX44: 30 | GY44: 30 | GZ44: 30 | HA44: 30 | HB44: 30 | HC44: 30 | HD44: 30 | HE44: 30 | HF44: 30 | HG44: 30 | HH44: 30 | HI44: 30 | HJ44: 30 | HK44: 30 | HL44: 30 | HM44: 30 | HN44: 30 | HO44: 30 | HP44: 30 | HQ44: 30 | HR44: 30 | HS44: 30 | HT44: 30 | HU44: 30 | HV44: 30 | HW44: 30 | HX44: 30 | HY44: 30 | HZ44: 30 | IA44: 30 | IB44: 30 | IC44: 30 | ID44: 30 | IE44: 30 | IF44: 30 | IG44: 30 | IH44: 30 | II44: 30 | IJ44: 30 | IK44: 30 | IL44: 30 | IM44: 30 | IN44: 30 | IO44: 30 | IP44: 30 | IQ44: 30 | IR44: 30 | IS44: 30 | IT44: 30 | IU44: 30 | IV44: 30
D46: Operating | F46: =F33<=$E$9 -> TRUE | G46: =G33<=$E$9 -> TRUE | H46: TRUE | I46: TRUE | J46: TRUE | K46: TRUE | L46: TRUE | M46: TRUE | N46: TRUE | O46: TRUE | P46: TRUE | Q46: TRUE | R46: TRUE | S46: TRUE | T46: TRUE | U46: TRUE | V46: TRUE | W46: TRUE | X46: TRUE | Y46: TRUE | Z46: TRUE | AA46: TRUE | AB46: TRUE | AC46: TRUE | AD46: TRUE | AE46: TRUE | AF46: TRUE | AG46: TRUE | AH46: TRUE | AI46: TRUE | AJ46: TRUE | AK46: TRUE | AL46: TRUE | AM46: TRUE | AN46: TRUE | AO46: TRUE | AP46: TRUE | AQ46: TRUE | AR46: TRUE | AS46: TRUE | AT46: TRUE | AU46: TRUE | AV46: TRUE | AW46: TRUE | AX46: TRUE | AY46: TRUE | AZ46: TRUE | BA46: TRUE | BB46: TRUE | BC46: TRUE | BD46: TRUE | BE46: TRUE | BF46: TRUE | BG46: TRUE | BH46: TRUE | BI46: TRUE | BJ46: TRUE | BK46: TRUE | BL46: TRUE | BM46: TRUE | BN46: TRUE | BO46: TRUE | BP46: TRUE | BQ46: TRUE | BR46: TRUE | BS46: =BS33<=$E$9 -> TRUE | BT46: TRUE | BU46: TRUE | BV46: TRUE | BW46: TRUE | BX46: TRUE | BY46: TRUE | BZ46: TRUE | CA46: TRUE | CB46: TRUE | CC46: TRUE | CD46: TRUE | CE46: TRUE | CF46: TRUE | CG46: TRUE | CH46: TRUE | CI46: TRUE | CJ46: TRUE | CK46: TRUE | CL46: TRUE | CM46: TRUE | CN46: TRUE | CO46: TRUE | CP46: TRUE | CQ46: TRUE | CR46: TRUE | CS46: TRUE | CT46: TRUE | CU46: TRUE | CV46: TRUE | CW46: TRUE | CX46: TRUE | CY46: TRUE | CZ46: TRUE | DA46: TRUE | DB46: TRUE | DC46: TRUE | DD46: TRUE | DE46: TRUE | DF46: TRUE | DG46: TRUE | DH46: TRUE | DI46: TRUE | DJ46: TRUE | DK46: TRUE | DL46: TRUE | DM46: TRUE | DN46: TRUE | DO46: TRUE | DP46: TRUE | DQ46: TRUE | DR46: TRUE | DS46: TRUE | DT46: TRUE | DU46: TRUE | DV46: TRUE | DW46: TRUE | DX46: TRUE | DY46: TRUE | DZ46: TRUE | EA46: TRUE | EB46: TRUE | EC46: TRUE | ED46: TRUE | EE46: =EE33<=$E$9 -> TRUE | EF46: TRUE | EG46: TRUE | EH46: TRUE | EI46: TRUE | EJ46: TRUE | EK46: TRUE | EL46: TRUE | EM46: TRUE | EN46: TRUE | EO46: TRUE | EP46: TRUE | EQ46: TRUE | ER46: TRUE | ES46: TRUE | ET46: TRUE | EU46: FALSE | EV46: FALSE | EW46: FALSE | EX46: FALSE | EY46: FALSE | EZ46: FALSE | FA46: FALSE | FB46: FALSE | FC46: FALSE | FD46: FALSE | FE46: FALSE | FF46: FALSE | FG46: FALSE | FH46: FALSE | FI46: FALSE | FJ46: FALSE | FK46: FALSE | FL46: FALSE | FM46: FALSE | FN46: FALSE | FO46: FALSE | FP46: FALSE | FQ46: FALSE | FR46: FALSE | FS46: FALSE | FT46: FALSE | FU46: FALSE | FV46: FALSE | FW46: FALSE | FX46: FALSE | FY46: FALSE | FZ46: FALSE | GA46: FALSE | GB46: FALSE | GC46: FALSE | GD46: FALSE | GE46: FALSE | GF46: FALSE | GG46: FALSE | GH46: FALSE | GI46: FALSE | GJ46: FALSE | GK46: FALSE | GL46: FALSE | GM46: FALSE | GN46: FALSE | GO46: FALSE | GP46: FALSE | GQ46: =GQ33<=$E$9 -> FALSE | GR46: FALSE | GS46: FALSE | GT46: FALSE | GU46: FALSE | GV46: FALSE | GW46: FALSE | GX46: FALSE | GY46: FALSE | GZ46: FALSE | HA46: FALSE | HB46: FALSE | HC46: FALSE | HD46: FALSE | HE46: FALSE | HF46: FALSE | HG46: FALSE | HH46: FALSE | HI46: FALSE | HJ46: FALSE | HK46: FALSE | HL46: FALSE | HM46: FALSE | HN46: FALSE | HO46: FALSE | HP46: FALSE | HQ46: FALSE | HR46: FALSE | HS46: FALSE | HT46: FALSE | HU46: FALSE | HV46: FALSE | HW46: FALSE | HX46: FALSE | HY46: FALSE | HZ46: FALSE | IA46: FALSE | IB46: FALSE | IC46: FALSE | ID46: FALSE | IE46: FALSE | IF46: FALSE | IG46: FALSE | IH46: FALSE | II46: FALSE | IJ46: FALSE | IK46: FALSE | IL46: FALSE | IM46: FALSE | IN46: FALSE | IO46: FALSE | IP46: FALSE | IQ46: FALSE | IR46: FALSE | IS46: FALSE | IT46: FALSE | IU46: FALSE | IV46: FALSE
D48: Cash Flow for Full Period | E48: =E22 -> 16.66666667 | F48: =E48*(1+$E$23)*F46 -> 16.66666667 | G48: =F48*(1+$E$23)*G46 -> 16.66666667 | H48: 16.66666667 | I48: 16.66666667 | J48: 16.66666667 | K48: 16.66666667 | L48: 16.66666667 | M48: 16.66666667 | N48: 16.66666667 | O48: 16.66666667 | P48: 16.66666667 | Q48: 16.66666667 | R48: 16.66666667 | S48: 16.66666667 | T48: 16.66666667 | U48: 16.66666667 | V48: 16.66666667 | W48: 16.66666667 | X48: 16.66666667 | Y48: 16.66666667 | Z48: 16.66666667 | AA48: 16.66666667 | AB48: 16.66666667 | AC48: 16.66666667 | AD48: 16.66666667 | AE48: 16.66666667 | AF48: 16.66666667 | AG48: 16.66666667 | AH48: 16.66666667 | AI48: 16.66666667 | AJ48: 16.66666667 | AK48: 16.66666667 | AL48: 16.66666667 | AM48: 16.66666667 | AN48: 16.66666667 | AO48: 16.66666667 | AP48: 16.66666667 | AQ48: 16.66666667 | AR48: 16.66666667 | AS48: 16.66666667 | AT48: 16.66666667 | AU48: 16.66666667 | AV48: 16.66666667 | AW48: 16.66666667 | AX48: 16.66666667 | AY48: 16.66666667 | AZ48: 16.66666667 | BA48: 16.66666667 | BB48: 16.66666667 | BC48: 16.66666667 | BD48: 16.66666667 | BE48: 16.66666667 | BF48: 16.66666667 | BG48: 16.66666667 | BH48: 16.66666667 | BI48: 16.66666667 | BJ48: 16.66666667 | BK48: 16.66666667 | BL48: 16.66666667 | BM48: 16.66666667 | BN48: 16.66666667 | BO48: 16.66666667 | BP48: 16.66666667 | BQ48: 16.66666667 | BR48: 16.66666667 | BS48: =BR48*(1+$E$23)*BS46 -> 16.66666667 | BT48: 16.66666667 | BU48: 16.66666667 | BV48: 16.66666667 | BW48: 16.66666667 | BX48: 16.66666667 | BY48: 16.66666667 | BZ48: 16.66666667 | CA48: 16.66666667 | CB48: 16.66666667 | CC48: 16.66666667 | CD48: 16.66666667 | CE48: 16.66666667 | CF48: 16.66666667 | CG48: 16.66666667 | CH48: 16.66666667 | CI48: 16.66666667 | CJ48: 16.66666667 | CK48: 16.66666667 | CL48: 16.66666667 | CM48: 16.66666667 | CN48: 16.66666667 | CO48: 16.66666667 | CP48: 16.66666667 | CQ48: 16.66666667 | CR48: 16.66666667 | CS48: 16.66666667 | CT48: 16.66666667 | CU48: 16.66666667 | CV48: 16.66666667 | CW48: 16.66666667 | CX48: 16.66666667 | CY48: 16.66666667 | CZ48: 16.66666667 | DA48: 16.66666667 | DB48: 16.66666667 | DC48: 16.66666667 | DD48: 16.66666667 | DE48: 16.66666667 | DF48: 16.66666667 | DG48: 16.66666667 | DH48: 16.66666667 | DI48: 16.66666667 | DJ48: 16.66666667 | DK48: 16.66666667 | DL48: 16.66666667 | DM48: 16.66666667 | DN48: 16.66666667 | DO48: 16.66666667 | DP48: 16.66666667 | DQ48: 16.66666667 | DR48: 16.66666667 | DS48: 16.66666667 | DT48: 16.66666667 | DU48: 16.66666667 | DV48: 16.66666667 | DW48: 16.66666667 | DX48: 16.66666667 | DY48: 16.66666667 | DZ48: 16.66666667 | EA48: 16.66666667 | EB48: 16.66666667 | EC48: 16.66666667 | ED48: 16.66666667 | EE48: =ED48*(1+$E$23)*EE46 -> 16.66666667 | EF48: 16.66666667 | EG48: 16.66666667 | EH48: 16.66666667 | EI48: 16.66666667 | EJ48: 16.66666667 | EK48: 16.66666667 | EL48: 16.66666667 | EM48: 16.66666667 | EN48: 16.66666667 | EO48: 16.66666667 | EP48: 16.66666667 | EQ48: 16.66666667 | ER48: 16.66666667 | ES48: 16.66666667 | ET48: 16.66666667 | EU48: 0 | EV48: 0 | EW48: 0 | EX48: 0 | EY48: 0 | EZ48: 0 | FA48: 0 | FB48: 0 | FC48: 0 | FD48: 0 | FE48: 0 | FF48: 0 | FG48: 0 | FH48: 0 | FI48: 0 | FJ48: 0 | FK48: 0 | FL48: 0 | FM48: 0 | FN48: 0 | FO48: 0 | FP48: 0 | FQ48: 0 | FR48: 0 | FS48: 0 | FT48: 0 | FU48: 0 | FV48: 0 | FW48: 0 | FX48: 0 | FY48: 0 | FZ48: 0 | GA48: 0 | GB48: 0 | GC48: 0 | GD48: 0 | GE48: 0 | GF48: 0 | GG48: 0 | GH48: 0 | GI48: 0 | GJ48: 0 | GK48: 0 | GL48: 0 | GM48: 0 | GN48: 0 | GO48: 0 | GP48: 0 | GQ48: =GP48*(1+$E$23)*GQ46 -> 0 | GR48: 0 | GS48: 0 | GT48: 0 | GU48: 0 | GV48: 0 | GW48: 0 | GX48: 0 | GY48: 0 | GZ48: 0 | HA48: 0 | HB48: 0 | HC48: 0 | HD48: 0 | HE48: 0 | HF48: 0 | HG48: 0 | HH48: 0 | HI48: 0 | HJ48: 0 | HK48: 0 | HL48: 0 | HM48: 0 | HN48: 0 | HO48: 0 | HP48: 0 | HQ48: 0 | HR48: 0 | HS48: 0 | HT48: 0 | HU48: 0 | HV48: 0 | HW48: 0 | HX48: 0 | HY48: 0 | HZ48: 0 | IA48: 0 | IB48: 0 | IC48: 0 | ID48: 0 | IE48: 0 | IF48: 0 | IG48: 0 | IH48: 0 | II48: 0 | IJ48: 0 | IK48: 0 | IL48: 0 | IM48: 0 | IN48: 0 | IO48: 0 | IP48: 0 | IQ48: 0 | IR48: 0 | IS48: 0 | IT48: 0 | IU48: 0 | IV48: 0
D49: Cash Flow for actual period | F49: =F48*F44/30 -> 16.66666667 | G49: =G48*G44/30 -> 16.66666667 | H49: 16.66666667 | I49: 16.66666667 | J49: 16.66666667 | K49: 16.66666667 | L49: 16.66666667 | M49: 16.66666667 | N49: 16.66666667 | O49: 16.66666667 | P49: 16.66666667 | Q49: 16.66666667 | R49: 16.66666667 | S49: 16.66666667 | T49: 16.66666667 | U49: 16.66666667 | V49: 16.66666667 | W49: 16.66666667 | X49: 16.66666667 | Y49: 16.66666667 | Z49: 16.66666667 | AA49: 16.66666667 | AB49: 16.66666667 | AC49: 16.66666667 | AD49: 16.66666667 | AE49: 16.66666667 | AF49: 16.66666667 | AG49: 16.66666667 | AH49: 16.66666667 | AI49: 16.66666667 | AJ49: 16.66666667 | AK49: 16.66666667 | AL49: 16.66666667 | AM49: 16.66666667 | AN49: 16.66666667 | AO49: 16.66666667 | AP49: 16.66666667 | AQ49: 16.66666667 | AR49: 16.66666667 | AS49: 16.66666667 | AT49: 16.66666667 | AU49: 16.66666667 | AV49: 16.66666667 | AW49: 16.66666667 | AX49: 16.66666667 | AY49: 16.66666667 | AZ49: 16.66666667 | BA49: 16.66666667 | BB49: 16.66666667 | BC49: 16.66666667 | BD49: 16.66666667 | BE49: 16.66666667 | BF49: 16.66666667 | BG49: 16.66666667 | BH49: 16.66666667 | BI49: 16.66666667 | BJ49: 16.66666667 | BK49: 16.66666667 | BL49: 16.66666667 | BM49: 16.66666667 | BN49: 16.66666667 | BO49: 16.66666667 | BP49: 16.66666667 | BQ49: 16.66666667 | BR49: 16.66666667 | BS49: =BS48*BS44/30 -> 16.66666667 | BT49: 16.66666667 | BU49: 16.66666667 | BV49: 16.66666667 | BW49: 16.66666667 | BX49: 16.66666667 | BY49: 16.66666667 | BZ49: 16.66666667 | CA49: 16.66666667 | CB49: 16.66666667 | CC49: 5.555555556 | CD49: 11.11111111 | CE49: 16.66666667 | CF49: 16.66666667 | CG49: 16.66666667 | CH49: 16.66666667 | CI49: 16.66666667 | CJ49: 16.66666667 | CK49: 16.66666667 | CL49: 16.66666667 | CM49: 16.66666667 | CN49: 16.66666667 | CO49: 16.66666667 | CP49: 16.66666667 | CQ49: 16.66666667 | CR49: 16.66666667 | CS49: 16.66666667 | CT49: 16.66666667 | CU49: 16.66666667 | CV49: 16.66666667 | CW49: 16.66666667 | CX49: 16.66666667 | CY49: 16.66666667 | CZ49: 16.66666667 | DA49: 16.66666667 | DB49: 16.66666667 | DC49: 16.66666667 | DD49: 16.66666667 | DE49: 16.66666667 | DF49: 16.66666667 | DG49: 16.66666667 | DH49: 16.66666667 | DI49: 16.66666667 | DJ49: 16.66666667 | DK49: 16.66666667 | DL49: 16.66666667 | DM49: 16.66666667 | DN49: 16.66666667 | DO49: 16.66666667 | DP49: 16.66666667 | DQ49: 16.66666667 | DR49: 16.66666667 | DS49: 16.66666667 | DT49: 16.66666667 | DU49: 16.66666667 | DV49: 16.66666667 | DW49: 16.66666667 | DX49: 16.66666667 | DY49: 16.66666667 | DZ49: 16.66666667 | EA49: 16.66666667 | EB49: 16.66666667 | EC49: 16.66666667 | ED49: 16.66666667 | EE49: =EE48*EE44/30 -> 16.66666667 | EF49: 16.66666667 | EG49: 16.66666667 | EH49: 16.66666667 | EI49: 16.66666667 | EJ49: 16.66666667 | EK49: 16.66666667 | EL49: 16.66666667 | EM49: 16.66666667 | EN49: 16.66666667 | EO49: 16.66666667 | EP49: 16.66666667 | EQ49: 16.66666667 | ER49: 16.66666667 | ES49: 16.66666667 | ET49: 16.66666667 | EU49: 0 | EV49: 0 | EW49: 0 | EX49: 0 | EY49: 0 | EZ49: 0 | FA49: 0 | FB49: 0 | FC49: 0 | FD49: 0 | FE49: 0 | FF49: 0 | FG49: 0 | FH49: 0 | FI49: 0 | FJ49: 0 | FK49: 0 | FL49: 0 | FM49: 0 | FN49: 0 | FO49: 0 | FP49: 0 | FQ49: 0 | FR49: 0 | FS49: 0 | FT49: 0 | FU49: 0 | FV49: 0 | FW49: 0 | FX49: 0 | FY49: 0 | FZ49: 0 | GA49: 0 | GB49: 0 | GC49: 0 | GD49: 0 | GE49: 0 | GF49: 0 | GG49: 0 | GH49: 0 | GI49: 0 | GJ49: 0 | GK49: 0 | GL49: 0 | GM49: 0 | GN49: 0 | GO49: 0 | GP49: 0 | GQ49: =GQ48*GQ44/30 -> 0 | GR49: 0 | GS49: 0 | GT49: 0 | GU49: 0 | GV49: 0 | GW49: 0 | GX49: 0 | GY49: 0 | GZ49: 0 | HA49: 0 | HB49: 0 | HC49: 0 | HD49: 0 | HE49: 0 | HF49: 0 | HG49: 0 | HH49: 0 | HI49: 0 | HJ49: 0 | HK49: 0 | HL49: 0 | HM49: 0 | HN49: 0 | HO49: 0 | HP49: 0 | HQ49: 0 | HR49: 0 | HS49: 0 | HT49: 0 | HU49: 0 | HV49: 0 | HW49: 0 | HX49: 0 | HY49: 0 | HZ49: 0 | IA49: 0 | IB49: 0 | IC49: 0 | ID49: 0 | IE49: 0 | IF49: 0 | IG49: 0 | IH49: 0 | II49: 0 | IJ49: 0 | IK49: 0 | IL49: 0 | IM49: 0 | IN49: 0 | IO49: 0 | IP49: 0 | IQ49: 0 | IR49: 0 | IS49: 0 | IT49: 0 | IU49: 0 | IV49: 0
D51: Partner 1 - Pre-Flip Percent | F51: =$F$13 -> 0.85 | G51: =$F$13 -> 0.85 | H51: 0.85 | I51: 0.85 | J51: 0.85 | K51: 0.85 | L51: 0.85 | M51: 0.85 | N51: 0.85 | O51: 0.85 | P51: 0.85 | Q51: 0.85 | R51: 0.85 | S51: 0.85 | T51: 0.85 | U51: 0.85 | V51: 0.85 | W51: 0.85 | X51: 0.85 | Y51: 0.85 | Z51: 0.85 | AA51: 0.85 | AB51: 0.85 | AC51: 0.85 | AD51: 0.85 | AE51: 0.85 | AF51: 0.85 | AG51: 0.85 | AH51: 0.85 | AI51: 0.85 | AJ51: 0.85 | AK51: 0.85 | AL51: 0.85 | AM51: 0.85 | AN51: 0.85 | AO51: 0.85 | AP51: 0.85 | AQ51: 0.85 | AR51: 0.85 | AS51: 0.85 | AT51: 0.85 | AU51: 0.85 | AV51: 0.85 | AW51: 0.85 | AX51: 0.85 | AY51: 0.85 | AZ51: 0.85 | BA51: 0.85 | BB51: 0.85 | BC51: 0.85 | BD51: 0.85 | BE51: 0.85 | BF51: 0.85 | BG51: 0.85 | BH51: 0.85 | BI51: 0.85 | BJ51: 0.85 | BK51: 0.85 | BL51: 0.85 | BM51: 0.85 | BN51: 0.85 | BO51: 0.85 | BP51: 0.85 | BQ51: 0.85 | BR51: 0.85 | BS51: =$F$13 -> 0.85 | BT51: 0.85 | BU51: 0.85 | BV51: 0.85 | BW51: 0.85 | BX51: 0.85 | BY51: 0.85 | BZ51: 0.85 | CA51: 0.85 | CB51: 0.85 | CC51: 0.85 | CD51: 0.85 | CE51: 0.85 | CF51: 0.85 | CG51: 0.85 | CH51: 0.85 | CI51: 0.85 | CJ51: 0.85 | CK51: 0.85 | CL51: 0.85 | CM51: 0.85 | CN51: 0.85 | CO51: 0.85 | CP51: 0.85 | CQ51: 0.85 | CR51: 0.85 | CS51: 0.85 | CT51: 0.85 | CU51: 0.85 | CV51: 0.85 | CW51: 0.85 | CX51: 0.85 | CY51: 0.85 | CZ51: 0.85 | DA51: 0.85 | DB51: 0.85 | DC51: 0.85 | DD51: 0.85 | DE51: 0.85 | DF51: 0.85 | DG51: 0.85 | DH51: 0.85 | DI51: 0.85 | DJ51: 0.85 | DK51: 0.85 | DL51: 0.85 | DM51: 0.85 | DN51: 0.85 | DO51: 0.85 | DP51: 0.85 | DQ51: 0.85 | DR51: 0.85 | DS51: 0.85 | DT51: 0.85 | DU51: 0.85 | DV51: 0.85 | DW51: 0.85 | DX51: 0.85 | DY51: 0.85 | DZ51: 0.85 | EA51: 0.85 | EB51: 0.85 | EC51: 0.85 | ED51: 0.85 | EE51: =$F$13 -> 0.85 | EF51: 0.85 | EG51: 0.85 | EH51: 0.85 | EI51: 0.85 | EJ51: 0.85 | EK51: 0.85 | EL51: 0.85 | EM51: 0.85 | EN51: 0.85 | EO51: 0.85 | EP51: 0.85 | EQ51: 0.85 | ER51: 0.85 | ES51: 0.85 | ET51: 0.85 | EU51: 0.85 | EV51: 0.85 | EW51: 0.85 | EX51: 0.85 | EY51: 0.85 | EZ51: 0.85 | FA51: 0.85 | FB51: 0.85 | FC51: 0.85 | FD51: 0.85 | FE51: 0.85 | FF51: 0.85 | FG51: 0.85 | FH51: 0.85 | FI51: 0.85 | FJ51: 0.85 | FK51: 0.85 | FL51: 0.85 | FM51: 0.85 | FN51: 0.85 | FO51: 0.85 | FP51: 0.85 | FQ51: 0.85 | FR51: 0.85 | FS51: 0.85 | FT51: 0.85 | FU51: 0.85 | FV51: 0.85 | FW51: 0.85 | FX51: 0.85 | FY51: 0.85 | FZ51: 0.85 | GA51: 0.85 | GB51: 0.85 | GC51: 0.85 | GD51: 0.85 | GE51: 0.85 | GF51: 0.85 | GG51: 0.85 | GH51: 0.85 | GI51: 0.85 | GJ51: 0.85 | GK51: 0.85 | GL51: 0.85 | GM51: 0.85 | GN51: 0.85 | GO51: 0.85 | GP51: 0.85 | GQ51: =$F$13 -> 0.85 | GR51: 0.85 | GS51: 0.85 | GT51: 0.85 | GU51: 0.85 | GV51: 0.85 | GW51: 0.85 | GX51: 0.85 | GY51: 0.85 | GZ51: 0.85 | HA51: 0.85 | HB51: 0.85 | HC51: 0.85 | HD51: 0.85 | HE51: 0.85 | HF51: 0.85 | HG51: 0.85 | HH51: 0.85 | HI51: 0.85 | HJ51: 0.85 | HK51: 0.85 | HL51: 0.85 | HM51: 0.85 | HN51: 0.85 | HO51: 0.85 | HP51: 0.85 | HQ51: 0.85 | HR51: 0.85 | HS51: 0.85 | HT51: 0.85 | HU51: 0.85 | HV51: 0.85 | HW51: 0.85 | HX51: 0.85 | HY51: 0.85 | HZ51: 0.85 | IA51: 0.85 | IB51: 0.85 | IC51: 0.85 | ID51: 0.85 | IE51: 0.85 | IF51: 0.85 | IG51: 0.85 | IH51: 0.85 | II51: 0.85 | IJ51: 0.85 | IK51: 0.85 | IL51: 0.85 | IM51: 0.85 | IN51: 0.85 | IO51: 0.85 | IP51: 0.85 | IQ51: 0.85 | IR51: 0.85 | IS51: 0.85 | IT51: 0.85 | IU51: 0.85 | IV51: 0.85
D52: Partner 1 - Pre-Flip Cash without Flip | F52: =F51*F48 -> 14.16666667 | G52: =G51*G48 -> 14.16666667 | H52: 14.16666667 | I52: 14.16666667 | J52: 14.16666667 | K52: 14.16666667 | L52: 14.16666667 | M52: 14.16666667 | N52: 14.16666667 | O52: 14.16666667 | P52: 14.16666667 | Q52: 14.16666667 | R52: 14.16666667 | S52: 14.16666667 | T52: 14.16666667 | U52: 14.16666667 | V52: 14.16666667 | W52: 14.16666667 | X52: 14.16666667 | Y52: 14.16666667 | Z52: 14.16666667 | AA52: 14.16666667 | AB52: 14.16666667 | AC52: 14.16666667 | AD52: 14.16666667 | AE52: 14.16666667 | AF52: 14.16666667 | AG52: 14.16666667 | AH52: 14.16666667 | AI52: 14.16666667 | AJ52: 14.16666667 | AK52: 14.16666667 | AL52: 14.16666667 | AM52: 14.16666667 | AN52: 14.16666667 | AO52: 14.16666667 | AP52: 14.16666667 | AQ52: 14.16666667 | AR52: 14.16666667 | AS52: 14.16666667 | AT52: 14.16666667 | AU52: 14.16666667 | AV52: 14.16666667 | AW52: 14.16666667 | AX52: 14.16666667 | AY52: 14.16666667 | AZ52: 14.16666667 | BA52: 14.16666667 | BB52: 14.16666667 | BC52: 14.16666667 | BD52: 14.16666667 | BE52: 14.16666667 | BF52: 14.16666667 | BG52: 14.16666667 | BH52: 14.16666667 | BI52: 14.16666667 | BJ52: 14.16666667 | BK52: 14.16666667 | BL52: 14.16666667 | BM52: 14.16666667 | BN52: 14.16666667 | BO52: 14.16666667 | BP52: 14.16666667 | BQ52: 14.16666667 | BR52: 14.16666667 | BS52: =BS51*BS48 -> 14.16666667 | BT52: 14.16666667 | BU52: 14.16666667 | BV52: 14.16666667 | BW52: 14.16666667 | BX52: 14.16666667 | BY52: 14.16666667 | BZ52: 14.16666667 | CA52: 14.16666667 | CB52: 14.16666667 | CC52: 14.16666667 | CD52: 14.16666667 | CE52: 14.16666667 | CF52: 14.16666667 | CG52: 14.16666667 | CH52: 14.16666667 | CI52: 14.16666667 | CJ52: 14.16666667 | CK52: 14.16666667 | CL52: 14.16666667 | CM52: 14.16666667 | CN52: 14.16666667 | CO52: 14.16666667 | CP52: 14.16666667 | CQ52: 14.16666667 | CR52: 14.16666667 | CS52: 14.16666667 | CT52: 14.16666667 | CU52: 14.16666667 | CV52: 14.16666667 | CW52: 14.16666667 | CX52: 14.16666667 | CY52: 14.16666667 | CZ52: 14.16666667 | DA52: 14.16666667 | DB52: 14.16666667 | DC52: 14.16666667 | DD52: 14.16666667 | DE52: 14.16666667 | DF52: 14.16666667 | DG52: 14.16666667 | DH52: 14.16666667 | DI52: 14.16666667 | DJ52: 14.16666667 | DK52: 14.16666667 | DL52: 14.16666667 | DM52: 14.16666667 | DN52: 14.16666667 | DO52: 14.16666667 | DP52: 14.16666667 | DQ52: 14.16666667 | DR52: 14.16666667 | DS52: 14.16666667 | DT52: 14.16666667 | DU52: 14.16666667 | DV52: 14.16666667 | DW52: 14.16666667 | DX52: 14.16666667 | DY52: 14.16666667 | DZ52: 14.16666667 | EA52: 14.16666667 | EB52: 14.16666667 | EC52: 14.16666667 | ED52: 14.16666667 | EE52: =EE51*EE48 -> 14.16666667 | EF52: 14.16666667 | EG52: 14.16666667 | EH52: 14.16666667 | EI52: 14.16666667 | EJ52: 14.16666667 | EK52: 14.16666667 | EL52: 14.16666667 | EM52: 14.16666667 | EN52: 14.16666667 | EO52: 14.16666667 | EP52: 14.16666667 | EQ52: 14.16666667 | ER52: 14.16666667 | ES52: 14.16666667 | ET52: 14.16666667 | EU52: 0 | EV52: 0 | EW52: 0 | EX52: 0 | EY52: 0 | EZ52: 0 | FA52: 0 | FB52: 0 | FC52: 0 | FD52: 0 | FE52: 0 | FF52: 0 | FG52: 0 | FH52: 0 | FI52: 0 | FJ52: 0 | FK52: 0 | FL52: 0 | FM52: 0 | FN52: 0 | FO52: 0 | FP52: 0 | FQ52: 0 | FR52: 0 | FS52: 0 | FT52: 0 | FU52: 0 | FV52: 0 | FW52: 0 | FX52: 0 | FY52: 0 | FZ52: 0 | GA52: 0 | GB52: 0 | GC52: 0 | GD52: 0 | GE52: 0 | GF52: 0 | GG52: 0 | GH52: 0 | GI52: 0 | GJ52: 0 | GK52: 0 | GL52: 0 | GM52: 0 | GN52: 0 | GO52: 0 | GP52: 0 | GQ52: =GQ51*GQ48 -> 0 | GR52: 0 | GS52: 0 | GT52: 0 | GU52: 0 | GV52: 0 | GW52: 0 | GX52: 0 | GY52: 0 | GZ52: 0 | HA52: 0 | HB52: 0 | HC52: 0 | HD52: 0 | HE52: 0 | HF52: 0 | HG52: 0 | HH52: 0 | HI52: 0 | HJ52: 0 | HK52: 0 | HL52: 0 | HM52: 0 | HN52: 0 | HO52: 0 | HP52: 0 | HQ52: 0 | HR52: 0 | HS52: 0 | HT52: 0 | HU52: 0 | HV52: 0 | HW52: 0 | HX52: 0 | HY52: 0 | HZ52: 0 | IA52: 0 | IB52: 0 | IC52: 0 | ID52: 0 | IE52: 0 | IF52: 0 | IG52: 0 | IH52: 0 | II52: 0 | IJ52: 0 | IK52: 0 | IL52: 0 | IM52: 0 | IN52: 0 | IO52: 0 | IP52: 0 | IQ52: 0 | IR52: 0 | IS52: 0 | IT52: 0 | IU52: 0 | IV52: 0
D54: Days | F54: =F34-F33+1 -> 31 | G54: 29 | H54: 31 | I54: 30 | J54: 31 | K54: 30 | L54: 31 | M54: 31 | N54: 30 | O54: 31 | P54: 30 | Q54: 31 | R54: 31 | S54: 28 | T54: 31 | U54: 30 | V54: 31 | W54: 30 | X54: 31 | Y54: 31 | Z54: 30 | AA54: 31 | AB54: 30 | AC54: 31 | AD54: 31 | AE54: 28 | AF54: 31 | AG54: 30 | AH54: 31 | AI54: 30 | AJ54: 31 | AK54: 31 | AL54: 30 | AM54: 31 | AN54: 30 | AO54: 31 | AP54: 31 | AQ54: 28 | AR54: 31 | AS54: 30 | AT54: 31 | AU54: 30 | AV54: 31 | AW54: 31 | AX54: 30 | AY54: 31 | AZ54: 30 | BA54: 31 | BB54: 31 | BC54: 29 | BD54: 31 | BE54: 30 | BF54: 31 | BG54: 30 | BH54: 31 | BI54: 31 | BJ54: 30 | BK54: 31 | BL54: 30 | BM54: 31 | BN54: 31 | BO54: 28 | BP54: 31 | BQ54: 30 | BR54: =BR34-BR33+1 -> 31 | BS54: 30 | BT54: 31 | BU54: 31 | BV54: 30 | BW54: 31 | BX54: 30 | BY54: 31 | BZ54: 31 | CA54: 28 | CB54: 31 | CC54: 30 | CD54: 31 | CE54: 30 | CF54: 31 | CG54: 31 | CH54: 30 | CI54: 31 | CJ54: 30 | CK54: 31 | CL54: 31 | CM54: 28 | CN54: 31 | CO54: 30 | CP54: 31 | CQ54: 30 | CR54: 31 | CS54: 31 | CT54: 30 | CU54: 31 | CV54: 30 | CW54: 31 | CX54: 31 | CY54: 29 | CZ54: 31 | DA54: 30 | DB54: 31 | DC54: 30 | DD54: 31 | DE54: 31 | DF54: 30 | DG54: 31 | DH54: 30 | DI54: 31 | DJ54: 31 | DK54: 28 | DL54: 31 | DM54: 30 | DN54: 31 | DO54: 30 | DP54: 31 | DQ54: 31 | DR54: 30 | DS54: 31 | DT54: 30 | DU54: 31 | DV54: 31 | DW54: 28 | DX54: 31 | DY54: 30 | DZ54: 31 | EA54: 30 | EB54: 31 | EC54: 31 | ED54: =ED34-ED33+1 -> 30 | EE54: 31 | EF54: 30 | EG54: 31 | EH54: 31 | EI54: 28 | EJ54: 31 | EK54: 30 | EL54: 31 | EM54: 30 | EN54: 31 | EO54: 31 | EP54: 30 | EQ54: 31 | ER54: 30 | ES54: 31 | ET54: 1 | EU54: 0 | EV54: 0 | EW54: 0 | EX54: 0 | EY54: 0 | EZ54: 0 | FA54: 0 | FB54: 0 | FC54: 0 | FD54: 0 | FE54: 0 | FF54: 0 | FG54: 0 | FH54: 0 | FI54: 0 | FJ54: 0 | FK54: 0 | FL54: 0 | FM54: 0 | FN54: 0 | FO54: 0 | FP54: 0 | FQ54: 0 | FR54: 0 | FS54: 0 | FT54: 0 | FU54: 0 | FV54: 0 | FW54: 0 | FX54: 0 | FY54: 0 | FZ54: 0 | GA54: 0 | GB54: 0 | GC54: 0 | GD54: 0 | GE54: 0 | GF54: 0 | GG54: 0 | GH54: 0 | GI54: 0 | GJ54: 0 | GK54: 0 | GL54: 0 | GM54: 0 | GN54: 0 | GO54: 0 | GP54: =GP34-GP33+1 -> 0 | GQ54: 0 | GR54: 0 | GS54: 0 | GT54: 0 | GU54: 0 | GV54: 0 | GW54: 0 | GX54: 0 | GY54: 0 | GZ54: 0 | HA54: 0 | HB54: 0 | HC54: 0 | HD54: 0 | HE54: 0 | HF54: 0 | HG54: 0 | HH54: 0 | HI54: 0 | HJ54: 0 | HK54: 0 | HL54: 0 | HM54: 0 | HN54: 0 | HO54: 0 | HP54: 0 | HQ54: 0 | HR54: 0 | HS54: 0 | HT54: 0 | HU54: 0 | HV54: 0 | HW54: 0 | HX54: 0 | HY54: 0 | HZ54: 0 | IA54: 0 | IB54: 0 | IC54: 0 | ID54: 0 | IE54: 0 | IF54: 0 | IG54: 0 | IH54: 0 | II54: 0 | IJ54: 0 | IK54: 0 | IL54: 0 | IM54: 0 | IN54: 0 | IO54: 0 | IP54: 0 | IQ54: 0 | IR54: 0 | IS54: 0 | IT54: 0 | IU54: 0 | IV54: 0
D55: Annual Rate | E55: =E16 -> 0.1 | F55: =E55 -> 0.1 | G55: =F55 -> 0.1 | H55: 0.1 | I55: 0.1 | J55: 0.1 | K55: 0.1 | L55: 0.1 | M55: 0.1 | N55: 0.1 | O55: 0.1 | P55: 0.1 | Q55: 0.1 | R55: 0.1 | S55: 0.1 | T55: 0.1 | U55: 0.1 | V55: 0.1 | W55: 0.1 | X55: 0.1 | Y55: 0.1 | Z55: 0.1 | AA55: 0.1 | AB55: 0.1 | AC55: 0.1 | AD55: 0.1 | AE55: 0.1 | AF55: 0.1 | AG55: 0.1 | AH55: 0.1 | AI55: 0.1 | AJ55: 0.1 | AK55: 0.1 | AL55: 0.1 | AM55: 0.1 | AN55: 0.1 | AO55: 0.1 | AP55: 0.1 | AQ55: 0.1 | AR55: 0.1 | AS55: 0.1 | AT55: 0.1 | AU55: 0.1 | AV55: 0.1 | AW55: 0.1 | AX55: 0.1 | AY55: 0.1 | AZ55: 0.1 | BA55: 0.1 | BB55: 0.1 | BC55: 0.1 | BD55: 0.1 | BE55: 0.1 | BF55: 0.1 | BG55: 0.1 | BH55: 0.1 | BI55: 0.1 | BJ55: 0.1 | BK55: 0.1 | BL55: 0.1 | BM55: 0.1 | BN55: 0.1 | BO55: 0.1 | BP55: 0.1 | BQ55: 0.1 | BR55: 0.1 | BS55: =BR55 -> 0.1 | BT55: 0.1 | BU55: 0.1 | BV55: 0.1 | BW55: 0.1 | BX55: 0.1 | BY55: 0.1 | BZ55: 0.1 | CA55: 0.1 | CB55: 0.1 | CC55: 0.1 | CD55: 0.1 | CE55: 0.1 | CF55: 0.1 | CG55: 0.1 | CH55: 0.1 | CI55: 0.1 | CJ55: 0.1 | CK55: 0.1 | CL55: 0.1 | CM55: 0.1 | CN55: 0.1 | CO55: 0.1 | CP55: 0.1 | CQ55: 0.1 | CR55: 0.1 | CS55: 0.1 | CT55: 0.1 | CU55: 0.1 | CV55: 0.1 | CW55: 0.1 | CX55: 0.1 | CY55: 0.1 | CZ55: 0.1 | DA55: 0.1 | DB55: 0.1 | DC55: 0.1 | DD55: 0.1 | DE55: 0.1 | DF55: 0.1 | DG55: 0.1 | DH55: 0.1 | DI55: 0.1 | DJ55: 0.1 | DK55: 0.1 | DL55: 0.1 | DM55: 0.1 | DN55: 0.1 | DO55: 0.1 | DP55: 0.1 | DQ55: 0.1 | DR55: 0.1 | DS55: 0.1 | DT55: 0.1 | DU55: 0.1 | DV55: 0.1 | DW55: 0.1 | DX55: 0.1 | DY55: 0.1 | DZ55: 0.1 | EA55: 0.1 | EB55: 0.1 | EC55: 0.1 | ED55: 0.1 | EE55: =ED55 -> 0.1 | EF55: 0.1 | EG55: 0.1 | EH55: 0.1 | EI55: 0.1 | EJ55: 0.1 | EK55: 0.1 | EL55: 0.1 | EM55: 0.1 | EN55: 0.1 | EO55: 0.1 | EP55: 0.1 | EQ55: 0.1 | ER55: 0.1 | ES55: 0.1 | ET55: 0.1 | EU55: 0.1 | EV55: 0.1 | EW55: 0.1 | EX55: 0.1 | EY55: 0.1 | EZ55: 0.1 | FA55: 0.1 | FB55: 0.1 | FC55: 0.1 | FD55: 0.1 | FE55: 0.1 | FF55: 0.1 | FG55: 0.1 | FH55: 0.1 | FI55: 0.1 | FJ55: 0.1 | FK55: 0.1 | FL55: 0.1 | FM55: 0.1 | FN55: 0.1 | FO55: 0.1 | FP55: 0.1 | FQ55: 0.1 | FR55: 0.1 | FS55: 0.1 | FT55: 0.1 | FU55: 0.1 | FV55: 0.1 | FW55: 0.1 | FX55: 0.1 | FY55: 0.1 | FZ55: 0.1 | GA55: 0.1 | GB55: 0.1 | GC55: 0.1 | GD55: 0.1 | GE55: 0.1 | GF55: 0.1 | GG55: 0.1 | GH55: 0.1 | GI55: 0.1 | GJ55: 0.1 | GK55: 0.1 | GL55: 0.1 | GM55: 0.1 | GN55: 0.1 | GO55: 0.1 | GP55: 0.1 | GQ55: =GP55 -> 0.1 | GR55: 0.1 | GS55: 0.1 | GT55: 0.1 | GU55: 0.1 | GV55: 0.1 | GW55: 0.1 | GX55: 0.1 | GY55: 0.1 | GZ55: 0.1 | HA55: 0.1 | HB55: 0.1 | HC55: 0.1 | HD55: 0.1 | HE55: 0.1 | HF55: 0.1 | HG55: 0.1 | HH55: 0.1 | HI55: 0.1 | HJ55: 0.1 | HK55: 0.1 | HL55: 0.1 | HM55: 0.1 | HN55: 0.1 | HO55: 0.1 | HP55: 0.1 | HQ55: 0.1 | HR55: 0.1 | HS55: 0.1 | HT55: 0.1 | HU55: 0.1 | HV55: 0.1 | HW55: 0.1 | HX55: 0.1 | HY55: 0.1 | HZ55: 0.1 | IA55: 0.1 | IB55: 0.1 | IC55: 0.1 | ID55: 0.1 | IE55: 0.1 | IF55: 0.1 | IG55: 0.1 | IH55: 0.1 | II55: 0.1 | IJ55: 0.1 | IK55: 0.1 | IL55: 0.1 | IM55: 0.1 | IN55: 0.1 | IO55: 0.1 | IP55: 0.1 | IQ55: 0.1 | IR55: 0.1 | IS55: 0.1 | IT55: 0.1 | IU55: 0.1 | IV55: 0.1
D56: Interest Rate for Flip | E56: =(1+$E$16)^(1/12)-1 -> 0.007974140429 | F56: =(1+F55)^(F54/365)-1 -> 0.008127688967 | G56: =(1+G55)^(G54/365)-1 -> 0.007601334196 | H56: 0.008127688967 | I56: 0.007864477221 | J56: 0.008127688967 | K56: 0.007864477221 | L56: 0.008127688967 | M56: 0.008127688967 | N56: 0.007864477221 | O56: 0.008127688967 | P56: 0.007864477221 | Q56: 0.008127688967 | R56: 0.008127688967 | S56: 0.007338259876 | T56: 0.008127688967 | U56: 0.007864477221 | V56: 0.008127688967 | W56: 0.007864477221 | X56: 0.008127688967 | Y56: 0.008127688967 | Z56: 0.007864477221 | AA56: 0.008127688967 | AB56: 0.007864477221 | AC56: 0.008127688967 | AD56: 0.008127688967 | AE56: 0.007338259876 | AF56: 0.008127688967 | AG56: 0.007864477221 | AH56: 0.008127688967 | AI56: 0.007864477221 | AJ56: 0.008127688967 | AK56: 0.008127688967 | AL56: 0.007864477221 | AM56: 0.008127688967 | AN56: 0.007864477221 | AO56: 0.008127688967 | AP56: 0.008127688967 | AQ56: 0.007338259876 | AR56: 0.008127688967 | AS56: 0.007864477221 | AT56: 0.008127688967 | AU56: 0.007864477221 | AV56: 0.008127688967 | AW56: 0.008127688967 | AX56: 0.007864477221 | AY56: 0.008127688967 | AZ56: 0.007864477221 | BA56: 0.008127688967 | BB56: 0.008127688967 | BC56: 0.007601334196 | BD56: 0.008127688967 | BE56: 0.007864477221 | BF56: 0.008127688967 | BG56: 0.007864477221 | BH56: 0.008127688967 | BI56: 0.008127688967 | BJ56: 0.007864477221 | BK56: 0.008127688967 | BL56: 0.007864477221 | BM56: 0.008127688967 | BN56: 0.008127688967 | BO56: 0.007338259876 | BP56: 0.008127688967 | BQ56: 0.007864477221 | BR56: 0.008127688967 | BS56: =(1+BS55)^(BS54/365)-1 -> 0.007864477221 | BT56: 0.008127688967 | BU56: 0.008127688967 | BV56: 0.007864477221 | BW56: 0.008127688967 | BX56: 0.007864477221 | BY56: 0.008127688967 | BZ56: 0.008127688967 | CA56: 0.007338259876 | CB56: 0.008127688967 | CC56: 0.007864477221 | CD56: 0.008127688967 | CE56: 0.007864477221 | CF56: 0.008127688967 | CG56: 0.008127688967 | CH56: 0.007864477221 | CI56: 0.008127688967 | CJ56: 0.007864477221 | CK56: 0.008127688967 | CL56: 0.008127688967 | CM56: 0.007338259876 | CN56: 0.008127688967 | CO56: 0.007864477221 | CP56: 0.008127688967 | CQ56: 0.007864477221 | CR56: 0.008127688967 | CS56: 0.008127688967 | CT56: 0.007864477221 | CU56: 0.008127688967 | CV56: 0.007864477221 | CW56: 0.008127688967 | CX56: 0.008127688967 | CY56: 0.007601334196 | CZ56: 0.008127688967 | DA56: 0.007864477221 | DB56: 0.008127688967 | DC56: 0.007864477221 | DD56: 0.008127688967 | DE56: 0.008127688967 | DF56: 0.007864477221 | DG56: 0.008127688967 | DH56: 0.007864477221 | DI56: 0.008127688967 | DJ56: 0.008127688967 | DK56: 0.007338259876 | DL56: 0.008127688967 | DM56: 0.007864477221 | DN56: 0.008127688967 | DO56: 0.007864477221 | DP56: 0.008127688967 | DQ56: 0.008127688967 | DR56: 0.007864477221 | DS56: 0.008127688967 | DT56: 0.007864477221 | DU56: 0.008127688967 | DV56: 0.008127688967 | DW56: 0.007338259876 | DX56: 0.008127688967 | DY56: 0.007864477221 | DZ56: 0.008127688967 | EA56: 0.007864477221 | EB56: 0.008127688967 | EC56: 0.008127688967 | ED56: 0.007864477221 | EE56: =(1+EE55)^(EE54/365)-1 -> 0.008127688967 | EF56: 0.007864477221 | EG56: 0.008127688967 | EH56: 0.008127688967 | EI56: 0.007338259876 | EJ56: 0.008127688967 | EK56: 0.007864477221 | EL56: 0.008127688967 | EM56: 0.007864477221 | EN56: 0.008127688967 | EO56: 0.008127688967 | EP56: 0.007864477221 | EQ56: 0.008127688967 | ER56: 0.007864477221 | ES56: 0.008127688967 | ET56: 0.0002611578761 | EU56: 0 | EV56: 0 | EW56: 0 | EX56: 0 | EY56: 0 | EZ56: 0 | FA56: 0 | FB56: 0 | FC56: 0 | FD56: 0 | FE56: 0 | FF56: 0 | FG56: 0 | FH56: 0 | FI56: 0 | FJ56: 0 | FK56: 0 | FL56: 0 | FM56: 0 | FN56: 0 | FO56: 0 | FP56: 0 | FQ56: 0 | FR56: 0 | FS56: 0 | FT56: 0 | FU56: 0 | FV56: 0 | FW56: 0 | FX56: 0 | FY56: 0 | FZ56: 0 | GA56: 0 | GB56: 0 | GC56: 0 | GD56: 0 | GE56: 0 | GF56: 0 | GG56: 0 | GH56: 0 | GI56: 0 | GJ56: 0 | GK56: 0 | GL56: 0 | GM56: 0 | GN56: 0 | GO56: 0 | GP56: 0 | GQ56: =(1+GQ55)^(GQ54/365)-1 -> 0 | GR56: 0 | GS56: 0 | GT56: 0 | GU56: 0 | GV56: 0 | GW56: 0 | GX56: 0 | GY56: 0 | GZ56: 0 | HA56: 0 | HB56: 0 | HC56: 0 | HD56: 0 | HE56: 0 | HF56: 0 | HG56: 0 | HH56: 0 | HI56: 0 | HJ56: 0 | HK56: 0 | HL56: 0 | HM56: 0 | HN56: 0 | HO56: 0 | HP56: 0 | HQ56: 0 | HR56: 0 | HS56: 0 | HT56: 0 | HU56: 0 | HV56: 0 | HW56: 0 | HX56: 0 | HY56: 0 | HZ56: 0 | IA56: 0 | IB56: 0 | IC56: 0 | ID56: 0 | IE56: 0 | IF56: 0 | IG56: 0 | IH56: 0 | II56: 0 | IJ56: 0 | IK56: 0 | IL56: 0 | IM56: 0 | IN56: 0 | IO56: 0 | IP56: 0 | IQ56: 0 | IR56: 0 | IS56: 0 | IT56: 0 | IU56: 0 | IV56: 0
C58: Yield tracking Account
D59: Opening Balance | F59: =E63 -> -800 | G59: =F63 -> -792.3354845 | H59: -784.1916247 | I59: -776.3986236 | J59: -768.3379262 | K59: -760.4160712 | L59: -752.2296794 | M59: -744.1769016 | N59: -736.0586734 | O59: -727.6807234 | P59: -719.4284193 | Q59: -710.919681 | R59: -702.5311484 | S59: -694.0744364 | T59: -685.0010683 | U59: -676.4018773 | V59: -667.5547578 | W59: -658.8137686 | X59: -649.8283278 | Y59: -640.9432636 | Z59: -631.9859845 | AA59: -622.7895572 | AB59: -613.6847303 | AC59: -604.3443732 | AD59: -595.0896297 | AE59: -585.7596664 | AF59: -575.8914564 | AG59: -566.4054564 | AH59: -556.6932725 | AI59: -547.0512356 | AJ59: -537.1868409 | AK59: -527.3862618 | AL59: -517.5060267 | AM59: -507.4092744 | AN59: -497.3666724 | AO59: -487.1115346 | AP59: -476.903959 | AQ59: -466.6134194 | AR59: -455.8708833 | AS59: -445.4093934 | AT59: -434.7456387 | AU59: -424.1124494 | AV59: -413.2812054 | AW59: -402.4735598 | AX59: -391.5780731 | AY59: -380.4909633 | AZ59: -369.4168088 | BA59: -358.1554122 | BB59: -346.8997213 | BC59: -335.5525477 | BD59: -323.9365281 | BE59: -312.4027168 | BF59: -300.6929341 | BG59: -288.9702061 | BH59: -277.0761391 | BI59: -265.1614611 | BJ59: -253.1499443 | BK59: -240.9741696 | BL59: -228.766066 | BM59: -216.3985249 | BN59: -203.9906781 | BO59: -191.4819842 | BP59: -178.7204621 | BQ59: -166.0063798 | BR59: -153.1452665 | BS59: =BR63 -> -140.2233169 | BT59: -127.1594334 | BU59: -114.026279 | BV59: -100.7863825 | BW59: -87.41234801 | BX59: -73.95614172 | BY59: -60.37110145 | BZ59: -46.69511232 | CA59: -32.907969 | CB59: -18.98278956 | CC59: -4.970409103 | CD59: 0 | CE59: 0 | CF59: 0 | CG59: 0 | CH59: 0 | CI59: 0 | CJ59: 0 | CK59: 0 | CL59: 0 | CM59: 0 | CN59: 0 | CO59: 0 | CP59: 0 | CQ59: 0 | CR59: 0 | CS59: 0 | CT59: 0 | CU59: 0 | CV59: 0 | CW59: 0 | CX59: 0 | CY59: 0 | CZ59: 0 | DA59: 0 | DB59: 0 | DC59: 0 | DD59: 0 | DE59: 0 | DF59: 0 | DG59: 0 | DH59: 0 | DI59: 0 | DJ59: 0 | DK59: 0 | DL59: 0 | DM59: 0 | DN59: 0 | DO59: 0 | DP59: 0 | DQ59: 0 | DR59: 0 | DS59: 0 | DT59: 0 | DU59: 0 | DV59: 0 | DW59: 0 | DX59: 0 | DY59: 0 | DZ59: 0 | EA59: 0 | EB59: 0 | EC59: 0 | ED59: 0 | EE59: =ED63 -> 0 | EF59: 0 | EG59: 0 | EH59: 0 | EI59: 0 | EJ59: 0 | EK59: 0 | EL59: 0 | EM59: 0 | EN59: 0 | EO59: 0 | EP59: 0 | EQ59: 0 | ER59: 0 | ES59: 0 | ET59: 0 | EU59: 0 | EV59: 0 | EW59: 0 | EX59: 0 | EY59: 0 | EZ59: 0 | FA59: 0 | FB59: 0 | FC59: 0 | FD59: 0 | FE59: 0 | FF59: 0 | FG59: 0 | FH59: 0 | FI59: 0 | FJ59: 0 | FK59: 0 | FL59: 0 | FM59: 0 | FN59: 0 | FO59: 0 | FP59: 0 | FQ59: 0 | FR59: 0 | FS59: 0 | FT59: 0 | FU59: 0 | FV59: 0 | FW59: 0 | FX59: 0 | FY59: 0 | FZ59: 0 | GA59: 0 | GB59: 0 | GC59: 0 | GD59: 0 | GE59: 0 | GF59: 0 | GG59: 0 | GH59: 0 | GI59: 0 | GJ59: 0 | GK59: 0 | GL59: 0 | GM59: 0 | GN59: 0 | GO59: 0 | GP59: 0 | GQ59: =GP63 -> 0 | GR59: 0 | GS59: 0 | GT59: 0 | GU59: 0 | GV59: 0 | GW59: 0 | GX59: 0 | GY59: 0 | GZ59: 0 | HA59: 0 | HB59: 0 | HC59: 0 | HD59: 0 | HE59: 0 | HF59: 0 | HG59: 0 | HH59: 0 | HI59: 0 | HJ59: 0 | HK59: 0 | HL59: 0 | HM59: 0 | HN59: 0 | HO59: 0 | HP59: 0 | HQ59: 0 | HR59: 0 | HS59: 0 | HT59: 0 | HU59: 0 | HV59: 0 | HW59: 0 | HX59: 0 | HY59: 0 | HZ59: 0 | IA59: 0 | IB59: 0 | IC59: 0 | ID59: 0 | IE59: 0 | IF59: 0 | IG59: 0 | IH59: 0 | II59: 0 | IJ59: 0 | IK59: 0 | IL59: 0 | IM59: 0 | IN59: 0 | IO59: 0 | IP59: 0 | IQ59: 0 | IR59: 0 | IS59: 0 | IT59: 0 | IU59: 0 | IV59: 0
D60: Add: Cost of Funds | F60: =F59*F56 -> -6.502151173 | G60: =G59*G56 -> -6.022806813 | H60: -6.373665616 | I60: -6.105969289 | J60: -6.244811686 | K60: -5.98027487 | L60: -6.113888866 | M60: -6.048438393 | N60: -5.78871667 | O60: -5.914362587 | P60: -5.657928415 | Q60: -5.778134048 | R60: -5.709954664 | S60: -5.093298588 | T60: -5.567475625 | U60: -5.319547156 | V60: -5.42567744 | W60: -5.181225876 | X60: -5.28160253 | Y60: -5.209387492 | Z60: -4.970239379 | AA60: -5.061839813 | AB60: -4.826309582 | AC60: -4.911923095 | AD60: -4.836703417 | AE60: -4.298456657 | AF60: -4.680666636 | AG60: -4.454482809 | AH60: -4.524629769 | AI60: -4.302271981 | AJ60: -4.36608756 | AK60: -4.286431502 | AL60: -4.069914358 | AM60: -4.124064761 | AN60: -3.911528866 | AO60: -3.959091046 | AP60: -3.876127046 | AQ60: -3.424130533 | AR60: -3.705176748 | AS60: -3.502912028 | AT60: -3.533477331 | AU60: -3.335422697 | AV60: -3.359021093 | AW60: -3.271179912 | AX60: -3.079556836 | AY60: -3.092512204 | AZ60: -2.905270078 | BA60: -2.910975792 | BB60: -2.819493038 | BC60: -2.550647055 | BD60: -2.632855345 | BE60: -2.45688405 | BF60: -2.443938643 | BG60: -2.272599604 | BH60: -2.251988678 | BI60: -2.155149882 | BJ60: -1.99089197 | BK60: -1.958563099 | BL60: -1.799125515 | BM60: -1.758819903 | BN60: -1.657972784 | BO60: -1.405144562 | BP60: -1.452584328 | BQ60: -1.305553392 | BR60: -1.244717093 | BS60: =BS59*BS56 -> -1.102783082 | BT60: -1.033512323 | BU60: -0.9267701298 | BV60: -0.7926322091 | BW60: -0.7104603765 | BX60: -0.5816263919 | BY60: -0.4906775352 | BZ60: -0.3795233492 | CA60: -0.2414872285 | CB60: -0.1542862093 | CC60: -0.03908966917 | CD60: 0 | CE60: 0 | CF60: 0 | CG60: 0 | CH60: 0 | CI60: 0 | CJ60: 0 | CK60: 0 | CL60: 0 | CM60: 0 | CN60: 0 | CO60: 0 | CP60: 0 | CQ60: 0 | CR60: 0 | CS60: 0 | CT60: 0 | CU60: 0 | CV60: 0 | CW60: 0 | CX60: 0 | CY60: 0 | CZ60: 0 | DA60: 0 | DB60: 0 | DC60: 0 | DD60: 0 | DE60: 0 | DF60: 0 | DG60: 0 | DH60: 0 | DI60: 0 | DJ60: 0 | DK60: 0 | DL60: 0 | DM60: 0 | DN60: 0 | DO60: 0 | DP60: 0 | DQ60: 0 | DR60: 0 | DS60: 0 | DT60: 0 | DU60: 0 | DV60: 0 | DW60: 0 | DX60: 0 | DY60: 0 | DZ60: 0 | EA60: 0 | EB60: 0 | EC60: 0 | ED60: 0 | EE60: =EE59*EE56 -> 0 | EF60: 0 | EG60: 0 | EH60: 0 | EI60: 0 | EJ60: 0 | EK60: 0 | EL60: 0 | EM60: 0 | EN60: 0 | EO60: 0 | EP60: 0 | EQ60: 0 | ER60: 0 | ES60: 0 | ET60: 0 | EU60: 0 | EV60: 0 | EW60: 0 | EX60: 0 | EY60: 0 | EZ60: 0 | FA60: 0 | FB60: 0 | FC60: 0 | FD60: 0 | FE60: 0 | FF60: 0 | FG60: 0 | FH60: 0 | FI60: 0 | FJ60: 0 | FK60: 0 | FL60: 0 | FM60: 0 | FN60: 0 | FO60: 0 | FP60: 0 | FQ60: 0 | FR60: 0 | FS60: 0 | FT60: 0 | FU60: 0 | FV60: 0 | FW60: 0 | FX60: 0 | FY60: 0 | FZ60: 0 | GA60: 0 | GB60: 0 | GC60: 0 | GD60: 0 | GE60: 0 | GF60: 0 | GG60: 0 | GH60: 0 | GI60: 0 | GJ60: 0 | GK60: 0 | GL60: 0 | GM60: 0 | GN60: 0 | GO60: 0 | GP60: 0 | GQ60: =GQ59*GQ56 -> 0 | GR60: 0 | GS60: 0 | GT60: 0 | GU60: 0 | GV60: 0 | GW60: 0 | GX60: 0 | GY60: 0 | GZ60: 0 | HA60: 0 | HB60: 0 | HC60: 0 | HD60: 0 | HE60: 0 | HF60: 0 | HG60: 0 | HH60: 0 | HI60: 0 | HJ60: 0 | HK60: 0 | HL60: 0 | HM60: 0 | HN60: 0 | HO60: 0 | HP60: 0 | HQ60: 0 | HR60: 0 | HS60: 0 | HT60: 0 | HU60: 0 | HV60: 0 | HW60: 0 | HX60: 0 | HY60: 0 | HZ60: 0 | IA60: 0 | IB60: 0 | IC60: 0 | ID60: 0 | IE60: 0 | IF60: 0 | IG60: 0 | IH60: 0 | II60: 0 | IJ60: 0 | IK60: 0 | IL60: 0 | IM60: 0 | IN60: 0 | IO60: 0 | IP60: 0 | IQ60: 0 | IR60: 0 | IS60: 0 | IT60: 0 | IU60: 0 | IV60: 0
D61: Sub-total | F61: =SUM(F59:F60) -> -806.5021512 | G61: =SUM(G59:G60) -> -798.3582913 | H61: -790.5652903 | I61: -782.5045929 | J61: -774.5827379 | K61: -766.3963461 | L61: -758.3435683 | M61: -750.22534 | N61: -741.84739 | O61: -733.595086 | P61: -725.0863477 | Q61: -716.6978151 | R61: -708.2411031 | S61: -699.167735 | T61: -690.568544 | U61: -681.7214245 | V61: -672.9804352 | W61: -663.9949944 | X61: -655.1099303 | Y61: -646.1526511 | Z61: -636.9562238 | AA61: -627.851397 | AB61: -618.5110399 | AC61: -609.2562963 | AD61: -599.9263331 | AE61: -590.0581231 | AF61: -580.572123 | AG61: -570.8599392 | AH61: -561.2179023 | AI61: -551.3535076 | AJ61: -541.5529285 | AK61: -531.6726933 | AL61: -521.575941 | AM61: -511.5333391 | AN61: -501.2782013 | AO61: -491.0706257 | AP61: -480.7800861 | AQ61: -470.0375499 | AR61: -459.57606 | AS61: -448.9123054 | AT61: -438.279116 | AU61: -427.4478721 | AV61: -416.6402265 | AW61: -405.7447398 | AX61: -394.6576299 | AY61: -383.5834755 | AZ61: -372.3220789 | BA61: -361.066388 | BB61: -349.7192144 | BC61: -338.1031948 | BD61: -326.5693834 | BE61: -314.8596008 | BF61: -303.1368728 | BG61: -291.2428057 | BH61: -279.3281277 | BI61: -267.316611 | BJ61: -255.1408363 | BK61: -242.9327327 | BL61: -230.5651915 | BM61: -218.1573448 | BN61: -205.6486509 | BO61: -192.8871288 | BP61: -180.1730464 | BQ61: -167.3119332 | BR61: -154.3899836 | BS61: =SUM(BS59:BS60) -> -141.3261 | BT61: -128.1929457 | BU61: -114.9530491 | BV61: -101.5790147 | BW61: -88.12280839 | BX61: -74.53776811 | BY61: -60.86177898 | BZ61: -47.07463567 | CA61: -33.14945623 | CB61: -19.13707577 | CC61: -5.009498772 | CD61: 0 | CE61: 0 | CF61: 0 | CG61: 0 | CH61: 0 | CI61: 0 | CJ61: 0 | CK61: 0 | CL61: 0 | CM61: 0 | CN61: 0 | CO61: 0 | CP61: 0 | CQ61: 0 | CR61: 0 | CS61: 0 | CT61: 0 | CU61: 0 | CV61: 0 | CW61: 0 | CX61: 0 | CY61: 0 | CZ61: 0 | DA61: 0 | DB61: 0 | DC61: 0 | DD61: 0 | DE61: 0 | DF61: 0 | DG61: 0 | DH61: 0 | DI61: 0 | DJ61: 0 | DK61: 0 | DL61: 0 | DM61: 0 | DN61: 0 | DO61: 0 | DP61: 0 | DQ61: 0 | DR61: 0 | DS61: 0 | DT61: 0 | DU61: 0 | DV61: 0 | DW61: 0 | DX61: 0 | DY61: 0 | DZ61: 0 | EA61: 0 | EB61: 0 | EC61: 0 | ED61: 0 | EE61: =SUM(EE59:EE60) -> 0 | EF61: 0 | EG61: 0 | EH61: 0 | EI61: 0 | EJ61: 0 | EK61: 0 | EL61: 0 | EM61: 0 | EN61: 0 | EO61: 0 | EP61: 0 | EQ61: 0 | ER61: 0 | ES61: 0 | ET61: 0 | EU61: 0 | EV61: 0 | EW61: 0 | EX61: 0 | EY61: 0 | EZ61: 0 | FA61: 0 | FB61: 0 | FC61: 0 | FD61: 0 | FE61: 0 | FF61: 0 | FG61: 0 | FH61: 0 | FI61: 0 | FJ61: 0 | FK61: 0 | FL61: 0 | FM61: 0 | FN61: 0 | FO61: 0 | FP61: 0 | FQ61: 0 | FR61: 0 | FS61: 0 | FT61: 0 | FU61: 0 | FV61: 0 | FW61: 0 | FX61: 0 | FY61: 0 | FZ61: 0 | GA61: 0 | GB61: 0 | GC61: 0 | GD61: 0 | GE61: 0 | GF61: 0 | GG61: 0 | GH61: 0 | GI61: 0 | GJ61: 0 | GK61: 0 | GL61: 0 | GM61: 0 | GN61: 0 | GO61: 0 | GP61: 0 | GQ61: =SUM(GQ59:GQ60) -> 0 | GR61: 0 | GS61: 0 | GT61: 0 | GU61: 0 | GV61: 0 | GW61: 0 | GX61: 0 | GY61: 0 | GZ61: 0 | HA61: 0 | HB61: 0 | HC61: 0 | HD61: 0 | HE61: 0 | HF61: 0 | HG61: 0 | HH61: 0 | HI61: 0 | HJ61: 0 | HK61: 0 | HL61: 0 | HM61: 0 | HN61: 0 | HO61: 0 | HP61: 0 | HQ61: 0 | HR61: 0 | HS61: 0 | HT61: 0 | HU61: 0 | HV61: 0 | HW61: 0 | HX61: 0 | HY61: 0 | HZ61: 0 | IA61: 0 | IB61: 0 | IC61: 0 | ID61: 0 | IE61: 0 | IF61: 0 | IG61: 0 | IH61: 0 | II61: 0 | IJ61: 0 | IK61: 0 | IL61: 0 | IM61: 0 | IN61: 0 | IO61: 0 | IP61: 0 | IQ61: 0 | IR61: 0 | IS61: 0 | IT61: 0 | IU61: 0 | IV61: 0
D62: Less: Dividends Received | F62: =MIN(-F61,F52) -> 14.16666667 | G62: =MIN(-G61,G52) -> 14.16666667 | H62: 14.16666667 | I62: 14.16666667 | J62: 14.16666667 | K62: 14.16666667 | L62: 14.16666667 | M62: 14.16666667 | N62: 14.16666667 | O62: 14.16666667 | P62: 14.16666667 | Q62: 14.16666667 | R62: 14.16666667 | S62: 14.16666667 | T62: 14.16666667 | U62: 14.16666667 | V62: 14.16666667 | W62: 14.16666667 | X62: 14.16666667 | Y62: 14.16666667 | Z62: 14.16666667 | AA62: 14.16666667 | AB62: 14.16666667 | AC62: 14.16666667 | AD62: 14.16666667 | AE62: 14.16666667 | AF62: 14.16666667 | AG62: 14.16666667 | AH62: 14.16666667 | AI62: 14.16666667 | AJ62: 14.16666667 | AK62: 14.16666667 | AL62: 14.16666667 | AM62: 14.16666667 | AN62: 14.16666667 | AO62: 14.16666667 | AP62: 14.16666667 | AQ62: 14.16666667 | AR62: 14.16666667 | AS62: 14.16666667 | AT62: 14.16666667 | AU62: 14.16666667 | AV62: 14.16666667 | AW62: 14.16666667 | AX62: 14.16666667 | AY62: 14.16666667 | AZ62: 14.16666667 | BA62: 14.16666667 | BB62: 14.16666667 | BC62: 14.16666667 | BD62: 14.16666667 | BE62: 14.16666667 | BF62: 14.16666667 | BG62: 14.16666667 | BH62: 14.16666667 | BI62: 14.16666667 | BJ62: 14.16666667 | BK62: 14.16666667 | BL62: 14.16666667 | BM62: 14.16666667 | BN62: 14.16666667 | BO62: 14.16666667 | BP62: 14.16666667 | BQ62: 14.16666667 | BR62: 14.16666667 | BS62: =MIN(-BS61,BS52) -> 14.16666667 | BT62: 14.16666667 | BU62: 14.16666667 | BV62: 14.16666667 | BW62: 14.16666667 | BX62: 14.16666667 | BY62: 14.16666667 | BZ62: 14.16666667 | CA62: 14.16666667 | CB62: 14.16666667 | CC62: 5.009498772 | CD62: 0 | CE62: 0 | CF62: 0 | CG62: 0 | CH62: 0 | CI62: 0 | CJ62: 0 | CK62: 0 | CL62: 0 | CM62: 0 | CN62: 0 | CO62: 0 | CP62: 0 | CQ62: 0 | CR62: 0 | CS62: 0 | CT62: 0 | CU62: 0 | CV62: 0 | CW62: 0 | CX62: 0 | CY62: 0 | CZ62: 0 | DA62: 0 | DB62: 0 | DC62: 0 | DD62: 0 | DE62: 0 | DF62: 0 | DG62: 0 | DH62: 0 | DI62: 0 | DJ62: 0 | DK62: 0 | DL62: 0 | DM62: 0 | DN62: 0 | DO62: 0 | DP62: 0 | DQ62: 0 | DR62: 0 | DS62: 0 | DT62: 0 | DU62: 0 | DV62: 0 | DW62: 0 | DX62: 0 | DY62: 0 | DZ62: 0 | EA62: 0 | EB62: 0 | EC62: 0 | ED62: 0 | EE62: =MIN(-EE61,EE52) -> 0 | EF62: 0 | EG62: 0 | EH62: 0 | EI62: 0 | EJ62: 0 | EK62: 0 | EL62: 0 | EM62: 0 | EN62: 0 | EO62: 0 | EP62: 0 | EQ62: 0 | ER62: 0 | ES62: 0 | ET62: 0 | EU62: 0 | EV62: 0 | EW62: 0 | EX62: 0 | EY62: 0 | EZ62: 0 | FA62: 0 | FB62: 0 | FC62: 0 | FD62: 0 | FE62: 0 | FF62: 0 | FG62: 0 | FH62: 0 | FI62: 0 | FJ62: 0 | FK62: 0 | FL62: 0 | FM62: 0 | FN62: 0 | FO62: 0 | FP62: 0 | FQ62: 0 | FR62: 0 | FS62: 0 | FT62: 0 | FU62: 0 | FV62: 0 | FW62: 0 | FX62: 0 | FY62: 0 | FZ62: 0 | GA62: 0 | GB62: 0 | GC62: 0 | GD62: 0 | GE62: 0 | GF62: 0 | GG62: 0 | GH62: 0 | GI62: 0 | GJ62: 0 | GK62: 0 | GL62: 0 | GM62: 0 | GN62: 0 | GO62: 0 | GP62: 0 | GQ62: =MIN(-GQ61,GQ52) -> 0 | GR62: 0 | GS62: 0 | GT62: 0 | GU62: 0 | GV62: 0 | GW62: 0 | GX62: 0 | GY62: 0 | GZ62: 0 | HA62: 0 | HB62: 0 | HC62: 0 | HD62: 0 | HE62: 0 | HF62: 0 | HG62: 0 | HH62: 0 | HI62: 0 | HJ62: 0 | HK62: 0 | HL62: 0 | HM62: 0 | HN62: 0 | HO62: 0 | HP62: 0 | HQ62: 0 | HR62: 0 | HS62: 0 | HT62: 0 | HU62: 0 | HV62: 0 | HW62: 0 | HX62: 0 | HY62: 0 | HZ62: 0 | IA62: 0 | IB62: 0 | IC62: 0 | ID62: 0 | IE62: 0 | IF62: 0 | IG62: 0 | IH62: 0 | II62: 0 | IJ62: 0 | IK62: 0 | IL62: 0 | IM62: 0 | IN62: 0 | IO62: 0 | IP62: 0 | IQ62: 0 | IR62: 0 | IS62: 0 | IT62: 0 | IU62: 0 | IV62: 0
D63: Closing Balance of Investment Value | E63: =-E19*E13 -> -800 | F63: =F61+F62 -> -792.3354845 | G63: =G61+G62 -> -784.1916247 | H63: -776.3986236 | I63: -768.3379262 | J63: -760.4160712 | K63: -752.2296794 | L63: -744.1769016 | M63: -736.0586734 | N63: -727.6807234 | O63: -719.4284193 | P63: -710.919681 | Q63: -702.5311484 | R63: -694.0744364 | S63: -685.0010683 | T63: -676.4018773 | U63: -667.5547578 | V63: -658.8137686 | W63: -649.8283278 | X63: -640.9432636 | Y63: -631.9859845 | Z63: -622.7895572 | AA63: -613.6847303 | AB63: -604.3443732 | AC63: -595.0896297 | AD63: -585.7596664 | AE63: -575.8914564 | AF63: -566.4054564 | AG63: -556.6932725 | AH63: -547.0512356 | AI63: -537.1868409 | AJ63: -527.3862618 | AK63: -517.5060267 | AL63: -507.4092744 | AM63: -497.3666724 | AN63: -487.1115346 | AO63: -476.903959 | AP63: -466.6134194 | AQ63: -455.8708833 | AR63: -445.4093934 | AS63: -434.7456387 | AT63: -424.1124494 | AU63: -413.2812054 | AV63: -402.4735598 | AW63: -391.5780731 | AX63: -380.4909633 | AY63: -369.4168088 | AZ63: -358.1554122 | BA63: -346.8997213 | BB63: -335.5525477 | BC63: -323.9365281 | BD63: -312.4027168 | BE63: -300.6929341 | BF63: -288.9702061 | BG63: -277.0761391 | BH63: -265.1614611 | BI63: -253.1499443 | BJ63: -240.9741696 | BK63: -228.766066 | BL63: -216.3985249 | BM63: -203.9906781 | BN63: -191.4819842 | BO63: -178.7204621 | BP63: -166.0063798 | BQ63: -153.1452665 | BR63: -140.2233169 | BS63: =BS61+BS62 -> -127.1594334 | BT63: -114.026279 | BU63: -100.7863825 | BV63: -87.41234801 | BW63: -73.95614172 | BX63: -60.37110145 | BY63: -46.69511232 | BZ63: -32.907969 | CA63: -18.98278956 | CB63: -4.970409103 | CC63: 0 | CD63: 0 | CE63: 0 | CF63: 0 | CG63: 0 | CH63: 0 | CI63: 0 | CJ63: 0 | CK63: 0 | CL63: 0 | CM63: 0 | CN63: 0 | CO63: 0 | CP63: 0 | CQ63: 0 | CR63: 0 | CS63: 0 | CT63: 0 | CU63: 0 | CV63: 0 | CW63: 0 | CX63: 0 | CY63: 0 | CZ63: 0 | DA63: 0 | DB63: 0 | DC63: 0 | DD63: 0 | DE63: 0 | DF63: 0 | DG63: 0 | DH63: 0 | DI63: 0 | DJ63: 0 | DK63: 0 | DL63: 0 | DM63: 0 | DN63: 0 | DO63: 0 | DP63: 0 | DQ63: 0 | DR63: 0 | DS63: 0 | DT63: 0 | DU63: 0 | DV63: 0 | DW63: 0 | DX63: 0 | DY63: 0 | DZ63: 0 | EA63: 0 | EB63: 0 | EC63: 0 | ED63: 0 | EE63: =EE61+EE62 -> 0 | EF63: 0 | EG63: 0 | EH63: 0 | EI63: 0 | EJ63: 0 | EK63: 0 | EL63: 0 | EM63: 0 | EN63: 0 | EO63: 0 | EP63: 0 | EQ63: 0 | ER63: 0 | ES63: 0 | ET63: 0 | EU63: 0 | EV63: 0 | EW63: 0 | EX63: 0 | EY63: 0 | EZ63: 0 | FA63: 0 | FB63: 0 | FC63: 0 | FD63: 0 | FE63: 0 | FF63: 0 | FG63: 0 | FH63: 0 | FI63: 0 | FJ63: 0 | FK63: 0 | FL63: 0 | FM63: 0 | FN63: 0 | FO63: 0 | FP63: 0 | FQ63: 0 | FR63: 0 | FS63: 0 | FT63: 0 | FU63: 0 | FV63: 0 | FW63: 0 | FX63: 0 | FY63: 0 | FZ63: 0 | GA63: 0 | GB63: 0 | GC63: 0 | GD63: 0 | GE63: 0 | GF63: 0 | GG63: 0 | GH63: 0 | GI63: 0 | GJ63: 0 | GK63: 0 | GL63: 0 | GM63: 0 | GN63: 0 | GO63: 0 | GP63: 0 | GQ63: =GQ61+GQ62 -> 0 | GR63: 0 | GS63: 0 | GT63: 0 | GU63: 0 | GV63: 0 | GW63: 0 | GX63: 0 | GY63: 0 | GZ63: 0 | HA63: 0 | HB63: 0 | HC63: 0 | HD63: 0 | HE63: 0 | HF63: 0 | HG63: 0 | HH63: 0 | HI63: 0 | HJ63: 0 | HK63: 0 | HL63: 0 | HM63: 0 | HN63: 0 | HO63: 0 | HP63: 0 | HQ63: 0 | HR63: 0 | HS63: 0 | HT63: 0 | HU63: 0 | HV63: 0 | HW63: 0 | HX63: 0 | HY63: 0 | HZ63: 0 | IA63: 0 | IB63: 0 | IC63: 0 | ID63: 0 | IE63: 0 | IF63: 0 | IG63: 0 | IH63: 0 | II63: 0 | IJ63: 0 | IK63: 0 | IL63: 0 | IM63: 0 | IN63: 0 | IO63: 0 | IP63: 0 | IQ63: 0 | IR63: 0 | IS63: 0 | IT63: 0 | IU63: 0 | IV63: 0
D65: Percent of Pre-flip Period | F65: =IF(F52,F62/F52) -> 1 | G65: =IF(G52,G62/G52) -> 1 | H65: 1 | I65: 1 | J65: 1 | K65: 1 | L65: 1 | M65: 1 | N65: 1 | O65: 1 | P65: 1 | Q65: 1 | R65: 1 | S65: 1 | T65: 1 | U65: 1 | V65: 1 | W65: 1 | X65: 1 | Y65: 1 | Z65: 1 | AA65: 1 | AB65: 1 | AC65: 1 | AD65: 1 | AE65: 1 | AF65: 1 | AG65: 1 | AH65: 1 | AI65: 1 | AJ65: 1 | AK65: 1 | AL65: 1 | AM65: 1 | AN65: 1 | AO65: 1 | AP65: 1 | AQ65: 1 | AR65: 1 | AS65: 1 | AT65: 1 | AU65: 1 | AV65: 1 | AW65: 1 | AX65: 1 | AY65: 1 | AZ65: 1 | BA65: 1 | BB65: 1 | BC65: 1 | BD65: 1 | BE65: 1 | BF65: 1 | BG65: 1 | BH65: 1 | BI65: 1 | BJ65: 1 | BK65: 1 | BL65: 1 | BM65: 1 | BN65: 1 | BO65: 1 | BP65: 1 | BQ65: 1 | BR65: 1 | BS65: =IF(BS52,BS62/BS52) -> 1 | BT65: 1 | BU65: 1 | BV65: 1 | BW65: 1 | BX65: 1 | BY65: 1 | BZ65: 1 | CA65: 1 | CB65: 1 | CC65: 0.353611678 | CD65: 0 | CE65: 0 | CF65: 0 | CG65: 0 | CH65: 0 | CI65: 0 | CJ65: 0 | CK65: 0 | CL65: 0 | CM65: 0 | CN65: 0 | CO65: 0 | CP65: 0 | CQ65: 0 | CR65: 0 | CS65: 0 | CT65: 0 | CU65: 0 | CV65: 0 | CW65: 0 | CX65: 0 | CY65: 0 | CZ65: 0 | DA65: 0 | DB65: 0 | DC65: 0 | DD65: 0 | DE65: 0 | DF65: 0 | DG65: 0 | DH65: 0 | DI65: 0 | DJ65: 0 | DK65: 0 | DL65: 0 | DM65: 0 | DN65: 0 | DO65: 0 | DP65: 0 | DQ65: 0 | DR65: 0 | DS65: 0 | DT65: 0 | DU65: 0 | DV65: 0 | DW65: 0 | DX65: 0 | DY65: 0 | DZ65: 0 | EA65: 0 | EB65: 0 | EC65: 0 | ED65: 0 | EE65: =IF(EE52,EE62/EE52) -> 0 | EF65: 0 | EG65: 0 | EH65: 0 | EI65: 0 | EJ65: 0 | EK65: 0 | EL65: 0 | EM65: 0 | EN65: 0 | EO65: 0 | EP65: 0 | EQ65: 0 | ER65: 0 | ES65: 0 | ET65: 0 | EU65: FALSE | EV65: FALSE | EW65: FALSE | EX65: FALSE | EY65: FALSE | EZ65: FALSE | FA65: FALSE | FB65: FALSE | FC65: FALSE | FD65: FALSE | FE65: FALSE | FF65: FALSE | FG65: FALSE | FH65: FALSE | FI65: FALSE | FJ65: FALSE | FK65: FALSE | FL65: FALSE | FM65: FALSE | FN65: FALSE | FO65: FALSE | FP65: FALSE | FQ65: FALSE | FR65: FALSE | FS65: FALSE | FT65: FALSE | FU65: FALSE | FV65: FALSE | FW65: FALSE | FX65: FALSE | FY65: FALSE | FZ65: FALSE | GA65: FALSE | GB65: FALSE | GC65: FALSE | GD65: FALSE | GE65: FALSE | GF65: FALSE | GG65: FALSE | GH65: FALSE | GI65: FALSE | GJ65: FALSE | GK65: FALSE | GL65: FALSE | GM65: FALSE | GN65: FALSE | GO65: FALSE | GP65: FALSE | GQ65: =IF(GQ52,GQ62/GQ52) -> FALSE | GR65: FALSE | GS65: FALSE | GT65: FALSE | GU65: FALSE | GV65: FALSE | GW65: FALSE | GX65: FALSE | GY65: FALSE | GZ65: FALSE | HA65: FALSE | HB65: FALSE | HC65: FALSE | HD65: FALSE | HE65: FALSE | HF65: FALSE | HG65: FALSE | HH65: FALSE | HI65: FALSE | HJ65: FALSE | HK65: FALSE | HL65: FALSE | HM65: FALSE | HN65: FALSE | HO65: FALSE | HP65: FALSE | HQ65: FALSE | HR65: FALSE | HS65: FALSE | HT65: FALSE | HU65: FALSE | HV65: FALSE | HW65: FALSE | HX65: FALSE | HY65: FALSE | HZ65: FALSE | IA65: FALSE | IB65: FALSE | IC65: FALSE | ID65: FALSE | IE65: FALSE | IF65: FALSE | IG65: FALSE | IH65: FALSE | II65: FALSE | IJ65: FALSE | IK65: FALSE | IL65: FALSE | IM65: FALSE | IN65: FALSE | IO65: FALSE | IP65: FALSE | IQ65: FALSE | IR65: FALSE | IS65: FALSE | IT65: FALSE | IU65: FALSE | IV65: FALSE
D67: Pre-flip Cash Flow | E67: =E63 -> -800 | F67: =F62 -> 14.16666667 | G67: =G62 -> 14.16666667 | H67: 14.16666667 | I67: 14.16666667 | J67: 14.16666667 | K67: 14.16666667 | L67: 14.16666667 | M67: 14.16666667 | N67: 14.16666667 | O67: 14.16666667 | P67: 14.16666667 | Q67: 14.16666667 | R67: 14.16666667 | S67: 14.16666667 | T67: 14.16666667 | U67: 14.16666667 | V67: 14.16666667 | W67: 14.16666667 | X67: 14.16666667 | Y67: 14.16666667 | Z67: 14.16666667 | AA67: 14.16666667 | AB67: 14.16666667 | AC67: 14.16666667 | AD67: 14.16666667 | AE67: 14.16666667 | AF67: 14.16666667 | AG67: 14.16666667 | AH67: 14.16666667 | AI67: 14.16666667 | AJ67: 14.16666667 | AK67: 14.16666667 | AL67: 14.16666667 | AM67: 14.16666667 | AN67: 14.16666667 | AO67: 14.16666667 | AP67: 14.16666667 | AQ67: 14.16666667 | AR67: 14.16666667 | AS67: 14.16666667 | AT67: 14.16666667 | AU67: 14.16666667 | AV67: 14.16666667 | AW67: 14.16666667 | AX67: 14.16666667 | AY67: 14.16666667 | AZ67: 14.16666667 | BA67: 14.16666667 | BB67: 14.16666667 | BC67: 14.16666667 | BD67: 14.16666667 | BE67: 14.16666667 | BF67: 14.16666667 | BG67: 14.16666667 | BH67: 14.16666667 | BI67: 14.16666667 | BJ67: 14.16666667 | BK67: 14.16666667 | BL67: 14.16666667 | BM67: 14.16666667 | BN67: 14.16666667 | BO67: 14.16666667 | BP67: 14.16666667 | BQ67: 14.16666667 | BR67: 14.16666667 | BS67: =BS62 -> 14.16666667 | BT67: 14.16666667 | BU67: 14.16666667 | BV67: 14.16666667 | BW67: 14.16666667 | BX67: 14.16666667 | BY67: 14.16666667 | BZ67: 14.16666667 | CA67: 14.16666667 | CB67: 14.16666667 | CC67: 5.009498772 | CD67: 0 | CE67: 0 | CF67: 0 | CG67: 0 | CH67: 0 | CI67: 0 | CJ67: 0 | CK67: 0 | CL67: 0 | CM67: 0 | CN67: 0 | CO67: 0 | CP67: 0 | CQ67: 0 | CR67: 0 | CS67: 0 | CT67: 0 | CU67: 0 | CV67: 0 | CW67: 0 | CX67: 0 | CY67: 0 | CZ67: 0 | DA67: 0 | DB67: 0 | DC67: 0 | DD67: 0 | DE67: 0 | DF67: 0 | DG67: 0 | DH67: 0 | DI67: 0 | DJ67: 0 | DK67: 0 | DL67: 0 | DM67: 0 | DN67: 0 | DO67: 0 | DP67: 0 | DQ67: 0 | DR67: 0 | DS67: 0 | DT67: 0 | DU67: 0 | DV67: 0 | DW67: 0 | DX67: 0 | DY67: 0 | DZ67: 0 | EA67: 0 | EB67: 0 | EC67: 0 | ED67: 0 | EE67: =EE62 -> 0 | EF67: 0 | EG67: 0 | EH67: 0 | EI67: 0 | EJ67: 0 | EK67: 0 | EL67: 0 | EM67: 0 | EN67: 0 | EO67: 0 | EP67: 0 | EQ67: 0 | ER67: 0 | ES67: 0 | ET67: 0 | EU67: 0 | EV67: 0 | EW67: 0 | EX67: 0 | EY67: 0 | EZ67: 0 | FA67: 0 | FB67: 0 | FC67: 0 | FD67: 0 | FE67: 0 | FF67: 0 | FG67: 0 | FH67: 0 | FI67: 0 | FJ67: 0 | FK67: 0 | FL67: 0 | FM67: 0 | FN67: 0 | FO67: 0 | FP67: 0 | FQ67: 0 | FR67: 0 | FS67: 0 | FT67: 0 | FU67: 0 | FV67: 0 | FW67: 0 | FX67: 0 | FY67: 0 | FZ67: 0 | GA67: 0 | GB67: 0 | GC67: 0 | GD67: 0 | GE67: 0 | GF67: 0 | GG67: 0 | GH67: 0 | GI67: 0 | GJ67: 0 | GK67: 0 | GL67: 0 | GM67: 0 | GN67: 0 | GO67: 0 | GP67: 0 | GQ67: =GQ62 -> 0 | GR67: 0 | GS67: 0 | GT67: 0 | GU67: 0 | GV67: 0 | GW67: 0 | GX67: 0 | GY67: 0 | GZ67: 0 | HA67: 0 | HB67: 0 | HC67: 0 | HD67: 0 | HE67: 0 | HF67: 0 | HG67: 0 | HH67: 0 | HI67: 0 | HJ67: 0 | HK67: 0 | HL67: 0 | HM67: 0 | HN67: 0 | HO67: 0 | HP67: 0 | HQ67: 0 | HR67: 0 | HS67: 0 | HT67: 0 | HU67: 0 | HV67: 0 | HW67: 0 | HX67: 0 | HY67: 0 | HZ67: 0 | IA67: 0 | IB67: 0 | IC67: 0 | ID67: 0 | IE67: 0 | IF67: 0 | IG67: 0 | IH67: 0 | II67: 0 | IJ67: 0 | IK67: 0 | IL67: 0 | IM67: 0 | IN67: 0 | IO67: 0 | IP67: 0 | IQ67: 0 | IR67: 0 | IS67: 0 | IT67: 0 | IU67: 0 | IV67: 0
D68: Pre-flip IRR Check | E68: =XIRR(#REF!,#REF!) -> 
C70: Determination of Flip Date
D71: Match of Flip Column | E71: =MATCH(0,F59:IV59,0)-1 -> 76
D72: Percent of Pre-flip in Flip Period | E72: =INDEX(F65:IV65,E71) -> 0.353611678
D73: Start Date in Flip Period | E73: =INDEX(F33:IV33,E71) -> 2018-04-01
D74: End of Flip Period | E74: =EOMONTH(E73,0) -> 2018-04-30
D75: Flip Date | E75: =(E74-E73)*E72+E73 -> 2018-04-11T06:06:49.420
D77: Total Cash Flow Post Flip | F77: =F49*F37 -> 0 | G77: =G49*G37 -> 0 | H77: 0 | I77: 0 | J77: 0 | K77: 0 | L77: 0 | M77: 0 | N77: 0 | O77: 0 | P77: 0 | Q77: 0 | R77: 0 | S77: 0 | T77: 0 | U77: 0 | V77: 0 | W77: 0 | X77: 0 | Y77: 0 | Z77: 0 | AA77: 0 | AB77: 0 | AC77: 0 | AD77: 0 | AE77: 0 | AF77: 0 | AG77: 0 | AH77: 0 | AI77: 0 | AJ77: 0 | AK77: 0 | AL77: 0 | AM77: 0 | AN77: 0 | AO77: 0 | AP77: 0 | AQ77: 0 | AR77: 0 | AS77: 0 | AT77: 0 | AU77: 0 | AV77: 0 | AW77: 0 | AX77: 0 | AY77: 0 | AZ77: 0 | BA77: 0 | BB77: 0 | BC77: 0 | BD77: 0 | BE77: 0 | BF77: 0 | BG77: 0 | BH77: 0 | BI77: 0 | BJ77: 0 | BK77: 0 | BL77: 0 | BM77: 0 | BN77: 0 | BO77: 0 | BP77: 0 | BQ77: 0 | BR77: 0 | BS77: =BS49*BS37 -> 0 | BT77: 0 | BU77: 0 | BV77: 0 | BW77: 0 | BX77: 0 | BY77: 0 | BZ77: 0 | CA77: 0 | CB77: 0 | CC77: 0 | CD77: 11.11111111 | CE77: 16.66666667 | CF77: 16.66666667 | CG77: 16.66666667 | CH77: 16.66666667 | CI77: 16.66666667 | CJ77: 16.66666667 | CK77: 16.66666667 | CL77: 16.66666667 | CM77: 16.66666667 | CN77: 16.66666667 | CO77: 16.66666667 | CP77: 16.66666667 | CQ77: 16.66666667 | CR77: 16.66666667 | CS77: 16.66666667 | CT77: 16.66666667 | CU77: 16.66666667 | CV77: 16.66666667 | CW77: 16.66666667 | CX77: 16.66666667 | CY77: 16.66666667 | CZ77: 16.66666667 | DA77: 16.66666667 | DB77: 16.66666667 | DC77: 16.66666667 | DD77: 16.66666667 | DE77: 16.66666667 | DF77: 16.66666667 | DG77: 16.66666667 | DH77: 16.66666667 | DI77: 16.66666667 | DJ77: 16.66666667 | DK77: 16.66666667 | DL77: 16.66666667 | DM77: 16.66666667 | DN77: 16.66666667 | DO77: 16.66666667 | DP77: 16.66666667 | DQ77: 16.66666667 | DR77: 16.66666667 | DS77: 16.66666667 | DT77: 16.66666667 | DU77: 16.66666667 | DV77: 16.66666667 | DW77: 16.66666667 | DX77: 16.66666667 | DY77: 16.66666667 | DZ77: 16.66666667 | EA77: 16.66666667 | EB77: 16.66666667 | EC77: 16.66666667 | ED77: 16.66666667 | EE77: =EE49*EE37 -> 16.66666667 | EF77: 16.66666667 | EG77: 16.66666667 | EH77: 16.66666667 | EI77: 16.66666667 | EJ77: 16.66666667 | EK77: 16.66666667 | EL77: 16.66666667 | EM77: 16.66666667 | EN77: 16.66666667 | EO77: 16.66666667 | EP77: 16.66666667 | EQ77: 16.66666667 | ER77: 16.66666667 | ES77: 16.66666667 | ET77: 16.66666667 | EU77: 0 | EV77: 0 | EW77: 0 | EX77: 0 | EY77: 0 | EZ77: 0 | FA77: 0 | FB77: 0 | FC77: 0 | FD77: 0 | FE77: 0 | FF77: 0 | FG77: 0 | FH77: 0 | FI77: 0 | FJ77: 0 | FK77: 0 | FL77: 0 | FM77: 0 | FN77: 0 | FO77: 0 | FP77: 0 | FQ77: 0 | FR77: 0 | FS77: 0 | FT77: 0 | FU77: 0 | FV77: 0 | FW77: 0 | FX77: 0 | FY77: 0 | FZ77: 0 | GA77: 0 | GB77: 0 | GC77: 0 | GD77: 0 | GE77: 0 | GF77: 0 | GG77: 0 | GH77: 0 | GI77: 0 | GJ77: 0 | GK77: 0 | GL77: 0 | GM77: 0 | GN77: 0 | GO77: 0 | GP77: 0 | GQ77: =GQ49*GQ37 -> 0 | GR77: 0 | GS77: 0 | GT77: 0 | GU77: 0 | GV77: 0 | GW77: 0 | GX77: 0 | GY77: 0 | GZ77: 0 | HA77: 0 | HB77: 0 | HC77: 0 | HD77: 0 | HE77: 0 | HF77: 0 | HG77: 0 | HH77: 0 | HI77: 0 | HJ77: 0 | HK77: 0 | HL77: 0 | HM77: 0 | HN77: 0 | HO77: 0 | HP77: 0 | HQ77: 0 | HR77: 0 | HS77: 0 | HT77: 0 | HU77: 0 | HV77: 0 | HW77: 0 | HX77: 0 | HY77: 0 | HZ77: 0 | IA77: 0 | IB77: 0 | IC77: 0 | ID77: 0 | IE77: 0 | IF77: 0 | IG77: 0 | IH77: 0 | II77: 0 | IJ77: 0 | IK77: 0 | IL77: 0 | IM77: 0 | IN77: 0 | IO77: 0 | IP77: 0 | IQ77: 0 | IR77: 0 | IS77: 0 | IT77: 0 | IU77: 0 | IV77: 0
D78: Post-flip Percentage | E78: =$G$13 -> 0.11 | F78: =E78 -> 0.11 | G78: =F78 -> 0.11 | H78: 0.11 | I78: 0.11 | J78: 0.11 | K78: 0.11 | L78: 0.11 | M78: 0.11 | N78: 0.11 | O78: 0.11 | P78: 0.11 | Q78: 0.11 | R78: 0.11 | S78: 0.11 | T78: 0.11 | U78: 0.11 | V78: 0.11 | W78: 0.11 | X78: 0.11 | Y78: 0.11 | Z78: 0.11 | AA78: 0.11 | AB78: 0.11 | AC78: 0.11 | AD78: 0.11 | AE78: 0.11 | AF78: 0.11 | AG78: 0.11 | AH78: 0.11 | AI78: 0.11 | AJ78: 0.11 | AK78: 0.11 | AL78: 0.11 | AM78: 0.11 | AN78: 0.11 | AO78: 0.11 | AP78: 0.11 | AQ78: 0.11 | AR78: 0.11 | AS78: 0.11 | AT78: 0.11 | AU78: 0.11 | AV78: 0.11 | AW78: 0.11 | AX78: 0.11 | AY78: 0.11 | AZ78: 0.11 | BA78: 0.11 | BB78: 0.11 | BC78: 0.11 | BD78: 0.11 | BE78: 0.11 | BF78: 0.11 | BG78: 0.11 | BH78: 0.11 | BI78: 0.11 | BJ78: 0.11 | BK78: 0.11 | BL78: 0.11 | BM78: 0.11 | BN78: 0.11 | BO78: 0.11 | BP78: 0.11 | BQ78: 0.11 | BR78: 0.11 | BS78: =BR78 -> 0.11 | BT78: 0.11 | BU78: 0.11 | BV78: 0.11 | BW78: 0.11 | BX78: 0.11 | BY78: 0.11 | BZ78: 0.11 | CA78: 0.11 | CB78: 0.11 | CC78: 0.11 | CD78: 0.11 | CE78: 0.11 | CF78: 0.11 | CG78: 0.11 | CH78: 0.11 | CI78: 0.11 | CJ78: 0.11 | CK78: 0.11 | CL78: 0.11 | CM78: 0.11 | CN78: 0.11 | CO78: 0.11 | CP78: 0.11 | CQ78: 0.11 | CR78: 0.11 | CS78: 0.11 | CT78: 0.11 | CU78: 0.11 | CV78: 0.11 | CW78: 0.11 | CX78: 0.11 | CY78: 0.11 | CZ78: 0.11 | DA78: 0.11 | DB78: 0.11 | DC78: 0.11 | DD78: 0.11 | DE78: 0.11 | DF78: 0.11 | DG78: 0.11 | DH78: 0.11 | DI78: 0.11 | DJ78: 0.11 | DK78: 0.11 | DL78: 0.11 | DM78: 0.11 | DN78: 0.11 | DO78: 0.11 | DP78: 0.11 | DQ78: 0.11 | DR78: 0.11 | DS78: 0.11 | DT78: 0.11 | DU78: 0.11 | DV78: 0.11 | DW78: 0.11 | DX78: 0.11 | DY78: 0.11 | DZ78: 0.11 | EA78: 0.11 | EB78: 0.11 | EC78: 0.11 | ED78: 0.11 | EE78: =ED78 -> 0.11 | EF78: 0.11 | EG78: 0.11 | EH78: 0.11 | EI78: 0.11 | EJ78: 0.11 | EK78: 0.11 | EL78: 0.11 | EM78: 0.11 | EN78: 0.11 | EO78: 0.11 | EP78: 0.11 | EQ78: 0.11 | ER78: 0.11 | ES78: 0.11 | ET78: 0.11 | EU78: 0.11 | EV78: 0.11 | EW78: 0.11 | EX78: 0.11 | EY78: 0.11 | EZ78: 0.11 | FA78: 0.11 | FB78: 0.11 | FC78: 0.11 | FD78: 0.11 | FE78: 0.11 | FF78: 0.11 | FG78: 0.11 | FH78: 0.11 | FI78: 0.11 | FJ78: 0.11 | FK78: 0.11 | FL78: 0.11 | FM78: 0.11 | FN78: 0.11 | FO78: 0.11 | FP78: 0.11 | FQ78: 0.11 | FR78: 0.11 | FS78: 0.11 | FT78: 0.11 | FU78: 0.11 | FV78: 0.11 | FW78: 0.11 | FX78: 0.11 | FY78: 0.11 | FZ78: 0.11 | GA78: 0.11 | GB78: 0.11 | GC78: 0.11 | GD78: 0.11 | GE78: 0.11 | GF78: 0.11 | GG78: 0.11 | GH78: 0.11 | GI78: 0.11 | GJ78: 0.11 | GK78: 0.11 | GL78: 0.11 | GM78: 0.11 | GN78: 0.11 | GO78: 0.11 | GP78: 0.11 | GQ78: =GP78 -> 0.11 | GR78: 0.11 | GS78: 0.11 | GT78: 0.11 | GU78: 0.11 | GV78: 0.11 | GW78: 0.11 | GX78: 0.11 | GY78: 0.11 | GZ78: 0.11 | HA78: 0.11 | HB78: 0.11 | HC78: 0.11 | HD78: 0.11 | HE78: 0.11 | HF78: 0.11 | HG78: 0.11 | HH78: 0.11 | HI78: 0.11 | HJ78: 0.11 | HK78: 0.11 | HL78: 0.11 | HM78: 0.11 | HN78: 0.11 | HO78: 0.11 | HP78: 0.11 | HQ78: 0.11 | HR78: 0.11 | HS78: 0.11 | HT78: 0.11 | HU78: 0.11 | HV78: 0.11 | HW78: 0.11 | HX78: 0.11 | HY78: 0.11 | HZ78: 0.11 | IA78: 0.11 | IB78: 0.11 | IC78: 0.11 | ID78: 0.11 | IE78: 0.11 | IF78: 0.11 | IG78: 0.11 | IH78: 0.11 | II78: 0.11 | IJ78: 0.11 | IK78: 0.11 | IL78: 0.11 | IM78: 0.11 | IN78: 0.11 | IO78: 0.11 | IP78: 0.11 | IQ78: 0.11 | IR78: 0.11 | IS78: 0.11 | IT78: 0.11 | IU78: 0.11 | IV78: 0.11
D79: Post-flip Cash Flow | F79: =F77*F78 -> 0 | G79: =G77*G78 -> 0 | H79: 0 | I79: 0 | J79: 0 | K79: 0 | L79: 0 | M79: 0 | N79: 0 | O79: 0 | P79: 0 | Q79: 0 | R79: 0 | S79: 0 | T79: 0 | U79: 0 | V79: 0 | W79: 0 | X79: 0 | Y79: 0 | Z79: 0 | AA79: 0 | AB79: 0 | AC79: 0 | AD79: 0 | AE79: 0 | AF79: 0 | AG79: 0 | AH79: 0 | AI79: 0 | AJ79: 0 | AK79: 0 | AL79: 0 | AM79: 0 | AN79: 0 | AO79: 0 | AP79: 0 | AQ79: 0 | AR79: 0 | AS79: 0 | AT79: 0 | AU79: 0 | AV79: 0 | AW79: 0 | AX79: 0 | AY79: 0 | AZ79: 0 | BA79: 0 | BB79: 0 | BC79: 0 | BD79: 0 | BE79: 0 | BF79: 0 | BG79: 0 | BH79: 0 | BI79: 0 | BJ79: 0 | BK79: 0 | BL79: 0 | BM79: 0 | BN79: 0 | BO79: 0 | BP79: 0 | BQ79: 0 | BR79: 0 | BS79: =BS77*BS78 -> 0 | BT79: 0 | BU79: 0 | BV79: 0 | BW79: 0 | BX79: 0 | BY79: 0 | BZ79: 0 | CA79: 0 | CB79: 0 | CC79: 0 | CD79: 1.222222222 | CE79: 1.833333333 | CF79: 1.833333333 | CG79: 1.833333333 | CH79: 1.833333333 | CI79: 1.833333333 | CJ79: 1.833333333 | CK79: 1.833333333 | CL79: 1.833333333 | CM79: 1.833333333 | CN79: 1.833333333 | CO79: 1.833333333 | CP79: 1.833333333 | CQ79: 1.833333333 | CR79: 1.833333333 | CS79: 1.833333333 | CT79: 1.833333333 | CU79: 1.833333333 | CV79: 1.833333333 | CW79: 1.833333333 | CX79: 1.833333333 | CY79: 1.833333333 | CZ79: 1.833333333 | DA79: 1.833333333 | DB79: 1.833333333 | DC79: 1.833333333 | DD79: 1.833333333 | DE79: 1.833333333 | DF79: 1.833333333 | DG79: 1.833333333 | DH79: 1.833333333 | DI79: 1.833333333 | DJ79: 1.833333333 | DK79: 1.833333333 | DL79: 1.833333333 | DM79: 1.833333333 | DN79: 1.833333333 | DO79: 1.833333333 | DP79: 1.833333333 | DQ79: 1.833333333 | DR79: 1.833333333 | DS79: 1.833333333 | DT79: 1.833333333 | DU79: 1.833333333 | DV79: 1.833333333 | DW79: 1.833333333 | DX79: 1.833333333 | DY79: 1.833333333 | DZ79: 1.833333333 | EA79: 1.833333333 | EB79: 1.833333333 | EC79: 1.833333333 | ED79: 1.833333333 | EE79: =EE77*EE78 -> 1.833333333 | EF79: 1.833333333 | EG79: 1.833333333 | EH79: 1.833333333 | EI79: 1.833333333 | EJ79: 1.833333333 | EK79: 1.833333333 | EL79: 1.833333333 | EM79: 1.833333333 | EN79: 1.833333333 | EO79: 1.833333333 | EP79: 1.833333333 | EQ79: 1.833333333 | ER79: 1.833333333 | ES79: 1.833333333 | ET79: 1.833333333 | EU79: 0 | EV79: 0 | EW79: 0 | EX79: 0 | EY79: 0 | EZ79: 0 | FA79: 0 | FB79: 0 | FC79: 0 | FD79: 0 | FE79: 0 | FF79: 0 | FG79: 0 | FH79: 0 | FI79: 0 | FJ79: 0 | FK79: 0 | FL79: 0 | FM79: 0 | FN79: 0 | FO79: 0 | FP79: 0 | FQ79: 0 | FR79: 0 | FS79: 0 | FT79: 0 | FU79: 0 | FV79: 0 | FW79: 0 | FX79: 0 | FY79: 0 | FZ79: 0 | GA79: 0 | GB79: 0 | GC79: 0 | GD79: 0 | GE79: 0 | GF79: 0 | GG79: 0 | GH79: 0 | GI79: 0 | GJ79: 0 | GK79: 0 | GL79: 0 | GM79: 0 | GN79: 0 | GO79: 0 | GP79: 0 | GQ79: =GQ77*GQ78 -> 0 | GR79: 0 | GS79: 0 | GT79: 0 | GU79: 0 | GV79: 0 | GW79: 0 | GX79: 0 | GY79: 0 | GZ79: 0 | HA79: 0 | HB79: 0 | HC79: 0 | HD79: 0 | HE79: 0 | HF79: 0 | HG79: 0 | HH79: 0 | HI79: 0 | HJ79: 0 | HK79: 0 | HL79: 0 | HM79: 0 | HN79: 0 | HO79: 0 | HP79: 0 | HQ79: 0 | HR79: 0 | HS79: 0 | HT79: 0 | HU79: 0 | HV79: 0 | HW79: 0 | HX79: 0 | HY79: 0 | HZ79: 0 | IA79: 0 | IB79: 0 | IC79: 0 | ID79: 0 | IE79: 0 | IF79: 0 | IG79: 0 | IH79: 0 | II79: 0 | IJ79: 0 | IK79: 0 | IL79: 0 | IM79: 0 | IN79: 0 | IO79: 0 | IP79: 0 | IQ79: 0 | IR79: 0 | IS79: 0 | IT79: 0 | IU79: 0 | IV79: 0
D81: Total Partner 1 Cash Flow | E81: =E67 -> -800 | F81: =F79+F67 -> 14.16666667 | G81: =G79+G67 -> 14.16666667 | H81: 14.16666667 | I81: 14.16666667 | J81: 14.16666667 | K81: 14.16666667 | L81: 14.16666667 | M81: 14.16666667 | N81: 14.16666667 | O81: 14.16666667 | P81: 14.16666667 | Q81: 14.16666667 | R81: 14.16666667 | S81: 14.16666667 | T81: 14.16666667 | U81: 14.16666667 | V81: 14.16666667 | W81: 14.16666667 | X81: 14.16666667 | Y81: 14.16666667 | Z81: 14.16666667 | AA81: 14.16666667 | AB81: 14.16666667 | AC81: 14.16666667 | AD81: 14.16666667 | AE81: 14.16666667 | AF81: 14.16666667 | AG81: 14.16666667 | AH81: 14.16666667 | AI81: 14.16666667 | AJ81: 14.16666667 | AK81: 14.16666667 | AL81: 14.16666667 | AM81: 14.16666667 | AN81: 14.16666667 | AO81: 14.16666667 | AP81: 14.16666667 | AQ81: 14.16666667 | AR81: 14.16666667 | AS81: 14.16666667 | AT81: 14.16666667 | AU81: 14.16666667 | AV81: 14.16666667 | AW81: 14.16666667 | AX81: 14.16666667 | AY81: 14.16666667 | AZ81: 14.16666667 | BA81: 14.16666667 | BB81: 14.16666667 | BC81: 14.16666667 | BD81: 14.16666667 | BE81: 14.16666667 | BF81: 14.16666667 | BG81: 14.16666667 | BH81: 14.16666667 | BI81: 14.16666667 | BJ81: 14.16666667 | BK81: 14.16666667 | BL81: 14.16666667 | BM81: 14.16666667 | BN81: 14.16666667 | BO81: 14.16666667 | BP81: 14.16666667 | BQ81: 14.16666667 | BR81: 14.16666667 | BS81: =BS79+BS67 -> 14.16666667 | BT81: 14.16666667 | BU81: 14.16666667 | BV81: 14.16666667 | BW81: 14.16666667 | BX81: 14.16666667 | BY81: 14.16666667 | BZ81: 14.16666667 | CA81: 14.16666667 | CB81: 14.16666667 | CC81: 5.009498772 | CD81: 1.222222222 | CE81: 1.833333333 | CF81: 1.833333333 | CG81: 1.833333333 | CH81: 1.833333333 | CI81: 1.833333333 | CJ81: 1.833333333 | CK81: 1.833333333 | CL81: 1.833333333 | CM81: 1.833333333 | CN81: 1.833333333 | CO81: 1.833333333 | CP81: 1.833333333 | CQ81: 1.833333333 | CR81: 1.833333333 | CS81: 1.833333333 | CT81: 1.833333333 | CU81: 1.833333333 | CV81: 1.833333333 | CW81: 1.833333333 | CX81: 1.833333333 | CY81: 1.833333333 | CZ81: 1.833333333 | DA81: 1.833333333 | DB81: 1.833333333 | DC81: 1.833333333 | DD81: 1.833333333 | DE81: 1.833333333 | DF81: 1.833333333 | DG81: 1.833333333 | DH81: 1.833333333 | DI81: 1.833333333 | DJ81: 1.833333333 | DK81: 1.833333333 | DL81: 1.833333333 | DM81: 1.833333333 | DN81: 1.833333333 | DO81: 1.833333333 | DP81: 1.833333333 | DQ81: 1.833333333 | DR81: 1.833333333 | DS81: 1.833333333 | DT81: 1.833333333 | DU81: 1.833333333 | DV81: 1.833333333 | DW81: 1.833333333 | DX81: 1.833333333 | DY81: 1.833333333 | DZ81: 1.833333333 | EA81: 1.833333333 | EB81: 1.833333333 | EC81: 1.833333333 | ED81: 1.833333333 | EE81: =EE79+EE67 -> 1.833333333 | EF81: 1.833333333 | EG81: 1.833333333 | EH81: 1.833333333 | EI81: 1.833333333 | EJ81: 1.833333333 | EK81: 1.833333333 | EL81: 1.833333333 | EM81: 1.833333333 | EN81: 1.833333333 | EO81: 1.833333333 | EP81: 1.833333333 | EQ81: 1.833333333 | ER81: 1.833333333 | ES81: 1.833333333 | ET81: 1.833333333 | EU81: 0 | EV81: 0 | EW81: 0 | EX81: 0 | EY81: 0 | EZ81: 0 | FA81: 0 | FB81: 0 | FC81: 0 | FD81: 0 | FE81: 0 | FF81: 0 | FG81: 0 | FH81: 0 | FI81: 0 | FJ81: 0 | FK81: 0 | FL81: 0 | FM81: 0 | FN81: 0 | FO81: 0 | FP81: 0 | FQ81: 0 | FR81: 0 | FS81: 0 | FT81: 0 | FU81: 0 | FV81: 0 | FW81: 0 | FX81: 0 | FY81: 0 | FZ81: 0 | GA81: 0 | GB81: 0 | GC81: 0 | GD81: 0 | GE81: 0 | GF81: 0 | GG81: 0 | GH81: 0 | GI81: 0 | GJ81: 0 | GK81: 0 | GL81: 0 | GM81: 0 | GN81: 0 | GO81: 0 | GP81: 0 | GQ81: =GQ79+GQ67 -> 0 | GR81: 0 | GS81: 0 | GT81: 0 | GU81: 0 | GV81: 0 | GW81: 0 | GX81: 0 | GY81: 0 | GZ81: 0 | HA81: 0 | HB81: 0 | HC81: 0 | HD81: 0 | HE81: 0 | HF81: 0 | HG81: 0 | HH81: 0 | HI81: 0 | HJ81: 0 | HK81: 0 | HL81: 0 | HM81: 0 | HN81: 0 | HO81: 0 | HP81: 0 | HQ81: 0 | HR81: 0 | HS81: 0 | HT81: 0 | HU81: 0 | HV81: 0 | HW81: 0 | HX81: 0 | HY81: 0 | HZ81: 0 | IA81: 0 | IB81: 0 | IC81: 0 | ID81: 0 | IE81: 0 | IF81: 0 | IG81: 0 | IH81: 0 | II81: 0 | IJ81: 0 | IK81: 0 | IL81: 0 | IM81: 0 | IN81: 0 | IO81: 0 | IP81: 0 | IQ81: 0 | IR81: 0 | IS81: 0 | IT81: 0 | IU81: 0 | IV81: 0
D82: Total Partner 2 Cash Flow | E82: =-E19-E81 -> -200 | F82: =F49-F81 -> 2.5 | G82: =G49-G81 -> 2.5 | H82: 2.5 | I82: 2.5 | J82: 2.5 | K82: 2.5 | L82: 2.5 | M82: 2.5 | N82: 2.5 | O82: 2.5 | P82: 2.5 | Q82: 2.5 | R82: 2.5 | S82: 2.5 | T82: 2.5 | U82: 2.5 | V82: 2.5 | W82: 2.5 | X82: 2.5 | Y82: 2.5 | Z82: 2.5 | AA82: 2.5 | AB82: 2.5 | AC82: 2.5 | AD82: 2.5 | AE82: 2.5 | AF82: 2.5 | AG82: 2.5 | AH82: 2.5 | AI82: 2.5 | AJ82: 2.5 | AK82: 2.5 | AL82: 2.5 | AM82: 2.5 | AN82: 2.5 | AO82: 2.5 | AP82: 2.5 | AQ82: 2.5 | AR82: 2.5 | AS82: 2.5 | AT82: 2.5 | AU82: 2.5 | AV82: 2.5 | AW82: 2.5 | AX82: 2.5 | AY82: 2.5 | AZ82: 2.5 | BA82: 2.5 | BB82: 2.5 | BC82: 2.5 | BD82: 2.5 | BE82: 2.5 | BF82: 2.5 | BG82: 2.5 | BH82: 2.5 | BI82: 2.5 | BJ82: 2.5 | BK82: 2.5 | BL82: 2.5 | BM82: 2.5 | BN82: 2.5 | BO82: 2.5 | BP82: 2.5 | BQ82: 2.5 | BR82: 2.5 | BS82: =BS49-BS81 -> 2.5 | BT82: 2.5 | BU82: 2.5 | BV82: 2.5 | BW82: 2.5 | BX82: 2.5 | BY82: 2.5 | BZ82: 2.5 | CA82: 2.5 | CB82: 2.5 | CC82: 0.5460567834 | CD82: 9.888888889 | CE82: 14.83333333 | CF82: 14.83333333 | CG82: 14.83333333 | CH82: 14.83333333 | CI82: 14.83333333 | CJ82: 14.83333333 | CK82: 14.83333333 | CL82: 14.83333333 | CM82: 14.83333333 | CN82: 14.83333333 | CO82: 14.83333333 | CP82: 14.83333333 | CQ82: 14.83333333 | CR82: 14.83333333 | CS82: 14.83333333 | CT82: 14.83333333 | CU82: 14.83333333 | CV82: 14.83333333 | CW82: 14.83333333 | CX82: 14.83333333 | CY82: 14.83333333 | CZ82: 14.83333333 | DA82: 14.83333333 | DB82: 14.83333333 | DC82: 14.83333333 | DD82: 14.83333333 | DE82: 14.83333333 | DF82: 14.83333333 | DG82: 14.83333333 | DH82: 14.83333333 | DI82: 14.83333333 | DJ82: 14.83333333 | DK82: 14.83333333 | DL82: 14.83333333 | DM82: 14.83333333 | DN82: 14.83333333 | DO82: 14.83333333 | DP82: 14.83333333 | DQ82: 14.83333333 | DR82: 14.83333333 | DS82: 14.83333333 | DT82: 14.83333333 | DU82: 14.83333333 | DV82: 14.83333333 | DW82: 14.83333333 | DX82: 14.83333333 | DY82: 14.83333333 | DZ82: 14.83333333 | EA82: 14.83333333 | EB82: 14.83333333 | EC82: 14.83333333 | ED82: 14.83333333 | EE82: =EE49-EE81 -> 14.83333333 | EF82: 14.83333333 | EG82: 14.83333333 | EH82: 14.83333333 | EI82: 14.83333333 | EJ82: 14.83333333 | EK82: 14.83333333 | EL82: 14.83333333 | EM82: 14.83333333 | EN82: 14.83333333 | EO82: 14.83333333 | EP82: 14.83333333 | EQ82: 14.83333333 | ER82: 14.83333333 | ES82: 14.83333333 | ET82: 14.83333333 | EU82: 0 | EV82: 0 | EW82: 0 | EX82: 0 | EY82: 0 | EZ82: 0 | FA82: 0 | FB82: 0 | FC82: 0 | FD82: 0 | FE82: 0 | FF82: 0 | FG82: 0 | FH82: 0 | FI82: 0 | FJ82: 0 | FK82: 0 | FL82: 0 | FM82: 0 | FN82: 0 | FO82: 0 | FP82: 0 | FQ82: 0 | FR82: 0 | FS82: 0 | FT82: 0 | FU82: 0 | FV82: 0 | FW82: 0 | FX82: 0 | FY82: 0 | FZ82: 0 | GA82: 0 | GB82: 0 | GC82: 0 | GD82: 0 | GE82: 0 | GF82: 0 | GG82: 0 | GH82: 0 | GI82: 0 | GJ82: 0 | GK82: 0 | GL82: 0 | GM82: 0 | GN82: 0 | GO82: 0 | GP82: 0 | GQ82: =GQ49-GQ81 -> 0 | GR82: 0 | GS82: 0 | GT82: 0 | GU82: 0 | GV82: 0 | GW82: 0 | GX82: 0 | GY82: 0 | GZ82: 0 | HA82: 0 | HB82: 0 | HC82: 0 | HD82: 0 | HE82: 0 | HF82: 0 | HG82: 0 | HH82: 0 | HI82: 0 | HJ82: 0 | HK82: 0 | HL82: 0 | HM82: 0 | HN82: 0 | HO82: 0 | HP82: 0 | HQ82: 0 | HR82: 0 | HS82: 0 | HT82: 0 | HU82: 0 | HV82: 0 | HW82: 0 | HX82: 0 | HY82: 0 | HZ82: 0 | IA82: 0 | IB82: 0 | IC82: 0 | ID82: 0 | IE82: 0 | IF82: 0 | IG82: 0 | IH82: 0 | II82: 0 | IJ82: 0 | IK82: 0 | IL82: 0 | IM82: 0 | IN82: 0 | IO82: 0 | IP82: 0 | IQ82: 0 | IR82: 0 | IS82: 0 | IT82: 0 | IU82: 0 | IV82: 0
D83: Total Cash Flow | E83: =SUM(E81:E82) -> -1000 | F83: =SUM(F81:F82) -> 16.66666667 | G83: 16.66666667 | H83: 16.66666667 | I83: 16.66666667 | J83: 16.66666667 | K83: 16.66666667 | L83: 16.66666667 | M83: 16.66666667 | N83: 16.66666667 | O83: 16.66666667 | P83: 16.66666667 | Q83: 16.66666667 | R83: 16.66666667 | S83: 16.66666667 | T83: 16.66666667 | U83: 16.66666667 | V83: 16.66666667 | W83: 16.66666667 | X83: 16.66666667 | Y83: 16.66666667 | Z83: 16.66666667 | AA83: 16.66666667 | AB83: 16.66666667 | AC83: 16.66666667 | AD83: 16.66666667 | AE83: 16.66666667 | AF83: 16.66666667 | AG83: 16.66666667 | AH83: 16.66666667 | AI83: 16.66666667 | AJ83: 16.66666667 | AK83: 16.66666667 | AL83: 16.66666667 | AM83: 16.66666667 | AN83: 16.66666667 | AO83: 16.66666667 | AP83: 16.66666667 | AQ83: 16.66666667 | AR83: 16.66666667 | AS83: 16.66666667 | AT83: 16.66666667 | AU83: 16.66666667 | AV83: 16.66666667 | AW83: 16.66666667 | AX83: 16.66666667 | AY83: 16.66666667 | AZ83: 16.66666667 | BA83: 16.66666667 | BB83: 16.66666667 | BC83: 16.66666667 | BD83: 16.66666667 | BE83: 16.66666667 | BF83: 16.66666667 | BG83: 16.66666667 | BH83: 16.66666667 | BI83: 16.66666667 | BJ83: 16.66666667 | BK83: 16.66666667 | BL83: 16.66666667 | BM83: 16.66666667 | BN83: 16.66666667 | BO83: 16.66666667 | BP83: 16.66666667 | BQ83: 16.66666667 | BR83: =SUM(BR81:BR82) -> 16.66666667 | BS83: 16.66666667 | BT83: 16.66666667 | BU83: 16.66666667 | BV83: 16.66666667 | BW83: 16.66666667 | BX83: 16.66666667 | BY83: 16.66666667 | BZ83: 16.66666667 | CA83: 16.66666667 | CB83: 16.66666667 | CC83: 5.555555556 | CD83: 11.11111111 | CE83: 16.66666667 | CF83: 16.66666667 | CG83: 16.66666667 | CH83: 16.66666667 | CI83: 16.66666667 | CJ83: 16.66666667 | CK83: 16.66666667 | CL83: 16.66666667 | CM83: 16.66666667 | CN83: 16.66666667 | CO83: 16.66666667 | CP83: 16.66666667 | CQ83: 16.66666667 | CR83: 16.66666667 | CS83: 16.66666667 | CT83: 16.66666667 | CU83: 16.66666667 | CV83: 16.66666667 | CW83: 16.66666667 | CX83: 16.66666667 | CY83: 16.66666667 | CZ83: 16.66666667 | DA83: 16.66666667 | DB83: 16.66666667 | DC83: 16.66666667 | DD83: 16.66666667 | DE83: 16.66666667 | DF83: 16.66666667 | DG83: 16.66666667 | DH83: 16.66666667 | DI83: 16.66666667 | DJ83: 16.66666667 | DK83: 16.66666667 | DL83: 16.66666667 | DM83: 16.66666667 | DN83: 16.66666667 | DO83: 16.66666667 | DP83: 16.66666667 | DQ83: 16.66666667 | DR83: 16.66666667 | DS83: 16.66666667 | DT83: 16.66666667 | DU83: 16.66666667 | DV83: 16.66666667 | DW83: 16.66666667 | DX83: 16.66666667 | DY83: 16.66666667 | DZ83: 16.66666667 | EA83: 16.66666667 | EB83: 16.66666667 | EC83: 16.66666667 | ED83: =SUM(ED81:ED82) -> 16.66666667 | EE83: 16.66666667 | EF83: 16.66666667 | EG83: 16.66666667 | EH83: 16.66666667 | EI83: 16.66666667 | EJ83: 16.66666667 | EK83: 16.66666667 | EL83: 16.66666667 | EM83: 16.66666667 | EN83: 16.66666667 | EO83: 16.66666667 | EP83: 16.66666667 | EQ83: 16.66666667 | ER83: 16.66666667 | ES83: 16.66666667 | ET83: 16.66666667 | EU83: 0 | EV83: 0 | EW83: 0 | EX83: 0 | EY83: 0 | EZ83: 0 | FA83: 0 | FB83: 0 | FC83: 0 | FD83: 0 | FE83: 0 | FF83: 0 | FG83: 0 | FH83: 0 | FI83: 0 | FJ83: 0 | FK83: 0 | FL83: 0 | FM83: 0 | FN83: 0 | FO83: 0 | FP83: 0 | FQ83: 0 | FR83: 0 | FS83: 0 | FT83: 0 | FU83: 0 | FV83: 0 | FW83: 0 | FX83: 0 | FY83: 0 | FZ83: 0 | GA83: 0 | GB83: 0 | GC83: 0 | GD83: 0 | GE83: 0 | GF83: 0 | GG83: 0 | GH83: 0 | GI83: 0 | GJ83: 0 | GK83: 0 | GL83: 0 | GM83: 0 | GN83: 0 | GO83: 0 | GP83: =SUM(GP81:GP82) -> 0 | GQ83: 0 | GR83: 0 | GS83: 0 | GT83: 0 | GU83: 0 | GV83: 0 | GW83: 0 | GX83: 0 | GY83: 0 | GZ83: 0 | HA83: 0 | HB83: 0 | HC83: 0 | HD83: 0 | HE83: 0 | HF83: 0 | HG83: 0 | HH83: 0 | HI83: 0 | HJ83: 0 | HK83: 0 | HL83: 0 | HM83: 0 | HN83: 0 | HO83: 0 | HP83: 0 | HQ83: 0 | HR83: 0 | HS83: 0 | HT83: 0 | HU83: 0 | HV83: 0 | HW83: 0 | HX83: 0 | HY83: 0 | HZ83: 0 | IA83: 0 | IB83: 0 | IC83: 0 | ID83: 0 | IE83: 0 | IF83: 0 | IG83: 0 | IH83: 0 | II83: 0 | IJ83: 0 | IK83: 0 | IL83: 0 | IM83: 0 | IN83: 0 | IO83: 0 | IP83: 0 | IQ83: 0 | IR83: 0 | IS83: 0 | IT83: 0 | IU83: 0 | IV83: 0
E85: Periodic | F85: Annual
D86: Overall IRR | E86: =XIRR(E83:IV83,E41:IV41) -> 0.1898679197 | F86: ='Annual Analysis'!D55 -> 0.1694255086
D87: Partner 1 IRR | E87: =XIRR(E81:IV81,E41:IV41) -> 0.1223570526 | F87: ='Annual Analysis'!H5 -> 0.1164403767
D88: Partner 2 IRR | E88: =XIRR(E82:IV82,E41:IV41) -> 0.2900730908 | F88: ='Annual Analysis'!H6 -> 0.2548482196

Sheet Summary Annual
A1: Inputs
E2: Percent of | F2: Cash Flow Share
E3: Investment | F3: Pre-Flip | G3: Post-Flip
D4: Partner 1 | E4: ='Annual Analysis'!D5 -> 0.8 | F4: ='Annual Analysis'!E5 -> 0.85 | G4: ='Annual Analysis'!F5 -> 0.11
D5: Partner 2 | E5: ='Annual Analysis'!D6 -> 0.2 | F5: ='Annual Analysis'!E6 -> 0.15 | G5: ='Annual Analysis'!F6 -> 0.89
A7: Results from Alternative Analyses
E8: Annual | F8: Periodic 1 | G8: Periodic 2
D9: Overall IRR | E9: ='Annual Analysis'!D55 -> 0.1694255086 | F9: ='Periodic Analysis 1'!E72 -> 0.1898627818 | G9: ='Periodic Analysis 2'!E86 -> 0.1898679197 | H9: =F9-G9 -> -5.13792038e-06
D10: Partner 1 IRR | E10: ='Annual Analysis'!D56 -> 0.1164403767 | F10: ='Periodic Analysis 1'!E73 -> 0.1223422348 | G10: ='Periodic Analysis 2'!E87 -> 0.1223570526 | H10: =F10-G10 -> -1.481771469e-05
D11: Partner 2 IRR | E11: ='Annual Analysis'!D57 -> 0.2548482196 | F11: ='Periodic Analysis 1'!E74 -> 0.2900797904 | G11: ='Periodic Analysis 2'!E88 -> 0.2900730908 | H11: =F11-G11 -> 6.699562073e-06
A13: Annual Analysis
F14: =YEAR('Periodic Analysis 2'!E4) -> 2012 | G14: =F14+1 -> 2013 | H14: =G14+1 -> 2014 | I14: 2015 | J14: 2016 | K14: 2017 | L14: 2018 | M14: 2019 | N14: 2020 | O14: 2021 | P14: 2022 | Q14: 2023 | R14: 2024 | S14: 2025 | T14: 2026 | U14: 2027 | V14: 2028 | W14: 2029 | X14: 2030 | Y14: 2031 | Z14: 2032 | AA14: 2033 | AB14: 2034 | AC14: 2035 | AD14: 2036 | AE14: 2037 | AF14: 2038 | AG14: 2039 | AH14: 2040 | AI14: 2041 | AJ14: 2042 | AK14: 2043 | AL14: 2044 | AM14: 2045 | AN14: 2046 | AO14: 2047 | AP14: 2048 | AQ14: 2049 | AR14: 2050 | AS14: 2051 | AT14: 2052 | AU14: 2053 | AV14: 2054 | AW14: 2055 | AX14: 2056 | AY14: 2057 | AZ14: 2058 | BA14: 2059 | BB14: 2060 | BC14: 2061 | BD14: 2062 | BE14: 2063 | BF14: 2064 | BG14: 2065 | BH14: 2066 | BI14: 2067
F15: 1 | G15: =F15+1 -> 2 | H15: =G15+1 -> 3 | I15: 4 | J15: 5 | K15: 6 | L15: 7 | M15: 8 | N15: 9 | O15: 10 | P15: 11 | Q15: 12 | R15: 13 | S15: 14 | T15: 15 | U15: 16 | V15: 17 | W15: 18 | X15: 19 | Y15: 20 | Z15: 21 | AA15: 22 | AB15: 23 | AC15: 24 | AD15: 25 | AE15: 26 | AF15: 27 | AG15: 28 | AH15: 29 | AI15: 30 | AJ15: 31 | AK15: 32 | AL15: 33 | AM15: 34 | AN15: 35 | AO15: 36 | AP15: 37 | AQ15: 38 | AR15: 39 | AS15: 40 | AT15: 41 | AU15: 42 | AV15: 43 | AW15: 44 | AX15: 45 | AY15: 46 | AZ15: 47 | BA15: 48 | BB15: 49 | BC15: 50 | BD15: 51 | BE15: 52 | BF15: 53 | BG15: 54 | BH15: 55 | BI15: 56
C16: Periodic 1
D17: Operating Cash | E17: =E27 -> -1000 | F17: =SUMIF('Periodic Analysis 1'!$33:$33,'Summary Annual'!F$14,'Periodic Analysis 1'!40:40) -> 200 | G17: =SUMIF('Periodic Analysis 1'!$33:$33,'Summary Annual'!G$14,'Periodic Analysis 1'!40:40) -> 200 | H17: =SUMIF('Periodic Analysis 1'!$33:$33,'Summary Annual'!H$14,'Periodic Analysis 1'!40:40) -> 200 | I17: =SUMIF('Periodic Analysis 1'!$33:$33,'Summary Annual'!I$14,'Periodic Analysis 1'!40:40) -> 200 | J17: =SUMIF('Periodic Analysis 1'!$33:$33,'Summary Annual'!J$14,'Periodic Analysis 1'!40:40) -> 200 | K17: =SUMIF('Periodic Analysis 1'!$33:$33,'Summary Annual'!K$14,'Periodic Analysis 1'!40:40) -> 200 | L17: =SUMIF('Periodic Analysis 1'!$33:$33,'Summary Annual'!L$14,'Periodic Analysis 1'!40:40) -> 200 | M17: =SUMIF('Periodic Analysis 1'!$33:$33,'Summary Annual'!M$14,'Periodic Analysis 1'!40:40) -> 200 | N17: =SUMIF('Periodic Analysis 1'!$33:$33,'Summary Annual'!N$14,'Periodic Analysis 1'!40:40) -> 200 | O17: =SUMIF('Periodic Analysis 1'!$33:$33,'Summary Annual'!O$14,'Periodic Analysis 1'!40:40) -> 200 | P17: =SUMIF('Periodic Analysis 1'!$33:$33,'Summary Annual'!P$14,'Periodic Analysis 1'!40:40) -> 200 | Q17: =SUMIF('Periodic Analysis 1'!$33:$33,'Summary Annual'!Q$14,'Periodic Analysis 1'!40:40) -> 200 | R17: =SUMIF('Periodic Analysis 1'!$33:$33,'Summary Annual'!R$14,'Periodic Analysis 1'!40:40) -> 0 | S17: =SUMIF('Periodic Analysis 1'!$33:$33,'Summary Annual'!S$14,'Periodic Analysis 1'!40:40) -> 0 | T17: =SUMIF('Periodic Analysis 1'!$33:$33,'Summary Annual'!T$14,'Periodic Analysis 1'!40:40) -> 0 | U17: =SUMIF('Periodic Analysis 1'!$33:$33,'Summary Annual'!U$14,'Periodic Analysis 1'!40:40) -> 0 | V17: =SUMIF('Periodic Analysis 1'!$33:$33,'Summary Annual'!V$14,'Periodic Analysis 1'!40:40) -> 0 | W17: =SUMIF('Periodic Analysis 1'!$33:$33,'Summary Annual'!W$14,'Periodic Analysis 1'!40:40) -> 0 | X17: =SUMIF('Periodic Analysis 1'!$33:$33,'Summary Annual'!X$14,'Periodic Analysis 1'!40:40) -> 0 | Y17: =SUMIF('Periodic Analysis 1'!$33:$33,'Summary Annual'!Y$14,'Periodic Analysis 1'!40:40) -> 0 | Z17: =SUMIF('Periodic Analysis 1'!$33:$33,'Summary Annual'!Z$14,'Periodic Analysis 1'!40:40) -> 0 | AA17: =SUMIF('Periodic Analysis 1'!$33:$33,'Summary Annual'!AA$14,'Periodic Analysis 1'!40:40) -> 0 | AB17: =SUMIF('Periodic Analysis 1'!$33:$33,'Summary Annual'!AB$14,'Periodic Analysis 1'!40:40) -> 0 | AC17: =SUMIF('Periodic Analysis 1'!$33:$33,'Summary Annual'!AC$14,'Periodic Analysis 1'!40:40) -> 0 | AD17: =SUMIF('Periodic Analysis 1'!$33:$33,'Summary Annual'!AD$14,'Periodic Analysis 1'!40:40) -> 0 | AE17: =SUMIF('Periodic Analysis 1'!$33:$33,'Summary Annual'!AE$14,'Periodic Analysis 1'!40:40) -> 0 | AF17: =SUMIF('Periodic Analysis 1'!$33:$33,'Summary Annual'!AF$14,'Periodic Analysis 1'!40:40) -> 0 | AG17: =SUMIF('Periodic Analysis 1'!$33:$33,'Summary Annual'!AG$14,'Periodic Analysis 1'!40:40) -> 0 | AH17: =SUMIF('Periodic Analysis 1'!$33:$33,'Summary Annual'!AH$14,'Periodic Analysis 1'!40:40) -> 0 | AI17: =SUMIF('Periodic Analysis 1'!$33:$33,'Summary Annual'!AI$14,'Periodic Analysis 1'!40:40) -> 0 | AJ17: =SUMIF('Periodic Analysis 1'!$33:$33,'Summary Annual'!AJ$14,'Periodic Analysis 1'!40:40) -> 0 | AK17: =SUMIF('Periodic Analysis 1'!$33:$33,'Summary Annual'!AK$14,'Periodic Analysis 1'!40:40) -> 0 | AL17: =SUMIF('Periodic Analysis 1'!$33:$33,'Summary Annual'!AL$14,'Periodic Analysis 1'!40:40) -> 0 | AM17: =SUMIF('Periodic Analysis 1'!$33:$33,'Summary Annual'!AM$14,'Periodic Analysis 1'!40:40) -> 0 | AN17: =SUMIF('Periodic Analysis 1'!$33:$33,'Summary Annual'!AN$14,'Periodic Analysis 1'!40:40) -> 0 | AO17: =SUMIF('Periodic Analysis 1'!$33:$33,'Summary Annual'!AO$14,'Periodic Analysis 1'!40:40) -> 0 | AP17: =SUMIF('Periodic Analysis 1'!$33:$33,'Summary Annual'!AP$14,'Periodic Analysis 1'!40:40) -> 0 | AQ17: =SUMIF('Periodic Analysis 1'!$33:$33,'Summary Annual'!AQ$14,'Periodic Analysis 1'!40:40) -> 0 | AR17: =SUMIF('Periodic Analysis 1'!$33:$33,'Summary Annual'!AR$14,'Periodic Analysis 1'!40:40) -> 0 | AS17: =SUMIF('Periodic Analysis 1'!$33:$33,'Summary Annual'!AS$14,'Periodic Analysis 1'!40:40) -> 0 | AT17: =SUMIF('Periodic Analysis 1'!$33:$33,'Summary Annual'!AT$14,'Periodic Analysis 1'!40:40) -> 0 | AU17: =SUMIF('Periodic Analysis 1'!$33:$33,'Summary Annual'!AU$14,'Periodic Analysis 1'!40:40) -> 0 | AV17: =SUMIF('Periodic Analysis 1'!$33:$33,'Summary Annual'!AV$14,'Periodic Analysis 1'!40:40) -> 0 | AW17: =SUMIF('Periodic Analysis 1'!$33:$33,'Summary Annual'!AW$14,'Periodic Analysis 1'!40:40) -> 0 | AX17: =SUMIF('Periodic Analysis 1'!$33:$33,'Summary Annual'!AX$14,'Periodic Analysis 1'!40:40) -> 0 | AY17: =SUMIF('Periodic Analysis 1'!$33:$33,'Summary Annual'!AY$14,'Periodic Analysis 1'!40:40) -> 0 | AZ17: =SUMIF('Periodic Analysis 1'!$33:$33,'Summary Annual'!AZ$14,'Periodic Analysis 1'!40:40) -> 0 | BA17: =SUMIF('Periodic Analysis 1'!$33:$33,'Summary Annual'!BA$14,'Periodic Analysis 1'!40:40) -> 0 | BB17: =SUMIF('Periodic Analysis 1'!$33:$33,'Summary Annual'!BB$14,'Periodic Analysis 1'!40:40) -> 0 | BC17: =SUMIF('Periodic Analysis 1'!$33:$33,'Summary Annual'!BC$14,'Periodic Analysis 1'!40:40) -> 0 | BD17: =SUMIF('Periodic Analysis 1'!$33:$33,'Summary Annual'!BD$14,'Periodic Analysis 1'!40:40) -> 0 | BE17: =SUMIF('Periodic Analysis 1'!$33:$33,'Summary Annual'!BE$14,'Periodic Analysis 1'!40:40) -> 0 | BF17: =SUMIF('Periodic Analysis 1'!$33:$33,'Summary Annual'!BF$14,'Periodic Analysis 1'!40:40) -> 0 | BG17: =SUMIF('Periodic Analysis 1'!$33:$33,'Summary Annual'!BG$14,'Periodic Analysis 1'!40:40) -> 0 | BH17: =SUMIF('Periodic Analysis 1'!$33:$33,'Summary Annual'!BH$14,'Periodic Analysis 1'!40:40) -> 0 | BI17: =SUMIF('Periodic Analysis 1'!$33:$33,'Summary Annual'!BI$14,'Periodic Analysis 1'!40:40) -> 0
D19: Partner 1 - Pre-flip | F19: =SUMIF('Periodic Analysis 1'!$33:$33,'Summary Annual'!F$14,'Periodic Analysis 1'!59:59) -> 170 | G19: =SUMIF('Periodic Analysis 1'!$33:$33,'Summary Annual'!G$14,'Periodic Analysis 1'!59:59) -> 170 | H19: =SUMIF('Periodic Analysis 1'!$33:$33,'Summary Annual'!H$14,'Periodic Analysis 1'!59:59) -> 170 | I19: =SUMIF('Periodic Analysis 1'!$33:$33,'Summary Annual'!I$14,'Periodic Analysis 1'!59:59) -> 170 | J19: =SUMIF('Periodic Analysis 1'!$33:$33,'Summary Annual'!J$14,'Periodic Analysis 1'!59:59) -> 170 | K19: =SUMIF('Periodic Analysis 1'!$33:$33,'Summary Annual'!K$14,'Periodic Analysis 1'!59:59) -> 170 | L19: =SUMIF('Periodic Analysis 1'!$33:$33,'Summary Annual'!L$14,'Periodic Analysis 1'!59:59) -> 47.50949877 | M19: =SUMIF('Periodic Analysis 1'!$33:$33,'Summary Annual'!M$14,'Periodic Analysis 1'!59:59) -> 0 | N19: =SUMIF('Periodic Analysis 1'!$33:$33,'Summary Annual'!N$14,'Periodic Analysis 1'!59:59) -> 0 | O19: =SUMIF('Periodic Analysis 1'!$33:$33,'Summary Annual'!O$14,'Periodic Analysis 1'!59:59) -> 0 | P19: =SUMIF('Periodic Analysis 1'!$33:$33,'Summary Annual'!P$14,'Periodic Analysis 1'!59:59) -> 0 | Q19: =SUMIF('Periodic Analysis 1'!$33:$33,'Summary Annual'!Q$14,'Periodic Analysis 1'!59:59) -> 0 | R19: =SUMIF('Periodic Analysis 1'!$33:$33,'Summary Annual'!R$14,'Periodic Analysis 1'!59:59) -> 0 | S19: =SUMIF('Periodic Analysis 1'!$33:$33,'Summary Annual'!S$14,'Periodic Analysis 1'!59:59) -> 0 | T19: =SUMIF('Periodic Analysis 1'!$33:$33,'Summary Annual'!T$14,'Periodic Analysis 1'!59:59) -> 0 | U19: =SUMIF('Periodic Analysis 1'!$33:$33,'Summary Annual'!U$14,'Periodic Analysis 1'!59:59) -> 0 | V19: =SUMIF('Periodic Analysis 1'!$33:$33,'Summary Annual'!V$14,'Periodic Analysis 1'!59:59) -> 0 | W19: =SUMIF('Periodic Analysis 1'!$33:$33,'Summary Annual'!W$14,'Periodic Analysis 1'!59:59) -> 0 | X19: =SUMIF('Periodic Analysis 1'!$33:$33,'Summary Annual'!X$14,'Periodic Analysis 1'!59:59) -> 0 | Y19: =SUMIF('Periodic Analysis 1'!$33:$33,'Summary Annual'!Y$14,'Periodic Analysis 1'!59:59) -> 0 | Z19: =SUMIF('Periodic Analysis 1'!$33:$33,'Summary Annual'!Z$14,'Periodic Analysis 1'!59:59) -> 0 | AA19: =SUMIF('Periodic Analysis 1'!$33:$33,'Summary Annual'!AA$14,'Periodic Analysis 1'!59:59) -> 0 | AB19: =SUMIF('Periodic Analysis 1'!$33:$33,'Summary Annual'!AB$14,'Periodic Analysis 1'!59:59) -> 0 | AC19: =SUMIF('Periodic Analysis 1'!$33:$33,'Summary Annual'!AC$14,'Periodic Analysis 1'!59:59) -> 0 | AD19: =SUMIF('Periodic Analysis 1'!$33:$33,'Summary Annual'!AD$14,'Periodic Analysis 1'!59:59) -> 0 | AE19: =SUMIF('Periodic Analysis 1'!$33:$33,'Summary Annual'!AE$14,'Periodic Analysis 1'!59:59) -> 0 | AF19: =SUMIF('Periodic Analysis 1'!$33:$33,'Summary Annual'!AF$14,'Periodic Analysis 1'!59:59) -> 0 | AG19: =SUMIF('Periodic Analysis 1'!$33:$33,'Summary Annual'!AG$14,'Periodic Analysis 1'!59:59) -> 0 | AH19: =SUMIF('Periodic Analysis 1'!$33:$33,'Summary Annual'!AH$14,'Periodic Analysis 1'!59:59) -> 0 | AI19: =SUMIF('Periodic Analysis 1'!$33:$33,'Summary Annual'!AI$14,'Periodic Analysis 1'!59:59) -> 0 | AJ19: =SUMIF('Periodic Analysis 1'!$33:$33,'Summary Annual'!AJ$14,'Periodic Analysis 1'!59:59) -> 0 | AK19: =SUMIF('Periodic Analysis 1'!$33:$33,'Summary Annual'!AK$14,'Periodic Analysis 1'!59:59) -> 0 | AL19: =SUMIF('Periodic Analysis 1'!$33:$33,'Summary Annual'!AL$14,'Periodic Analysis 1'!59:59) -> 0 | AM19: =SUMIF('Periodic Analysis 1'!$33:$33,'Summary Annual'!AM$14,'Periodic Analysis 1'!59:59) -> 0 | AN19: =SUMIF('Periodic Analysis 1'!$33:$33,'Summary Annual'!AN$14,'Periodic Analysis 1'!59:59) -> 0 | AO19: =SUMIF('Periodic Analysis 1'!$33:$33,'Summary Annual'!AO$14,'Periodic Analysis 1'!59:59) -> 0 | AP19: =SUMIF('Periodic Analysis 1'!$33:$33,'Summary Annual'!AP$14,'Periodic Analysis 1'!59:59) -> 0 | AQ19: =SUMIF('Periodic Analysis 1'!$33:$33,'Summary Annual'!AQ$14,'Periodic Analysis 1'!59:59) -> 0 | AR19: =SUMIF('Periodic Analysis 1'!$33:$33,'Summary Annual'!AR$14,'Periodic Analysis 1'!59:59) -> 0 | AS19: =SUMIF('Periodic Analysis 1'!$33:$33,'Summary Annual'!AS$14,'Periodic Analysis 1'!59:59) -> 0 | AT19: =SUMIF('Periodic Analysis 1'!$33:$33,'Summary Annual'!AT$14,'Periodic Analysis 1'!59:59) -> 0 | AU19: =SUMIF('Periodic Analysis 1'!$33:$33,'Summary Annual'!AU$14,'Periodic Analysis 1'!59:59) -> 0 | AV19: =SUMIF('Periodic Analysis 1'!$33:$33,'Summary Annual'!AV$14,'Periodic Analysis 1'!59:59) -> 0 | AW19: =SUMIF('Periodic Analysis 1'!$33:$33,'Summary Annual'!AW$14,'Periodic Analysis 1'!59:59) -> 0 | AX19: =SUMIF('Periodic Analysis 1'!$33:$33,'Summary Annual'!AX$14,'Periodic Analysis 1'!59:59) -> 0 | AY19: =SUMIF('Periodic Analysis 1'!$33:$33,'Summary Annual'!AY$14,'Periodic Analysis 1'!59:59) -> 0 | AZ19: =SUMIF('Periodic Analysis 1'!$33:$33,'Summary Annual'!AZ$14,'Periodic Analysis 1'!59:59) -> 0 | BA19: =SUMIF('Periodic Analysis 1'!$33:$33,'Summary Annual'!BA$14,'Periodic Analysis 1'!59:59) -> 0 | BB19: =SUMIF('Periodic Analysis 1'!$33:$33,'Summary Annual'!BB$14,'Periodic Analysis 1'!59:59) -> 0 | BC19: =SUMIF('Periodic Analysis 1'!$33:$33,'Summary Annual'!BC$14,'Periodic Analysis 1'!59:59) -> 0 | BD19: =SUMIF('Periodic Analysis 1'!$33:$33,'Summary Annual'!BD$14,'Periodic Analysis 1'!59:59) -> 0 | BE19: =SUMIF('Periodic Analysis 1'!$33:$33,'Summary Annual'!BE$14,'Periodic Analysis 1'!59:59) -> 0 | BF19: =SUMIF('Periodic Analysis 1'!$33:$33,'Summary Annual'!BF$14,'Periodic Analysis 1'!59:59) -> 0 | BG19: =SUMIF('Periodic Analysis 1'!$33:$33,'Summary Annual'!BG$14,'Periodic Analysis 1'!59:59) -> 0 | BH19: =SUMIF('Periodic Analysis 1'!$33:$33,'Summary Annual'!BH$14,'Periodic Analysis 1'!59:59) -> 0 | BI19: =SUMIF('Periodic Analysis 1'!$33:$33,'Summary Annual'!BI$14,'Periodic Analysis 1'!59:59) -> 0
D20: Partner 1 - Post Flip | F20: =SUMIF('Periodic Analysis 1'!$33:$33,'Summary Annual'!F$14,'Periodic Analysis 1'!65:65) -> 0 | G20: =SUMIF('Periodic Analysis 1'!$33:$33,'Summary Annual'!G$14,'Periodic Analysis 1'!65:65) -> 0 | H20: =SUMIF('Periodic Analysis 1'!$33:$33,'Summary Annual'!H$14,'Periodic Analysis 1'!65:65) -> 0 | I20: =SUMIF('Periodic Analysis 1'!$33:$33,'Summary Annual'!I$14,'Periodic Analysis 1'!65:65) -> 0 | J20: =SUMIF('Periodic Analysis 1'!$33:$33,'Summary Annual'!J$14,'Periodic Analysis 1'!65:65) -> 0 | K20: =SUMIF('Periodic Analysis 1'!$33:$33,'Summary Annual'!K$14,'Periodic Analysis 1'!65:65) -> 0 | L20: =SUMIF('Periodic Analysis 1'!$33:$33,'Summary Annual'!L$14,'Periodic Analysis 1'!65:65) -> 15.85171192 | M20: =SUMIF('Periodic Analysis 1'!$33:$33,'Summary Annual'!M$14,'Periodic Analysis 1'!65:65) -> 22 | N20: =SUMIF('Periodic Analysis 1'!$33:$33,'Summary Annual'!N$14,'Periodic Analysis 1'!65:65) -> 22 | O20: =SUMIF('Periodic Analysis 1'!$33:$33,'Summary Annual'!O$14,'Periodic Analysis 1'!65:65) -> 22 | P20: =SUMIF('Periodic Analysis 1'!$33:$33,'Summary Annual'!P$14,'Periodic Analysis 1'!65:65) -> 22 | Q20: =SUMIF('Periodic Analysis 1'!$33:$33,'Summary Annual'!Q$14,'Periodic Analysis 1'!65:65) -> 22 | R20: =SUMIF('Periodic Analysis 1'!$33:$33,'Summary Annual'!R$14,'Periodic Analysis 1'!65:65) -> 0 | S20: =SUMIF('Periodic Analysis 1'!$33:$33,'Summary Annual'!S$14,'Periodic Analysis 1'!65:65) -> 0 | T20: =SUMIF('Periodic Analysis 1'!$33:$33,'Summary Annual'!T$14,'Periodic Analysis 1'!65:65) -> 0 | U20: =SUMIF('Periodic Analysis 1'!$33:$33,'Summary Annual'!U$14,'Periodic Analysis 1'!65:65) -> 0 | V20: =SUMIF('Periodic Analysis 1'!$33:$33,'Summary Annual'!V$14,'Periodic Analysis 1'!65:65) -> 0 | W20: =SUMIF('Periodic Analysis 1'!$33:$33,'Summary Annual'!W$14,'Periodic Analysis 1'!65:65) -> 0 | X20: =SUMIF('Periodic Analysis 1'!$33:$33,'Summary Annual'!X$14,'Periodic Analysis 1'!65:65) -> 0 | Y20: =SUMIF('Periodic Analysis 1'!$33:$33,'Summary Annual'!Y$14,'Periodic Analysis 1'!65:65) -> 0 | Z20: =SUMIF('Periodic Analysis 1'!$33:$33,'Summary Annual'!Z$14,'Periodic Analysis 1'!65:65) -> 0 | AA20: =SUMIF('Periodic Analysis 1'!$33:$33,'Summary Annual'!AA$14,'Periodic Analysis 1'!65:65) -> 0 | AB20: =SUMIF('Periodic Analysis 1'!$33:$33,'Summary Annual'!AB$14,'Periodic Analysis 1'!65:65) -> 0 | AC20: =SUMIF('Periodic Analysis 1'!$33:$33,'Summary Annual'!AC$14,'Periodic Analysis 1'!65:65) -> 0 | AD20: =SUMIF('Periodic Analysis 1'!$33:$33,'Summary Annual'!AD$14,'Periodic Analysis 1'!65:65) -> 0 | AE20: =SUMIF('Periodic Analysis 1'!$33:$33,'Summary Annual'!AE$14,'Periodic Analysis 1'!65:65) -> 0 | AF20: =SUMIF('Periodic Analysis 1'!$33:$33,'Summary Annual'!AF$14,'Periodic Analysis 1'!65:65) -> 0 | AG20: =SUMIF('Periodic Analysis 1'!$33:$33,'Summary Annual'!AG$14,'Periodic Analysis 1'!65:65) -> 0 | AH20: =SUMIF('Periodic Analysis 1'!$33:$33,'Summary Annual'!AH$14,'Periodic Analysis 1'!65:65) -> 0 | AI20: =SUMIF('Periodic Analysis 1'!$33:$33,'Summary Annual'!AI$14,'Periodic Analysis 1'!65:65) -> 0 | AJ20: =SUMIF('Periodic Analysis 1'!$33:$33,'Summary Annual'!AJ$14,'Periodic Analysis 1'!65:65) -> 0 | AK20: =SUMIF('Periodic Analysis 1'!$33:$33,'Summary Annual'!AK$14,'Periodic Analysis 1'!65:65) -> 0 | AL20: =SUMIF('Periodic Analysis 1'!$33:$33,'Summary Annual'!AL$14,'Periodic Analysis 1'!65:65) -> 0 | AM20: =SUMIF('Periodic Analysis 1'!$33:$33,'Summary Annual'!AM$14,'Periodic Analysis 1'!65:65) -> 0 | AN20: =SUMIF('Periodic Analysis 1'!$33:$33,'Summary Annual'!AN$14,'Periodic Analysis 1'!65:65) -> 0 | AO20: =SUMIF('Periodic Analysis 1'!$33:$33,'Summary Annual'!AO$14,'Periodic Analysis 1'!65:65) -> 0 | AP20: =SUMIF('Periodic Analysis 1'!$33:$33,'Summary Annual'!AP$14,'Periodic Analysis 1'!65:65) -> 0 | AQ20: =SUMIF('Periodic Analysis 1'!$33:$33,'Summary Annual'!AQ$14,'Periodic Analysis 1'!65:65) -> 0 | AR20: =SUMIF('Periodic Analysis 1'!$33:$33,'Summary Annual'!AR$14,'Periodic Analysis 1'!65:65) -> 0 | AS20: =SUMIF('Periodic Analysis 1'!$33:$33,'Summary Annual'!AS$14,'Periodic Analysis 1'!65:65) -> 0 | AT20: =SUMIF('Periodic Analysis 1'!$33:$33,'Summary Annual'!AT$14,'Periodic Analysis 1'!65:65) -> 0 | AU20: =SUMIF('Periodic Analysis 1'!$33:$33,'Summary Annual'!AU$14,'Periodic Analysis 1'!65:65) -> 0 | AV20: =SUMIF('Periodic Analysis 1'!$33:$33,'Summary Annual'!AV$14,'Periodic Analysis 1'!65:65) -> 0 | AW20: =SUMIF('Periodic Analysis 1'!$33:$33,'Summary Annual'!AW$14,'Periodic Analysis 1'!65:65) -> 0 | AX20: =SUMIF('Periodic Analysis 1'!$33:$33,'Summary Annual'!AX$14,'Periodic Analysis 1'!65:65) -> 0 | AY20: =SUMIF('Periodic Analysis 1'!$33:$33,'Summary Annual'!AY$14,'Periodic Analysis 1'!65:65) -> 0 | AZ20: =SUMIF('Periodic Analysis 1'!$33:$33,'Summary Annual'!AZ$14,'Periodic Analysis 1'!65:65) -> 0 | BA20: =SUMIF('Periodic Analysis 1'!$33:$33,'Summary Annual'!BA$14,'Periodic Analysis 1'!65:65) -> 0 | BB20: =SUMIF('Periodic Analysis 1'!$33:$33,'Summary Annual'!BB$14,'Periodic Analysis 1'!65:65) -> 0 | BC20: =SUMIF('Periodic Analysis 1'!$33:$33,'Summary Annual'!BC$14,'Periodic Analysis 1'!65:65) -> 0 | BD20: =SUMIF('Periodic Analysis 1'!$33:$33,'Summary Annual'!BD$14,'Periodic Analysis 1'!65:65) -> 0 | BE20: =SUMIF('Periodic Analysis 1'!$33:$33,'Summary Annual'!BE$14,'Periodic Analysis 1'!65:65) -> 0 | BF20: =SUMIF('Periodic Analysis 1'!$33:$33,'Summary Annual'!BF$14,'Periodic Analysis 1'!65:65) -> 0 | BG20: =SUMIF('Periodic Analysis 1'!$33:$33,'Summary Annual'!BG$14,'Periodic Analysis 1'!65:65) -> 0 | BH20: =SUMIF('Periodic Analysis 1'!$33:$33,'Summary Annual'!BH$14,'Periodic Analysis 1'!65:65) -> 0 | BI20: =SUMIF('Periodic Analysis 1'!$33:$33,'Summary Annual'!BI$14,'Periodic Analysis 1'!65:65) -> 0
D21: Partner 2 Cash Flow | F21: =SUMIF('Periodic Analysis 1'!$33:$33,'Summary Annual'!F$14,'Periodic Analysis 1'!68:68) -> 30 | G21: =SUMIF('Periodic Analysis 1'!$33:$33,'Summary Annual'!G$14,'Periodic Analysis 1'!68:68) -> 30 | H21: =SUMIF('Periodic Analysis 1'!$33:$33,'Summary Annual'!H$14,'Periodic Analysis 1'!68:68) -> 30 | I21: =SUMIF('Periodic Analysis 1'!$33:$33,'Summary Annual'!I$14,'Periodic Analysis 1'!68:68) -> 30 | J21: =SUMIF('Periodic Analysis 1'!$33:$33,'Summary Annual'!J$14,'Periodic Analysis 1'!68:68) -> 30 | K21: =SUMIF('Periodic Analysis 1'!$33:$33,'Summary Annual'!K$14,'Periodic Analysis 1'!68:68) -> 30 | L21: =SUMIF('Periodic Analysis 1'!$33:$33,'Summary Annual'!L$14,'Periodic Analysis 1'!68:68) -> 136.6387893 | M21: =SUMIF('Periodic Analysis 1'!$33:$33,'Summary Annual'!M$14,'Periodic Analysis 1'!68:68) -> 178 | N21: =SUMIF('Periodic Analysis 1'!$33:$33,'Summary Annual'!N$14,'Periodic Analysis 1'!68:68) -> 178 | O21: =SUMIF('Periodic Analysis 1'!$33:$33,'Summary Annual'!O$14,'Periodic Analysis 1'!68:68) -> 178 | P21: =SUMIF('Periodic Analysis 1'!$33:$33,'Summary Annual'!P$14,'Periodic Analysis 1'!68:68) -> 178 | Q21: =SUMIF('Periodic Analysis 1'!$33:$33,'Summary Annual'!Q$14,'Periodic Analysis 1'!68:68) -> 178 | R21: =SUMIF('Periodic Analysis 1'!$33:$33,'Summary Annual'!R$14,'Periodic Analysis 1'!68:68) -> 0 | S21: =SUMIF('Periodic Analysis 1'!$33:$33,'Summary Annual'!S$14,'Periodic Analysis 1'!68:68) -> 0 | T21: =SUMIF('Periodic Analysis 1'!$33:$33,'Summary Annual'!T$14,'Periodic Analysis 1'!68:68) -> 0 | U21: =SUMIF('Periodic Analysis 1'!$33:$33,'Summary Annual'!U$14,'Periodic Analysis 1'!68:68) -> 0 | V21: =SUMIF('Periodic Analysis 1'!$33:$33,'Summary Annual'!V$14,'Periodic Analysis 1'!68:68) -> 0 | W21: =SUMIF('Periodic Analysis 1'!$33:$33,'Summary Annual'!W$14,'Periodic Analysis 1'!68:68) -> 0 | X21: =SUMIF('Periodic Analysis 1'!$33:$33,'Summary Annual'!X$14,'Periodic Analysis 1'!68:68) -> 0 | Y21: =SUMIF('Periodic Analysis 1'!$33:$33,'Summary Annual'!Y$14,'Periodic Analysis 1'!68:68) -> 0 | Z21: =SUMIF('Periodic Analysis 1'!$33:$33,'Summary Annual'!Z$14,'Periodic Analysis 1'!68:68) -> 0 | AA21: =SUMIF('Periodic Analysis 1'!$33:$33,'Summary Annual'!AA$14,'Periodic Analysis 1'!68:68) -> 0 | AB21: =SUMIF('Periodic Analysis 1'!$33:$33,'Summary Annual'!AB$14,'Periodic Analysis 1'!68:68) -> 0 | AC21: =SUMIF('Periodic Analysis 1'!$33:$33,'Summary Annual'!AC$14,'Periodic Analysis 1'!68:68) -> 0 | AD21: =SUMIF('Periodic Analysis 1'!$33:$33,'Summary Annual'!AD$14,'Periodic Analysis 1'!68:68) -> 0 | AE21: =SUMIF('Periodic Analysis 1'!$33:$33,'Summary Annual'!AE$14,'Periodic Analysis 1'!68:68) -> 0 | AF21: =SUMIF('Periodic Analysis 1'!$33:$33,'Summary Annual'!AF$14,'Periodic Analysis 1'!68:68) -> 0 | AG21: =SUMIF('Periodic Analysis 1'!$33:$33,'Summary Annual'!AG$14,'Periodic Analysis 1'!68:68) -> 0 | AH21: =SUMIF('Periodic Analysis 1'!$33:$33,'Summary Annual'!AH$14,'Periodic Analysis 1'!68:68) -> 0 | AI21: =SUMIF('Periodic Analysis 1'!$33:$33,'Summary Annual'!AI$14,'Periodic Analysis 1'!68:68) -> 0 | AJ21: =SUMIF('Periodic Analysis 1'!$33:$33,'Summary Annual'!AJ$14,'Periodic Analysis 1'!68:68) -> 0 | AK21: =SUMIF('Periodic Analysis 1'!$33:$33,'Summary Annual'!AK$14,'Periodic Analysis 1'!68:68) -> 0 | AL21: =SUMIF('Periodic Analysis 1'!$33:$33,'Summary Annual'!AL$14,'Periodic Analysis 1'!68:68) -> 0 | AM21: =SUMIF('Periodic Analysis 1'!$33:$33,'Summary Annual'!AM$14,'Periodic Analysis 1'!68:68) -> 0 | AN21: =SUMIF('Periodic Analysis 1'!$33:$33,'Summary Annual'!AN$14,'Periodic Analysis 1'!68:68) -> 0 | AO21: =SUMIF('Periodic Analysis 1'!$33:$33,'Summary Annual'!AO$14,'Periodic Analysis 1'!68:68) -> 0 | AP21: =SUMIF('Periodic Analysis 1'!$33:$33,'Summary Annual'!AP$14,'Periodic Analysis 1'!68:68) -> 0 | AQ21: =SUMIF('Periodic Analysis 1'!$33:$33,'Summary Annual'!AQ$14,'Periodic Analysis 1'!68:68) -> 0 | AR21: =SUMIF('Periodic Analysis 1'!$33:$33,'Summary Annual'!AR$14,'Periodic Analysis 1'!68:68) -> 0 | AS21: =SUMIF('Periodic Analysis 1'!$33:$33,'Summary Annual'!AS$14,'Periodic Analysis 1'!68:68) -> 0 | AT21: =SUMIF('Periodic Analysis 1'!$33:$33,'Summary Annual'!AT$14,'Periodic Analysis 1'!68:68) -> 0 | AU21: =SUMIF('Periodic Analysis 1'!$33:$33,'Summary Annual'!AU$14,'Periodic Analysis 1'!68:68) -> 0 | AV21: =SUMIF('Periodic Analysis 1'!$33:$33,'Summary Annual'!AV$14,'Periodic Analysis 1'!68:68) -> 0 | AW21: =SUMIF('Periodic Analysis 1'!$33:$33,'Summary Annual'!AW$14,'Periodic Analysis 1'!68:68) -> 0 | AX21: =SUMIF('Periodic Analysis 1'!$33:$33,'Summary Annual'!AX$14,'Periodic Analysis 1'!68:68) -> 0 | AY21: =SUMIF('Periodic Analysis 1'!$33:$33,'Summary Annual'!AY$14,'Periodic Analysis 1'!68:68) -> 0 | AZ21: =SUMIF('Periodic Analysis 1'!$33:$33,'Summary Annual'!AZ$14,'Periodic Analysis 1'!68:68) -> 0 | BA21: =SUMIF('Periodic Analysis 1'!$33:$33,'Summary Annual'!BA$14,'Periodic Analysis 1'!68:68) -> 0 | BB21: =SUMIF('Periodic Analysis 1'!$33:$33,'Summary Annual'!BB$14,'Periodic Analysis 1'!68:68) -> 0 | BC21: =SUMIF('Periodic Analysis 1'!$33:$33,'Summary Annual'!BC$14,'Periodic Analysis 1'!68:68) -> 0 | BD21: =SUMIF('Periodic Analysis 1'!$33:$33,'Summary Annual'!BD$14,'Periodic Analysis 1'!68:68) -> 0 | BE21: =SUMIF('Periodic Analysis 1'!$33:$33,'Summary Annual'!BE$14,'Periodic Analysis 1'!68:68) -> 0 | BF21: =SUMIF('Periodic Analysis 1'!$33:$33,'Summary Annual'!BF$14,'Periodic Analysis 1'!68:68) -> 0 | BG21: =SUMIF('Periodic Analysis 1'!$33:$33,'Summary Annual'!BG$14,'Periodic Analysis 1'!68:68) -> 0 | BH21: =SUMIF('Periodic Analysis 1'!$33:$33,'Summary Annual'!BH$14,'Periodic Analysis 1'!68:68) -> 0 | BI21: =SUMIF('Periodic Analysis 1'!$33:$33,'Summary Annual'!BI$14,'Periodic Analysis 1'!68:68) -> 0
D22: Total | E22: =E17 -> -1000 | F22: =SUM(F19:F21) -> 200 | G22: =SUM(G19:G21) -> 200 | H22: 200 | I22: 200 | J22: 200 | K22: 200 | L22: 200 | M22: 200 | N22: 200 | O22: 200 | P22: 200 | Q22: 200 | R22: 0 | S22: 0 | T22: 0 | U22: 0 | V22: 0 | W22: 0 | X22: 0 | Y22: 0 | Z22: 0 | AA22: 0 | AB22: 0 | AC22: 0 | AD22: 0 | AE22: 0 | AF22: 0 | AG22: 0 | AH22: 0 | AI22: 0 | AJ22: 0 | AK22: 0 | AL22: 0 | AM22: 0 | AN22: 0 | AO22: 0 | AP22: 0 | AQ22: 0 | AR22: 0 | AS22: 0 | AT22: 0 | AU22: 0 | AV22: 0 | AW22: 0 | AX22: 0 | AY22: 0 | AZ22: 0 | BA22: 0 | BB22: 0 | BC22: 0 | BD22: 0 | BE22: 0 | BF22: 0 | BG22: 0 | BH22: 0 | BI22: 0
D24: Total IRR | E24: =IRR(E22:BI22) -> 0.1694255086
C26: Periodic 2
D27: Operating Cash | E27: =-'Periodic Analysis 2'!E19 -> -1000 | F27: =SUMIF('Periodic Analysis 2'!$42:$42,'Summary Annual'!F$14,'Periodic Analysis 2'!49:49) -> 200 | G27: =SUMIF('Periodic Analysis 2'!$42:$42,'Summary Annual'!G$14,'Periodic Analysis 2'!49:49) -> 200 | H27: =SUMIF('Periodic Analysis 2'!$42:$42,'Summary Annual'!H$14,'Periodic Analysis 2'!49:49) -> 200 | I27: =SUMIF('Periodic Analysis 2'!$42:$42,'Summary Annual'!I$14,'Periodic Analysis 2'!49:49) -> 200 | J27: =SUMIF('Periodic Analysis 2'!$42:$42,'Summary Annual'!J$14,'Periodic Analysis 2'!49:49) -> 200 | K27: =SUMIF('Periodic Analysis 2'!$42:$42,'Summary Annual'!K$14,'Periodic Analysis 2'!49:49) -> 200 | L27: =SUMIF('Periodic Analysis 2'!$42:$42,'Summary Annual'!L$14,'Periodic Analysis 2'!49:49) -> 200 | M27: =SUMIF('Periodic Analysis 2'!$42:$42,'Summary Annual'!M$14,'Periodic Analysis 2'!49:49) -> 200 | N27: =SUMIF('Periodic Analysis 2'!$42:$42,'Summary Annual'!N$14,'Periodic Analysis 2'!49:49) -> 200 | O27: =SUMIF('Periodic Analysis 2'!$42:$42,'Summary Annual'!O$14,'Periodic Analysis 2'!49:49) -> 200 | P27: =SUMIF('Periodic Analysis 2'!$42:$42,'Summary Annual'!P$14,'Periodic Analysis 2'!49:49) -> 200 | Q27: =SUMIF('Periodic Analysis 2'!$42:$42,'Summary Annual'!Q$14,'Periodic Analysis 2'!49:49) -> 200 | R27: =SUMIF('Periodic Analysis 2'!$42:$42,'Summary Annual'!R$14,'Periodic Analysis 2'!49:49) -> 0 | S27: =SUMIF('Periodic Analysis 2'!$42:$42,'Summary Annual'!S$14,'Periodic Analysis 2'!49:49) -> 0 | T27: =SUMIF('Periodic Analysis 2'!$42:$42,'Summary Annual'!T$14,'Periodic Analysis 2'!49:49) -> 0 | U27: =SUMIF('Periodic Analysis 2'!$42:$42,'Summary Annual'!U$14,'Periodic Analysis 2'!49:49) -> 0 | V27: =SUMIF('Periodic Analysis 2'!$42:$42,'Summary Annual'!V$14,'Periodic Analysis 2'!49:49) -> 0 | W27: =SUMIF('Periodic Analysis 2'!$42:$42,'Summary Annual'!W$14,'Periodic Analysis 2'!49:49) -> 0 | X27: =SUMIF('Periodic Analysis 2'!$42:$42,'Summary Annual'!X$14,'Periodic Analysis 2'!49:49) -> 0 | Y27: =SUMIF('Periodic Analysis 2'!$42:$42,'Summary Annual'!Y$14,'Periodic Analysis 2'!49:49) -> 0 | Z27: =SUMIF('Periodic Analysis 2'!$42:$42,'Summary Annual'!Z$14,'Periodic Analysis 2'!49:49) -> 0 | AA27: =SUMIF('Periodic Analysis 2'!$42:$42,'Summary Annual'!AA$14,'Periodic Analysis 2'!49:49) -> 0 | AB27: =SUMIF('Periodic Analysis 2'!$42:$42,'Summary Annual'!AB$14,'Periodic Analysis 2'!49:49) -> 0 | AC27: =SUMIF('Periodic Analysis 2'!$42:$42,'Summary Annual'!AC$14,'Periodic Analysis 2'!49:49) -> 0 | AD27: =SUMIF('Periodic Analysis 2'!$42:$42,'Summary Annual'!AD$14,'Periodic Analysis 2'!49:49) -> 0 | AE27: =SUMIF('Periodic Analysis 2'!$42:$42,'Summary Annual'!AE$14,'Periodic Analysis 2'!49:49) -> 0 | AF27: =SUMIF('Periodic Analysis 2'!$42:$42,'Summary Annual'!AF$14,'Periodic Analysis 2'!49:49) -> 0 | AG27: =SUMIF('Periodic Analysis 2'!$42:$42,'Summary Annual'!AG$14,'Periodic Analysis 2'!49:49) -> 0 | AH27: =SUMIF('Periodic Analysis 2'!$42:$42,'Summary Annual'!AH$14,'Periodic Analysis 2'!49:49) -> 0 | AI27: =SUMIF('Periodic Analysis 2'!$42:$42,'Summary Annual'!AI$14,'Periodic Analysis 2'!49:49) -> 0 | AJ27: =SUMIF('Periodic Analysis 2'!$42:$42,'Summary Annual'!AJ$14,'Periodic Analysis 2'!49:49) -> 0 | AK27: =SUMIF('Periodic Analysis 2'!$42:$42,'Summary Annual'!AK$14,'Periodic Analysis 2'!49:49) -> 0 | AL27: =SUMIF('Periodic Analysis 2'!$42:$42,'Summary Annual'!AL$14,'Periodic Analysis 2'!49:49) -> 0 | AM27: =SUMIF('Periodic Analysis 2'!$42:$42,'Summary Annual'!AM$14,'Periodic Analysis 2'!49:49) -> 0 | AN27: =SUMIF('Periodic Analysis 2'!$42:$42,'Summary Annual'!AN$14,'Periodic Analysis 2'!49:49) -> 0 | AO27: =SUMIF('Periodic Analysis 2'!$42:$42,'Summary Annual'!AO$14,'Periodic Analysis 2'!49:49) -> 0 | AP27: =SUMIF('Periodic Analysis 2'!$42:$42,'Summary Annual'!AP$14,'Periodic Analysis 2'!49:49) -> 0 | AQ27: =SUMIF('Periodic Analysis 2'!$42:$42,'Summary Annual'!AQ$14,'Periodic Analysis 2'!49:49) -> 0 | AR27: =SUMIF('Periodic Analysis 2'!$42:$42,'Summary Annual'!AR$14,'Periodic Analysis 2'!49:49) -> 0 | AS27: =SUMIF('Periodic Analysis 2'!$42:$42,'Summary Annual'!AS$14,'Periodic Analysis 2'!49:49) -> 0 | AT27: =SUMIF('Periodic Analysis 2'!$42:$42,'Summary Annual'!AT$14,'Periodic Analysis 2'!49:49) -> 0 | AU27: =SUMIF('Periodic Analysis 2'!$42:$42,'Summary Annual'!AU$14,'Periodic Analysis 2'!49:49) -> 0 | AV27: =SUMIF('Periodic Analysis 2'!$42:$42,'Summary Annual'!AV$14,'Periodic Analysis 2'!49:49) -> 0 | AW27: =SUMIF('Periodic Analysis 2'!$42:$42,'Summary Annual'!AW$14,'Periodic Analysis 2'!49:49) -> 0 | AX27: =SUMIF('Periodic Analysis 2'!$42:$42,'Summary Annual'!AX$14,'Periodic Analysis 2'!49:49) -> 0 | AY27: =SUMIF('Periodic Analysis 2'!$42:$42,'Summary Annual'!AY$14,'Periodic Analysis 2'!49:49) -> 0 | AZ27: =SUMIF('Periodic Analysis 2'!$42:$42,'Summary Annual'!AZ$14,'Periodic Analysis 2'!49:49) -> 0 | BA27: =SUMIF('Periodic Analysis 2'!$42:$42,'Summary Annual'!BA$14,'Periodic Analysis 2'!49:49) -> 0 | BB27: =SUMIF('Periodic Analysis 2'!$42:$42,'Summary Annual'!BB$14,'Periodic Analysis 2'!49:49) -> 0 | BC27: =SUMIF('Periodic Analysis 2'!$42:$42,'Summary Annual'!BC$14,'Periodic Analysis 2'!49:49) -> 0 | BD27: =SUMIF('Periodic Analysis 2'!$42:$42,'Summary Annual'!BD$14,'Periodic Analysis 2'!49:49) -> 0 | BE27: =SUMIF('Periodic Analysis 2'!$42:$42,'Summary Annual'!BE$14,'Periodic Analysis 2'!49:49) -> 0 | BF27: =SUMIF('Periodic Analysis 2'!$42:$42,'Summary Annual'!BF$14,'Periodic Analysis 2'!49:49) -> 0 | BG27: =SUMIF('Periodic Analysis 2'!$42:$42,'Summary Annual'!BG$14,'Periodic Analysis 2'!49:49) -> 0 | BH27: =SUMIF('Periodic Analysis 2'!$42:$42,'Summary Annual'!BH$14,'Periodic Analysis 2'!49:49) -> 0 | BI27: =SUMIF('Periodic Analysis 2'!$42:$42,'Summary Annual'!BI$14,'Periodic Analysis 2'!49:49) -> 0
D29: Partner 1 - Pre-flip | F29: =SUMIF('Periodic Analysis 2'!$42:$42,'Summary Annual'!F$14,'Periodic Analysis 2'!67:67) -> 170 | G29: =SUMIF('Periodic Analysis 2'!$42:$42,'Summary Annual'!G$14,'Periodic Analysis 2'!67:67) -> 170 | H29: =SUMIF('Periodic Analysis 2'!$42:$42,'Summary Annual'!H$14,'Periodic Analysis 2'!67:67) -> 170 | I29: =SUMIF('Periodic Analysis 2'!$42:$42,'Summary Annual'!I$14,'Periodic Analysis 2'!67:67) -> 170 | J29: =SUMIF('Periodic Analysis 2'!$42:$42,'Summary Annual'!J$14,'Periodic Analysis 2'!67:67) -> 170 | K29: =SUMIF('Periodic Analysis 2'!$42:$42,'Summary Annual'!K$14,'Periodic Analysis 2'!67:67) -> 170 | L29: =SUMIF('Periodic Analysis 2'!$42:$42,'Summary Annual'!L$14,'Periodic Analysis 2'!67:67) -> 47.50949877 | M29: =SUMIF('Periodic Analysis 2'!$42:$42,'Summary Annual'!M$14,'Periodic Analysis 2'!67:67) -> 0 | N29: =SUMIF('Periodic Analysis 2'!$42:$42,'Summary Annual'!N$14,'Periodic Analysis 2'!67:67) -> 0 | O29: =SUMIF('Periodic Analysis 2'!$42:$42,'Summary Annual'!O$14,'Periodic Analysis 2'!67:67) -> 0 | P29: =SUMIF('Periodic Analysis 2'!$42:$42,'Summary Annual'!P$14,'Periodic Analysis 2'!67:67) -> 0 | Q29: =SUMIF('Periodic Analysis 2'!$42:$42,'Summary Annual'!Q$14,'Periodic Analysis 2'!67:67) -> 0 | R29: =SUMIF('Periodic Analysis 2'!$42:$42,'Summary Annual'!R$14,'Periodic Analysis 2'!67:67) -> 0 | S29: =SUMIF('Periodic Analysis 2'!$42:$42,'Summary Annual'!S$14,'Periodic Analysis 2'!67:67) -> 0 | T29: =SUMIF('Periodic Analysis 2'!$42:$42,'Summary Annual'!T$14,'Periodic Analysis 2'!67:67) -> 0 | U29: =SUMIF('Periodic Analysis 2'!$42:$42,'Summary Annual'!U$14,'Periodic Analysis 2'!67:67) -> 0 | V29: =SUMIF('Periodic Analysis 2'!$42:$42,'Summary Annual'!V$14,'Periodic Analysis 2'!67:67) -> 0 | W29: =SUMIF('Periodic Analysis 2'!$42:$42,'Summary Annual'!W$14,'Periodic Analysis 2'!67:67) -> 0 | X29: =SUMIF('Periodic Analysis 2'!$42:$42,'Summary Annual'!X$14,'Periodic Analysis 2'!67:67) -> 0 | Y29: =SUMIF('Periodic Analysis 2'!$42:$42,'Summary Annual'!Y$14,'Periodic Analysis 2'!67:67) -> 0 | Z29: =SUMIF('Periodic Analysis 2'!$42:$42,'Summary Annual'!Z$14,'Periodic Analysis 2'!67:67) -> 0 | AA29: =SUMIF('Periodic Analysis 2'!$42:$42,'Summary Annual'!AA$14,'Periodic Analysis 2'!67:67) -> 0 | AB29: =SUMIF('Periodic Analysis 2'!$42:$42,'Summary Annual'!AB$14,'Periodic Analysis 2'!67:67) -> 0 | AC29: =SUMIF('Periodic Analysis 2'!$42:$42,'Summary Annual'!AC$14,'Periodic Analysis 2'!67:67) -> 0 | AD29: =SUMIF('Periodic Analysis 2'!$42:$42,'Summary Annual'!AD$14,'Periodic Analysis 2'!67:67) -> 0 | AE29: =SUMIF('Periodic Analysis 2'!$42:$42,'Summary Annual'!AE$14,'Periodic Analysis 2'!67:67) -> 0 | AF29: =SUMIF('Periodic Analysis 2'!$42:$42,'Summary Annual'!AF$14,'Periodic Analysis 2'!67:67) -> 0 | AG29: =SUMIF('Periodic Analysis 2'!$42:$42,'Summary Annual'!AG$14,'Periodic Analysis 2'!67:67) -> 0 | AH29: =SUMIF('Periodic Analysis 2'!$42:$42,'Summary Annual'!AH$14,'Periodic Analysis 2'!67:67) -> 0 | AI29: =SUMIF('Periodic Analysis 2'!$42:$42,'Summary Annual'!AI$14,'Periodic Analysis 2'!67:67) -> 0 | AJ29: =SUMIF('Periodic Analysis 2'!$42:$42,'Summary Annual'!AJ$14,'Periodic Analysis 2'!67:67) -> 0 | AK29: =SUMIF('Periodic Analysis 2'!$42:$42,'Summary Annual'!AK$14,'Periodic Analysis 2'!67:67) -> 0 | AL29: =SUMIF('Periodic Analysis 2'!$42:$42,'Summary Annual'!AL$14,'Periodic Analysis 2'!67:67) -> 0 | AM29: =SUMIF('Periodic Analysis 2'!$42:$42,'Summary Annual'!AM$14,'Periodic Analysis 2'!67:67) -> 0 | AN29: =SUMIF('Periodic Analysis 2'!$42:$42,'Summary Annual'!AN$14,'Periodic Analysis 2'!67:67) -> 0 | AO29: =SUMIF('Periodic Analysis 2'!$42:$42,'Summary Annual'!AO$14,'Periodic Analysis 2'!67:67) -> 0 | AP29: =SUMIF('Periodic Analysis 2'!$42:$42,'Summary Annual'!AP$14,'Periodic Analysis 2'!67:67) -> 0 | AQ29: =SUMIF('Periodic Analysis 2'!$42:$42,'Summary Annual'!AQ$14,'Periodic Analysis 2'!67:67) -> 0 | AR29: =SUMIF('Periodic Analysis 2'!$42:$42,'Summary Annual'!AR$14,'Periodic Analysis 2'!67:67) -> 0 | AS29: =SUMIF('Periodic Analysis 2'!$42:$42,'Summary Annual'!AS$14,'Periodic Analysis 2'!67:67) -> 0 | AT29: =SUMIF('Periodic Analysis 2'!$42:$42,'Summary Annual'!AT$14,'Periodic Analysis 2'!67:67) -> 0 | AU29: =SUMIF('Periodic Analysis 2'!$42:$42,'Summary Annual'!AU$14,'Periodic Analysis 2'!67:67) -> 0 | AV29: =SUMIF('Periodic Analysis 2'!$42:$42,'Summary Annual'!AV$14,'Periodic Analysis 2'!67:67) -> 0 | AW29: =SUMIF('Periodic Analysis 2'!$42:$42,'Summary Annual'!AW$14,'Periodic Analysis 2'!67:67) -> 0 | AX29: =SUMIF('Periodic Analysis 2'!$42:$42,'Summary Annual'!AX$14,'Periodic Analysis 2'!67:67) -> 0 | AY29: =SUMIF('Periodic Analysis 2'!$42:$42,'Summary Annual'!AY$14,'Periodic Analysis 2'!67:67) -> 0 | AZ29: =SUMIF('Periodic Analysis 2'!$42:$42,'Summary Annual'!AZ$14,'Periodic Analysis 2'!67:67) -> 0 | BA29: =SUMIF('Periodic Analysis 2'!$42:$42,'Summary Annual'!BA$14,'Periodic Analysis 2'!67:67) -> 0 | BB29: =SUMIF('Periodic Analysis 2'!$42:$42,'Summary Annual'!BB$14,'Periodic Analysis 2'!67:67) -> 0 | BC29: =SUMIF('Periodic Analysis 2'!$42:$42,'Summary Annual'!BC$14,'Periodic Analysis 2'!67:67) -> 0 | BD29: =SUMIF('Periodic Analysis 2'!$42:$42,'Summary Annual'!BD$14,'Periodic Analysis 2'!67:67) -> 0 | BE29: =SUMIF('Periodic Analysis 2'!$42:$42,'Summary Annual'!BE$14,'Periodic Analysis 2'!67:67) -> 0 | BF29: =SUMIF('Periodic Analysis 2'!$42:$42,'Summary Annual'!BF$14,'Periodic Analysis 2'!67:67) -> 0 | BG29: =SUMIF('Periodic Analysis 2'!$42:$42,'Summary Annual'!BG$14,'Periodic Analysis 2'!67:67) -> 0 | BH29: =SUMIF('Periodic Analysis 2'!$42:$42,'Summary Annual'!BH$14,'Periodic Analysis 2'!67:67) -> 0 | BI29: =SUMIF('Periodic Analysis 2'!$42:$42,'Summary Annual'!BI$14,'Periodic Analysis 2'!67:67) -> 0
D30: Partner 1 - Post Flip | F30: =SUMIF('Periodic Analysis 2'!$42:$42,'Summary Annual'!F$14,'Periodic Analysis 2'!79:79) -> 0 | G30: =SUMIF('Periodic Analysis 2'!$42:$42,'Summary Annual'!G$14,'Periodic Analysis 2'!79:79) -> 0 | H30: =SUMIF('Periodic Analysis 2'!$42:$42,'Summary Annual'!H$14,'Periodic Analysis 2'!79:79) -> 0 | I30: =SUMIF('Periodic Analysis 2'!$42:$42,'Summary Annual'!I$14,'Periodic Analysis 2'!79:79) -> 0 | J30: =SUMIF('Periodic Analysis 2'!$42:$42,'Summary Annual'!J$14,'Periodic Analysis 2'!79:79) -> 0 | K30: =SUMIF('Periodic Analysis 2'!$42:$42,'Summary Annual'!K$14,'Periodic Analysis 2'!79:79) -> 0 | L30: =SUMIF('Periodic Analysis 2'!$42:$42,'Summary Annual'!L$14,'Periodic Analysis 2'!79:79) -> 15.88888889 | M30: =SUMIF('Periodic Analysis 2'!$42:$42,'Summary Annual'!M$14,'Periodic Analysis 2'!79:79) -> 22 | N30: =SUMIF('Periodic Analysis 2'!$42:$42,'Summary Annual'!N$14,'Periodic Analysis 2'!79:79) -> 22 | O30: =SUMIF('Periodic Analysis 2'!$42:$42,'Summary Annual'!O$14,'Periodic Analysis 2'!79:79) -> 22 | P30: =SUMIF('Periodic Analysis 2'!$42:$42,'Summary Annual'!P$14,'Periodic Analysis 2'!79:79) -> 22 | Q30: =SUMIF('Periodic Analysis 2'!$42:$42,'Summary Annual'!Q$14,'Periodic Analysis 2'!79:79) -> 22 | R30: =SUMIF('Periodic Analysis 2'!$42:$42,'Summary Annual'!R$14,'Periodic Analysis 2'!79:79) -> 0 | S30: =SUMIF('Periodic Analysis 2'!$42:$42,'Summary Annual'!S$14,'Periodic Analysis 2'!79:79) -> 0 | T30: =SUMIF('Periodic Analysis 2'!$42:$42,'Summary Annual'!T$14,'Periodic Analysis 2'!79:79) -> 0 | U30: =SUMIF('Periodic Analysis 2'!$42:$42,'Summary Annual'!U$14,'Periodic Analysis 2'!79:79) -> 0 | V30: =SUMIF('Periodic Analysis 2'!$42:$42,'Summary Annual'!V$14,'Periodic Analysis 2'!79:79) -> 0 | W30: =SUMIF('Periodic Analysis 2'!$42:$42,'Summary Annual'!W$14,'Periodic Analysis 2'!79:79) -> 0 | X30: =SUMIF('Periodic Analysis 2'!$42:$42,'Summary Annual'!X$14,'Periodic Analysis 2'!79:79) -> 0 | Y30: =SUMIF('Periodic Analysis 2'!$42:$42,'Summary Annual'!Y$14,'Periodic Analysis 2'!79:79) -> 0 | Z30: =SUMIF('Periodic Analysis 2'!$42:$42,'Summary Annual'!Z$14,'Periodic Analysis 2'!79:79) -> 0 | AA30: =SUMIF('Periodic Analysis 2'!$42:$42,'Summary Annual'!AA$14,'Periodic Analysis 2'!79:79) -> 0 | AB30: =SUMIF('Periodic Analysis 2'!$42:$42,'Summary Annual'!AB$14,'Periodic Analysis 2'!79:79) -> 0 | AC30: =SUMIF('Periodic Analysis 2'!$42:$42,'Summary Annual'!AC$14,'Periodic Analysis 2'!79:79) -> 0 | AD30: =SUMIF('Periodic Analysis 2'!$42:$42,'Summary Annual'!AD$14,'Periodic Analysis 2'!79:79) -> 0 | AE30: =SUMIF('Periodic Analysis 2'!$42:$42,'Summary Annual'!AE$14,'Periodic Analysis 2'!79:79) -> 0 | AF30: =SUMIF('Periodic Analysis 2'!$42:$42,'Summary Annual'!AF$14,'Periodic Analysis 2'!79:79) -> 0 | AG30: =SUMIF('Periodic Analysis 2'!$42:$42,'Summary Annual'!AG$14,'Periodic Analysis 2'!79:79) -> 0 | AH30: =SUMIF('Periodic Analysis 2'!$42:$42,'Summary Annual'!AH$14,'Periodic Analysis 2'!79:79) -> 0 | AI30: =SUMIF('Periodic Analysis 2'!$42:$42,'Summary Annual'!AI$14,'Periodic Analysis 2'!79:79) -> 0 | AJ30: =SUMIF('Periodic Analysis 2'!$42:$42,'Summary Annual'!AJ$14,'Periodic Analysis 2'!79:79) -> 0 | AK30: =SUMIF('Periodic Analysis 2'!$42:$42,'Summary Annual'!AK$14,'Periodic Analysis 2'!79:79) -> 0 | AL30: =SUMIF('Periodic Analysis 2'!$42:$42,'Summary Annual'!AL$14,'Periodic Analysis 2'!79:79) -> 0 | AM30: =SUMIF('Periodic Analysis 2'!$42:$42,'Summary Annual'!AM$14,'Periodic Analysis 2'!79:79) -> 0 | AN30: =SUMIF('Periodic Analysis 2'!$42:$42,'Summary Annual'!AN$14,'Periodic Analysis 2'!79:79) -> 0 | AO30: =SUMIF('Periodic Analysis 2'!$42:$42,'Summary Annual'!AO$14,'Periodic Analysis 2'!79:79) -> 0 | AP30: =SUMIF('Periodic Analysis 2'!$42:$42,'Summary Annual'!AP$14,'Periodic Analysis 2'!79:79) -> 0 | AQ30: =SUMIF('Periodic Analysis 2'!$42:$42,'Summary Annual'!AQ$14,'Periodic Analysis 2'!79:79) -> 0 | AR30: =SUMIF('Periodic Analysis 2'!$42:$42,'Summary Annual'!AR$14,'Periodic Analysis 2'!79:79) -> 0 | AS30: =SUMIF('Periodic Analysis 2'!$42:$42,'Summary Annual'!AS$14,'Periodic Analysis 2'!79:79) -> 0 | AT30: =SUMIF('Periodic Analysis 2'!$42:$42,'Summary Annual'!AT$14,'Periodic Analysis 2'!79:79) -> 0 | AU30: =SUMIF('Periodic Analysis 2'!$42:$42,'Summary Annual'!AU$14,'Periodic Analysis 2'!79:79) -> 0 | AV30: =SUMIF('Periodic Analysis 2'!$42:$42,'Summary Annual'!AV$14,'Periodic Analysis 2'!79:79) -> 0 | AW30: =SUMIF('Periodic Analysis 2'!$42:$42,'Summary Annual'!AW$14,'Periodic Analysis 2'!79:79) -> 0 | AX30: =SUMIF('Periodic Analysis 2'!$42:$42,'Summary Annual'!AX$14,'Periodic Analysis 2'!79:79) -> 0 | AY30: =SUMIF('Periodic Analysis 2'!$42:$42,'Summary Annual'!AY$14,'Periodic Analysis 2'!79:79) -> 0 | AZ30: =SUMIF('Periodic Analysis 2'!$42:$42,'Summary Annual'!AZ$14,'Periodic Analysis 2'!79:79) -> 0 | BA30: =SUMIF('Periodic Analysis 2'!$42:$42,'Summary Annual'!BA$14,'Periodic Analysis 2'!79:79) -> 0 | BB30: =SUMIF('Periodic Analysis 2'!$42:$42,'Summary Annual'!BB$14,'Periodic Analysis 2'!79:79) -> 0 | BC30: =SUMIF('Periodic Analysis 2'!$42:$42,'Summary Annual'!BC$14,'Periodic Analysis 2'!79:79) -> 0 | BD30: =SUMIF('Periodic Analysis 2'!$42:$42,'Summary Annual'!BD$14,'Periodic Analysis 2'!79:79) -> 0 | BE30: =SUMIF('Periodic Analysis 2'!$42:$42,'Summary Annual'!BE$14,'Periodic Analysis 2'!79:79) -> 0 | BF30: =SUMIF('Periodic Analysis 2'!$42:$42,'Summary Annual'!BF$14,'Periodic Analysis 2'!79:79) -> 0 | BG30: =SUMIF('Periodic Analysis 2'!$42:$42,'Summary Annual'!BG$14,'Periodic Analysis 2'!79:79) -> 0 | BH30: =SUMIF('Periodic Analysis 2'!$42:$42,'Summary Annual'!BH$14,'Periodic Analysis 2'!79:79) -> 0 | BI30: =SUMIF('Periodic Analysis 2'!$42:$42,'Summary Annual'!BI$14,'Periodic Analysis 2'!79:79) -> 0
D31: Partner 2 Cash Flow | F31: =SUMIF('Periodic Analysis 2'!$42:$42,'Summary Annual'!F$14,'Periodic Analysis 2'!82:82) -> 30 | G31: =SUMIF('Periodic Analysis 2'!$42:$42,'Summary Annual'!G$14,'Periodic Analysis 2'!82:82) -> 30 | H31: =SUMIF('Periodic Analysis 2'!$42:$42,'Summary Annual'!H$14,'Periodic Analysis 2'!82:82) -> 30 | I31: =SUMIF('Periodic Analysis 2'!$42:$42,'Summary Annual'!I$14,'Periodic Analysis 2'!82:82) -> 30 | J31: =SUMIF('Periodic Analysis 2'!$42:$42,'Summary Annual'!J$14,'Periodic Analysis 2'!82:82) -> 30 | K31: =SUMIF('Periodic Analysis 2'!$42:$42,'Summary Annual'!K$14,'Periodic Analysis 2'!82:82) -> 30 | L31: =SUMIF('Periodic Analysis 2'!$42:$42,'Summary Annual'!L$14,'Periodic Analysis 2'!82:82) -> 136.6016123 | M31: =SUMIF('Periodic Analysis 2'!$42:$42,'Summary Annual'!M$14,'Periodic Analysis 2'!82:82) -> 178 | N31: =SUMIF('Periodic Analysis 2'!$42:$42,'Summary Annual'!N$14,'Periodic Analysis 2'!82:82) -> 178 | O31: =SUMIF('Periodic Analysis 2'!$42:$42,'Summary Annual'!O$14,'Periodic Analysis 2'!82:82) -> 178 | P31: =SUMIF('Periodic Analysis 2'!$42:$42,'Summary Annual'!P$14,'Periodic Analysis 2'!82:82) -> 178 | Q31: =SUMIF('Periodic Analysis 2'!$42:$42,'Summary Annual'!Q$14,'Periodic Analysis 2'!82:82) -> 178 | R31: =SUMIF('Periodic Analysis 2'!$42:$42,'Summary Annual'!R$14,'Periodic Analysis 2'!82:82) -> 0 | S31: =SUMIF('Periodic Analysis 2'!$42:$42,'Summary Annual'!S$14,'Periodic Analysis 2'!82:82) -> 0 | T31: =SUMIF('Periodic Analysis 2'!$42:$42,'Summary Annual'!T$14,'Periodic Analysis 2'!82:82) -> 0 | U31: =SUMIF('Periodic Analysis 2'!$42:$42,'Summary Annual'!U$14,'Periodic Analysis 2'!82:82) -> 0 | V31: =SUMIF('Periodic Analysis 2'!$42:$42,'Summary Annual'!V$14,'Periodic Analysis 2'!82:82) -> 0 | W31: =SUMIF('Periodic Analysis 2'!$42:$42,'Summary Annual'!W$14,'Periodic Analysis 2'!82:82) -> 0 | X31: =SUMIF('Periodic Analysis 2'!$42:$42,'Summary Annual'!X$14,'Periodic Analysis 2'!82:82) -> 0 | Y31: =SUMIF('Periodic Analysis 2'!$42:$42,'Summary Annual'!Y$14,'Periodic Analysis 2'!82:82) -> 0 | Z31: =SUMIF('Periodic Analysis 2'!$42:$42,'Summary Annual'!Z$14,'Periodic Analysis 2'!82:82) -> 0 | AA31: =SUMIF('Periodic Analysis 2'!$42:$42,'Summary Annual'!AA$14,'Periodic Analysis 2'!82:82) -> 0 | AB31: =SUMIF('Periodic Analysis 2'!$42:$42,'Summary Annual'!AB$14,'Periodic Analysis 2'!82:82) -> 0 | AC31: =SUMIF('Periodic Analysis 2'!$42:$42,'Summary Annual'!AC$14,'Periodic Analysis 2'!82:82) -> 0 | AD31: =SUMIF('Periodic Analysis 2'!$42:$42,'Summary Annual'!AD$14,'Periodic Analysis 2'!82:82) -> 0 | AE31: =SUMIF('Periodic Analysis 2'!$42:$42,'Summary Annual'!AE$14,'Periodic Analysis 2'!82:82) -> 0 | AF31: =SUMIF('Periodic Analysis 2'!$42:$42,'Summary Annual'!AF$14,'Periodic Analysis 2'!82:82) -> 0 | AG31: =SUMIF('Periodic Analysis 2'!$42:$42,'Summary Annual'!AG$14,'Periodic Analysis 2'!82:82) -> 0 | AH31: =SUMIF('Periodic Analysis 2'!$42:$42,'Summary Annual'!AH$14,'Periodic Analysis 2'!82:82) -> 0 | AI31: =SUMIF('Periodic Analysis 2'!$42:$42,'Summary Annual'!AI$14,'Periodic Analysis 2'!82:82) -> 0 | AJ31: =SUMIF('Periodic Analysis 2'!$42:$42,'Summary Annual'!AJ$14,'Periodic Analysis 2'!82:82) -> 0 | AK31: =SUMIF('Periodic Analysis 2'!$42:$42,'Summary Annual'!AK$14,'Periodic Analysis 2'!82:82) -> 0 | AL31: =SUMIF('Periodic Analysis 2'!$42:$42,'Summary Annual'!AL$14,'Periodic Analysis 2'!82:82) -> 0 | AM31: =SUMIF('Periodic Analysis 2'!$42:$42,'Summary Annual'!AM$14,'Periodic Analysis 2'!82:82) -> 0 | AN31: =SUMIF('Periodic Analysis 2'!$42:$42,'Summary Annual'!AN$14,'Periodic Analysis 2'!82:82) -> 0 | AO31: =SUMIF('Periodic Analysis 2'!$42:$42,'Summary Annual'!AO$14,'Periodic Analysis 2'!82:82) -> 0 | AP31: =SUMIF('Periodic Analysis 2'!$42:$42,'Summary Annual'!AP$14,'Periodic Analysis 2'!82:82) -> 0 | AQ31: =SUMIF('Periodic Analysis 2'!$42:$42,'Summary Annual'!AQ$14,'Periodic Analysis 2'!82:82) -> 0 | AR31: =SUMIF('Periodic Analysis 2'!$42:$42,'Summary Annual'!AR$14,'Periodic Analysis 2'!82:82) -> 0 | AS31: =SUMIF('Periodic Analysis 2'!$42:$42,'Summary Annual'!AS$14,'Periodic Analysis 2'!82:82) -> 0 | AT31: =SUMIF('Periodic Analysis 2'!$42:$42,'Summary Annual'!AT$14,'Periodic Analysis 2'!82:82) -> 0 | AU31: =SUMIF('Periodic Analysis 2'!$42:$42,'Summary Annual'!AU$14,'Periodic Analysis 2'!82:82) -> 0 | AV31: =SUMIF('Periodic Analysis 2'!$42:$42,'Summary Annual'!AV$14,'Periodic Analysis 2'!82:82) -> 0 | AW31: =SUMIF('Periodic Analysis 2'!$42:$42,'Summary Annual'!AW$14,'Periodic Analysis 2'!82:82) -> 0 | AX31: =SUMIF('Periodic Analysis 2'!$42:$42,'Summary Annual'!AX$14,'Periodic Analysis 2'!82:82) -> 0 | AY31: =SUMIF('Periodic Analysis 2'!$42:$42,'Summary Annual'!AY$14,'Periodic Analysis 2'!82:82) -> 0 | AZ31: =SUMIF('Periodic Analysis 2'!$42:$42,'Summary Annual'!AZ$14,'Periodic Analysis 2'!82:82) -> 0 | BA31: =SUMIF('Periodic Analysis 2'!$42:$42,'Summary Annual'!BA$14,'Periodic Analysis 2'!82:82) -> 0 | BB31: =SUMIF('Periodic Analysis 2'!$42:$42,'Summary Annual'!BB$14,'Periodic Analysis 2'!82:82) -> 0 | BC31: =SUMIF('Periodic Analysis 2'!$42:$42,'Summary Annual'!BC$14,'Periodic Analysis 2'!82:82) -> 0 | BD31: =SUMIF('Periodic Analysis 2'!$42:$42,'Summary Annual'!BD$14,'Periodic Analysis 2'!82:82) -> 0 | BE31: =SUMIF('Periodic Analysis 2'!$42:$42,'Summary Annual'!BE$14,'Periodic Analysis 2'!82:82) -> 0 | BF31: =SUMIF('Periodic Analysis 2'!$42:$42,'Summary Annual'!BF$14,'Periodic Analysis 2'!82:82) -> 0 | BG31: =SUMIF('Periodic Analysis 2'!$42:$42,'Summary Annual'!BG$14,'Periodic Analysis 2'!82:82) -> 0 | BH31: =SUMIF('Periodic Analysis 2'!$42:$42,'Summary Annual'!BH$14,'Periodic Analysis 2'!82:82) -> 0 | BI31: =SUMIF('Periodic Analysis 2'!$42:$42,'Summary Annual'!BI$14,'Periodic Analysis 2'!82:82) -> 0
D32: Total | F32: =SUM(F29:F31) -> 200 | G32: =SUM(G29:G31) -> 200 | H32: 200 | I32: 200 | J32: 200 | K32: 200 | L32: 200 | M32: 200 | N32: 200 | O32: 200 | P32: 200 | Q32: 200 | R32: 0 | S32: 0 | T32: 0 | U32: 0 | V32: 0 | W32: 0 | X32: 0 | Y32: 0 | Z32: 0 | AA32: 0 | AB32: 0 | AC32: 0 | AD32: 0 | AE32: 0 | AF32: 0 | AG32: 0 | AH32: 0 | AI32: 0 | AJ32: 0 | AK32: 0 | AL32: 0 | AM32: 0 | AN32: 0 | AO32: 0 | AP32: 0 | AQ32: 0 | AR32: 0 | AS32: 0 | AT32: 0 | AU32: 0 | AV32: 0 | AW32: 0 | AX32: 0 | AY32: 0 | AZ32: 0 | BA32: 0 | BB32: 0 | BC32: 0 | BD32: 0 | BE32: 0 | BF32: 0 | BG32: 0 | BH32: 0 | BI32: 0
D34: Total IRR | E34: =IRR(E27:BI27) -> 0.1694255086
C36: Annual
D37: Operating Cash | E37: =E27 -> -1000 | F37: ='Annual Analysis'!E25 -> 200 | G37: ='Annual Analysis'!F25 -> 200 | H37: ='Annual Analysis'!G25 -> 200 | I37: ='Annual Analysis'!H25 -> 200 | J37: ='Annual Analysis'!I25 -> 200 | K37: ='Annual Analysis'!J25 -> 200 | L37: ='Annual Analysis'!K25 -> 200 | M37: ='Annual Analysis'!L25 -> 200 | N37: ='Annual Analysis'!M25 -> 200 | O37: ='Annual Analysis'!N25 -> 200 | P37: ='Annual Analysis'!O25 -> 200 | Q37: ='Annual Analysis'!P25 -> 200 | R37: ='Annual Analysis'!Q25 -> 0 | S37: ='Annual Analysis'!R25 -> 0 | T37: ='Annual Analysis'!S25 -> 0 | U37: ='Annual Analysis'!T25 -> 0 | V37: ='Annual Analysis'!U25 -> 0 | W37: ='Annual Analysis'!V25 -> 0 | X37: ='Annual Analysis'!W25 -> 0 | Y37: ='Annual Analysis'!X25 -> 0 | Z37: ='Annual Analysis'!Y25 -> 0 | AA37: ='Annual Analysis'!Z25 -> 0 | AB37: ='Annual Analysis'!AA25 -> 0 | AC37: ='Annual Analysis'!AB25 -> 0 | AD37: ='Annual Analysis'!AC25 -> 0 | AE37: ='Annual Analysis'!AD25 -> 0 | AF37: ='Annual Analysis'!AE25 -> 0 | AG37: ='Annual Analysis'!AF25 -> 0 | AH37: ='Annual Analysis'!AG25 -> 0 | AI37: ='Annual Analysis'!AH25 -> 0 | AJ37: ='Annual Analysis'!AI25 -> 0 | AK37: ='Annual Analysis'!AJ25 -> 0 | AL37: ='Annual Analysis'!AK25 -> 0 | AM37: ='Annual Analysis'!AL25 -> 0 | AN37: ='Annual Analysis'!AM25 -> 0 | AO37: ='Annual Analysis'!AN25 -> 0 | AP37: ='Annual Analysis'!AO25 -> 0 | AQ37: ='Annual Analysis'!AP25 -> 0 | AR37: ='Annual Analysis'!AQ25 -> 0 | AS37: ='Annual Analysis'!AR25 -> 0 | AT37: ='Annual Analysis'!AS25 -> 0 | AU37: ='Annual Analysis'!AT25 -> 0 | AV37: ='Annual Analysis'!AU25 -> 0 | AW37: ='Annual Analysis'!AV25 -> 0 | AX37: ='Annual Analysis'!AW25 -> 0 | AY37: ='Annual Analysis'!AX25 -> 0 | AZ37: ='Annual Analysis'!AY25 -> 0 | BA37: ='Annual Analysis'!AZ25 -> 0 | BB37: ='Annual Analysis'!BA25 -> 0 | BC37: ='Annual Analysis'!BB25 -> 0 | BD37: ='Annual Analysis'!BC25 -> 0 | BE37: ='Annual Analysis'!BD25 -> 0 | BF37: ='Annual Analysis'!BE25 -> 0 | BG37: ='Annual Analysis'!BF25 -> 0 | BH37: ='Annual Analysis'!BG25 -> 0 | BI37: ='Annual Analysis'!BH25 -> 0
D39: Partner 1 - Pre-flip | F39: ='Annual Analysis'!E41 -> 170 | G39: ='Annual Analysis'!F41 -> 170 | H39: ='Annual Analysis'!G41 -> 170 | I39: ='Annual Analysis'!H41 -> 170 | J39: ='Annual Analysis'!I41 -> 170 | K39: ='Annual Analysis'!J41 -> 170 | L39: ='Annual Analysis'!K41 -> 116.15461 | M39: ='Annual Analysis'!L41 -> 0 | N39: ='Annual Analysis'!M41 -> 0 | O39: ='Annual Analysis'!N41 -> 0 | P39: ='Annual Analysis'!O41 -> 0 | Q39: ='Annual Analysis'!P41 -> 0 | R39: ='Annual Analysis'!Q41 -> 0 | S39: ='Annual Analysis'!R41 -> 0 | T39: ='Annual Analysis'!S41 -> 0 | U39: ='Annual Analysis'!T41 -> 0 | V39: ='Annual Analysis'!U41 -> 0 | W39: ='Annual Analysis'!V41 -> 0 | X39: ='Annual Analysis'!W41 -> 0 | Y39: ='Annual Analysis'!X41 -> 0 | Z39: ='Annual Analysis'!Y41 -> 0 | AA39: ='Annual Analysis'!Z41 -> 0 | AB39: ='Annual Analysis'!AA41 -> 0 | AC39: ='Annual Analysis'!AB41 -> 0 | AD39: ='Annual Analysis'!AC41 -> 0 | AE39: ='Annual Analysis'!AD41 -> 0 | AF39: ='Annual Analysis'!AE41 -> 0 | AG39: ='Annual Analysis'!AF41 -> 0 | AH39: ='Annual Analysis'!AG41 -> 0 | AI39: ='Annual Analysis'!AH41 -> 0 | AJ39: ='Annual Analysis'!AI41 -> 0 | AK39: ='Annual Analysis'!AJ41 -> 0 | AL39: ='Annual Analysis'!AK41 -> 0 | AM39: ='Annual Analysis'!AL41 -> 0 | AN39: ='Annual Analysis'!AM41 -> 0 | AO39: ='Annual Analysis'!AN41 -> 0 | AP39: ='Annual Analysis'!AO41 -> 0 | AQ39: ='Annual Analysis'!AP41 -> 0 | AR39: ='Annual Analysis'!AQ41 -> 0 | AS39: ='Annual Analysis'!AR41 -> 0 | AT39: ='Annual Analysis'!AS41 -> 0 | AU39: ='Annual Analysis'!AT41 -> 0 | AV39: ='Annual Analysis'!AU41 -> 0 | AW39: ='Annual Analysis'!AV41 -> 0 | AX39: ='Annual Analysis'!AW41 -> 0 | AY39: ='Annual Analysis'!AX41 -> 0 | AZ39: ='Annual Analysis'!AY41 -> 0 | BA39: ='Annual Analysis'!AZ41 -> 0 | BB39: ='Annual Analysis'!BA41 -> 0 | BC39: ='Annual Analysis'!BB41 -> 0 | BD39: ='Annual Analysis'!BC41 -> 0 | BE39: ='Annual Analysis'!BD41 -> 0 | BF39: ='Annual Analysis'!BE41 -> 0 | BG39: ='Annual Analysis'!BF41 -> 0 | BH39: ='Annual Analysis'!BG41 -> 0 | BI39: ='Annual Analysis'!BH41 -> 0
D40: Partner 1 - Post Flip | F40: ='Annual Analysis'!E49 -> 0 | G40: ='Annual Analysis'!F49 -> 0 | H40: ='Annual Analysis'!G49 -> 0 | I40: ='Annual Analysis'!H49 -> 0 | J40: ='Annual Analysis'!I49 -> 0 | K40: ='Annual Analysis'!J49 -> 0 | L40: ='Annual Analysis'!K49 -> 6.968226941 | M40: ='Annual Analysis'!L49 -> 22 | N40: ='Annual Analysis'!M49 -> 22 | O40: ='Annual Analysis'!N49 -> 22 | P40: ='Annual Analysis'!O49 -> 22 | Q40: ='Annual Analysis'!P49 -> 22 | R40: ='Annual Analysis'!Q49 -> 0 | S40: ='Annual Analysis'!R49 -> 0 | T40: ='Annual Analysis'!S49 -> 0 | U40: ='Annual Analysis'!T49 -> 0 | V40: ='Annual Analysis'!U49 -> 0 | W40: ='Annual Analysis'!V49 -> 0 | X40: ='Annual Analysis'!W49 -> 0 | Y40: ='Annual Analysis'!X49 -> 0 | Z40: ='Annual Analysis'!Y49 -> 0 | AA40: ='Annual Analysis'!Z49 -> 0 | AB40: ='Annual Analysis'!AA49 -> 0 | AC40: ='Annual Analysis'!AB49 -> 0 | AD40: ='Annual Analysis'!AC49 -> 0 | AE40: ='Annual Analysis'!AD49 -> 0 | AF40: ='Annual Analysis'!AE49 -> 0 | AG40: ='Annual Analysis'!AF49 -> 0 | AH40: ='Annual Analysis'!AG49 -> 0 | AI40: ='Annual Analysis'!AH49 -> 0 | AJ40: ='Annual Analysis'!AI49 -> 0 | AK40: ='Annual Analysis'!AJ49 -> 0 | AL40: ='Annual Analysis'!AK49 -> 0 | AM40: ='Annual Analysis'!AL49 -> 0 | AN40: ='Annual Analysis'!AM49 -> 0 | AO40: ='Annual Analysis'!AN49 -> 0 | AP40: ='Annual Analysis'!AO49 -> 0 | AQ40: ='Annual Analysis'!AP49 -> 0 | AR40: ='Annual Analysis'!AQ49 -> 0 | AS40: ='Annual Analysis'!AR49 -> 0 | AT40: ='Annual Analysis'!AS49 -> 0 | AU40: ='Annual Analysis'!AT49 -> 0 | AV40: ='Annual Analysis'!AU49 -> 0 | AW40: ='Annual Analysis'!AV49 -> 0 | AX40: ='Annual Analysis'!AW49 -> 0 | AY40: ='Annual Analysis'!AX49 -> 0 | AZ40: ='Annual Analysis'!AY49 -> 0 | BA40: ='Annual Analysis'!AZ49 -> 0 | BB40: ='Annual Analysis'!BA49 -> 0 | BC40: ='Annual Analysis'!BB49 -> 0 | BD40: ='Annual Analysis'!BC49 -> 0 | BE40: ='Annual Analysis'!BD49 -> 0 | BF40: ='Annual Analysis'!BE49 -> 0 | BG40: ='Annual Analysis'!BF49 -> 0 | BH40: ='Annual Analysis'!BG49 -> 0 | BI40: ='Annual Analysis'!BH49 -> 0
D41: Partner 2 Cash Flow | F41: ='Annual Analysis'!E52 -> 30 | G41: ='Annual Analysis'!F52 -> 30 | H41: ='Annual Analysis'!G52 -> 30 | I41: ='Annual Analysis'!H52 -> 30 | J41: ='Annual Analysis'!I52 -> 30 | K41: ='Annual Analysis'!J52 -> 30 | L41: ='Annual Analysis'!K52 -> 76.87716306 | M41: ='Annual Analysis'!L52 -> 178 | N41: ='Annual Analysis'!M52 -> 178 | O41: ='Annual Analysis'!N52 -> 178 | P41: ='Annual Analysis'!O52 -> 178 | Q41: ='Annual Analysis'!P52 -> 178 | R41: ='Annual Analysis'!Q52 -> 0 | S41: ='Annual Analysis'!R52 -> 0 | T41: ='Annual Analysis'!S52 -> 0 | U41: ='Annual Analysis'!T52 -> 0 | V41: ='Annual Analysis'!U52 -> 0 | W41: ='Annual Analysis'!V52 -> 0 | X41: ='Annual Analysis'!W52 -> 0 | Y41: ='Annual Analysis'!X52 -> 0 | Z41: ='Annual Analysis'!Y52 -> 0 | AA41: ='Annual Analysis'!Z52 -> 0 | AB41: ='Annual Analysis'!AA52 -> 0 | AC41: ='Annual Analysis'!AB52 -> 0 | AD41: ='Annual Analysis'!AC52 -> 0 | AE41: ='Annual Analysis'!AD52 -> 0 | AF41: ='Annual Analysis'!AE52 -> 0 | AG41: ='Annual Analysis'!AF52 -> 0 | AH41: ='Annual Analysis'!AG52 -> 0 | AI41: ='Annual Analysis'!AH52 -> 0 | AJ41: ='Annual Analysis'!AI52 -> 0 | AK41: ='Annual Analysis'!AJ52 -> 0 | AL41: ='Annual Analysis'!AK52 -> 0 | AM41: ='Annual Analysis'!AL52 -> 0 | AN41: ='Annual Analysis'!AM52 -> 0 | AO41: ='Annual Analysis'!AN52 -> 0 | AP41: ='Annual Analysis'!AO52 -> 0 | AQ41: ='Annual Analysis'!AP52 -> 0 | AR41: ='Annual Analysis'!AQ52 -> 0 | AS41: ='Annual Analysis'!AR52 -> 0 | AT41: ='Annual Analysis'!AS52 -> 0 | AU41: ='Annual Analysis'!AT52 -> 0 | AV41: ='Annual Analysis'!AU52 -> 0 | AW41: ='Annual Analysis'!AV52 -> 0 | AX41: ='Annual Analysis'!AW52 -> 0 | AY41: ='Annual Analysis'!AX52 -> 0 | AZ41: ='Annual Analysis'!AY52 -> 0 | BA41: ='Annual Analysis'!AZ52 -> 0 | BB41: ='Annual Analysis'!BA52 -> 0 | BC41: ='Annual Analysis'!BB52 -> 0 | BD41: ='Annual Analysis'!BC52 -> 0 | BE41: ='Annual Analysis'!BD52 -> 0 | BF41: ='Annual Analysis'!BE52 -> 0 | BG41: ='Annual Analysis'!BF52 -> 0 | BH41: ='Annual Analysis'!BG52 -> 0 | BI41: ='Annual Analysis'!BH52 -> 0
D42: Total | F42: =SUM(F39:F41) -> 200 | G42: =SUM(G39:G41) -> 200 | H42: 200 | I42: 200 | J42: 200 | K42: 200 | L42: 200 | M42: 200 | N42: 200 | O42: 200 | P42: 200 | Q42: 200 | R42: 0 | S42: 0 | T42: 0 | U42: 0 | V42: 0 | W42: 0 | X42: 0 | Y42: 0 | Z42: 0 | AA42: 0 | AB42: 0 | AC42: 0 | AD42: 0 | AE42: 0 | AF42: 0 | AG42: 0 | AH42: 0 | AI42: 0 | AJ42: 0 | AK42: 0 | AL42: 0 | AM42: 0 | AN42: 0 | AO42: 0 | AP42: 0 | AQ42: 0 | AR42: 0 | AS42: 0 | AT42: 0 | AU42: 0 | AV42: 0 | AW42: 0 | AX42: 0 | AY42: 0 | AZ42: 0 | BA42: 0 | BB42: 0 | BC42: 0 | BD42: 0 | BE42: 0 | BF42: 0 | BG42: 0 | BH42: 0 | BI42: 0
D44: Total IRR | E44: =IRR(E37:BI37) -> 0.1694255086

Sheet IRR
C3: 2011-01-01 | D3: =EDATE(C3,12) -> 2012-01-01 | E3: =EDATE(D3,12) -> 2013-01-01 | F3: =EDATE(E3,12) -> 2014-01-01 | G3: =EDATE(F3,12) -> 2015-01-01 | H3: =EDATE(G3,12) -> 2016-01-01
A5: IRR | B5: =IRR(C5:H5) -> 0.1523823712 | C5: -100 | D5: 30 | E5: =D5 -> 30 | F5: =E5 -> 30 | G5: =F5 -> 30 | H5: =G5 -> 30
A7: XIRR | B7: =XIRR(C5:H5,C3:H3) -> 0.1522606432
B9: Days | C9: 0 | D9: =D3-$C$3 -> 365 | E9: =E3-$C$3 -> 731 | F9: =F3-$C$3 -> 1096 | G9: =G3-$C$3 -> 1461 | H9: =H3-$C$3 -> 1826
B10: Days360 | C10: 0 | D10: =DAYS360($C$3,D3) -> 360 | E10: =DAYS360($C$3,E3) -> 720 | F10: =DAYS360($C$3,F3) -> 1080 | G10: =DAYS360($C$3,G3) -> 1440 | H10: =DAYS360($C$3,H3) -> 1800
B12: Daily Disc Rate XIRR | C12: =(1+$C$15)^(1/365)-1 -> 0.0003883651798 | D12: 0.0003883651798 | E12: 0.0003883651798 | F12: 0.0003883651798 | G12: 0.0003883651798 | H12: 0.0003883651798
B13: Discount Factor | C13: =1/(1+C12)^C9 -> 1 | D13: 0.8678592154 | E13: 0.7528872225 | F13: 0.6534001142 | G13: 0.5670593105 | H13: 0.4921276482
B15: Sumproduct - 365 Days | C15: =F15/100 -> 0.1522606228 | D15: =SUMPRODUCT(C13:H13,C5:H5) -> 5.324587599e-06 | F15: 15.22606228
B17: Daily Disc Rate 360 | C17: =(1+$C$20)^(1/360)-1 -> 0.0003940537493 | D17: 0.0003940537493 | E17: 0.0003940537493 | F17: 0.0003940537493 | G17: 0.0003940537493 | H17: 0.0003940537493
B18: Discount Factor | C18: =1/(1+C17)^C10 -> 1 | D18: 0.8677675437 | E18: 0.7530205099 | F18: 0.6534467582 | G18: 0.5670398883 | H18: 0.4920588111
B20: Sumproduct - 360 Days | C20: =F20/100 -> 0.1523823485 | D20: =SUMPRODUCT(C18:H18,C5:H5) -> 5.336870323e-06 | F20: 15.23823485
C22: =C3 -> 2011-01-01 | D22: =EDATE(C22,6) -> 2011-07-01 | E22: 2012-01-01 | F22: 2012-07-01 | G22: 2013-01-01 | H22: 2013-07-01 | I22: 2014-01-01 | J22: 2014-07-01 | K22: 2015-01-01 | L22: 2015-07-01 | M22: 2016-01-01
A24: IRR | B24: =(1+IRR(C24:M24))^2-1 -> 0.1695160563 | C24: -100 | D24: 15 | E24: 15 | F24: 15 | G24: 15 | H24: 15 | I24: 15 | J24: 15 | K24: 15 | L24: 15 | M24: 15
A26: XIRR | B26: =XIRR(C24:M24,C22:M22) -> 0.1695256531

Sheet Sheet3
